Workbook

Sheet Points
B3: Include Sum of Fees in Sources and Uses
B5: Use the Debt Commitment for Up-front and Committment fees
B7: Compute Un-committed Balance for Commitment Fee

Sheet Summary
A2: Operating Assumptions | G2: Returns
D3: Price | E3: ='Operations Monthly'!F42 -> 65 | H3: Equity IRR | I3: ='Project Finance Analysis'!E161 -> 0.07913682759
D4: Capacity Factor Scenario | E4: ='Operations Monthly'!F28 -> 2 | H4: Project IRR | I4: ='Project Finance Analysis'!E162 -> 0.04876411855
D5: Capital Cost/kW | E5: ='Operations Monthly'!F37 -> 2000 | H5: Debt IRR | I5: ='Project Finance Analysis'!E172 -> 0.02517099679
D6: O&M Cost/kW-yr | E6: ='Operations Monthly'!G54 -> 35 | H6: After Tax Debt IRR | I6: ='Project Finance Analysis'!E179 -> 0.0189719528
D7: Revenue Inflation | E7: ='Operations Monthly'!F45 -> 2
D8: O&M Inflation | E8: ='Operations Monthly'!F59 -> 2 | G8: Credit
H9: DSCR Min | I9: ='Project Finance Analysis'!F188 -> 1.148881707
H10: PLCR | I10: ='Project Finance Analysis'!F194 -> 1.96908371
A11: Aggregate Sources and Uses | H11: LLCR | I11: ='Project Finance Analysis'!F200 -> 1.508790583
B12: Uses | H12: Average Life | I12: ='Project Finance Analysis'!F205 -> 8.5
C13: Capital Expenditures | E13: ='Project Finance Analysis'!G54 -> 600000
C14: Add: Interest During Construction | E14: ='Project Finance Analysis'!G55 -> 24209.86973
C15: Add: Fees During Construction | E15: ='Project Finance Analysis'!G56 -> 5768.813097
C16: Add: DSRA | E16: ='Project Finance Analysis'!G57 -> 0
C17: Add: Pre-funded Working Cap | E17: ='Project Finance Analysis'!G58 -> 6077.007931 | H17: Goal Seek for Debt to Cap
C18: Total | E18: ='Project Finance Analysis'!G59 -> 636055.6908 | H18: DSCR Goal Seek
B20: Sources
C21: Debt | E21: ='Project Finance Analysis'!G62 -> 445238.9835 | F21: =E21/E23 -> 0.7
C22: Equity | E22: ='Project Finance Analysis'!G63 -> 190816.7072
C23: Total | E23: ='Project Finance Analysis'!G64 -> 636055.6908

Sheet Graphs
B2: COD Year | D2: =YEAR('Project Finance Analysis'!F3) -> 2018 | H2: Use the Date Axis Option
B3: Decommissioning Year | D3: =YEAR('Operations Monthly'!G7) -> 2043
B5: Raw Year | E5: =YEAR('Project Finance Analysis'!F3) -> 2018 | F5: =E5+1 -> 2019 | G5: =F5+1 -> 2020 | H5: 2021 | I5: 2022 | J5: 2023 | K5: 2024 | L5: 2025 | M5: 2026 | N5: 2027 | O5: 2028 | P5: 2029 | Q5: 2030 | R5: 2031 | S5: 2032 | T5: 2033 | U5: 2034 | V5: 2035 | W5: 2036 | X5: 2037 | Y5: 2038 | Z5: 2039 | AA5: 2040 | AB5: 2041 | AC5: 2042 | AD5: 2043 | AE5: 2044 | AF5: 2045 | AG5: 2046 | AH5: 2047 | AI5: 2048 | AJ5: 2049 | AK5: 2050 | AL5: 2051 | AM5: 2052 | AN5: 2053 | AO5: 2054 | AP5: 2055 | AQ5: 2056 | AR5: 2057 | AS5: 2058 | AT5: 2059 | AU5: 2060 | AV5: 2061 | AW5: 2062 | AX5: 2063 | AY5: 2064 | AZ5: 2065
E6: =IF(E5<=$D$3,E5,NA()) -> 2018 | F6: =IF(F5<=$D$3,F5,NA()) -> 2019 | G6: 2020 | H6: 2021 | I6: 2022 | J6: 2023 | K6: 2024 | L6: 2025 | M6: 2026 | N6: 2027 | O6: 2028 | P6: 2029 | Q6: 2030 | R6: 2031 | S6: 2032 | T6: 2033 | U6: 2034 | V6: 2035 | W6: 2036 | X6: 2037 | Y6: 2038 | Z6: 2039 | AA6: 2040 | AB6: 2041 | AC6: 2042 | AD6: 2043
B7: CFADS | E7: =SUMIF('Project Finance Analysis'!$10:$10,Graphs!E$5,'Project Finance Analysis'!186:186) -> 21438.99605 | F7: =SUMIF('Project Finance Analysis'!$10:$10,Graphs!F$5,'Project Finance Analysis'!186:186) -> 44966.93794 | G7: =SUMIF('Project Finance Analysis'!$10:$10,Graphs!G$5,'Project Finance Analysis'!186:186) -> 47339.7337 | H7: =SUMIF('Project Finance Analysis'!$10:$10,Graphs!H$5,'Project Finance Analysis'!186:186) -> 47821.11827 | I7: =SUMIF('Project Finance Analysis'!$10:$10,Graphs!I$5,'Project Finance Analysis'!186:186) -> 48687.65956 | J7: =SUMIF('Project Finance Analysis'!$10:$10,Graphs!J$5,'Project Finance Analysis'!186:186) -> 50328.26703 | K7: =SUMIF('Project Finance Analysis'!$10:$10,Graphs!K$5,'Project Finance Analysis'!186:186) -> 50967.50901 | L7: =SUMIF('Project Finance Analysis'!$10:$10,Graphs!L$5,'Project Finance Analysis'!186:186) -> 51788.60182 | M7: =SUMIF('Project Finance Analysis'!$10:$10,Graphs!M$5,'Project Finance Analysis'!186:186) -> 52622.57682 | N7: =SUMIF('Project Finance Analysis'!$10:$10,Graphs!N$5,'Project Finance Analysis'!186:186) -> 53203.79305 | O7: =SUMIF('Project Finance Analysis'!$10:$10,Graphs!O$5,'Project Finance Analysis'!186:186) -> 52275.15073 | P7: =SUMIF('Project Finance Analysis'!$10:$10,Graphs!P$5,'Project Finance Analysis'!186:186) -> 51349.28908 | Q7: =SUMIF('Project Finance Analysis'!$10:$10,Graphs!Q$5,'Project Finance Analysis'!186:186) -> 52184.09186 | R7: =SUMIF('Project Finance Analysis'!$10:$10,Graphs!R$5,'Project Finance Analysis'!186:186) -> 53214.57297 | S7: =SUMIF('Project Finance Analysis'!$10:$10,Graphs!S$5,'Project Finance Analysis'!186:186) -> 49491.3972 | T7: =SUMIF('Project Finance Analysis'!$10:$10,Graphs!T$5,'Project Finance Analysis'!186:186) -> 39558.98225 | U7: =SUMIF('Project Finance Analysis'!$10:$10,Graphs!U$5,'Project Finance Analysis'!186:186) -> 40042.81149 | V7: =SUMIF('Project Finance Analysis'!$10:$10,Graphs!V$5,'Project Finance Analysis'!186:186) -> 40682.23274 | W7: =SUMIF('Project Finance Analysis'!$10:$10,Graphs!W$5,'Project Finance Analysis'!186:186) -> 41164.32688 | X7: =SUMIF('Project Finance Analysis'!$10:$10,Graphs!X$5,'Project Finance Analysis'!186:186) -> 41843.25941 | Y7: =SUMIF('Project Finance Analysis'!$10:$10,Graphs!Y$5,'Project Finance Analysis'!186:186) -> 42532.9906 | Z7: =SUMIF('Project Finance Analysis'!$10:$10,Graphs!Z$5,'Project Finance Analysis'!186:186) -> 42560.66915 | AA7: =SUMIF('Project Finance Analysis'!$10:$10,Graphs!AA$5,'Project Finance Analysis'!186:186) -> 42276.75302 | AB7: =SUMIF('Project Finance Analysis'!$10:$10,Graphs!AB$5,'Project Finance Analysis'!186:186) -> 42974.86777 | AC7: =SUMIF('Project Finance Analysis'!$10:$10,Graphs!AC$5,'Project Finance Analysis'!186:186) -> 43684.09388 | AD7: =SUMIF('Project Finance Analysis'!$10:$10,Graphs!AD$5,'Project Finance Analysis'!186:186) -> 30855.87119 | AE7: =SUMIF('Project Finance Analysis'!$10:$10,Graphs!AE$5,'Project Finance Analysis'!186:186) -> -1.068656275e-12 | AF7: =SUMIF('Project Finance Analysis'!$10:$10,Graphs!AF$5,'Project Finance Analysis'!186:186) -> -1.068656275e-12 | AG7: =SUMIF('Project Finance Analysis'!$10:$10,Graphs!AG$5,'Project Finance Analysis'!186:186) -> -1.068656275e-12 | AH7: =SUMIF('Project Finance Analysis'!$10:$10,Graphs!AH$5,'Project Finance Analysis'!186:186) -> -1.068656275e-12 | AI7: =SUMIF('Project Finance Analysis'!$10:$10,Graphs!AI$5,'Project Finance Analysis'!186:186) -> -1.068656275e-12 | AJ7: =SUMIF('Project Finance Analysis'!$10:$10,Graphs!AJ$5,'Project Finance Analysis'!186:186) -> -1.068656275e-12 | AK7: =SUMIF('Project Finance Analysis'!$10:$10,Graphs!AK$5,'Project Finance Analysis'!186:186) -> -1.068656275e-12 | AL7: =SUMIF('Project Finance Analysis'!$10:$10,Graphs!AL$5,'Project Finance Analysis'!186:186) -> -5.343281373e-13 | AM7: =SUMIF('Project Finance Analysis'!$10:$10,Graphs!AM$5,'Project Finance Analysis'!186:186) -> 0 | AN7: =SUMIF('Project Finance Analysis'!$10:$10,Graphs!AN$5,'Project Finance Analysis'!186:186) -> 0 | AO7: =SUMIF('Project Finance Analysis'!$10:$10,Graphs!AO$5,'Project Finance Analysis'!186:186) -> 0 | AP7: =SUMIF('Project Finance Analysis'!$10:$10,Graphs!AP$5,'Project Finance Analysis'!186:186) -> 0 | AQ7: =SUMIF('Project Finance Analysis'!$10:$10,Graphs!AQ$5,'Project Finance Analysis'!186:186) -> 0 | AR7: =SUMIF('Project Finance Analysis'!$10:$10,Graphs!AR$5,'Project Finance Analysis'!186:186) -> 0 | AS7: =SUMIF('Project Finance Analysis'!$10:$10,Graphs!AS$5,'Project Finance Analysis'!186:186) -> 0 | AT7: =SUMIF('Project Finance Analysis'!$10:$10,Graphs!AT$5,'Project Finance Analysis'!186:186) -> 0 | AU7: =SUMIF('Project Finance Analysis'!$10:$10,Graphs!AU$5,'Project Finance Analysis'!186:186) -> 0 | AV7: =SUMIF('Project Finance Analysis'!$10:$10,Graphs!AV$5,'Project Finance Analysis'!186:186) -> 0 | AW7: =SUMIF('Project Finance Analysis'!$10:$10,Graphs!AW$5,'Project Finance Analysis'!186:186) -> 0 | AX7: =SUMIF('Project Finance Analysis'!$10:$10,Graphs!AX$5,'Project Finance Analysis'!186:186) -> 0 | AY7: =SUMIF('Project Finance Analysis'!$10:$10,Graphs!AY$5,'Project Finance Analysis'!186:186) -> 0 | AZ7: =SUMIF('Project Finance Analysis'!$10:$10,Graphs!AZ$5,'Project Finance Analysis'!186:186) -> 0
B8: Debt Service | E8: =SUMIF('Project Finance Analysis'!$10:$10,Graphs!E$5,'Project Finance Analysis'!187:187) -> 18660.75152 | F8: =SUMIF('Project Finance Analysis'!$10:$10,Graphs!F$5,'Project Finance Analysis'!187:187) -> 36830.43062 | G8: =SUMIF('Project Finance Analysis'!$10:$10,Graphs!G$5,'Project Finance Analysis'!187:187) -> 36175.66741 | H8: =SUMIF('Project Finance Analysis'!$10:$10,Graphs!H$5,'Project Finance Analysis'!187:187) -> 35520.9042 | I8: =SUMIF('Project Finance Analysis'!$10:$10,Graphs!I$5,'Project Finance Analysis'!187:187) -> 34866.14099 | J8: =SUMIF('Project Finance Analysis'!$10:$10,Graphs!J$5,'Project Finance Analysis'!187:187) -> 34211.37778 | K8: =SUMIF('Project Finance Analysis'!$10:$10,Graphs!K$5,'Project Finance Analysis'!187:187) -> 33556.61457 | L8: =SUMIF('Project Finance Analysis'!$10:$10,Graphs!L$5,'Project Finance Analysis'!187:187) -> 32901.85136 | M8: =SUMIF('Project Finance Analysis'!$10:$10,Graphs!M$5,'Project Finance Analysis'!187:187) -> 32247.08815 | N8: =SUMIF('Project Finance Analysis'!$10:$10,Graphs!N$5,'Project Finance Analysis'!187:187) -> 31592.32493 | O8: =SUMIF('Project Finance Analysis'!$10:$10,Graphs!O$5,'Project Finance Analysis'!187:187) -> 30937.56172 | P8: =SUMIF('Project Finance Analysis'!$10:$10,Graphs!P$5,'Project Finance Analysis'!187:187) -> 30282.79851 | Q8: =SUMIF('Project Finance Analysis'!$10:$10,Graphs!Q$5,'Project Finance Analysis'!187:187) -> 29628.0353 | R8: =SUMIF('Project Finance Analysis'!$10:$10,Graphs!R$5,'Project Finance Analysis'!187:187) -> 28973.27209 | S8: =SUMIF('Project Finance Analysis'!$10:$10,Graphs!S$5,'Project Finance Analysis'!187:187) -> 28318.50888 | T8: =SUMIF('Project Finance Analysis'!$10:$10,Graphs!T$5,'Project Finance Analysis'!187:187) -> 27663.74567 | U8: =SUMIF('Project Finance Analysis'!$10:$10,Graphs!U$5,'Project Finance Analysis'!187:187) -> 27008.98246 | V8: =SUMIF('Project Finance Analysis'!$10:$10,Graphs!V$5,'Project Finance Analysis'!187:187) -> 13258.95502 | W8: =SUMIF('Project Finance Analysis'!$10:$10,Graphs!W$5,'Project Finance Analysis'!187:187) -> -4.274625098e-12 | X8: =SUMIF('Project Finance Analysis'!$10:$10,Graphs!X$5,'Project Finance Analysis'!187:187) -> -4.274625098e-12 | Y8: =SUMIF('Project Finance Analysis'!$10:$10,Graphs!Y$5,'Project Finance Analysis'!187:187) -> -4.274625098e-12 | Z8: =SUMIF('Project Finance Analysis'!$10:$10,Graphs!Z$5,'Project Finance Analysis'!187:187) -> -4.274625098e-12 | AA8: =SUMIF('Project Finance Analysis'!$10:$10,Graphs!AA$5,'Project Finance Analysis'!187:187) -> -4.274625098e-12 | AB8: =SUMIF('Project Finance Analysis'!$10:$10,Graphs!AB$5,'Project Finance Analysis'!187:187) -> -4.274625098e-12 | AC8: =SUMIF('Project Finance Analysis'!$10:$10,Graphs!AC$5,'Project Finance Analysis'!187:187) -> -4.274625098e-12 | AD8: =SUMIF('Project Finance Analysis'!$10:$10,Graphs!AD$5,'Project Finance Analysis'!187:187) -> -4.274625098e-12 | AE8: =SUMIF('Project Finance Analysis'!$10:$10,Graphs!AE$5,'Project Finance Analysis'!187:187) -> -4.274625098e-12 | AF8: =SUMIF('Project Finance Analysis'!$10:$10,Graphs!AF$5,'Project Finance Analysis'!187:187) -> -4.274625098e-12 | AG8: =SUMIF('Project Finance Analysis'!$10:$10,Graphs!AG$5,'Project Finance Analysis'!187:187) -> -4.274625098e-12 | AH8: =SUMIF('Project Finance Analysis'!$10:$10,Graphs!AH$5,'Project Finance Analysis'!187:187) -> -4.274625098e-12 | AI8: =SUMIF('Project Finance Analysis'!$10:$10,Graphs!AI$5,'Project Finance Analysis'!187:187) -> -4.274625098e-12 | AJ8: =SUMIF('Project Finance Analysis'!$10:$10,Graphs!AJ$5,'Project Finance Analysis'!187:187) -> -4.274625098e-12 | AK8: =SUMIF('Project Finance Analysis'!$10:$10,Graphs!AK$5,'Project Finance Analysis'!187:187) -> -4.274625098e-12 | AL8: =SUMIF('Project Finance Analysis'!$10:$10,Graphs!AL$5,'Project Finance Analysis'!187:187) -> -2.137312549e-12 | AM8: =SUMIF('Project Finance Analysis'!$10:$10,Graphs!AM$5,'Project Finance Analysis'!187:187) -> 0 | AN8: =SUMIF('Project Finance Analysis'!$10:$10,Graphs!AN$5,'Project Finance Analysis'!187:187) -> 0 | AO8: =SUMIF('Project Finance Analysis'!$10:$10,Graphs!AO$5,'Project Finance Analysis'!187:187) -> 0 | AP8: =SUMIF('Project Finance Analysis'!$10:$10,Graphs!AP$5,'Project Finance Analysis'!187:187) -> 0 | AQ8: =SUMIF('Project Finance Analysis'!$10:$10,Graphs!AQ$5,'Project Finance Analysis'!187:187) -> 0 | AR8: =SUMIF('Project Finance Analysis'!$10:$10,Graphs!AR$5,'Project Finance Analysis'!187:187) -> 0 | AS8: =SUMIF('Project Finance Analysis'!$10:$10,Graphs!AS$5,'Project Finance Analysis'!187:187) -> 0 | AT8: =SUMIF('Project Finance Analysis'!$10:$10,Graphs!AT$5,'Project Finance Analysis'!187:187) -> 0 | AU8: =SUMIF('Project Finance Analysis'!$10:$10,Graphs!AU$5,'Project Finance Analysis'!187:187) -> 0 | AV8: =SUMIF('Project Finance Analysis'!$10:$10,Graphs!AV$5,'Project Finance Analysis'!187:187) -> 0 | AW8: =SUMIF('Project Finance Analysis'!$10:$10,Graphs!AW$5,'Project Finance Analysis'!187:187) -> 0 | AX8: =SUMIF('Project Finance Analysis'!$10:$10,Graphs!AX$5,'Project Finance Analysis'!187:187) -> 0 | AY8: =SUMIF('Project Finance Analysis'!$10:$10,Graphs!AY$5,'Project Finance Analysis'!187:187) -> 0 | AZ8: =SUMIF('Project Finance Analysis'!$10:$10,Graphs!AZ$5,'Project Finance Analysis'!187:187) -> 0

Sheet Fee Exercise
E1: Project IRR | G1: ='Operations Monthly'!I158 -> 0.04965505805
L2: =K3+1 -> 2015-03-01 | M2: =L3+1 -> 2015-04-01 | N2: 2015-05-01 | O2: 2015-06-01 | P2: 2015-07-01 | Q2: 2015-08-01 | R2: 2015-09-01 | S2: 2015-10-01 | T2: 2015-11-01 | U2: 2015-12-01 | V2: 2016-01-01 | W2: 2016-02-01 | X2: 2016-03-01 | Y2: 2016-04-01 | Z2: 2016-05-01 | AA2: 2016-06-01 | AB2: 2016-07-01 | AC2: 2016-08-01 | AD2: 2016-09-01 | AE2: 2016-10-01 | AF2: 2016-11-01 | AG2: 2016-12-01 | AH2: 2017-01-01 | AI2: 2017-02-01 | AJ2: 2017-03-01 | AK2: 2017-04-01 | AL2: 2017-05-01 | AM2: 2017-06-01 | AN2: 2017-07-01 | AO2: 2017-08-01 | AP2: 2017-09-01 | AQ2: 2017-10-01 | AR2: 2017-11-01 | AS2: 2017-12-01 | AT2: 2018-01-01 | AU2: 2018-02-01 | AV2: 2018-03-01 | AW2: 2018-04-01 | AX2: 2018-05-01 | AY2: 2018-06-01 | AZ2: 2018-07-01 | BA2: 2018-08-01 | BB2: 2018-09-01 | BC2: 2018-10-01 | BD2: 2018-11-01 | BE2: 2019-05-01 | BF2: 2019-11-01 | BG2: 2020-05-01 | BH2: 2020-11-01 | BI2: 2021-05-01 | BJ2: 2021-11-01 | BK2: 2022-05-01 | BL2: 2022-11-01 | BM2: 2023-05-01 | BN2: 2023-11-01 | BO2: 2024-05-01 | BP2: 2024-11-01 | BQ2: 2025-05-01 | BR2: 2025-11-01 | BS2: 2026-05-01 | BT2: 2026-11-01 | BU2: 2027-05-01 | BV2: 2027-11-01 | BW2: 2028-05-01 | BX2: 2028-11-01 | BY2: =BX3+1 -> 2029-05-01 | BZ2: 2029-11-01 | CA2: 2030-05-01 | CB2: 2030-11-01 | CC2: 2031-05-01 | CD2: 2031-11-01 | CE2: 2032-05-01 | CF2: 2032-11-01 | CG2: 2033-05-01 | CH2: 2033-11-01 | CI2: 2034-05-01 | CJ2: 2034-11-01 | CK2: 2035-05-01 | CL2: 2035-11-01 | CM2: 2036-05-01 | CN2: 2036-11-01 | CO2: 2037-05-01 | CP2: 2037-11-01 | CQ2: 2038-05-01 | CR2: 2038-11-01 | CS2: 2039-05-01 | CT2: 2039-11-01 | CU2: 2040-05-01 | CV2: 2040-11-01 | CW2: 2041-05-01 | CX2: 2041-11-01 | CY2: 2042-05-01 | CZ2: 2042-11-01 | DA2: 2043-05-01 | DB2: 2043-11-01 | DC2: 2044-05-01 | DD2: 2044-11-01 | DE2: 2045-05-01 | DF2: 2045-11-01 | DG2: 2046-05-01 | DH2: 2046-11-01 | DI2: 2047-05-01 | DJ2: 2047-11-01 | DK2: 2048-05-01 | DL2: 2048-11-01 | DM2: 2049-05-01 | DN2: 2049-11-01 | DO2: 2050-05-01 | DP2: 2050-11-01 | DQ2: 2051-05-01
A3: Date | E3: COD | F3: ='Operations Monthly'!F20 -> 2018-11-01 | K3: ='Operations Monthly'!J3 -> 2015-02-28 | L3: =IF(K3+1<$F$3,EOMONTH(K3,1),EOMONTH(K3,6)) -> 2015-03-31 | M3: =IF(L3+1<$F$3,EOMONTH(L3,1),EOMONTH(L3,6)) -> 2015-04-30 | N3: 2015-05-31 | O3: 2015-06-30 | P3: 2015-07-31 | Q3: 2015-08-31 | R3: 2015-09-30 | S3: 2015-10-31 | T3: 2015-11-30 | U3: 2015-12-31 | V3: 2016-01-31 | W3: 2016-02-29 | X3: 2016-03-31 | Y3: 2016-04-30 | Z3: 2016-05-31 | AA3: 2016-06-30 | AB3: 2016-07-31 | AC3: 2016-08-31 | AD3: 2016-09-30 | AE3: 2016-10-31 | AF3: 2016-11-30 | AG3: 2016-12-31 | AH3: 2017-01-31 | AI3: 2017-02-28 | AJ3: 2017-03-31 | AK3: 2017-04-30 | AL3: 2017-05-31 | AM3: 2017-06-30 | AN3: 2017-07-31 | AO3: 2017-08-31 | AP3: 2017-09-30 | AQ3: 2017-10-31 | AR3: 2017-11-30 | AS3: 2017-12-31 | AT3: 2018-01-31 | AU3: 2018-02-28 | AV3: 2018-03-31 | AW3: 2018-04-30 | AX3: 2018-05-31 | AY3: 2018-06-30 | AZ3: 2018-07-31 | BA3: 2018-08-31 | BB3: 2018-09-30 | BC3: 2018-10-31 | BD3: 2019-04-30 | BE3: 2019-10-31 | BF3: 2020-04-30 | BG3: 2020-10-31 | BH3: 2021-04-30 | BI3: 2021-10-31 | BJ3: 2022-04-30 | BK3: 2022-10-31 | BL3: 2023-04-30 | BM3: 2023-10-31 | BN3: 2024-04-30 | BO3: 2024-10-31 | BP3: 2025-04-30 | BQ3: 2025-10-31 | BR3: 2026-04-30 | BS3: 2026-10-31 | BT3: 2027-04-30 | BU3: 2027-10-31 | BV3: 2028-04-30 | BW3: 2028-10-31 | BX3: 2029-04-30 | BY3: =IF(BX3+1<$F$3,EOMONTH(BX3,1),EOMONTH(BX3,6)) -> 2029-10-31 | BZ3: 2030-04-30 | CA3: 2030-10-31 | CB3: 2031-04-30 | CC3: 2031-10-31 | CD3: 2032-04-30 | CE3: 2032-10-31 | CF3: 2033-04-30 | CG3: 2033-10-31 | CH3: 2034-04-30 | CI3: 2034-10-31 | CJ3: 2035-04-30 | CK3: 2035-10-31 | CL3: 2036-04-30 | CM3: 2036-10-31 | CN3: 2037-04-30 | CO3: 2037-10-31 | CP3: 2038-04-30 | CQ3: 2038-10-31 | CR3: 2039-04-30 | CS3: 2039-10-31 | CT3: 2040-04-30 | CU3: 2040-10-31 | CV3: 2041-04-30 | CW3: 2041-10-31 | CX3: 2042-04-30 | CY3: 2042-10-31 | CZ3: 2043-04-30 | DA3: 2043-10-31 | DB3: 2044-04-30 | DC3: 2044-10-31 | DD3: 2045-04-30 | DE3: 2045-10-31 | DF3: 2046-04-30 | DG3: 2046-10-31 | DH3: 2047-04-30 | DI3: 2047-10-31 | DJ3: 2048-04-30 | DK3: 2048-10-31 | DL3: 2049-04-30 | DM3: 2049-10-31 | DN3: 2050-04-30 | DO3: 2050-10-31 | DP3: 2051-04-30 | DQ3: 2051-10-31
C4: Debt Repayment Switch | H4: =F3 -> 2018-11-01 | I4: =F25 -> 2035-11-01 | J4: =COUNTIF(L4:DQ4,TRUE)/2=F24 -> TRUE | L4: =AND(L2>=$H$4,L2<$I$4) -> FALSE | M4: =AND(M2>=$H$4,M2<$I$4) -> FALSE | N4: FALSE | O4: FALSE | P4: FALSE | Q4: FALSE | R4: FALSE | S4: FALSE | T4: FALSE | U4: FALSE | V4: FALSE | W4: FALSE | X4: FALSE | Y4: FALSE | Z4: FALSE | AA4: FALSE | AB4: FALSE | AC4: FALSE | AD4: FALSE | AE4: FALSE | AF4: FALSE | AG4: FALSE | AH4: FALSE | AI4: FALSE | AJ4: FALSE | AK4: FALSE | AL4: FALSE | AM4: FALSE | AN4: FALSE | AO4: FALSE | AP4: FALSE | AQ4: FALSE | AR4: FALSE | AS4: FALSE | AT4: FALSE | AU4: FALSE | AV4: FALSE | AW4: FALSE | AX4: FALSE | AY4: FALSE | AZ4: FALSE | BA4: FALSE | BB4: FALSE | BC4: FALSE | BD4: TRUE | BE4: TRUE | BF4: TRUE | BG4: TRUE | BH4: TRUE | BI4: TRUE | BJ4: TRUE | BK4: TRUE | BL4: TRUE | BM4: TRUE | BN4: TRUE | BO4: TRUE | BP4: TRUE | BQ4: TRUE | BR4: TRUE | BS4: TRUE | BT4: TRUE | BU4: TRUE | BV4: TRUE | BW4: TRUE | BX4: TRUE | BY4: =AND(BY2>=$H$4,BY2<$I$4) -> TRUE | BZ4: TRUE | CA4: TRUE | CB4: TRUE | CC4: TRUE | CD4: TRUE | CE4: TRUE | CF4: TRUE | CG4: TRUE | CH4: TRUE | CI4: TRUE | CJ4: TRUE | CK4: TRUE | CL4: FALSE | CM4: FALSE | CN4: FALSE | CO4: FALSE | CP4: FALSE | CQ4: FALSE | CR4: FALSE | CS4: FALSE | CT4: FALSE | CU4: FALSE | CV4: FALSE | CW4: FALSE | CX4: FALSE | CY4: FALSE | CZ4: FALSE | DA4: FALSE | DB4: FALSE | DC4: FALSE | DD4: FALSE | DE4: FALSE | DF4: FALSE | DG4: FALSE | DH4: FALSE | DI4: FALSE | DJ4: FALSE | DK4: FALSE | DL4: FALSE | DM4: FALSE | DN4: FALSE | DO4: FALSE | DP4: FALSE | DQ4: FALSE
C5: Re-financing at end of Construction | H5: =EOMONTH(F3,-1) -> 2018-10-31 | L5: =L3=$H$5 -> FALSE | M5: FALSE | N5: FALSE | O5: FALSE | P5: FALSE | Q5: FALSE | R5: FALSE | S5: FALSE | T5: FALSE | U5: FALSE | V5: FALSE | W5: FALSE | X5: FALSE | Y5: FALSE | Z5: FALSE | AA5: FALSE | AB5: FALSE | AC5: FALSE | AD5: FALSE | AE5: FALSE | AF5: FALSE | AG5: FALSE | AH5: FALSE | AI5: FALSE | AJ5: FALSE | AK5: FALSE | AL5: FALSE | AM5: FALSE | AN5: FALSE | AO5: FALSE | AP5: FALSE | AQ5: FALSE | AR5: FALSE | AS5: FALSE | AT5: FALSE | AU5: FALSE | AV5: FALSE | AW5: FALSE | AX5: FALSE | AY5: FALSE | AZ5: FALSE | BA5: FALSE | BB5: FALSE | BC5: TRUE | BD5: FALSE | BE5: FALSE | BF5: FALSE | BG5: FALSE | BH5: FALSE | BI5: FALSE | BJ5: FALSE | BK5: FALSE | BL5: FALSE | BM5: FALSE | BN5: FALSE | BO5: FALSE | BP5: FALSE | BQ5: FALSE | BR5: FALSE | BS5: FALSE | BT5: FALSE | BU5: FALSE | BV5: FALSE | BW5: FALSE | BX5: =BX3=$H$5 -> FALSE | BY5: FALSE | BZ5: FALSE | CA5: FALSE | CB5: FALSE | CC5: FALSE | CD5: FALSE | CE5: FALSE | CF5: FALSE | CG5: FALSE | CH5: FALSE | CI5: FALSE | CJ5: FALSE | CK5: FALSE | CL5: FALSE | CM5: FALSE | CN5: FALSE | CO5: FALSE | CP5: FALSE | CQ5: FALSE | CR5: FALSE | CS5: FALSE | CT5: FALSE | CU5: FALSE | CV5: FALSE | CW5: FALSE | CX5: FALSE | CY5: FALSE | CZ5: FALSE | DA5: FALSE | DB5: FALSE | DC5: FALSE | DD5: FALSE | DE5: FALSE | DF5: FALSE | DG5: FALSE | DH5: FALSE | DI5: FALSE | DJ5: FALSE | DK5: FALSE | DL5: FALSE | DM5: FALSE | DN5: FALSE | DO5: FALSE | DP5: FALSE | DQ5: FALSE
C6: Construction Switch | H6: =F3 -> 2018-11-01 | L6: =L2<$H$6 -> TRUE | M6: =M2<$H$6 -> TRUE | N6: TRUE | O6: TRUE | P6: TRUE | Q6: TRUE | R6: TRUE | S6: TRUE | T6: TRUE | U6: TRUE | V6: TRUE | W6: TRUE | X6: TRUE | Y6: TRUE | Z6: TRUE | AA6: TRUE | AB6: TRUE | AC6: TRUE | AD6: TRUE | AE6: TRUE | AF6: TRUE | AG6: TRUE | AH6: TRUE | AI6: TRUE | AJ6: TRUE | AK6: TRUE | AL6: TRUE | AM6: TRUE | AN6: TRUE | AO6: TRUE | AP6: TRUE | AQ6: TRUE | AR6: TRUE | AS6: TRUE | AT6: TRUE | AU6: TRUE | AV6: TRUE | AW6: TRUE | AX6: TRUE | AY6: TRUE | AZ6: TRUE | BA6: TRUE | BB6: TRUE | BC6: TRUE | BD6: FALSE | BE6: FALSE | BF6: FALSE | BG6: FALSE | BH6: FALSE | BI6: FALSE | BJ6: FALSE | BK6: FALSE | BL6: FALSE | BM6: FALSE | BN6: FALSE | BO6: FALSE | BP6: FALSE | BQ6: FALSE | BR6: FALSE | BS6: FALSE | BT6: FALSE | BU6: FALSE | BV6: FALSE | BW6: FALSE | BX6: FALSE | BY6: =BY2<$H$6 -> FALSE | BZ6: FALSE | CA6: FALSE | CB6: FALSE | CC6: FALSE | CD6: FALSE | CE6: FALSE | CF6: FALSE | CG6: FALSE | CH6: FALSE | CI6: FALSE | CJ6: FALSE | CK6: FALSE | CL6: FALSE | CM6: FALSE | CN6: FALSE | CO6: FALSE | CP6: FALSE | CQ6: FALSE | CR6: FALSE | CS6: FALSE | CT6: FALSE | CU6: FALSE | CV6: FALSE | CW6: FALSE | CX6: FALSE | CY6: FALSE | CZ6: FALSE | DA6: FALSE | DB6: FALSE | DC6: FALSE | DD6: FALSE | DE6: FALSE | DF6: FALSE | DG6: FALSE | DH6: FALSE | DI6: FALSE | DJ6: FALSE | DK6: FALSE | DL6: FALSE | DM6: FALSE | DN6: FALSE | DO6: FALSE | DP6: FALSE | DQ6: FALSE
C7: Months in Period | L7: =IF(L6,1,6) -> 1 | M7: =IF(M6,1,6) -> 1 | N7: 1 | O7: 1 | P7: 1 | Q7: 1 | R7: 1 | S7: 1 | T7: 1 | U7: 1 | V7: 1 | W7: 1 | X7: 1 | Y7: 1 | Z7: 1 | AA7: 1 | AB7: 1 | AC7: 1 | AD7: 1 | AE7: 1 | AF7: 1 | AG7: 1 | AH7: 1 | AI7: 1 | AJ7: 1 | AK7: 1 | AL7: 1 | AM7: 1 | AN7: 1 | AO7: 1 | AP7: 1 | AQ7: 1 | AR7: 1 | AS7: 1 | AT7: 1 | AU7: 1 | AV7: 1 | AW7: 1 | AX7: 1 | AY7: 1 | AZ7: 1 | BA7: 1 | BB7: 1 | BC7: 1 | BD7: 6 | BE7: 6 | BF7: 6 | BG7: 6 | BH7: 6 | BI7: 6 | BJ7: 6 | BK7: 6 | BL7: 6 | BM7: 6 | BN7: 6 | BO7: 6 | BP7: 6 | BQ7: 6 | BR7: 6 | BS7: 6 | BT7: 6 | BU7: 6 | BV7: 6 | BW7: 6 | BX7: 6 | BY7: =IF(BY6,1,6) -> 6 | BZ7: 6 | CA7: 6 | CB7: 6 | CC7: 6 | CD7: 6 | CE7: 6 | CF7: 6 | CG7: 6 | CH7: 6 | CI7: 6 | CJ7: 6 | CK7: 6 | CL7: 6 | CM7: 6 | CN7: 6 | CO7: 6 | CP7: 6 | CQ7: 6 | CR7: 6 | CS7: 6 | CT7: 6 | CU7: 6 | CV7: 6 | CW7: 6 | CX7: 6 | CY7: 6 | CZ7: 6 | DA7: 6 | DB7: 6 | DC7: 6 | DD7: 6 | DE7: 6 | DF7: 6 | DG7: 6 | DH7: 6 | DI7: 6 | DJ7: 6 | DK7: 6 | DL7: 6 | DM7: 6 | DN7: 6 | DO7: 6 | DP7: 6 | DQ7: 6
C8: Periods to Accumuate to a Year | L8: =12/L7 -> 12 | M8: =12/M7 -> 12 | N8: 12 | O8: 12 | P8: 12 | Q8: 12 | R8: 12 | S8: 12 | T8: 12 | U8: 12 | V8: 12 | W8: 12 | X8: 12 | Y8: 12 | Z8: 12 | AA8: 12 | AB8: 12 | AC8: 12 | AD8: 12 | AE8: 12 | AF8: 12 | AG8: 12 | AH8: 12 | AI8: 12 | AJ8: 12 | AK8: 12 | AL8: 12 | AM8: 12 | AN8: 12 | AO8: 12 | AP8: 12 | AQ8: 12 | AR8: 12 | AS8: 12 | AT8: 12 | AU8: 12 | AV8: 12 | AW8: 12 | AX8: 12 | AY8: 12 | AZ8: 12 | BA8: 12 | BB8: 12 | BC8: 12 | BD8: 2 | BE8: 2 | BF8: 2 | BG8: 2 | BH8: 2 | BI8: 2 | BJ8: 2 | BK8: 2 | BL8: 2 | BM8: 2 | BN8: 2 | BO8: 2 | BP8: 2 | BQ8: 2 | BR8: 2 | BS8: 2 | BT8: 2 | BU8: 2 | BV8: 2 | BW8: 2 | BX8: 2 | BY8: =12/BY7 -> 2 | BZ8: 2 | CA8: 2 | CB8: 2 | CC8: 2 | CD8: 2 | CE8: 2 | CF8: 2 | CG8: 2 | CH8: 2 | CI8: 2 | CJ8: 2 | CK8: 2 | CL8: 2 | CM8: 2 | CN8: 2 | CO8: 2 | CP8: 2 | CQ8: 2 | CR8: 2 | CS8: 2 | CT8: 2 | CU8: 2 | CV8: 2 | CW8: 2 | CX8: 2 | CY8: 2 | CZ8: 2 | DA8: 2 | DB8: 2 | DC8: 2 | DD8: 2 | DE8: 2 | DF8: 2 | DG8: 2 | DH8: 2 | DI8: 2 | DJ8: 2 | DK8: 2 | DL8: 2 | DM8: 2 | DN8: 2 | DO8: 2 | DP8: 2 | DQ8: 2
C9: COD Switch | H9: =F3 -> 2018-11-01 | L9: =L2=$H$9 -> FALSE | M9: =M2=$H$9 -> FALSE | N9: FALSE | O9: FALSE | P9: FALSE | Q9: FALSE | R9: FALSE | S9: FALSE | T9: FALSE | U9: FALSE | V9: FALSE | W9: FALSE | X9: FALSE | Y9: FALSE | Z9: FALSE | AA9: FALSE | AB9: FALSE | AC9: FALSE | AD9: FALSE | AE9: FALSE | AF9: FALSE | AG9: FALSE | AH9: FALSE | AI9: FALSE | AJ9: FALSE | AK9: FALSE | AL9: FALSE | AM9: FALSE | AN9: FALSE | AO9: FALSE | AP9: FALSE | AQ9: FALSE | AR9: FALSE | AS9: FALSE | AT9: FALSE | AU9: FALSE | AV9: FALSE | AW9: FALSE | AX9: FALSE | AY9: FALSE | AZ9: FALSE | BA9: FALSE | BB9: FALSE | BC9: FALSE | BD9: TRUE | BE9: FALSE | BF9: FALSE | BG9: FALSE | BH9: FALSE | BI9: FALSE | BJ9: FALSE | BK9: FALSE | BL9: FALSE | BM9: FALSE | BN9: FALSE | BO9: FALSE | BP9: FALSE | BQ9: FALSE | BR9: FALSE | BS9: FALSE | BT9: FALSE | BU9: FALSE | BV9: FALSE | BW9: FALSE | BX9: FALSE | BY9: =BY2=$H$9 -> FALSE | BZ9: FALSE | CA9: FALSE | CB9: FALSE | CC9: FALSE | CD9: FALSE | CE9: FALSE | CF9: FALSE | CG9: FALSE | CH9: FALSE | CI9: FALSE | CJ9: FALSE | CK9: FALSE | CL9: FALSE | CM9: FALSE | CN9: FALSE | CO9: FALSE | CP9: FALSE | CQ9: FALSE | CR9: FALSE | CS9: FALSE | CT9: FALSE | CU9: FALSE | CV9: FALSE | CW9: FALSE | CX9: FALSE | CY9: FALSE | CZ9: FALSE | DA9: FALSE | DB9: FALSE | DC9: FALSE | DD9: FALSE | DE9: FALSE | DF9: FALSE | DG9: FALSE | DH9: FALSE | DI9: FALSE | DJ9: FALSE | DK9: FALSE | DL9: FALSE | DM9: FALSE | DN9: FALSE | DO9: FALSE | DP9: FALSE | DQ9: FALSE
C10: Year | L10: =YEAR(L2) -> 2015 | M10: =YEAR(M2) -> 2015 | N10: 2015 | O10: 2015 | P10: 2015 | Q10: 2015 | R10: 2015 | S10: 2015 | T10: 2015 | U10: 2015 | V10: 2016 | W10: 2016 | X10: 2016 | Y10: 2016 | Z10: 2016 | AA10: 2016 | AB10: 2016 | AC10: 2016 | AD10: 2016 | AE10: 2016 | AF10: 2016 | AG10: 2016 | AH10: 2017 | AI10: 2017 | AJ10: 2017 | AK10: 2017 | AL10: 2017 | AM10: 2017 | AN10: 2017 | AO10: 2017 | AP10: 2017 | AQ10: 2017 | AR10: 2017 | AS10: 2017 | AT10: 2018 | AU10: 2018 | AV10: 2018 | AW10: 2018 | AX10: 2018 | AY10: 2018 | AZ10: 2018 | BA10: 2018 | BB10: 2018 | BC10: 2018 | BD10: 2018 | BE10: 2019 | BF10: 2019 | BG10: 2020 | BH10: 2020 | BI10: 2021 | BJ10: 2021 | BK10: 2022 | BL10: 2022 | BM10: 2023 | BN10: 2023 | BO10: 2024 | BP10: 2024 | BQ10: 2025 | BR10: 2025 | BS10: 2026 | BT10: 2026 | BU10: 2027 | BV10: 2027 | BW10: 2028 | BX10: 2028 | BY10: =YEAR(BY2) -> 2029 | BZ10: 2029 | CA10: 2030 | CB10: 2030 | CC10: 2031 | CD10: 2031 | CE10: 2032 | CF10: 2032 | CG10: 2033 | CH10: 2033 | CI10: 2034 | CJ10: 2034 | CK10: 2035 | CL10: 2035 | CM10: 2036 | CN10: 2036 | CO10: 2037 | CP10: 2037 | CQ10: 2038 | CR10: 2038 | CS10: 2039 | CT10: 2039 | CU10: 2040 | CV10: 2040 | CW10: 2041 | CX10: 2041 | CY10: 2042 | CZ10: 2042 | DA10: 2043 | DB10: 2043 | DC10: 2044 | DD10: 2044 | DE10: 2045 | DF10: 2045 | DG10: 2046 | DH10: 2046 | DI10: 2047 | DJ10: 2047 | DK10: 2048 | DL10: 2048 | DM10: 2049 | DN10: 2049 | DO10: 2050 | DP10: 2050 | DQ10: 2051
A12: Financing Inputs | E12: Units
B13: Debt Sizing | G13: Fixed Amt | H13: Computed | I13: Difference | K13: Applied
C14: Maximum Debt to Capital | E14: Pct | F14: 0.7 | G14: 445238.9835 | H14: =F14*G59 -> 441200.8144 | I14: =G14-H14 -> 4038.169168 | K14: TRUE
C15: Target Minimum DSCR | E15: Times | F15: 1.2 | G15: 426565.5422 | H15: =F188 -> 1.148881707 | I15: =H15-F15 -> -0.05111829331 | K15: =NOT(K14) -> FALSE
C16: Applied Debt | G16: =IF(K14,fixed1,fixed2) -> 445238.9835
B18: Debt Funding
C19: Pro-Rata | E19: Switch | F19: TRUE
C20: Equity First | F20: =NOT(F19) -> FALSE
C21: Capitalise Interest | F21: FALSE
B23: Debt Repayment
C24: Debt Tenor | E24: Years | F24: 17
C25: End of Debt Term | E25: Date | F25: =EDATE(F3,F24*12) -> 2035-11-01
C27: Level Repayment | F27: TRUE
C28: Annuity Repayment | F28: FALSE
C29: Sculpted Repayment | F29: FALSE
B31: Interest and Fees
C32: EURIBOR | F32: 0.012
C33: Credit Spread | F33: 0.013
C35: Commitment Fee | F35: =F33*0.4 -> 0.0052
C36: Up-Front Fee | F36: 0.01
B38: Credit Support and Enhancements
C39: Dividend Lock-up | F39: 1.15
C40: Cash Flow Sweep | F40: 0
C41: DSRA Months | F41: 0
C42: Interest Income Rate | F42: 0.005
A44: Transferred Variables
C45: EBITDA | L45: =SUMIF('Operations Monthly'!$15:$15,'Fee Exercise'!L$3,'Operations Monthly'!127:127) -> 0 | M45: =SUMIF('Operations Monthly'!$15:$15,'Fee Exercise'!M$3,'Operations Monthly'!127:127) -> 0 | N45: =SUMIF('Operations Monthly'!$15:$15,'Fee Exercise'!N$3,'Operations Monthly'!127:127) -> 0 | O45: =SUMIF('Operations Monthly'!$15:$15,'Fee Exercise'!O$3,'Operations Monthly'!127:127) -> 0 | P45: =SUMIF('Operations Monthly'!$15:$15,'Fee Exercise'!P$3,'Operations Monthly'!127:127) -> 0 | Q45: =SUMIF('Operations Monthly'!$15:$15,'Fee Exercise'!Q$3,'Operations Monthly'!127:127) -> 0 | R45: =SUMIF('Operations Monthly'!$15:$15,'Fee Exercise'!R$3,'Operations Monthly'!127:127) -> 0 | S45: =SUMIF('Operations Monthly'!$15:$15,'Fee Exercise'!S$3,'Operations Monthly'!127:127) -> 0 | T45: =SUMIF('Operations Monthly'!$15:$15,'Fee Exercise'!T$3,'Operations Monthly'!127:127) -> 0 | U45: =SUMIF('Operations Monthly'!$15:$15,'Fee Exercise'!U$3,'Operations Monthly'!127:127) -> 0 | V45: =SUMIF('Operations Monthly'!$15:$15,'Fee Exercise'!V$3,'Operations Monthly'!127:127) -> 0 | W45: =SUMIF('Operations Monthly'!$15:$15,'Fee Exercise'!W$3,'Operations Monthly'!127:127) -> 0 | X45: =SUMIF('Operations Monthly'!$15:$15,'Fee Exercise'!X$3,'Operations Monthly'!127:127) -> 0 | Y45: =SUMIF('Operations Monthly'!$15:$15,'Fee Exercise'!Y$3,'Operations Monthly'!127:127) -> 0 | Z45: =SUMIF('Operations Monthly'!$15:$15,'Fee Exercise'!Z$3,'Operations Monthly'!127:127) -> 0 | AA45: =SUMIF('Operations Monthly'!$15:$15,'Fee Exercise'!AA$3,'Operations Monthly'!127:127) -> 0 | AB45: =SUMIF('Operations Monthly'!$15:$15,'Fee Exercise'!AB$3,'Operations Monthly'!127:127) -> 0 | AC45: =SUMIF('Operations Monthly'!$15:$15,'Fee Exercise'!AC$3,'Operations Monthly'!127:127) -> 0 | AD45: =SUMIF('Operations Monthly'!$15:$15,'Fee Exercise'!AD$3,'Operations Monthly'!127:127) -> 0 | AE45: =SUMIF('Operations Monthly'!$15:$15,'Fee Exercise'!AE$3,'Operations Monthly'!127:127) -> 0 | AF45: =SUMIF('Operations Monthly'!$15:$15,'Fee Exercise'!AF$3,'Operations Monthly'!127:127) -> 0 | AG45: =SUMIF('Operations Monthly'!$15:$15,'Fee Exercise'!AG$3,'Operations Monthly'!127:127) -> 0 | AH45: =SUMIF('Operations Monthly'!$15:$15,'Fee Exercise'!AH$3,'Operations Monthly'!127:127) -> 0 | AI45: =SUMIF('Operations Monthly'!$15:$15,'Fee Exercise'!AI$3,'Operations Monthly'!127:127) -> 0 | AJ45: =SUMIF('Operations Monthly'!$15:$15,'Fee Exercise'!AJ$3,'Operations Monthly'!127:127) -> 0 | AK45: =SUMIF('Operations Monthly'!$15:$15,'Fee Exercise'!AK$3,'Operations Monthly'!127:127) -> 0 | AL45: =SUMIF('Operations Monthly'!$15:$15,'Fee Exercise'!AL$3,'Operations Monthly'!127:127) -> 0 | AM45: =SUMIF('Operations Monthly'!$15:$15,'Fee Exercise'!AM$3,'Operations Monthly'!127:127) -> 0 | AN45: =SUMIF('Operations Monthly'!$15:$15,'Fee Exercise'!AN$3,'Operations Monthly'!127:127) -> 0 | AO45: =SUMIF('Operations Monthly'!$15:$15,'Fee Exercise'!AO$3,'Operations Monthly'!127:127) -> 0 | AP45: =SUMIF('Operations Monthly'!$15:$15,'Fee Exercise'!AP$3,'Operations Monthly'!127:127) -> 0 | AQ45: =SUMIF('Operations Monthly'!$15:$15,'Fee Exercise'!AQ$3,'Operations Monthly'!127:127) -> 0 | AR45: =SUMIF('Operations Monthly'!$15:$15,'Fee Exercise'!AR$3,'Operations Monthly'!127:127) -> 0 | AS45: =SUMIF('Operations Monthly'!$15:$15,'Fee Exercise'!AS$3,'Operations Monthly'!127:127) -> 0 | AT45: =SUMIF('Operations Monthly'!$15:$15,'Fee Exercise'!AT$3,'Operations Monthly'!127:127) -> 0 | AU45: =SUMIF('Operations Monthly'!$15:$15,'Fee Exercise'!AU$3,'Operations Monthly'!127:127) -> 0 | AV45: =SUMIF('Operations Monthly'!$15:$15,'Fee Exercise'!AV$3,'Operations Monthly'!127:127) -> 0 | AW45: =SUMIF('Operations Monthly'!$15:$15,'Fee Exercise'!AW$3,'Operations Monthly'!127:127) -> 0 | AX45: =SUMIF('Operations Monthly'!$15:$15,'Fee Exercise'!AX$3,'Operations Monthly'!127:127) -> 0 | AY45: =SUMIF('Operations Monthly'!$15:$15,'Fee Exercise'!AY$3,'Operations Monthly'!127:127) -> 0 | AZ45: =SUMIF('Operations Monthly'!$15:$15,'Fee Exercise'!AZ$3,'Operations Monthly'!127:127) -> 0 | BA45: =SUMIF('Operations Monthly'!$15:$15,'Fee Exercise'!BA$3,'Operations Monthly'!127:127) -> 0 | BB45: =SUMIF('Operations Monthly'!$15:$15,'Fee Exercise'!BB$3,'Operations Monthly'!127:127) -> 0 | BC45: =SUMIF('Operations Monthly'!$15:$15,'Fee Exercise'!BC$3,'Operations Monthly'!127:127) -> 0 | BD45: =SUMIF('Operations Monthly'!$15:$15,'Fee Exercise'!BD$3,'Operations Monthly'!127:127) -> 21438.99605 | BE45: =SUMIF('Operations Monthly'!$15:$15,'Fee Exercise'!BE$3,'Operations Monthly'!127:127) -> 21988.52798 | BF45: =SUMIF('Operations Monthly'!$15:$15,'Fee Exercise'!BF$3,'Operations Monthly'!127:127) -> 23447.60419 | BG45: =SUMIF('Operations Monthly'!$15:$15,'Fee Exercise'!BG$3,'Operations Monthly'!127:127) -> 23883.2696 | BH45: =SUMIF('Operations Monthly'!$15:$15,'Fee Exercise'!BH$3,'Operations Monthly'!127:127) -> 23521.92612 | BI45: =SUMIF('Operations Monthly'!$15:$15,'Fee Exercise'!BI$3,'Operations Monthly'!127:127) -> 24122.1023 | BJ45: =SUMIF('Operations Monthly'!$15:$15,'Fee Exercise'!BJ$3,'Operations Monthly'!127:127) -> 23777.14431 | BK45: =SUMIF('Operations Monthly'!$15:$15,'Fee Exercise'!BK$3,'Operations Monthly'!127:127) -> 24455.78464 | BL45: =SUMIF('Operations Monthly'!$15:$15,'Fee Exercise'!BL$3,'Operations Monthly'!127:127) -> 24441.18324 | BM45: =SUMIF('Operations Monthly'!$15:$15,'Fee Exercise'!BM$3,'Operations Monthly'!127:127) -> 25285.17826 | BN45: =SUMIF('Operations Monthly'!$15:$15,'Fee Exercise'!BN$3,'Operations Monthly'!127:127) -> 25149.67247 | BO45: =SUMIF('Operations Monthly'!$15:$15,'Fee Exercise'!BO$3,'Operations Monthly'!127:127) -> 25692.41169 | BP45: =SUMIF('Operations Monthly'!$15:$15,'Fee Exercise'!BP$3,'Operations Monthly'!127:127) -> 25383.31075 | BQ45: =SUMIF('Operations Monthly'!$15:$15,'Fee Exercise'!BQ$3,'Operations Monthly'!127:127) -> 26106.03318 | BR45: =SUMIF('Operations Monthly'!$15:$15,'Fee Exercise'!BR$3,'Operations Monthly'!127:127) -> 25792.43655 | BS45: =SUMIF('Operations Monthly'!$15:$15,'Fee Exercise'!BS$3,'Operations Monthly'!127:127) -> 26526.14135 | BT45: =SUMIF('Operations Monthly'!$15:$15,'Fee Exercise'!BT$3,'Operations Monthly'!127:127) -> 26207.983 | BU45: =SUMIF('Operations Monthly'!$15:$15,'Fee Exercise'!BU$3,'Operations Monthly'!127:127) -> 26952.83631 | BV45: =SUMIF('Operations Monthly'!$15:$15,'Fee Exercise'!BV$3,'Operations Monthly'!127:127) -> 26308.40634 | BW45: =SUMIF('Operations Monthly'!$15:$15,'Fee Exercise'!BW$3,'Operations Monthly'!127:127) -> 26882.53205 | BX45: =SUMIF('Operations Monthly'!$15:$15,'Fee Exercise'!BX$3,'Operations Monthly'!127:127) -> 25159.67408 | BY45: =SUMIF('Operations Monthly'!$15:$15,'Fee Exercise'!BY$3,'Operations Monthly'!127:127) -> 25891.12738 | BZ45: =SUMIF('Operations Monthly'!$15:$15,'Fee Exercise'!BZ$3,'Operations Monthly'!127:127) -> 25569.12852 | CA45: =SUMIF('Operations Monthly'!$15:$15,'Fee Exercise'!CA$3,'Operations Monthly'!127:127) -> 26311.71351 | CB45: =SUMIF('Operations Monthly'!$15:$15,'Fee Exercise'!CB$3,'Operations Monthly'!127:127) -> 25985.04536 | CC45: =SUMIF('Operations Monthly'!$15:$15,'Fee Exercise'!CC$3,'Operations Monthly'!127:127) -> 26738.93062 | CD45: =SUMIF('Operations Monthly'!$15:$15,'Fee Exercise'!CD$3,'Operations Monthly'!127:127) -> 26590.03541 | CE45: =SUMIF('Operations Monthly'!$15:$15,'Fee Exercise'!CE$3,'Operations Monthly'!127:127) -> 27172.88141 | CF45: =SUMIF('Operations Monthly'!$15:$15,'Fee Exercise'!CF$3,'Operations Monthly'!127:127) -> 25607.57666 | CG45: =SUMIF('Operations Monthly'!$15:$15,'Fee Exercise'!CG$3,'Operations Monthly'!127:127) -> 26378.44823 | CH45: =SUMIF('Operations Monthly'!$15:$15,'Fee Exercise'!CH$3,'Operations Monthly'!127:127) -> 26031.19683 | CI45: =SUMIF('Operations Monthly'!$15:$15,'Fee Exercise'!CI$3,'Operations Monthly'!127:127) -> 26813.82851 | CJ45: =SUMIF('Operations Monthly'!$15:$15,'Fee Exercise'!CJ$3,'Operations Monthly'!127:127) -> 26461.56636 | CK45: =SUMIF('Operations Monthly'!$15:$15,'Fee Exercise'!CK$3,'Operations Monthly'!127:127) -> 27256.13654 | CL45: =SUMIF('Operations Monthly'!$15:$15,'Fee Exercise'!CL$3,'Operations Monthly'!127:127) -> 27092.50061 | CM45: =SUMIF('Operations Monthly'!$15:$15,'Fee Exercise'!CM$3,'Operations Monthly'!127:127) -> 27705.48019 | CN45: =SUMIF('Operations Monthly'!$15:$15,'Fee Exercise'!CN$3,'Operations Monthly'!127:127) -> 27342.97592 | CO45: =SUMIF('Operations Monthly'!$15:$15,'Fee Exercise'!CO$3,'Operations Monthly'!127:127) -> 28161.96901 | CP45: =SUMIF('Operations Monthly'!$15:$15,'Fee Exercise'!CP$3,'Operations Monthly'!127:127) -> 27794.2312 | CQ45: =SUMIF('Operations Monthly'!$15:$15,'Fee Exercise'!CQ$3,'Operations Monthly'!127:127) -> 28625.71423 | CR45: =SUMIF('Operations Monthly'!$15:$15,'Fee Exercise'!CR$3,'Operations Monthly'!127:127) -> 28252.66642 | CS45: =SUMIF('Operations Monthly'!$15:$15,'Fee Exercise'!CS$3,'Operations Monthly'!127:127) -> 28730.01369 | CT45: =SUMIF('Operations Monthly'!$15:$15,'Fee Exercise'!CT$3,'Operations Monthly'!127:127) -> 27824.12976 | CU45: =SUMIF('Operations Monthly'!$15:$15,'Fee Exercise'!CU$3,'Operations Monthly'!127:127) -> 28455.16424 | CV45: =SUMIF('Operations Monthly'!$15:$15,'Fee Exercise'!CV$3,'Operations Monthly'!127:127) -> 28081.30487 | CW45: =SUMIF('Operations Monthly'!$15:$15,'Fee Exercise'!CW$3,'Operations Monthly'!127:127) -> 28924.5593 | CX45: =SUMIF('Operations Monthly'!$15:$15,'Fee Exercise'!CX$3,'Operations Monthly'!127:127) -> 28545.30434 | CY45: =SUMIF('Operations Monthly'!$15:$15,'Fee Exercise'!CY$3,'Operations Monthly'!127:127) -> 29401.42095 | CZ45: =SUMIF('Operations Monthly'!$15:$15,'Fee Exercise'!CZ$3,'Operations Monthly'!127:127) -> 29016.69161 | DA45: =SUMIF('Operations Monthly'!$15:$15,'Fee Exercise'!DA$3,'Operations Monthly'!127:127) -> 29885.86547 | DB45: =SUMIF('Operations Monthly'!$15:$15,'Fee Exercise'!DB$3,'Operations Monthly'!127:127) -> 0 | DC45: =SUMIF('Operations Monthly'!$15:$15,'Fee Exercise'!DC$3,'Operations Monthly'!127:127) -> 0 | DD45: =SUMIF('Operations Monthly'!$15:$15,'Fee Exercise'!DD$3,'Operations Monthly'!127:127) -> 0 | DE45: =SUMIF('Operations Monthly'!$15:$15,'Fee Exercise'!DE$3,'Operations Monthly'!127:127) -> 0 | DF45: =SUMIF('Operations Monthly'!$15:$15,'Fee Exercise'!DF$3,'Operations Monthly'!127:127) -> 0 | DG45: =SUMIF('Operations Monthly'!$15:$15,'Fee Exercise'!DG$3,'Operations Monthly'!127:127) -> 0 | DH45: =SUMIF('Operations Monthly'!$15:$15,'Fee Exercise'!DH$3,'Operations Monthly'!127:127) -> 0 | DI45: =SUMIF('Operations Monthly'!$15:$15,'Fee Exercise'!DI$3,'Operations Monthly'!127:127) -> 0 | DJ45: =SUMIF('Operations Monthly'!$15:$15,'Fee Exercise'!DJ$3,'Operations Monthly'!127:127) -> 0 | DK45: =SUMIF('Operations Monthly'!$15:$15,'Fee Exercise'!DK$3,'Operations Monthly'!127:127) -> 0 | DL45: =SUMIF('Operations Monthly'!$15:$15,'Fee Exercise'!DL$3,'Operations Monthly'!127:127) -> 0 | DM45: =SUMIF('Operations Monthly'!$15:$15,'Fee Exercise'!DM$3,'Operations Monthly'!127:127) -> 0 | DN45: =SUMIF('Operations Monthly'!$15:$15,'Fee Exercise'!DN$3,'Operations Monthly'!127:127) -> 0 | DO45: =SUMIF('Operations Monthly'!$15:$15,'Fee Exercise'!DO$3,'Operations Monthly'!127:127) -> 0 | DP45: =SUMIF('Operations Monthly'!$15:$15,'Fee Exercise'!DP$3,'Operations Monthly'!127:127) -> 0 | DQ45: =SUMIF('Operations Monthly'!$15:$15,'Fee Exercise'!DQ$3,'Operations Monthly'!127:127) -> 0
C46: Capital Expenditures | L46: =-SUMIF('Operations Monthly'!$15:$15,'Fee Exercise'!L$3,'Operations Monthly'!128:128) -> 10000 | M46: =-SUMIF('Operations Monthly'!$15:$15,'Fee Exercise'!M$3,'Operations Monthly'!128:128) -> 10000 | N46: =-SUMIF('Operations Monthly'!$15:$15,'Fee Exercise'!N$3,'Operations Monthly'!128:128) -> 10000 | O46: =-SUMIF('Operations Monthly'!$15:$15,'Fee Exercise'!O$3,'Operations Monthly'!128:128) -> 10000 | P46: =-SUMIF('Operations Monthly'!$15:$15,'Fee Exercise'!P$3,'Operations Monthly'!128:128) -> 10000 | Q46: =-SUMIF('Operations Monthly'!$15:$15,'Fee Exercise'!Q$3,'Operations Monthly'!128:128) -> 10000 | R46: =-SUMIF('Operations Monthly'!$15:$15,'Fee Exercise'!R$3,'Operations Monthly'!128:128) -> 10000 | S46: =-SUMIF('Operations Monthly'!$15:$15,'Fee Exercise'!S$3,'Operations Monthly'!128:128) -> 10000 | T46: =-SUMIF('Operations Monthly'!$15:$15,'Fee Exercise'!T$3,'Operations Monthly'!128:128) -> 10000 | U46: =-SUMIF('Operations Monthly'!$15:$15,'Fee Exercise'!U$3,'Operations Monthly'!128:128) -> 10000 | V46: =-SUMIF('Operations Monthly'!$15:$15,'Fee Exercise'!V$3,'Operations Monthly'!128:128) -> 10000 | W46: =-SUMIF('Operations Monthly'!$15:$15,'Fee Exercise'!W$3,'Operations Monthly'!128:128) -> 10000 | X46: =-SUMIF('Operations Monthly'!$15:$15,'Fee Exercise'!X$3,'Operations Monthly'!128:128) -> 32500 | Y46: =-SUMIF('Operations Monthly'!$15:$15,'Fee Exercise'!Y$3,'Operations Monthly'!128:128) -> 32500 | Z46: =-SUMIF('Operations Monthly'!$15:$15,'Fee Exercise'!Z$3,'Operations Monthly'!128:128) -> 32500 | AA46: =-SUMIF('Operations Monthly'!$15:$15,'Fee Exercise'!AA$3,'Operations Monthly'!128:128) -> 32500 | AB46: =-SUMIF('Operations Monthly'!$15:$15,'Fee Exercise'!AB$3,'Operations Monthly'!128:128) -> 32500 | AC46: =-SUMIF('Operations Monthly'!$15:$15,'Fee Exercise'!AC$3,'Operations Monthly'!128:128) -> 32500 | AD46: =-SUMIF('Operations Monthly'!$15:$15,'Fee Exercise'!AD$3,'Operations Monthly'!128:128) -> 32500 | AE46: =-SUMIF('Operations Monthly'!$15:$15,'Fee Exercise'!AE$3,'Operations Monthly'!128:128) -> 32500 | AF46: =-SUMIF('Operations Monthly'!$15:$15,'Fee Exercise'!AF$3,'Operations Monthly'!128:128) -> 32500 | AG46: =-SUMIF('Operations Monthly'!$15:$15,'Fee Exercise'!AG$3,'Operations Monthly'!128:128) -> 32500 | AH46: =-SUMIF('Operations Monthly'!$15:$15,'Fee Exercise'!AH$3,'Operations Monthly'!128:128) -> 32500 | AI46: =-SUMIF('Operations Monthly'!$15:$15,'Fee Exercise'!AI$3,'Operations Monthly'!128:128) -> 32500 | AJ46: =-SUMIF('Operations Monthly'!$15:$15,'Fee Exercise'!AJ$3,'Operations Monthly'!128:128) -> 7500 | AK46: =-SUMIF('Operations Monthly'!$15:$15,'Fee Exercise'!AK$3,'Operations Monthly'!128:128) -> 7500 | AL46: =-SUMIF('Operations Monthly'!$15:$15,'Fee Exercise'!AL$3,'Operations Monthly'!128:128) -> 7500 | AM46: =-SUMIF('Operations Monthly'!$15:$15,'Fee Exercise'!AM$3,'Operations Monthly'!128:128) -> 7500 | AN46: =-SUMIF('Operations Monthly'!$15:$15,'Fee Exercise'!AN$3,'Operations Monthly'!128:128) -> 7500 | AO46: =-SUMIF('Operations Monthly'!$15:$15,'Fee Exercise'!AO$3,'Operations Monthly'!128:128) -> 7500 | AP46: =-SUMIF('Operations Monthly'!$15:$15,'Fee Exercise'!AP$3,'Operations Monthly'!128:128) -> 7500 | AQ46: =-SUMIF('Operations Monthly'!$15:$15,'Fee Exercise'!AQ$3,'Operations Monthly'!128:128) -> 7500 | AR46: =-SUMIF('Operations Monthly'!$15:$15,'Fee Exercise'!AR$3,'Operations Monthly'!128:128) -> 7500 | AS46: =-SUMIF('Operations Monthly'!$15:$15,'Fee Exercise'!AS$3,'Operations Monthly'!128:128) -> 7500 | AT46: =-SUMIF('Operations Monthly'!$15:$15,'Fee Exercise'!AT$3,'Operations Monthly'!128:128) -> 7500 | AU46: =-SUMIF('Operations Monthly'!$15:$15,'Fee Exercise'!AU$3,'Operations Monthly'!128:128) -> 7500 | AV46: =-SUMIF('Operations Monthly'!$15:$15,'Fee Exercise'!AV$3,'Operations Monthly'!128:128) -> 0 | AW46: =-SUMIF('Operations Monthly'!$15:$15,'Fee Exercise'!AW$3,'Operations Monthly'!128:128) -> 0 | AX46: =-SUMIF('Operations Monthly'!$15:$15,'Fee Exercise'!AX$3,'Operations Monthly'!128:128) -> 0 | AY46: =-SUMIF('Operations Monthly'!$15:$15,'Fee Exercise'!AY$3,'Operations Monthly'!128:128) -> 0 | AZ46: =-SUMIF('Operations Monthly'!$15:$15,'Fee Exercise'!AZ$3,'Operations Monthly'!128:128) -> 0 | BA46: =-SUMIF('Operations Monthly'!$15:$15,'Fee Exercise'!BA$3,'Operations Monthly'!128:128) -> 0 | BB46: =-SUMIF('Operations Monthly'!$15:$15,'Fee Exercise'!BB$3,'Operations Monthly'!128:128) -> 0 | BC46: =-SUMIF('Operations Monthly'!$15:$15,'Fee Exercise'!BC$3,'Operations Monthly'!128:128) -> 1.33226763e-10 | BD46: =-SUMIF('Operations Monthly'!$15:$15,'Fee Exercise'!BD$3,'Operations Monthly'!128:128) -> 0 | BE46: =-SUMIF('Operations Monthly'!$15:$15,'Fee Exercise'!BE$3,'Operations Monthly'!128:128) -> 0 | BF46: =-SUMIF('Operations Monthly'!$15:$15,'Fee Exercise'!BF$3,'Operations Monthly'!128:128) -> 0 | BG46: =-SUMIF('Operations Monthly'!$15:$15,'Fee Exercise'!BG$3,'Operations Monthly'!128:128) -> 0 | BH46: =-SUMIF('Operations Monthly'!$15:$15,'Fee Exercise'!BH$3,'Operations Monthly'!128:128) -> 0 | BI46: =-SUMIF('Operations Monthly'!$15:$15,'Fee Exercise'!BI$3,'Operations Monthly'!128:128) -> 0 | BJ46: =-SUMIF('Operations Monthly'!$15:$15,'Fee Exercise'!BJ$3,'Operations Monthly'!128:128) -> 0 | BK46: =-SUMIF('Operations Monthly'!$15:$15,'Fee Exercise'!BK$3,'Operations Monthly'!128:128) -> 0 | BL46: =-SUMIF('Operations Monthly'!$15:$15,'Fee Exercise'!BL$3,'Operations Monthly'!128:128) -> 0 | BM46: =-SUMIF('Operations Monthly'!$15:$15,'Fee Exercise'!BM$3,'Operations Monthly'!128:128) -> 0 | BN46: =-SUMIF('Operations Monthly'!$15:$15,'Fee Exercise'!BN$3,'Operations Monthly'!128:128) -> 0 | BO46: =-SUMIF('Operations Monthly'!$15:$15,'Fee Exercise'!BO$3,'Operations Monthly'!128:128) -> 0 | BP46: =-SUMIF('Operations Monthly'!$15:$15,'Fee Exercise'!BP$3,'Operations Monthly'!128:128) -> 0 | BQ46: =-SUMIF('Operations Monthly'!$15:$15,'Fee Exercise'!BQ$3,'Operations Monthly'!128:128) -> 0 | BR46: =-SUMIF('Operations Monthly'!$15:$15,'Fee Exercise'!BR$3,'Operations Monthly'!128:128) -> 0 | BS46: =-SUMIF('Operations Monthly'!$15:$15,'Fee Exercise'!BS$3,'Operations Monthly'!128:128) -> 0 | BT46: =-SUMIF('Operations Monthly'!$15:$15,'Fee Exercise'!BT$3,'Operations Monthly'!128:128) -> 0 | BU46: =-SUMIF('Operations Monthly'!$15:$15,'Fee Exercise'!BU$3,'Operations Monthly'!128:128) -> 0 | BV46: =-SUMIF('Operations Monthly'!$15:$15,'Fee Exercise'!BV$3,'Operations Monthly'!128:128) -> 0 | BW46: =-SUMIF('Operations Monthly'!$15:$15,'Fee Exercise'!BW$3,'Operations Monthly'!128:128) -> 0 | BX46: =-SUMIF('Operations Monthly'!$15:$15,'Fee Exercise'!BX$3,'Operations Monthly'!128:128) -> 0 | BY46: =-SUMIF('Operations Monthly'!$15:$15,'Fee Exercise'!BY$3,'Operations Monthly'!128:128) -> 0 | BZ46: =-SUMIF('Operations Monthly'!$15:$15,'Fee Exercise'!BZ$3,'Operations Monthly'!128:128) -> 0 | CA46: =-SUMIF('Operations Monthly'!$15:$15,'Fee Exercise'!CA$3,'Operations Monthly'!128:128) -> 0 | CB46: =-SUMIF('Operations Monthly'!$15:$15,'Fee Exercise'!CB$3,'Operations Monthly'!128:128) -> 0 | CC46: =-SUMIF('Operations Monthly'!$15:$15,'Fee Exercise'!CC$3,'Operations Monthly'!128:128) -> 0 | CD46: =-SUMIF('Operations Monthly'!$15:$15,'Fee Exercise'!CD$3,'Operations Monthly'!128:128) -> 0 | CE46: =-SUMIF('Operations Monthly'!$15:$15,'Fee Exercise'!CE$3,'Operations Monthly'!128:128) -> 0 | CF46: =-SUMIF('Operations Monthly'!$15:$15,'Fee Exercise'!CF$3,'Operations Monthly'!128:128) -> 0 | CG46: =-SUMIF('Operations Monthly'!$15:$15,'Fee Exercise'!CG$3,'Operations Monthly'!128:128) -> 0 | CH46: =-SUMIF('Operations Monthly'!$15:$15,'Fee Exercise'!CH$3,'Operations Monthly'!128:128) -> 0 | CI46: =-SUMIF('Operations Monthly'!$15:$15,'Fee Exercise'!CI$3,'Operations Monthly'!128:128) -> 0 | CJ46: =-SUMIF('Operations Monthly'!$15:$15,'Fee Exercise'!CJ$3,'Operations Monthly'!128:128) -> 0 | CK46: =-SUMIF('Operations Monthly'!$15:$15,'Fee Exercise'!CK$3,'Operations Monthly'!128:128) -> 0 | CL46: =-SUMIF('Operations Monthly'!$15:$15,'Fee Exercise'!CL$3,'Operations Monthly'!128:128) -> 0 | CM46: =-SUMIF('Operations Monthly'!$15:$15,'Fee Exercise'!CM$3,'Operations Monthly'!128:128) -> 0 | CN46: =-SUMIF('Operations Monthly'!$15:$15,'Fee Exercise'!CN$3,'Operations Monthly'!128:128) -> 0 | CO46: =-SUMIF('Operations Monthly'!$15:$15,'Fee Exercise'!CO$3,'Operations Monthly'!128:128) -> 0 | CP46: =-SUMIF('Operations Monthly'!$15:$15,'Fee Exercise'!CP$3,'Operations Monthly'!128:128) -> 0 | CQ46: =-SUMIF('Operations Monthly'!$15:$15,'Fee Exercise'!CQ$3,'Operations Monthly'!128:128) -> 0 | CR46: =-SUMIF('Operations Monthly'!$15:$15,'Fee Exercise'!CR$3,'Operations Monthly'!128:128) -> 0 | CS46: =-SUMIF('Operations Monthly'!$15:$15,'Fee Exercise'!CS$3,'Operations Monthly'!128:128) -> 0 | CT46: =-SUMIF('Operations Monthly'!$15:$15,'Fee Exercise'!CT$3,'Operations Monthly'!128:128) -> 0 | CU46: =-SUMIF('Operations Monthly'!$15:$15,'Fee Exercise'!CU$3,'Operations Monthly'!128:128) -> 0 | CV46: =-SUMIF('Operations Monthly'!$15:$15,'Fee Exercise'!CV$3,'Operations Monthly'!128:128) -> 0 | CW46: =-SUMIF('Operations Monthly'!$15:$15,'Fee Exercise'!CW$3,'Operations Monthly'!128:128) -> 0 | CX46: =-SUMIF('Operations Monthly'!$15:$15,'Fee Exercise'!CX$3,'Operations Monthly'!128:128) -> 0 | CY46: =-SUMIF('Operations Monthly'!$15:$15,'Fee Exercise'!CY$3,'Operations Monthly'!128:128) -> 0 | CZ46: =-SUMIF('Operations Monthly'!$15:$15,'Fee Exercise'!CZ$3,'Operations Monthly'!128:128) -> 0 | DA46: =-SUMIF('Operations Monthly'!$15:$15,'Fee Exercise'!DA$3,'Operations Monthly'!128:128) -> 0 | DB46: =-SUMIF('Operations Monthly'!$15:$15,'Fee Exercise'!DB$3,'Operations Monthly'!128:128) -> 0 | DC46: =-SUMIF('Operations Monthly'!$15:$15,'Fee Exercise'!DC$3,'Operations Monthly'!128:128) -> 0 | DD46: =-SUMIF('Operations Monthly'!$15:$15,'Fee Exercise'!DD$3,'Operations Monthly'!128:128) -> 0 | DE46: =-SUMIF('Operations Monthly'!$15:$15,'Fee Exercise'!DE$3,'Operations Monthly'!128:128) -> 0 | DF46: =-SUMIF('Operations Monthly'!$15:$15,'Fee Exercise'!DF$3,'Operations Monthly'!128:128) -> 0 | DG46: =-SUMIF('Operations Monthly'!$15:$15,'Fee Exercise'!DG$3,'Operations Monthly'!128:128) -> 0 | DH46: =-SUMIF('Operations Monthly'!$15:$15,'Fee Exercise'!DH$3,'Operations Monthly'!128:128) -> 0 | DI46: =-SUMIF('Operations Monthly'!$15:$15,'Fee Exercise'!DI$3,'Operations Monthly'!128:128) -> 0 | DJ46: =-SUMIF('Operations Monthly'!$15:$15,'Fee Exercise'!DJ$3,'Operations Monthly'!128:128) -> 0 | DK46: =-SUMIF('Operations Monthly'!$15:$15,'Fee Exercise'!DK$3,'Operations Monthly'!128:128) -> 0 | DL46: =-SUMIF('Operations Monthly'!$15:$15,'Fee Exercise'!DL$3,'Operations Monthly'!128:128) -> 0 | DM46: =-SUMIF('Operations Monthly'!$15:$15,'Fee Exercise'!DM$3,'Operations Monthly'!128:128) -> 0 | DN46: =-SUMIF('Operations Monthly'!$15:$15,'Fee Exercise'!DN$3,'Operations Monthly'!128:128) -> 0 | DO46: =-SUMIF('Operations Monthly'!$15:$15,'Fee Exercise'!DO$3,'Operations Monthly'!128:128) -> 0 | DP46: =-SUMIF('Operations Monthly'!$15:$15,'Fee Exercise'!DP$3,'Operations Monthly'!128:128) -> 0 | DQ46: =-SUMIF('Operations Monthly'!$15:$15,'Fee Exercise'!DQ$3,'Operations Monthly'!128:128) -> 0
C47: Working Capital Changes | L47: =-SUMIF('Operations Monthly'!$15:$15,'Fee Exercise'!L$3,'Operations Monthly'!129:129) -> 0 | M47: =-SUMIF('Operations Monthly'!$15:$15,'Fee Exercise'!M$3,'Operations Monthly'!129:129) -> 0 | N47: =-SUMIF('Operations Monthly'!$15:$15,'Fee Exercise'!N$3,'Operations Monthly'!129:129) -> 0 | O47: =-SUMIF('Operations Monthly'!$15:$15,'Fee Exercise'!O$3,'Operations Monthly'!129:129) -> 0 | P47: =-SUMIF('Operations Monthly'!$15:$15,'Fee Exercise'!P$3,'Operations Monthly'!129:129) -> 0 | Q47: =-SUMIF('Operations Monthly'!$15:$15,'Fee Exercise'!Q$3,'Operations Monthly'!129:129) -> 0 | R47: =-SUMIF('Operations Monthly'!$15:$15,'Fee Exercise'!R$3,'Operations Monthly'!129:129) -> 0 | S47: =-SUMIF('Operations Monthly'!$15:$15,'Fee Exercise'!S$3,'Operations Monthly'!129:129) -> 0 | T47: =-SUMIF('Operations Monthly'!$15:$15,'Fee Exercise'!T$3,'Operations Monthly'!129:129) -> 0 | U47: =-SUMIF('Operations Monthly'!$15:$15,'Fee Exercise'!U$3,'Operations Monthly'!129:129) -> 0 | V47: =-SUMIF('Operations Monthly'!$15:$15,'Fee Exercise'!V$3,'Operations Monthly'!129:129) -> 0 | W47: =-SUMIF('Operations Monthly'!$15:$15,'Fee Exercise'!W$3,'Operations Monthly'!129:129) -> 0 | X47: =-SUMIF('Operations Monthly'!$15:$15,'Fee Exercise'!X$3,'Operations Monthly'!129:129) -> 0 | Y47: =-SUMIF('Operations Monthly'!$15:$15,'Fee Exercise'!Y$3,'Operations Monthly'!129:129) -> 0 | Z47: =-SUMIF('Operations Monthly'!$15:$15,'Fee Exercise'!Z$3,'Operations Monthly'!129:129) -> 0 | AA47: =-SUMIF('Operations Monthly'!$15:$15,'Fee Exercise'!AA$3,'Operations Monthly'!129:129) -> 0 | AB47: =-SUMIF('Operations Monthly'!$15:$15,'Fee Exercise'!AB$3,'Operations Monthly'!129:129) -> 0 | AC47: =-SUMIF('Operations Monthly'!$15:$15,'Fee Exercise'!AC$3,'Operations Monthly'!129:129) -> 0 | AD47: =-SUMIF('Operations Monthly'!$15:$15,'Fee Exercise'!AD$3,'Operations Monthly'!129:129) -> 0 | AE47: =-SUMIF('Operations Monthly'!$15:$15,'Fee Exercise'!AE$3,'Operations Monthly'!129:129) -> 0 | AF47: =-SUMIF('Operations Monthly'!$15:$15,'Fee Exercise'!AF$3,'Operations Monthly'!129:129) -> 0 | AG47: =-SUMIF('Operations Monthly'!$15:$15,'Fee Exercise'!AG$3,'Operations Monthly'!129:129) -> 0 | AH47: =-SUMIF('Operations Monthly'!$15:$15,'Fee Exercise'!AH$3,'Operations Monthly'!129:129) -> 0 | AI47: =-SUMIF('Operations Monthly'!$15:$15,'Fee Exercise'!AI$3,'Operations Monthly'!129:129) -> 0 | AJ47: =-SUMIF('Operations Monthly'!$15:$15,'Fee Exercise'!AJ$3,'Operations Monthly'!129:129) -> 0 | AK47: =-SUMIF('Operations Monthly'!$15:$15,'Fee Exercise'!AK$3,'Operations Monthly'!129:129) -> 0 | AL47: =-SUMIF('Operations Monthly'!$15:$15,'Fee Exercise'!AL$3,'Operations Monthly'!129:129) -> 0 | AM47: =-SUMIF('Operations Monthly'!$15:$15,'Fee Exercise'!AM$3,'Operations Monthly'!129:129) -> 0 | AN47: =-SUMIF('Operations Monthly'!$15:$15,'Fee Exercise'!AN$3,'Operations Monthly'!129:129) -> 0 | AO47: =-SUMIF('Operations Monthly'!$15:$15,'Fee Exercise'!AO$3,'Operations Monthly'!129:129) -> 0 | AP47: =-SUMIF('Operations Monthly'!$15:$15,'Fee Exercise'!AP$3,'Operations Monthly'!129:129) -> 0 | AQ47: =-SUMIF('Operations Monthly'!$15:$15,'Fee Exercise'!AQ$3,'Operations Monthly'!129:129) -> 0 | AR47: =-SUMIF('Operations Monthly'!$15:$15,'Fee Exercise'!AR$3,'Operations Monthly'!129:129) -> 0 | AS47: =-SUMIF('Operations Monthly'!$15:$15,'Fee Exercise'!AS$3,'Operations Monthly'!129:129) -> 0 | AT47: =-SUMIF('Operations Monthly'!$15:$15,'Fee Exercise'!AT$3,'Operations Monthly'!129:129) -> 0 | AU47: =-SUMIF('Operations Monthly'!$15:$15,'Fee Exercise'!AU$3,'Operations Monthly'!129:129) -> 0 | AV47: =-SUMIF('Operations Monthly'!$15:$15,'Fee Exercise'!AV$3,'Operations Monthly'!129:129) -> 0 | AW47: =-SUMIF('Operations Monthly'!$15:$15,'Fee Exercise'!AW$3,'Operations Monthly'!129:129) -> 0 | AX47: =-SUMIF('Operations Monthly'!$15:$15,'Fee Exercise'!AX$3,'Operations Monthly'!129:129) -> 0 | AY47: =-SUMIF('Operations Monthly'!$15:$15,'Fee Exercise'!AY$3,'Operations Monthly'!129:129) -> 0 | AZ47: =-SUMIF('Operations Monthly'!$15:$15,'Fee Exercise'!AZ$3,'Operations Monthly'!129:129) -> 0 | BA47: =-SUMIF('Operations Monthly'!$15:$15,'Fee Exercise'!BA$3,'Operations Monthly'!129:129) -> 0 | BB47: =-SUMIF('Operations Monthly'!$15:$15,'Fee Exercise'!BB$3,'Operations Monthly'!129:129) -> 0 | BC47: =-SUMIF('Operations Monthly'!$15:$15,'Fee Exercise'!BC$3,'Operations Monthly'!129:129) -> 0 | BD47: =-SUMIF('Operations Monthly'!$15:$15,'Fee Exercise'!BD$3,'Operations Monthly'!129:129) -> 6077.007931 | BE47: =-SUMIF('Operations Monthly'!$15:$15,'Fee Exercise'!BE$3,'Operations Monthly'!129:129) -> 49.60741452 | BF47: =-SUMIF('Operations Monthly'!$15:$15,'Fee Exercise'!BF$3,'Operations Monthly'!129:129) -> 419.5868171 | BG47: =-SUMIF('Operations Monthly'!$15:$15,'Fee Exercise'!BG$3,'Operations Monthly'!129:129) -> 52.14052949 | BH47: =-SUMIF('Operations Monthly'!$15:$15,'Fee Exercise'!BH$3,'Operations Monthly'!129:129) -> 13.32149214 | BI47: =-SUMIF('Operations Monthly'!$15:$15,'Fee Exercise'!BI$3,'Operations Monthly'!129:129) -> 52.66193479 | BJ47: =-SUMIF('Operations Monthly'!$15:$15,'Fee Exercise'!BJ$3,'Operations Monthly'!129:129) -> 25.46640235 | BK47: =-SUMIF('Operations Monthly'!$15:$15,'Fee Exercise'!BK$3,'Operations Monthly'!129:129) -> 71.3931688 | BL47: =-SUMIF('Operations Monthly'!$15:$15,'Fee Exercise'!BL$3,'Operations Monthly'!129:129) -> 137.9151588 | BM47: =-SUMIF('Operations Monthly'!$15:$15,'Fee Exercise'!BM$3,'Operations Monthly'!129:129) -> 73.17120297 | BN47: =-SUMIF('Operations Monthly'!$15:$15,'Fee Exercise'!BN$3,'Operations Monthly'!129:129) -> 33.41250019 | BO47: =-SUMIF('Operations Monthly'!$15:$15,'Fee Exercise'!BO$3,'Operations Monthly'!129:129) -> 74.18381077 | BP47: =-SUMIF('Operations Monthly'!$15:$15,'Fee Exercise'!BP$3,'Operations Monthly'!129:129) -> 34.02961984 | BQ47: =-SUMIF('Operations Monthly'!$15:$15,'Fee Exercise'!BQ$3,'Operations Monthly'!129:129) -> 75.21075809 | BR47: =-SUMIF('Operations Monthly'!$15:$15,'Fee Exercise'!BR$3,'Operations Monthly'!129:129) -> 34.65715561 | BS47: =-SUMIF('Operations Monthly'!$15:$15,'Fee Exercise'!BS$3,'Operations Monthly'!129:129) -> 76.25225151 | BT47: =-SUMIF('Operations Monthly'!$15:$15,'Fee Exercise'!BT$3,'Operations Monthly'!129:129) -> 35.29527533 | BU47: =-SUMIF('Operations Monthly'!$15:$15,'Fee Exercise'!BU$3,'Operations Monthly'!129:129) -> 77.30850066 | BV47: =-SUMIF('Operations Monthly'!$15:$15,'Fee Exercise'!BV$3,'Operations Monthly'!129:129) -> -19.85890655 | BW47: =-SUMIF('Operations Monthly'!$15:$15,'Fee Exercise'!BW$3,'Operations Monthly'!129:129) -> 79.91047368 | BX47: =-SUMIF('Operations Monthly'!$15:$15,'Fee Exercise'!BX$3,'Operations Monthly'!129:129) -> -312.8550779 | BY47: =-SUMIF('Operations Monthly'!$15:$15,'Fee Exercise'!BY$3,'Operations Monthly'!129:129) -> 78.41660331 | BZ47: =-SUMIF('Operations Monthly'!$15:$15,'Fee Exercise'!BZ$3,'Operations Monthly'!129:129) -> 32.55020837 | CA47: =-SUMIF('Operations Monthly'!$15:$15,'Fee Exercise'!CA$3,'Operations Monthly'!129:129) -> 79.49493503 | CB47: =-SUMIF('Operations Monthly'!$15:$15,'Fee Exercise'!CB$3,'Operations Monthly'!129:129) -> 33.17207417 | CC47: =-SUMIF('Operations Monthly'!$15:$15,'Fee Exercise'!CC$3,'Operations Monthly'!129:129) -> 80.58846256 | CD47: =-SUMIF('Operations Monthly'!$15:$15,'Fee Exercise'!CD$3,'Operations Monthly'!129:129) -> 33.80460409 | CE47: =-SUMIF('Operations Monthly'!$15:$15,'Fee Exercise'!CE$3,'Operations Monthly'!129:129) -> 81.69740404 | CF47: =-SUMIF('Operations Monthly'!$15:$15,'Fee Exercise'!CF$3,'Operations Monthly'!129:129) -> -102.4010315 | CG47: =-SUMIF('Operations Monthly'!$15:$15,'Fee Exercise'!CG$3,'Operations Monthly'!129:129) -> 86.57593936 | CH47: =-SUMIF('Operations Monthly'!$15:$15,'Fee Exercise'!CH$3,'Operations Monthly'!129:129) -> 29.97990369 | CI47: =-SUMIF('Operations Monthly'!$15:$15,'Fee Exercise'!CI$3,'Operations Monthly'!129:129) -> 87.75391549 | CJ47: =-SUMIF('Operations Monthly'!$15:$15,'Fee Exercise'!CJ$3,'Operations Monthly'!129:129) -> 30.59425238 | CK47: =-SUMIF('Operations Monthly'!$15:$15,'Fee Exercise'!CK$3,'Operations Monthly'!129:129) -> 88.94835464 | CL47: =-SUMIF('Operations Monthly'!$15:$15,'Fee Exercise'!CL$3,'Operations Monthly'!129:129) -> 31.2194628 | CM47: =-SUMIF('Operations Monthly'!$15:$15,'Fee Exercise'!CM$3,'Operations Monthly'!129:129) -> 90.15949168 | CN47: =-SUMIF('Operations Monthly'!$15:$15,'Fee Exercise'!CN$3,'Operations Monthly'!129:129) -> 31.85571435 | CO47: =-SUMIF('Operations Monthly'!$15:$15,'Fee Exercise'!CO$3,'Operations Monthly'!129:129) -> 91.38756489 | CP47: =-SUMIF('Operations Monthly'!$15:$15,'Fee Exercise'!CP$3,'Operations Monthly'!129:129) -> 32.50318926 | CQ47: =-SUMIF('Operations Monthly'!$15:$15,'Fee Exercise'!CQ$3,'Operations Monthly'!129:129) -> 92.63281601 | CR47: =-SUMIF('Operations Monthly'!$15:$15,'Fee Exercise'!CR$3,'Operations Monthly'!129:129) -> 33.16207269 | CS47: =-SUMIF('Operations Monthly'!$15:$15,'Fee Exercise'!CS$3,'Operations Monthly'!129:129) -> -176.8709261 | CT47: =-SUMIF('Operations Monthly'!$15:$15,'Fee Exercise'!CT$3,'Operations Monthly'!129:129) -> 31.80936332 | CU47: =-SUMIF('Operations Monthly'!$15:$15,'Fee Exercise'!CU$3,'Operations Monthly'!129:129) -> 93.13752963 | CV47: =-SUMIF('Operations Monthly'!$15:$15,'Fee Exercise'!CV$3,'Operations Monthly'!129:129) -> 32.46128321 | CW47: =-SUMIF('Operations Monthly'!$15:$15,'Fee Exercise'!CW$3,'Operations Monthly'!129:129) -> 94.40522555 | CX47: =-SUMIF('Operations Monthly'!$15:$15,'Fee Exercise'!CX$3,'Operations Monthly'!129:129) -> 33.12472968 | CY47: =-SUMIF('Operations Monthly'!$15:$15,'Fee Exercise'!CY$3,'Operations Monthly'!129:129) -> 95.69064325 | CZ47: =-SUMIF('Operations Monthly'!$15:$15,'Fee Exercise'!CZ$3,'Operations Monthly'!129:129) -> 33.79989313 | DA47: =-SUMIF('Operations Monthly'!$15:$15,'Fee Exercise'!DA$3,'Operations Monthly'!129:129) -> 96.9940356 | DB47: =-SUMIF('Operations Monthly'!$15:$15,'Fee Exercise'!DB$3,'Operations Monthly'!129:129) -> -8538.466128 | DC47: =-SUMIF('Operations Monthly'!$15:$15,'Fee Exercise'!DC$3,'Operations Monthly'!129:129) -> 0 | DD47: =-SUMIF('Operations Monthly'!$15:$15,'Fee Exercise'!DD$3,'Operations Monthly'!129:129) -> 0 | DE47: =-SUMIF('Operations Monthly'!$15:$15,'Fee Exercise'!DE$3,'Operations Monthly'!129:129) -> 0 | DF47: =-SUMIF('Operations Monthly'!$15:$15,'Fee Exercise'!DF$3,'Operations Monthly'!129:129) -> 0 | DG47: =-SUMIF('Operations Monthly'!$15:$15,'Fee Exercise'!DG$3,'Operations Monthly'!129:129) -> 0 | DH47: =-SUMIF('Operations Monthly'!$15:$15,'Fee Exercise'!DH$3,'Operations Monthly'!129:129) -> 0 | DI47: =-SUMIF('Operations Monthly'!$15:$15,'Fee Exercise'!DI$3,'Operations Monthly'!129:129) -> 0 | DJ47: =-SUMIF('Operations Monthly'!$15:$15,'Fee Exercise'!DJ$3,'Operations Monthly'!129:129) -> 0 | DK47: =-SUMIF('Operations Monthly'!$15:$15,'Fee Exercise'!DK$3,'Operations Monthly'!129:129) -> 0 | DL47: =-SUMIF('Operations Monthly'!$15:$15,'Fee Exercise'!DL$3,'Operations Monthly'!129:129) -> 0 | DM47: =-SUMIF('Operations Monthly'!$15:$15,'Fee Exercise'!DM$3,'Operations Monthly'!129:129) -> 0 | DN47: =-SUMIF('Operations Monthly'!$15:$15,'Fee Exercise'!DN$3,'Operations Monthly'!129:129) -> 0 | DO47: =-SUMIF('Operations Monthly'!$15:$15,'Fee Exercise'!DO$3,'Operations Monthly'!129:129) -> 0 | DP47: =-SUMIF('Operations Monthly'!$15:$15,'Fee Exercise'!DP$3,'Operations Monthly'!129:129) -> 0 | DQ47: =-SUMIF('Operations Monthly'!$15:$15,'Fee Exercise'!DQ$3,'Operations Monthly'!129:129) -> 0
C48: Depreciation Expense | L48: =SUMIF('Operations Monthly'!$15:$15,'Fee Exercise'!L$3,'Operations Monthly'!139:139) -> 0 | M48: =SUMIF('Operations Monthly'!$15:$15,'Fee Exercise'!M$3,'Operations Monthly'!139:139) -> 0 | N48: =SUMIF('Operations Monthly'!$15:$15,'Fee Exercise'!N$3,'Operations Monthly'!139:139) -> 0 | O48: =SUMIF('Operations Monthly'!$15:$15,'Fee Exercise'!O$3,'Operations Monthly'!139:139) -> 0 | P48: =SUMIF('Operations Monthly'!$15:$15,'Fee Exercise'!P$3,'Operations Monthly'!139:139) -> 0 | Q48: =SUMIF('Operations Monthly'!$15:$15,'Fee Exercise'!Q$3,'Operations Monthly'!139:139) -> 0 | R48: =SUMIF('Operations Monthly'!$15:$15,'Fee Exercise'!R$3,'Operations Monthly'!139:139) -> 0 | S48: =SUMIF('Operations Monthly'!$15:$15,'Fee Exercise'!S$3,'Operations Monthly'!139:139) -> 0 | T48: =SUMIF('Operations Monthly'!$15:$15,'Fee Exercise'!T$3,'Operations Monthly'!139:139) -> 0 | U48: =SUMIF('Operations Monthly'!$15:$15,'Fee Exercise'!U$3,'Operations Monthly'!139:139) -> 0 | V48: =SUMIF('Operations Monthly'!$15:$15,'Fee Exercise'!V$3,'Operations Monthly'!139:139) -> 0 | W48: =SUMIF('Operations Monthly'!$15:$15,'Fee Exercise'!W$3,'Operations Monthly'!139:139) -> 0 | X48: =SUMIF('Operations Monthly'!$15:$15,'Fee Exercise'!X$3,'Operations Monthly'!139:139) -> 0 | Y48: =SUMIF('Operations Monthly'!$15:$15,'Fee Exercise'!Y$3,'Operations Monthly'!139:139) -> 0 | Z48: =SUMIF('Operations Monthly'!$15:$15,'Fee Exercise'!Z$3,'Operations Monthly'!139:139) -> 0 | AA48: =SUMIF('Operations Monthly'!$15:$15,'Fee Exercise'!AA$3,'Operations Monthly'!139:139) -> 0 | AB48: =SUMIF('Operations Monthly'!$15:$15,'Fee Exercise'!AB$3,'Operations Monthly'!139:139) -> 0 | AC48: =SUMIF('Operations Monthly'!$15:$15,'Fee Exercise'!AC$3,'Operations Monthly'!139:139) -> 0 | AD48: =SUMIF('Operations Monthly'!$15:$15,'Fee Exercise'!AD$3,'Operations Monthly'!139:139) -> 0 | AE48: =SUMIF('Operations Monthly'!$15:$15,'Fee Exercise'!AE$3,'Operations Monthly'!139:139) -> 0 | AF48: =SUMIF('Operations Monthly'!$15:$15,'Fee Exercise'!AF$3,'Operations Monthly'!139:139) -> 0 | AG48: =SUMIF('Operations Monthly'!$15:$15,'Fee Exercise'!AG$3,'Operations Monthly'!139:139) -> 0 | AH48: =SUMIF('Operations Monthly'!$15:$15,'Fee Exercise'!AH$3,'Operations Monthly'!139:139) -> 0 | AI48: =SUMIF('Operations Monthly'!$15:$15,'Fee Exercise'!AI$3,'Operations Monthly'!139:139) -> 0 | AJ48: =SUMIF('Operations Monthly'!$15:$15,'Fee Exercise'!AJ$3,'Operations Monthly'!139:139) -> 0 | AK48: =SUMIF('Operations Monthly'!$15:$15,'Fee Exercise'!AK$3,'Operations Monthly'!139:139) -> 0 | AL48: =SUMIF('Operations Monthly'!$15:$15,'Fee Exercise'!AL$3,'Operations Monthly'!139:139) -> 0 | AM48: =SUMIF('Operations Monthly'!$15:$15,'Fee Exercise'!AM$3,'Operations Monthly'!139:139) -> 0 | AN48: =SUMIF('Operations Monthly'!$15:$15,'Fee Exercise'!AN$3,'Operations Monthly'!139:139) -> 0 | AO48: =SUMIF('Operations Monthly'!$15:$15,'Fee Exercise'!AO$3,'Operations Monthly'!139:139) -> 0 | AP48: =SUMIF('Operations Monthly'!$15:$15,'Fee Exercise'!AP$3,'Operations Monthly'!139:139) -> 0 | AQ48: =SUMIF('Operations Monthly'!$15:$15,'Fee Exercise'!AQ$3,'Operations Monthly'!139:139) -> 0 | AR48: =SUMIF('Operations Monthly'!$15:$15,'Fee Exercise'!AR$3,'Operations Monthly'!139:139) -> 0 | AS48: =SUMIF('Operations Monthly'!$15:$15,'Fee Exercise'!AS$3,'Operations Monthly'!139:139) -> 0 | AT48: =SUMIF('Operations Monthly'!$15:$15,'Fee Exercise'!AT$3,'Operations Monthly'!139:139) -> 0 | AU48: =SUMIF('Operations Monthly'!$15:$15,'Fee Exercise'!AU$3,'Operations Monthly'!139:139) -> 0 | AV48: =SUMIF('Operations Monthly'!$15:$15,'Fee Exercise'!AV$3,'Operations Monthly'!139:139) -> 0 | AW48: =SUMIF('Operations Monthly'!$15:$15,'Fee Exercise'!AW$3,'Operations Monthly'!139:139) -> 0 | AX48: =SUMIF('Operations Monthly'!$15:$15,'Fee Exercise'!AX$3,'Operations Monthly'!139:139) -> 0 | AY48: =SUMIF('Operations Monthly'!$15:$15,'Fee Exercise'!AY$3,'Operations Monthly'!139:139) -> 0 | AZ48: =SUMIF('Operations Monthly'!$15:$15,'Fee Exercise'!AZ$3,'Operations Monthly'!139:139) -> 0 | BA48: =SUMIF('Operations Monthly'!$15:$15,'Fee Exercise'!BA$3,'Operations Monthly'!139:139) -> 0 | BB48: =SUMIF('Operations Monthly'!$15:$15,'Fee Exercise'!BB$3,'Operations Monthly'!139:139) -> 0 | BC48: =SUMIF('Operations Monthly'!$15:$15,'Fee Exercise'!BC$3,'Operations Monthly'!139:139) -> 0 | BD48: =SUMIF('Operations Monthly'!$15:$15,'Fee Exercise'!BD$3,'Operations Monthly'!139:139) -> 60000 | BE48: =SUMIF('Operations Monthly'!$15:$15,'Fee Exercise'!BE$3,'Operations Monthly'!139:139) -> 60000 | BF48: =SUMIF('Operations Monthly'!$15:$15,'Fee Exercise'!BF$3,'Operations Monthly'!139:139) -> 48000 | BG48: =SUMIF('Operations Monthly'!$15:$15,'Fee Exercise'!BG$3,'Operations Monthly'!139:139) -> 48000 | BH48: =SUMIF('Operations Monthly'!$15:$15,'Fee Exercise'!BH$3,'Operations Monthly'!139:139) -> 38400 | BI48: =SUMIF('Operations Monthly'!$15:$15,'Fee Exercise'!BI$3,'Operations Monthly'!139:139) -> 38400 | BJ48: =SUMIF('Operations Monthly'!$15:$15,'Fee Exercise'!BJ$3,'Operations Monthly'!139:139) -> 30720 | BK48: =SUMIF('Operations Monthly'!$15:$15,'Fee Exercise'!BK$3,'Operations Monthly'!139:139) -> 30720 | BL48: =SUMIF('Operations Monthly'!$15:$15,'Fee Exercise'!BL$3,'Operations Monthly'!139:139) -> 24576 | BM48: =SUMIF('Operations Monthly'!$15:$15,'Fee Exercise'!BM$3,'Operations Monthly'!139:139) -> 24576 | BN48: =SUMIF('Operations Monthly'!$15:$15,'Fee Exercise'!BN$3,'Operations Monthly'!139:139) -> 19660.8 | BO48: =SUMIF('Operations Monthly'!$15:$15,'Fee Exercise'!BO$3,'Operations Monthly'!139:139) -> 19660.8 | BP48: =SUMIF('Operations Monthly'!$15:$15,'Fee Exercise'!BP$3,'Operations Monthly'!139:139) -> 19660.8 | BQ48: =SUMIF('Operations Monthly'!$15:$15,'Fee Exercise'!BQ$3,'Operations Monthly'!139:139) -> 19660.8 | BR48: =SUMIF('Operations Monthly'!$15:$15,'Fee Exercise'!BR$3,'Operations Monthly'!139:139) -> 19660.8 | BS48: =SUMIF('Operations Monthly'!$15:$15,'Fee Exercise'!BS$3,'Operations Monthly'!139:139) -> 19660.8 | BT48: =SUMIF('Operations Monthly'!$15:$15,'Fee Exercise'!BT$3,'Operations Monthly'!139:139) -> 19660.8 | BU48: =SUMIF('Operations Monthly'!$15:$15,'Fee Exercise'!BU$3,'Operations Monthly'!139:139) -> 19660.8 | BV48: =SUMIF('Operations Monthly'!$15:$15,'Fee Exercise'!BV$3,'Operations Monthly'!139:139) -> 19660.8 | BW48: =SUMIF('Operations Monthly'!$15:$15,'Fee Exercise'!BW$3,'Operations Monthly'!139:139) -> 19660.8 | BX48: =SUMIF('Operations Monthly'!$15:$15,'Fee Exercise'!BX$3,'Operations Monthly'!139:139) -> 0 | BY48: =SUMIF('Operations Monthly'!$15:$15,'Fee Exercise'!BY$3,'Operations Monthly'!139:139) -> 0 | BZ48: =SUMIF('Operations Monthly'!$15:$15,'Fee Exercise'!BZ$3,'Operations Monthly'!139:139) -> 0 | CA48: =SUMIF('Operations Monthly'!$15:$15,'Fee Exercise'!CA$3,'Operations Monthly'!139:139) -> 0 | CB48: =SUMIF('Operations Monthly'!$15:$15,'Fee Exercise'!CB$3,'Operations Monthly'!139:139) -> 0 | CC48: =SUMIF('Operations Monthly'!$15:$15,'Fee Exercise'!CC$3,'Operations Monthly'!139:139) -> 0 | CD48: =SUMIF('Operations Monthly'!$15:$15,'Fee Exercise'!CD$3,'Operations Monthly'!139:139) -> 0 | CE48: =SUMIF('Operations Monthly'!$15:$15,'Fee Exercise'!CE$3,'Operations Monthly'!139:139) -> 0 | CF48: =SUMIF('Operations Monthly'!$15:$15,'Fee Exercise'!CF$3,'Operations Monthly'!139:139) -> 0 | CG48: =SUMIF('Operations Monthly'!$15:$15,'Fee Exercise'!CG$3,'Operations Monthly'!139:139) -> 0 | CH48: =SUMIF('Operations Monthly'!$15:$15,'Fee Exercise'!CH$3,'Operations Monthly'!139:139) -> 0 | CI48: =SUMIF('Operations Monthly'!$15:$15,'Fee Exercise'!CI$3,'Operations Monthly'!139:139) -> 0 | CJ48: =SUMIF('Operations Monthly'!$15:$15,'Fee Exercise'!CJ$3,'Operations Monthly'!139:139) -> 0 | CK48: =SUMIF('Operations Monthly'!$15:$15,'Fee Exercise'!CK$3,'Operations Monthly'!139:139) -> 0 | CL48: =SUMIF('Operations Monthly'!$15:$15,'Fee Exercise'!CL$3,'Operations Monthly'!139:139) -> 0 | CM48: =SUMIF('Operations Monthly'!$15:$15,'Fee Exercise'!CM$3,'Operations Monthly'!139:139) -> 0 | CN48: =SUMIF('Operations Monthly'!$15:$15,'Fee Exercise'!CN$3,'Operations Monthly'!139:139) -> 0 | CO48: =SUMIF('Operations Monthly'!$15:$15,'Fee Exercise'!CO$3,'Operations Monthly'!139:139) -> 0 | CP48: =SUMIF('Operations Monthly'!$15:$15,'Fee Exercise'!CP$3,'Operations Monthly'!139:139) -> 0 | CQ48: =SUMIF('Operations Monthly'!$15:$15,'Fee Exercise'!CQ$3,'Operations Monthly'!139:139) -> 0 | CR48: =SUMIF('Operations Monthly'!$15:$15,'Fee Exercise'!CR$3,'Operations Monthly'!139:139) -> 0 | CS48: =SUMIF('Operations Monthly'!$15:$15,'Fee Exercise'!CS$3,'Operations Monthly'!139:139) -> 0 | CT48: =SUMIF('Operations Monthly'!$15:$15,'Fee Exercise'!CT$3,'Operations Monthly'!139:139) -> 0 | CU48: =SUMIF('Operations Monthly'!$15:$15,'Fee Exercise'!CU$3,'Operations Monthly'!139:139) -> 0 | CV48: =SUMIF('Operations Monthly'!$15:$15,'Fee Exercise'!CV$3,'Operations Monthly'!139:139) -> 0 | CW48: =SUMIF('Operations Monthly'!$15:$15,'Fee Exercise'!CW$3,'Operations Monthly'!139:139) -> 0 | CX48: =SUMIF('Operations Monthly'!$15:$15,'Fee Exercise'!CX$3,'Operations Monthly'!139:139) -> 0 | CY48: =SUMIF('Operations Monthly'!$15:$15,'Fee Exercise'!CY$3,'Operations Monthly'!139:139) -> 0 | CZ48: =SUMIF('Operations Monthly'!$15:$15,'Fee Exercise'!CZ$3,'Operations Monthly'!139:139) -> 0 | DA48: =SUMIF('Operations Monthly'!$15:$15,'Fee Exercise'!DA$3,'Operations Monthly'!139:139) -> 0 | DB48: =SUMIF('Operations Monthly'!$15:$15,'Fee Exercise'!DB$3,'Operations Monthly'!139:139) -> 0 | DC48: =SUMIF('Operations Monthly'!$15:$15,'Fee Exercise'!DC$3,'Operations Monthly'!139:139) -> 0 | DD48: =SUMIF('Operations Monthly'!$15:$15,'Fee Exercise'!DD$3,'Operations Monthly'!139:139) -> 0 | DE48: =SUMIF('Operations Monthly'!$15:$15,'Fee Exercise'!DE$3,'Operations Monthly'!139:139) -> 0 | DF48: =SUMIF('Operations Monthly'!$15:$15,'Fee Exercise'!DF$3,'Operations Monthly'!139:139) -> 0 | DG48: =SUMIF('Operations Monthly'!$15:$15,'Fee Exercise'!DG$3,'Operations Monthly'!139:139) -> 0 | DH48: =SUMIF('Operations Monthly'!$15:$15,'Fee Exercise'!DH$3,'Operations Monthly'!139:139) -> 0 | DI48: =SUMIF('Operations Monthly'!$15:$15,'Fee Exercise'!DI$3,'Operations Monthly'!139:139) -> 0 | DJ48: =SUMIF('Operations Monthly'!$15:$15,'Fee Exercise'!DJ$3,'Operations Monthly'!139:139) -> 0 | DK48: =SUMIF('Operations Monthly'!$15:$15,'Fee Exercise'!DK$3,'Operations Monthly'!139:139) -> 0 | DL48: =SUMIF('Operations Monthly'!$15:$15,'Fee Exercise'!DL$3,'Operations Monthly'!139:139) -> 0 | DM48: =SUMIF('Operations Monthly'!$15:$15,'Fee Exercise'!DM$3,'Operations Monthly'!139:139) -> 0 | DN48: =SUMIF('Operations Monthly'!$15:$15,'Fee Exercise'!DN$3,'Operations Monthly'!139:139) -> 0 | DO48: =SUMIF('Operations Monthly'!$15:$15,'Fee Exercise'!DO$3,'Operations Monthly'!139:139) -> 0 | DP48: =SUMIF('Operations Monthly'!$15:$15,'Fee Exercise'!DP$3,'Operations Monthly'!139:139) -> 0 | DQ48: =SUMIF('Operations Monthly'!$15:$15,'Fee Exercise'!DQ$3,'Operations Monthly'!139:139) -> 0
C49: Free Cash Flow | L49: =SUMIF('Operations Monthly'!$15:$15,'Fee Exercise'!L$3,'Operations Monthly'!156:156) -> -10000 | M49: =SUMIF('Operations Monthly'!$15:$15,'Fee Exercise'!M$3,'Operations Monthly'!156:156) -> -10000 | N49: =SUMIF('Operations Monthly'!$15:$15,'Fee Exercise'!N$3,'Operations Monthly'!156:156) -> -10000 | O49: =SUMIF('Operations Monthly'!$15:$15,'Fee Exercise'!O$3,'Operations Monthly'!156:156) -> -10000 | P49: =SUMIF('Operations Monthly'!$15:$15,'Fee Exercise'!P$3,'Operations Monthly'!156:156) -> -10000 | Q49: =SUMIF('Operations Monthly'!$15:$15,'Fee Exercise'!Q$3,'Operations Monthly'!156:156) -> -10000 | R49: =SUMIF('Operations Monthly'!$15:$15,'Fee Exercise'!R$3,'Operations Monthly'!156:156) -> -10000 | S49: =SUMIF('Operations Monthly'!$15:$15,'Fee Exercise'!S$3,'Operations Monthly'!156:156) -> -10000 | T49: =SUMIF('Operations Monthly'!$15:$15,'Fee Exercise'!T$3,'Operations Monthly'!156:156) -> -10000 | U49: =SUMIF('Operations Monthly'!$15:$15,'Fee Exercise'!U$3,'Operations Monthly'!156:156) -> -10000 | V49: =SUMIF('Operations Monthly'!$15:$15,'Fee Exercise'!V$3,'Operations Monthly'!156:156) -> -10000 | W49: =SUMIF('Operations Monthly'!$15:$15,'Fee Exercise'!W$3,'Operations Monthly'!156:156) -> -10000 | X49: =SUMIF('Operations Monthly'!$15:$15,'Fee Exercise'!X$3,'Operations Monthly'!156:156) -> -32500 | Y49: =SUMIF('Operations Monthly'!$15:$15,'Fee Exercise'!Y$3,'Operations Monthly'!156:156) -> -32500 | Z49: =SUMIF('Operations Monthly'!$15:$15,'Fee Exercise'!Z$3,'Operations Monthly'!156:156) -> -32500 | AA49: =SUMIF('Operations Monthly'!$15:$15,'Fee Exercise'!AA$3,'Operations Monthly'!156:156) -> -32500 | AB49: =SUMIF('Operations Monthly'!$15:$15,'Fee Exercise'!AB$3,'Operations Monthly'!156:156) -> -32500 | AC49: =SUMIF('Operations Monthly'!$15:$15,'Fee Exercise'!AC$3,'Operations Monthly'!156:156) -> -32500 | AD49: =SUMIF('Operations Monthly'!$15:$15,'Fee Exercise'!AD$3,'Operations Monthly'!156:156) -> -32500 | AE49: =SUMIF('Operations Monthly'!$15:$15,'Fee Exercise'!AE$3,'Operations Monthly'!156:156) -> -32500 | AF49: =SUMIF('Operations Monthly'!$15:$15,'Fee Exercise'!AF$3,'Operations Monthly'!156:156) -> -32500 | AG49: =SUMIF('Operations Monthly'!$15:$15,'Fee Exercise'!AG$3,'Operations Monthly'!156:156) -> -32500 | AH49: =SUMIF('Operations Monthly'!$15:$15,'Fee Exercise'!AH$3,'Operations Monthly'!156:156) -> -32500 | AI49: =SUMIF('Operations Monthly'!$15:$15,'Fee Exercise'!AI$3,'Operations Monthly'!156:156) -> -32500 | AJ49: =SUMIF('Operations Monthly'!$15:$15,'Fee Exercise'!AJ$3,'Operations Monthly'!156:156) -> -7500 | AK49: =SUMIF('Operations Monthly'!$15:$15,'Fee Exercise'!AK$3,'Operations Monthly'!156:156) -> -7500 | AL49: =SUMIF('Operations Monthly'!$15:$15,'Fee Exercise'!AL$3,'Operations Monthly'!156:156) -> -7500 | AM49: =SUMIF('Operations Monthly'!$15:$15,'Fee Exercise'!AM$3,'Operations Monthly'!156:156) -> -7500 | AN49: =SUMIF('Operations Monthly'!$15:$15,'Fee Exercise'!AN$3,'Operations Monthly'!156:156) -> -7500 | AO49: =SUMIF('Operations Monthly'!$15:$15,'Fee Exercise'!AO$3,'Operations Monthly'!156:156) -> -7500 | AP49: =SUMIF('Operations Monthly'!$15:$15,'Fee Exercise'!AP$3,'Operations Monthly'!156:156) -> -7500 | AQ49: =SUMIF('Operations Monthly'!$15:$15,'Fee Exercise'!AQ$3,'Operations Monthly'!156:156) -> -7500 | AR49: =SUMIF('Operations Monthly'!$15:$15,'Fee Exercise'!AR$3,'Operations Monthly'!156:156) -> -7500 | AS49: =SUMIF('Operations Monthly'!$15:$15,'Fee Exercise'!AS$3,'Operations Monthly'!156:156) -> -7500 | AT49: =SUMIF('Operations Monthly'!$15:$15,'Fee Exercise'!AT$3,'Operations Monthly'!156:156) -> -7500 | AU49: =SUMIF('Operations Monthly'!$15:$15,'Fee Exercise'!AU$3,'Operations Monthly'!156:156) -> -7500 | AV49: =SUMIF('Operations Monthly'!$15:$15,'Fee Exercise'!AV$3,'Operations Monthly'!156:156) -> 0 | AW49: =SUMIF('Operations Monthly'!$15:$15,'Fee Exercise'!AW$3,'Operations Monthly'!156:156) -> 0 | AX49: =SUMIF('Operations Monthly'!$15:$15,'Fee Exercise'!AX$3,'Operations Monthly'!156:156) -> 0 | AY49: =SUMIF('Operations Monthly'!$15:$15,'Fee Exercise'!AY$3,'Operations Monthly'!156:156) -> 0 | AZ49: =SUMIF('Operations Monthly'!$15:$15,'Fee Exercise'!AZ$3,'Operations Monthly'!156:156) -> 0 | BA49: =SUMIF('Operations Monthly'!$15:$15,'Fee Exercise'!BA$3,'Operations Monthly'!156:156) -> 0 | BB49: =SUMIF('Operations Monthly'!$15:$15,'Fee Exercise'!BB$3,'Operations Monthly'!156:156) -> 0 | BC49: =SUMIF('Operations Monthly'!$15:$15,'Fee Exercise'!BC$3,'Operations Monthly'!156:156) -> -1.33226763e-10 | BD49: =SUMIF('Operations Monthly'!$15:$15,'Fee Exercise'!BD$3,'Operations Monthly'!156:156) -> 15361.98812 | BE49: =SUMIF('Operations Monthly'!$15:$15,'Fee Exercise'!BE$3,'Operations Monthly'!156:156) -> 21938.92057 | BF49: =SUMIF('Operations Monthly'!$15:$15,'Fee Exercise'!BF$3,'Operations Monthly'!156:156) -> 23028.01737 | BG49: =SUMIF('Operations Monthly'!$15:$15,'Fee Exercise'!BG$3,'Operations Monthly'!156:156) -> 23831.12908 | BH49: =SUMIF('Operations Monthly'!$15:$15,'Fee Exercise'!BH$3,'Operations Monthly'!156:156) -> 23508.60462 | BI49: =SUMIF('Operations Monthly'!$15:$15,'Fee Exercise'!BI$3,'Operations Monthly'!156:156) -> 24069.44037 | BJ49: =SUMIF('Operations Monthly'!$15:$15,'Fee Exercise'!BJ$3,'Operations Monthly'!156:156) -> 23751.67791 | BK49: =SUMIF('Operations Monthly'!$15:$15,'Fee Exercise'!BK$3,'Operations Monthly'!156:156) -> 24384.39147 | BL49: =SUMIF('Operations Monthly'!$15:$15,'Fee Exercise'!BL$3,'Operations Monthly'!156:156) -> 24303.26809 | BM49: =SUMIF('Operations Monthly'!$15:$15,'Fee Exercise'!BM$3,'Operations Monthly'!156:156) -> 25212.00706 | BN49: =SUMIF('Operations Monthly'!$15:$15,'Fee Exercise'!BN$3,'Operations Monthly'!156:156) -> 25116.25997 | BO49: =SUMIF('Operations Monthly'!$15:$15,'Fee Exercise'!BO$3,'Operations Monthly'!156:156) -> 25618.22788 | BP49: =SUMIF('Operations Monthly'!$15:$15,'Fee Exercise'!BP$3,'Operations Monthly'!156:156) -> 25349.28113 | BQ49: =SUMIF('Operations Monthly'!$15:$15,'Fee Exercise'!BQ$3,'Operations Monthly'!156:156) -> 26030.82242 | BR49: =SUMIF('Operations Monthly'!$15:$15,'Fee Exercise'!BR$3,'Operations Monthly'!156:156) -> 25757.77939 | BS49: =SUMIF('Operations Monthly'!$15:$15,'Fee Exercise'!BS$3,'Operations Monthly'!156:156) -> 26449.88909 | BT49: =SUMIF('Operations Monthly'!$15:$15,'Fee Exercise'!BT$3,'Operations Monthly'!156:156) -> 26172.68772 | BU49: =SUMIF('Operations Monthly'!$15:$15,'Fee Exercise'!BU$3,'Operations Monthly'!156:156) -> 26875.52781 | BV49: =SUMIF('Operations Monthly'!$15:$15,'Fee Exercise'!BV$3,'Operations Monthly'!156:156) -> 26328.26524 | BW49: =SUMIF('Operations Monthly'!$15:$15,'Fee Exercise'!BW$3,'Operations Monthly'!156:156) -> 26802.62157 | BX49: =SUMIF('Operations Monthly'!$15:$15,'Fee Exercise'!BX$3,'Operations Monthly'!156:156) -> 25472.52916 | BY49: =SUMIF('Operations Monthly'!$15:$15,'Fee Exercise'!BY$3,'Operations Monthly'!156:156) -> 25812.71077 | BZ49: =SUMIF('Operations Monthly'!$15:$15,'Fee Exercise'!BZ$3,'Operations Monthly'!156:156) -> 25536.57831 | CA49: =SUMIF('Operations Monthly'!$15:$15,'Fee Exercise'!CA$3,'Operations Monthly'!156:156) -> 26158.43761 | CB49: =SUMIF('Operations Monthly'!$15:$15,'Fee Exercise'!CB$3,'Operations Monthly'!156:156) -> 19455.61195 | CC49: =SUMIF('Operations Monthly'!$15:$15,'Fee Exercise'!CC$3,'Operations Monthly'!156:156) -> 19973.60951 | CD49: =SUMIF('Operations Monthly'!$15:$15,'Fee Exercise'!CD$3,'Operations Monthly'!156:156) -> 19908.72195 | CE49: =SUMIF('Operations Monthly'!$15:$15,'Fee Exercise'!CE$3,'Operations Monthly'!156:156) -> 20297.96366 | CF49: =SUMIF('Operations Monthly'!$15:$15,'Fee Exercise'!CF$3,'Operations Monthly'!156:156) -> 19308.08352 | CG49: =SUMIF('Operations Monthly'!$15:$15,'Fee Exercise'!CG$3,'Operations Monthly'!156:156) -> 19697.26023 | CH49: =SUMIF('Operations Monthly'!$15:$15,'Fee Exercise'!CH$3,'Operations Monthly'!156:156) -> 19493.41772 | CI49: =SUMIF('Operations Monthly'!$15:$15,'Fee Exercise'!CI$3,'Operations Monthly'!156:156) -> 20022.61747 | CJ49: =SUMIF('Operations Monthly'!$15:$15,'Fee Exercise'!CJ$3,'Operations Monthly'!156:156) -> 19815.58052 | CK49: =SUMIF('Operations Monthly'!$15:$15,'Fee Exercise'!CK$3,'Operations Monthly'!156:156) -> 20353.15405 | CL49: =SUMIF('Operations Monthly'!$15:$15,'Fee Exercise'!CL$3,'Operations Monthly'!156:156) -> 20288.15599 | CM49: =SUMIF('Operations Monthly'!$15:$15,'Fee Exercise'!CM$3,'Operations Monthly'!156:156) -> 20688.95065 | CN49: =SUMIF('Operations Monthly'!$15:$15,'Fee Exercise'!CN$3,'Operations Monthly'!156:156) -> 20475.37623 | CO49: =SUMIF('Operations Monthly'!$15:$15,'Fee Exercise'!CO$3,'Operations Monthly'!156:156) -> 21030.08919 | CP49: =SUMIF('Operations Monthly'!$15:$15,'Fee Exercise'!CP$3,'Operations Monthly'!156:156) -> 20813.17021 | CQ49: =SUMIF('Operations Monthly'!$15:$15,'Fee Exercise'!CQ$3,'Operations Monthly'!156:156) -> 21376.65286 | CR49: =SUMIF('Operations Monthly'!$15:$15,'Fee Exercise'!CR$3,'Operations Monthly'!156:156) -> 21156.33774 | CS49: =SUMIF('Operations Monthly'!$15:$15,'Fee Exercise'!CS$3,'Operations Monthly'!156:156) -> 21724.38119 | CT49: =SUMIF('Operations Monthly'!$15:$15,'Fee Exercise'!CT$3,'Operations Monthly'!156:156) -> 20836.28796 | CU49: =SUMIF('Operations Monthly'!$15:$15,'Fee Exercise'!CU$3,'Operations Monthly'!156:156) -> 21248.23565 | CV49: =SUMIF('Operations Monthly'!$15:$15,'Fee Exercise'!CV$3,'Operations Monthly'!156:156) -> 21028.51737 | CW49: =SUMIF('Operations Monthly'!$15:$15,'Fee Exercise'!CW$3,'Operations Monthly'!156:156) -> 21599.01425 | CX49: =SUMIF('Operations Monthly'!$15:$15,'Fee Exercise'!CX$3,'Operations Monthly'!156:156) -> 21375.85353 | CY49: =SUMIF('Operations Monthly'!$15:$15,'Fee Exercise'!CY$3,'Operations Monthly'!156:156) -> 21955.37507 | CZ49: =SUMIF('Operations Monthly'!$15:$15,'Fee Exercise'!CZ$3,'Operations Monthly'!156:156) -> 21728.71881 | DA49: =SUMIF('Operations Monthly'!$15:$15,'Fee Exercise'!DA$3,'Operations Monthly'!156:156) -> 22317.40506 | DB49: =SUMIF('Operations Monthly'!$15:$15,'Fee Exercise'!DB$3,'Operations Monthly'!156:156) -> 8538.466128 | DC49: =SUMIF('Operations Monthly'!$15:$15,'Fee Exercise'!DC$3,'Operations Monthly'!156:156) -> 0 | DD49: =SUMIF('Operations Monthly'!$15:$15,'Fee Exercise'!DD$3,'Operations Monthly'!156:156) -> 0 | DE49: =SUMIF('Operations Monthly'!$15:$15,'Fee Exercise'!DE$3,'Operations Monthly'!156:156) -> 0 | DF49: =SUMIF('Operations Monthly'!$15:$15,'Fee Exercise'!DF$3,'Operations Monthly'!156:156) -> 0 | DG49: =SUMIF('Operations Monthly'!$15:$15,'Fee Exercise'!DG$3,'Operations Monthly'!156:156) -> 0 | DH49: =SUMIF('Operations Monthly'!$15:$15,'Fee Exercise'!DH$3,'Operations Monthly'!156:156) -> 0 | DI49: =SUMIF('Operations Monthly'!$15:$15,'Fee Exercise'!DI$3,'Operations Monthly'!156:156) -> 0 | DJ49: =SUMIF('Operations Monthly'!$15:$15,'Fee Exercise'!DJ$3,'Operations Monthly'!156:156) -> 0 | DK49: =SUMIF('Operations Monthly'!$15:$15,'Fee Exercise'!DK$3,'Operations Monthly'!156:156) -> 0 | DL49: =SUMIF('Operations Monthly'!$15:$15,'Fee Exercise'!DL$3,'Operations Monthly'!156:156) -> 0 | DM49: =SUMIF('Operations Monthly'!$15:$15,'Fee Exercise'!DM$3,'Operations Monthly'!156:156) -> 0 | DN49: =SUMIF('Operations Monthly'!$15:$15,'Fee Exercise'!DN$3,'Operations Monthly'!156:156) -> 0 | DO49: =SUMIF('Operations Monthly'!$15:$15,'Fee Exercise'!DO$3,'Operations Monthly'!156:156) -> 0 | DP49: =SUMIF('Operations Monthly'!$15:$15,'Fee Exercise'!DP$3,'Operations Monthly'!156:156) -> 0 | DQ49: =SUMIF('Operations Monthly'!$15:$15,'Fee Exercise'!DQ$3,'Operations Monthly'!156:156) -> 0
A51: Debt Sizing
B52: Aggregate Sources and Uses
C53: Uses
D54: Capital Expenditures | G54: =SUM(46:46) -> 600000
D55: Add: Interest During Construction | G55: =SUM(96:96) -> 24209.86973
D56: Add: Fees During Construction
D57: Add: DSRA
D58: Add: Pre-funded Working Cap | G58: =SUMIF(2:2,F3,47:47) -> 6077.007931
D59: Total | G59: =SUM(G54:G58) -> 630286.8777
C61: Sources
D62: Debt | E62: =G62/G64 -> 0.7064068749 | G62: =G16 -> 445238.9835 | H62: =G59*E62 -> 445238.9835
D63: Equity | G63: =G59-G62 -> 185047.8941
D64: Total | G64: =SUM(G62:G63) -> 630286.8777
B66: Working Capital Facility
C67: Opening Balance | L67: =K70 -> 0 | M67: =L70 -> 0 | N67: 0 | O67: 0 | P67: 0 | Q67: 0 | R67: 0 | S67: 0 | T67: 0 | U67: 0 | V67: 0 | W67: 0 | X67: 0 | Y67: 0 | Z67: 0 | AA67: 0 | AB67: 0 | AC67: 0 | AD67: 0 | AE67: 0 | AF67: 0 | AG67: 0 | AH67: 0 | AI67: 0 | AJ67: 0 | AK67: 0 | AL67: 0 | AM67: 0 | AN67: 0 | AO67: 0 | AP67: 0 | AQ67: 0 | AR67: 0 | AS67: 0 | AT67: 0 | AU67: 0 | AV67: 0 | AW67: 0 | AX67: 0 | AY67: 0 | AZ67: 0 | BA67: 0 | BB67: 0 | BC67: 0 | BD67: 6077.007931 | BE67: 0 | BF67: 0 | BG67: 0 | BH67: 0 | BI67: 0 | BJ67: 0 | BK67: 0 | BL67: 0 | BM67: 0 | BN67: 0 | BO67: 0 | BP67: 0 | BQ67: 0 | BR67: 0 | BS67: 0 | BT67: 0 | BU67: 0 | BV67: 0 | BW67: 0 | BX67: 0 | BY67: =BX70 -> 0 | BZ67: 0 | CA67: 0 | CB67: 0 | CC67: 0 | CD67: 0 | CE67: 0 | CF67: 0 | CG67: 0 | CH67: 0 | CI67: 0 | CJ67: 0 | CK67: 0 | CL67: 0 | CM67: 0 | CN67: 0 | CO67: 0 | CP67: 0 | CQ67: 0 | CR67: 0 | CS67: 0 | CT67: 0 | CU67: 0 | CV67: 0 | CW67: 0 | CX67: 0 | CY67: 0 | CZ67: 0 | DA67: 0 | DB67: 0 | DC67: 0 | DD67: 0 | DE67: 0 | DF67: 0 | DG67: 0 | DH67: 0 | DI67: 0 | DJ67: 0 | DK67: 0 | DL67: 0 | DM67: 0 | DN67: 0 | DO67: 0 | DP67: 0 | DQ67: 0
C68: Add: Working Capital Deposit | L68: =$G$58*L5 -> 0 | M68: 0 | N68: 0 | O68: 0 | P68: 0 | Q68: 0 | R68: 0 | S68: 0 | T68: 0 | U68: 0 | V68: 0 | W68: 0 | X68: 0 | Y68: 0 | Z68: 0 | AA68: 0 | AB68: 0 | AC68: 0 | AD68: 0 | AE68: 0 | AF68: 0 | AG68: 0 | AH68: 0 | AI68: 0 | AJ68: 0 | AK68: 0 | AL68: 0 | AM68: 0 | AN68: 0 | AO68: 0 | AP68: 0 | AQ68: 0 | AR68: 0 | AS68: 0 | AT68: 0 | AU68: 0 | AV68: 0 | AW68: 0 | AX68: 0 | AY68: 0 | AZ68: 0 | BA68: 0 | BB68: 0 | BC68: 6077.007931 | BD68: 0 | BE68: 0 | BF68: 0 | BG68: 0 | BH68: 0 | BI68: 0 | BJ68: 0 | BK68: 0 | BL68: 0 | BM68: 0 | BN68: 0 | BO68: 0 | BP68: 0 | BQ68: 0 | BR68: 0 | BS68: 0 | BT68: 0 | BU68: 0 | BV68: 0 | BW68: 0 | BX68: =$G$58*BX5 -> 0 | BY68: 0 | BZ68: 0 | CA68: 0 | CB68: 0 | CC68: 0 | CD68: 0 | CE68: 0 | CF68: 0 | CG68: 0 | CH68: 0 | CI68: 0 | CJ68: 0 | CK68: 0 | CL68: 0 | CM68: 0 | CN68: 0 | CO68: 0 | CP68: 0 | CQ68: 0 | CR68: 0 | CS68: 0 | CT68: 0 | CU68: 0 | CV68: 0 | CW68: 0 | CX68: 0 | CY68: 0 | CZ68: 0 | DA68: 0 | DB68: 0 | DC68: 0 | DD68: 0 | DE68: 0 | DF68: 0 | DG68: 0 | DH68: 0 | DI68: 0 | DJ68: 0 | DK68: 0 | DL68: 0 | DM68: 0 | DN68: 0 | DO68: 0 | DP68: 0 | DQ68: 0
C69: Less: Use of Working Capital | L69: =L9*L47 -> 0 | M69: 0 | N69: 0 | O69: 0 | P69: 0 | Q69: 0 | R69: 0 | S69: 0 | T69: 0 | U69: 0 | V69: 0 | W69: 0 | X69: 0 | Y69: 0 | Z69: 0 | AA69: 0 | AB69: 0 | AC69: 0 | AD69: 0 | AE69: 0 | AF69: 0 | AG69: 0 | AH69: 0 | AI69: 0 | AJ69: 0 | AK69: 0 | AL69: 0 | AM69: 0 | AN69: 0 | AO69: 0 | AP69: 0 | AQ69: 0 | AR69: 0 | AS69: 0 | AT69: 0 | AU69: 0 | AV69: 0 | AW69: 0 | AX69: 0 | AY69: 0 | AZ69: 0 | BA69: 0 | BB69: 0 | BC69: 0 | BD69: 6077.007931 | BE69: 0 | BF69: 0 | BG69: 0 | BH69: 0 | BI69: 0 | BJ69: 0 | BK69: 0 | BL69: 0 | BM69: 0 | BN69: 0 | BO69: 0 | BP69: 0 | BQ69: 0 | BR69: 0 | BS69: 0 | BT69: 0 | BU69: 0 | BV69: 0 | BW69: 0 | BX69: =BX9*BX47 -> 0 | BY69: 0 | BZ69: 0 | CA69: 0 | CB69: 0 | CC69: 0 | CD69: 0 | CE69: 0 | CF69: 0 | CG69: 0 | CH69: 0 | CI69: 0 | CJ69: 0 | CK69: 0 | CL69: 0 | CM69: 0 | CN69: 0 | CO69: 0 | CP69: 0 | CQ69: 0 | CR69: 0 | CS69: 0 | CT69: 0 | CU69: 0 | CV69: 0 | CW69: 0 | CX69: 0 | CY69: 0 | CZ69: 0 | DA69: 0 | DB69: 0 | DC69: 0 | DD69: 0 | DE69: 0 | DF69: 0 | DG69: 0 | DH69: 0 | DI69: 0 | DJ69: 0 | DK69: 0 | DL69: 0 | DM69: 0 | DN69: 0 | DO69: 0 | DP69: 0 | DQ69: 0
C70: Closing Balance | L70: =L67+L68-L69 -> 0 | M70: =M67+M68-M69 -> 0 | N70: 0 | O70: 0 | P70: 0 | Q70: 0 | R70: 0 | S70: 0 | T70: 0 | U70: 0 | V70: 0 | W70: 0 | X70: 0 | Y70: 0 | Z70: 0 | AA70: 0 | AB70: 0 | AC70: 0 | AD70: 0 | AE70: 0 | AF70: 0 | AG70: 0 | AH70: 0 | AI70: 0 | AJ70: 0 | AK70: 0 | AL70: 0 | AM70: 0 | AN70: 0 | AO70: 0 | AP70: 0 | AQ70: 0 | AR70: 0 | AS70: 0 | AT70: 0 | AU70: 0 | AV70: 0 | AW70: 0 | AX70: 0 | AY70: 0 | AZ70: 0 | BA70: 0 | BB70: 0 | BC70: 6077.007931 | BD70: 0 | BE70: 0 | BF70: 0 | BG70: 0 | BH70: 0 | BI70: 0 | BJ70: 0 | BK70: 0 | BL70: 0 | BM70: 0 | BN70: 0 | BO70: 0 | BP70: 0 | BQ70: 0 | BR70: 0 | BS70: 0 | BT70: 0 | BU70: 0 | BV70: 0 | BW70: 0 | BX70: 0 | BY70: =BY67+BY68-BY69 -> 0 | BZ70: 0 | CA70: 0 | CB70: 0 | CC70: 0 | CD70: 0 | CE70: 0 | CF70: 0 | CG70: 0 | CH70: 0 | CI70: 0 | CJ70: 0 | CK70: 0 | CL70: 0 | CM70: 0 | CN70: 0 | CO70: 0 | CP70: 0 | CQ70: 0 | CR70: 0 | CS70: 0 | CT70: 0 | CU70: 0 | CV70: 0 | CW70: 0 | CX70: 0 | CY70: 0 | CZ70: 0 | DA70: 0 | DB70: 0 | DC70: 0 | DD70: 0 | DE70: 0 | DF70: 0 | DG70: 0 | DH70: 0 | DI70: 0 | DJ70: 0 | DK70: 0 | DL70: 0 | DM70: 0 | DN70: 0 | DO70: 0 | DP70: 0 | DQ70: 0
A72: Debt Funding and Sources and Uses
B73: Pro-Rata
C74: Total Funding Needs
D75: Capital Expenditures | L75: =L46 -> 10000 | M75: 10000 | N75: 10000 | O75: 10000 | P75: 10000 | Q75: 10000 | R75: 10000 | S75: 10000 | T75: 10000 | U75: 10000 | V75: 10000 | W75: 10000 | X75: 32500 | Y75: 32500 | Z75: 32500 | AA75: 32500 | AB75: 32500 | AC75: 32500 | AD75: 32500 | AE75: 32500 | AF75: 32500 | AG75: 32500 | AH75: 32500 | AI75: 32500 | AJ75: 7500 | AK75: 7500 | AL75: 7500 | AM75: 7500 | AN75: 7500 | AO75: 7500 | AP75: 7500 | AQ75: 7500 | AR75: 7500 | AS75: 7500 | AT75: 7500 | AU75: 7500 | AV75: 0 | AW75: 0 | AX75: 0 | AY75: 0 | AZ75: 0 | BA75: 0 | BB75: 0 | BC75: 1.33226763e-10 | BD75: 0 | BE75: 0 | BF75: 0 | BG75: 0 | BH75: 0 | BI75: 0 | BJ75: 0 | BK75: 0 | BL75: 0 | BM75: 0 | BN75: 0 | BO75: 0 | BP75: 0 | BQ75: 0 | BR75: 0 | BS75: 0 | BT75: 0 | BU75: 0 | BV75: 0 | BW75: 0 | BX75: =BX46 -> 0 | BY75: 0 | BZ75: 0 | CA75: 0 | CB75: 0 | CC75: 0 | CD75: 0 | CE75: 0 | CF75: 0 | CG75: 0 | CH75: 0 | CI75: 0 | CJ75: 0 | CK75: 0 | CL75: 0 | CM75: 0 | CN75: 0 | CO75: 0 | CP75: 0 | CQ75: 0 | CR75: 0 | CS75: 0 | CT75: 0 | CU75: 0 | CV75: 0 | CW75: 0 | CX75: 0 | CY75: 0 | CZ75: 0 | DA75: 0 | DB75: 0 | DC75: 0 | DD75: 0 | DE75: 0 | DF75: 0 | DG75: 0 | DH75: 0 | DI75: 0 | DJ75: 0 | DK75: 0 | DL75: 0 | DM75: 0 | DN75: 0 | DO75: 0 | DP75: 0 | DQ75: 0
D76: Add: Interest During Construction | L76: =L96 -> 0 | M76: =M96 -> 15.45968693 | N76: 30.91937386 | O76: 46.37906078 | P76: 61.83874771 | Q76: 77.29843464 | R76: 92.75812157 | S76: 108.2178085 | T76: 123.6774954 | U76: 139.1371824 | V76: 154.5968693 | W76: 170.0565562 | X76: 185.5162431 | Y76: 235.7602257 | Z76: 286.0042082 | AA76: 336.2481907 | AB76: 386.4921732 | AC76: 436.7361557 | AD76: 486.9801382 | AE76: 537.2241208 | AF76: 587.4681033 | AG76: 637.7120858 | AH76: 687.9560683 | AI76: 738.2000508 | AJ76: 788.4440333 | AK76: 800.0387985 | AL76: 811.6335637 | AM76: 823.2283289 | AN76: 834.8230941 | AO76: 846.4178593 | AP76: 858.0126245 | AQ76: 869.6073897 | AR76: 881.2021549 | AS76: 892.7969201 | AT76: 904.3916853 | AU76: 915.9864505 | AV76: 927.5812157 | AW76: 927.5812157 | AX76: 927.5812157 | AY76: 927.5812157 | AZ76: 927.5812157 | BA76: 927.5812157 | BB76: 927.5812157 | BC76: 927.5812157 | BD76: 0 | BE76: 0 | BF76: 0 | BG76: 0 | BH76: 0 | BI76: 0 | BJ76: 0 | BK76: 0 | BL76: 0 | BM76: 0 | BN76: 0 | BO76: 0 | BP76: 0 | BQ76: 0 | BR76: 0 | BS76: 0 | BT76: 0 | BU76: 0 | BV76: 0 | BW76: 0 | BX76: 0 | BY76: =BY96 -> 0 | BZ76: 0 | CA76: 0 | CB76: 0 | CC76: 0 | CD76: 0 | CE76: 0 | CF76: 0 | CG76: 0 | CH76: 0 | CI76: 0 | CJ76: 0 | CK76: 0 | CL76: 0 | CM76: 0 | CN76: 0 | CO76: 0 | CP76: 0 | CQ76: 0 | CR76: 0 | CS76: 0 | CT76: 0 | CU76: 0 | CV76: 0 | CW76: 0 | CX76: 0 | CY76: 0 | CZ76: 0 | DA76: 0 | DB76: 0 | DC76: 0 | DD76: 0 | DE76: 0 | DF76: 0 | DG76: 0 | DH76: 0 | DI76: 0 | DJ76: 0 | DK76: 0 | DL76: 0 | DM76: 0 | DN76: 0 | DO76: 0 | DP76: 0 | DQ76: 0
D77: Add: Fees During Construction
D78: Add: DSRA
D79: Add: Funding of Working Captial | L79: =L68 -> 0 | M79: =M68 -> 0 | N79: 0 | O79: 0 | P79: 0 | Q79: 0 | R79: 0 | S79: 0 | T79: 0 | U79: 0 | V79: 0 | W79: 0 | X79: 0 | Y79: 0 | Z79: 0 | AA79: 0 | AB79: 0 | AC79: 0 | AD79: 0 | AE79: 0 | AF79: 0 | AG79: 0 | AH79: 0 | AI79: 0 | AJ79: 0 | AK79: 0 | AL79: 0 | AM79: 0 | AN79: 0 | AO79: 0 | AP79: 0 | AQ79: 0 | AR79: 0 | AS79: 0 | AT79: 0 | AU79: 0 | AV79: 0 | AW79: 0 | AX79: 0 | AY79: 0 | AZ79: 0 | BA79: 0 | BB79: 0 | BC79: 6077.007931 | BD79: 0 | BE79: 0 | BF79: 0 | BG79: 0 | BH79: 0 | BI79: 0 | BJ79: 0 | BK79: 0 | BL79: 0 | BM79: 0 | BN79: 0 | BO79: 0 | BP79: 0 | BQ79: 0 | BR79: 0 | BS79: 0 | BT79: 0 | BU79: 0 | BV79: 0 | BW79: 0 | BX79: 0 | BY79: =BY68 -> 0 | BZ79: 0 | CA79: 0 | CB79: 0 | CC79: 0 | CD79: 0 | CE79: 0 | CF79: 0 | CG79: 0 | CH79: 0 | CI79: 0 | CJ79: 0 | CK79: 0 | CL79: 0 | CM79: 0 | CN79: 0 | CO79: 0 | CP79: 0 | CQ79: 0 | CR79: 0 | CS79: 0 | CT79: 0 | CU79: 0 | CV79: 0 | CW79: 0 | CX79: 0 | CY79: 0 | CZ79: 0 | DA79: 0 | DB79: 0 | DC79: 0 | DD79: 0 | DE79: 0 | DF79: 0 | DG79: 0 | DH79: 0 | DI79: 0 | DJ79: 0 | DK79: 0 | DL79: 0 | DM79: 0 | DN79: 0 | DO79: 0 | DP79: 0 | DQ79: 0
D80: Total | L80: =SUM(L75:L79) -> 10000 | M80: =SUM(M75:M79) -> 10015.45969 | N80: 10030.91937 | O80: 10046.37906 | P80: 10061.83875 | Q80: 10077.29843 | R80: 10092.75812 | S80: 10108.21781 | T80: 10123.6775 | U80: 10139.13718 | V80: 10154.59687 | W80: 10170.05656 | X80: 32685.51624 | Y80: 32735.76023 | Z80: 32786.00421 | AA80: 32836.24819 | AB80: 32886.49217 | AC80: 32936.73616 | AD80: 32986.98014 | AE80: 33037.22412 | AF80: 33087.4681 | AG80: 33137.71209 | AH80: 33187.95607 | AI80: 33238.20005 | AJ80: 8288.444033 | AK80: 8300.038799 | AL80: 8311.633564 | AM80: 8323.228329 | AN80: 8334.823094 | AO80: 8346.417859 | AP80: 8358.012625 | AQ80: 8369.60739 | AR80: 8381.202155 | AS80: 8392.79692 | AT80: 8404.391685 | AU80: 8415.98645 | AV80: 927.5812157 | AW80: 927.5812157 | AX80: 927.5812157 | AY80: 927.5812157 | AZ80: 927.5812157 | BA80: 927.5812157 | BB80: 927.5812157 | BC80: 7004.589147 | BD80: 0 | BE80: 0 | BF80: 0 | BG80: 0 | BH80: 0 | BI80: 0 | BJ80: 0 | BK80: 0 | BL80: 0 | BM80: 0 | BN80: 0 | BO80: 0 | BP80: 0 | BQ80: 0 | BR80: 0 | BS80: 0 | BT80: 0 | BU80: 0 | BV80: 0 | BW80: 0 | BX80: 0 | BY80: =SUM(BY75:BY79) -> 0 | BZ80: 0 | CA80: 0 | CB80: 0 | CC80: 0 | CD80: 0 | CE80: 0 | CF80: 0 | CG80: 0 | CH80: 0 | CI80: 0 | CJ80: 0 | CK80: 0 | CL80: 0 | CM80: 0 | CN80: 0 | CO80: 0 | CP80: 0 | CQ80: 0 | CR80: 0 | CS80: 0 | CT80: 0 | CU80: 0 | CV80: 0 | CW80: 0 | CX80: 0 | CY80: 0 | CZ80: 0 | DA80: 0 | DB80: 0 | DC80: 0 | DD80: 0 | DE80: 0 | DF80: 0 | DG80: 0 | DH80: 0 | DI80: 0 | DJ80: 0 | DK80: 0 | DL80: 0 | DM80: 0 | DN80: 0 | DO80: 0 | DP80: 0 | DQ80: 0
C82: Debt Funding Ratio - Pro Rata | L82: =L75/SUM(75:75) -> 0.01666666667 | M82: =M75/SUM(75:75) -> 0.01666666667 | N82: 0.01666666667 | O82: 0.01666666667 | P82: 0.01666666667 | Q82: 0.01666666667 | R82: 0.01666666667 | S82: 0.01666666667 | T82: 0.01666666667 | U82: 0.01666666667 | V82: 0.01666666667 | W82: 0.01666666667 | X82: 0.05416666667 | Y82: 0.05416666667 | Z82: 0.05416666667 | AA82: 0.05416666667 | AB82: 0.05416666667 | AC82: 0.05416666667 | AD82: 0.05416666667 | AE82: 0.05416666667 | AF82: 0.05416666667 | AG82: 0.05416666667 | AH82: 0.05416666667 | AI82: 0.05416666667 | AJ82: 0.0125 | AK82: 0.0125 | AL82: 0.0125 | AM82: 0.0125 | AN82: 0.0125 | AO82: 0.0125 | AP82: 0.0125 | AQ82: 0.0125 | AR82: 0.0125 | AS82: 0.0125 | AT82: 0.0125 | AU82: 0.0125 | AV82: 0 | AW82: 0 | AX82: 0 | AY82: 0 | AZ82: 0 | BA82: 0 | BB82: 0 | BC82: 2.220446049e-16 | BD82: 0 | BE82: 0 | BF82: 0 | BG82: 0 | BH82: 0 | BI82: 0 | BJ82: 0 | BK82: 0 | BL82: 0 | BM82: 0 | BN82: 0 | BO82: 0 | BP82: 0 | BQ82: 0 | BR82: 0 | BS82: 0 | BT82: 0 | BU82: 0 | BV82: 0 | BW82: 0 | BX82: 0 | BY82: =BY75/SUM(75:75) -> 0 | BZ82: 0 | CA82: 0 | CB82: 0 | CC82: 0 | CD82: 0 | CE82: 0 | CF82: 0 | CG82: 0 | CH82: 0 | CI82: 0 | CJ82: 0 | CK82: 0 | CL82: 0 | CM82: 0 | CN82: 0 | CO82: 0 | CP82: 0 | CQ82: 0 | CR82: 0 | CS82: 0 | CT82: 0 | CU82: 0 | CV82: 0 | CW82: 0 | CX82: 0 | CY82: 0 | CZ82: 0 | DA82: 0 | DB82: 0 | DC82: 0 | DD82: 0 | DE82: 0 | DF82: 0 | DG82: 0 | DH82: 0 | DI82: 0 | DJ82: 0 | DK82: 0 | DL82: 0 | DM82: 0 | DN82: 0 | DO82: 0 | DP82: 0 | DQ82: 0
C84: Debt Funding | E84: Debt | F84: =G16 -> 445238.9835 | L84: =$F$84*L82 -> 7420.649725 | M84: =$F$84*M82 -> 7420.649725 | N84: 7420.649725 | O84: 7420.649725 | P84: 7420.649725 | Q84: 7420.649725 | R84: 7420.649725 | S84: 7420.649725 | T84: 7420.649725 | U84: 7420.649725 | V84: 7420.649725 | W84: 7420.649725 | X84: 24117.11161 | Y84: 24117.11161 | Z84: 24117.11161 | AA84: 24117.11161 | AB84: 24117.11161 | AC84: 24117.11161 | AD84: 24117.11161 | AE84: 24117.11161 | AF84: 24117.11161 | AG84: 24117.11161 | AH84: 24117.11161 | AI84: 24117.11161 | AJ84: 5565.487294 | AK84: 5565.487294 | AL84: 5565.487294 | AM84: 5565.487294 | AN84: 5565.487294 | AO84: 5565.487294 | AP84: 5565.487294 | AQ84: 5565.487294 | AR84: 5565.487294 | AS84: 5565.487294 | AT84: 5565.487294 | AU84: 5565.487294 | AV84: 0 | AW84: 0 | AX84: 0 | AY84: 0 | AZ84: 0 | BA84: 0 | BB84: 0 | BC84: 9.88629142e-11 | BD84: 0 | BE84: 0 | BF84: 0 | BG84: 0 | BH84: 0 | BI84: 0 | BJ84: 0 | BK84: 0 | BL84: 0 | BM84: 0 | BN84: 0 | BO84: 0 | BP84: 0 | BQ84: 0 | BR84: 0 | BS84: 0 | BT84: 0 | BU84: 0 | BV84: 0 | BW84: 0 | BX84: 0 | BY84: =$F$84*BY82 -> 0 | BZ84: 0 | CA84: 0 | CB84: 0 | CC84: 0 | CD84: 0 | CE84: 0 | CF84: 0 | CG84: 0 | CH84: 0 | CI84: 0 | CJ84: 0 | CK84: 0 | CL84: 0 | CM84: 0 | CN84: 0 | CO84: 0 | CP84: 0 | CQ84: 0 | CR84: 0 | CS84: 0 | CT84: 0 | CU84: 0 | CV84: 0 | CW84: 0 | CX84: 0 | CY84: 0 | CZ84: 0 | DA84: 0 | DB84: 0 | DC84: 0 | DD84: 0 | DE84: 0 | DF84: 0 | DG84: 0 | DH84: 0 | DI84: 0 | DJ84: 0 | DK84: 0 | DL84: 0 | DM84: 0 | DN84: 0 | DO84: 0 | DP84: 0 | DQ84: 0
C85: Equity Fiunding | L85: =L80-L84 -> 2579.350275 | M85: =M80-M84 -> 2594.809961 | N85: 2610.269648 | O85: 2625.729335 | P85: 2641.189022 | Q85: 2656.648709 | R85: 2672.108396 | S85: 2687.568083 | T85: 2703.02777 | U85: 2718.487457 | V85: 2733.947144 | W85: 2749.406831 | X85: 8568.404635 | Y85: 8618.648618 | Z85: 8668.8926 | AA85: 8719.136583 | AB85: 8769.380565 | AC85: 8819.624548 | AD85: 8869.86853 | AE85: 8920.112513 | AF85: 8970.356495 | AG85: 9020.600478 | AH85: 9070.84446 | AI85: 9121.088443 | AJ85: 2722.956739 | AK85: 2734.551504 | AL85: 2746.14627 | AM85: 2757.741035 | AN85: 2769.3358 | AO85: 2780.930565 | AP85: 2792.52533 | AQ85: 2804.120096 | AR85: 2815.714861 | AS85: 2827.309626 | AT85: 2838.904391 | AU85: 2850.499156 | AV85: 927.5812157 | AW85: 927.5812157 | AX85: 927.5812157 | AY85: 927.5812157 | AZ85: 927.5812157 | BA85: 927.5812157 | BB85: 927.5812157 | BC85: 7004.589147 | BD85: 0 | BE85: 0 | BF85: 0 | BG85: 0 | BH85: 0 | BI85: 0 | BJ85: 0 | BK85: 0 | BL85: 0 | BM85: 0 | BN85: 0 | BO85: 0 | BP85: 0 | BQ85: 0 | BR85: 0 | BS85: 0 | BT85: 0 | BU85: 0 | BV85: 0 | BW85: 0 | BX85: 0 | BY85: =BY80-BY84 -> 0 | BZ85: 0 | CA85: 0 | CB85: 0 | CC85: 0 | CD85: 0 | CE85: 0 | CF85: 0 | CG85: 0 | CH85: 0 | CI85: 0 | CJ85: 0 | CK85: 0 | CL85: 0 | CM85: 0 | CN85: 0 | CO85: 0 | CP85: 0 | CQ85: 0 | CR85: 0 | CS85: 0 | CT85: 0 | CU85: 0 | CV85: 0 | CW85: 0 | CX85: 0 | CY85: 0 | CZ85: 0 | DA85: 0 | DB85: 0 | DC85: 0 | DD85: 0 | DE85: 0 | DF85: 0 | DG85: 0 | DH85: 0 | DI85: 0 | DJ85: 0 | DK85: 0 | DL85: 0 | DM85: 0 | DN85: 0 | DO85: 0 | DP85: 0 | DQ85: 0
D86: Total Uses | L86: =SUM(L84:L85) -> 10000 | M86: =SUM(M84:M85) -> 10015.45969 | N86: 10030.91937 | O86: 10046.37906 | P86: 10061.83875 | Q86: 10077.29843 | R86: 10092.75812 | S86: 10108.21781 | T86: 10123.6775 | U86: 10139.13718 | V86: 10154.59687 | W86: 10170.05656 | X86: 32685.51624 | Y86: 32735.76023 | Z86: 32786.00421 | AA86: 32836.24819 | AB86: 32886.49217 | AC86: 32936.73616 | AD86: 32986.98014 | AE86: 33037.22412 | AF86: 33087.4681 | AG86: 33137.71209 | AH86: 33187.95607 | AI86: 33238.20005 | AJ86: 8288.444033 | AK86: 8300.038799 | AL86: 8311.633564 | AM86: 8323.228329 | AN86: 8334.823094 | AO86: 8346.417859 | AP86: 8358.012625 | AQ86: 8369.60739 | AR86: 8381.202155 | AS86: 8392.79692 | AT86: 8404.391685 | AU86: 8415.98645 | AV86: 927.5812157 | AW86: 927.5812157 | AX86: 927.5812157 | AY86: 927.5812157 | AZ86: 927.5812157 | BA86: 927.5812157 | BB86: 927.5812157 | BC86: 7004.589147 | BD86: 0 | BE86: 0 | BF86: 0 | BG86: 0 | BH86: 0 | BI86: 0 | BJ86: 0 | BK86: 0 | BL86: 0 | BM86: 0 | BN86: 0 | BO86: 0 | BP86: 0 | BQ86: 0 | BR86: 0 | BS86: 0 | BT86: 0 | BU86: 0 | BV86: 0 | BW86: 0 | BX86: 0 | BY86: =SUM(BY84:BY85) -> 0 | BZ86: 0 | CA86: 0 | CB86: 0 | CC86: 0 | CD86: 0 | CE86: 0 | CF86: 0 | CG86: 0 | CH86: 0 | CI86: 0 | CJ86: 0 | CK86: 0 | CL86: 0 | CM86: 0 | CN86: 0 | CO86: 0 | CP86: 0 | CQ86: 0 | CR86: 0 | CS86: 0 | CT86: 0 | CU86: 0 | CV86: 0 | CW86: 0 | CX86: 0 | CY86: 0 | CZ86: 0 | DA86: 0 | DB86: 0 | DC86: 0 | DD86: 0 | DE86: 0 | DF86: 0 | DG86: 0 | DH86: 0 | DI86: 0 | DJ86: 0 | DK86: 0 | DL86: 0 | DM86: 0 | DN86: 0 | DO86: 0 | DP86: 0 | DQ86: 0
B88: Construction Debt
C89: Opening Balance | L89: =K93 -> 0 | M89: =L93 -> 7420.649725 | N89: 14841.29945 | O89: 22261.94918 | P89: 29682.5989 | Q89: 37103.24863 | R89: 44523.89835 | S89: 51944.54808 | T89: 59365.1978 | U89: 66785.84753 | V89: 74206.49725 | W89: 81627.14698 | X89: 89047.79671 | Y89: 113164.9083 | Z89: 137282.0199 | AA89: 161399.1315 | AB89: 185516.2431 | AC89: 209633.3547 | AD89: 233750.4664 | AE89: 257867.578 | AF89: 281984.6896 | AG89: 306101.8012 | AH89: 330218.9128 | AI89: 354336.0244 | AJ89: 378453.136 | AK89: 384018.6233 | AL89: 389584.1106 | AM89: 395149.5979 | AN89: 400715.0852 | AO89: 406280.5725 | AP89: 411846.0598 | AQ89: 417411.5471 | AR89: 422977.0344 | AS89: 428542.5216 | AT89: 434108.0089 | AU89: 439673.4962 | AV89: 445238.9835 | AW89: 445238.9835 | AX89: 445238.9835 | AY89: 445238.9835 | AZ89: 445238.9835 | BA89: 445238.9835 | BB89: 445238.9835 | BC89: 445238.9835 | BD89: 0 | BE89: 0 | BF89: 0 | BG89: 0 | BH89: 0 | BI89: 0 | BJ89: 0 | BK89: 0 | BL89: 0 | BM89: 0 | BN89: 0 | BO89: 0 | BP89: 0 | BQ89: 0 | BR89: 0 | BS89: 0 | BT89: 0 | BU89: 0 | BV89: 0 | BW89: 0 | BX89: 0 | BY89: =BX93 -> 0 | BZ89: 0 | CA89: 0 | CB89: 0 | CC89: 0 | CD89: 0 | CE89: 0 | CF89: 0 | CG89: 0 | CH89: 0 | CI89: 0 | CJ89: 0 | CK89: 0 | CL89: 0 | CM89: 0 | CN89: 0 | CO89: 0 | CP89: 0 | CQ89: 0 | CR89: 0 | CS89: 0 | CT89: 0 | CU89: 0 | CV89: 0 | CW89: 0 | CX89: 0 | CY89: 0 | CZ89: 0 | DA89: 0 | DB89: 0 | DC89: 0 | DD89: 0 | DE89: 0 | DF89: 0 | DG89: 0 | DH89: 0 | DI89: 0 | DJ89: 0 | DK89: 0 | DL89: 0 | DM89: 0 | DN89: 0 | DO89: 0 | DP89: 0 | DQ89: 0
C90: Add: Debt Draws | L90: =L84 -> 7420.649725 | M90: =M84 -> 7420.649725 | N90: 7420.649725 | O90: 7420.649725 | P90: 7420.649725 | Q90: 7420.649725 | R90: 7420.649725 | S90: 7420.649725 | T90: 7420.649725 | U90: 7420.649725 | V90: 7420.649725 | W90: 7420.649725 | X90: 24117.11161 | Y90: 24117.11161 | Z90: 24117.11161 | AA90: 24117.11161 | AB90: 24117.11161 | AC90: 24117.11161 | AD90: 24117.11161 | AE90: 24117.11161 | AF90: 24117.11161 | AG90: 24117.11161 | AH90: 24117.11161 | AI90: 24117.11161 | AJ90: 5565.487294 | AK90: 5565.487294 | AL90: 5565.487294 | AM90: 5565.487294 | AN90: 5565.487294 | AO90: 5565.487294 | AP90: 5565.487294 | AQ90: 5565.487294 | AR90: 5565.487294 | AS90: 5565.487294 | AT90: 5565.487294 | AU90: 5565.487294 | AV90: 0 | AW90: 0 | AX90: 0 | AY90: 0 | AZ90: 0 | BA90: 0 | BB90: 0 | BC90: 9.88629142e-11 | BD90: 0 | BE90: 0 | BF90: 0 | BG90: 0 | BH90: 0 | BI90: 0 | BJ90: 0 | BK90: 0 | BL90: 0 | BM90: 0 | BN90: 0 | BO90: 0 | BP90: 0 | BQ90: 0 | BR90: 0 | BS90: 0 | BT90: 0 | BU90: 0 | BV90: 0 | BW90: 0 | BX90: 0 | BY90: =BY84 -> 0 | BZ90: 0 | CA90: 0 | CB90: 0 | CC90: 0 | CD90: 0 | CE90: 0 | CF90: 0 | CG90: 0 | CH90: 0 | CI90: 0 | CJ90: 0 | CK90: 0 | CL90: 0 | CM90: 0 | CN90: 0 | CO90: 0 | CP90: 0 | CQ90: 0 | CR90: 0 | CS90: 0 | CT90: 0 | CU90: 0 | CV90: 0 | CW90: 0 | CX90: 0 | CY90: 0 | CZ90: 0 | DA90: 0 | DB90: 0 | DC90: 0 | DD90: 0 | DE90: 0 | DF90: 0 | DG90: 0 | DH90: 0 | DI90: 0 | DJ90: 0 | DK90: 0 | DL90: 0 | DM90: 0 | DN90: 0 | DO90: 0 | DP90: 0 | DQ90: 0
C91: Add: Capitalised Interest | L91: =L97 -> 0 | M91: =M97 -> 0 | N91: 0 | O91: 0 | P91: 0 | Q91: 0 | R91: 0 | S91: 0 | T91: 0 | U91: 0 | V91: 0 | W91: 0 | X91: 0 | Y91: 0 | Z91: 0 | AA91: 0 | AB91: 0 | AC91: 0 | AD91: 0 | AE91: 0 | AF91: 0 | AG91: 0 | AH91: 0 | AI91: 0 | AJ91: 0 | AK91: 0 | AL91: 0 | AM91: 0 | AN91: 0 | AO91: 0 | AP91: 0 | AQ91: 0 | AR91: 0 | AS91: 0 | AT91: 0 | AU91: 0 | AV91: 0 | AW91: 0 | AX91: 0 | AY91: 0 | AZ91: 0 | BA91: 0 | BB91: 0 | BC91: 0 | BD91: 0 | BE91: 0 | BF91: 0 | BG91: 0 | BH91: 0 | BI91: 0 | BJ91: 0 | BK91: 0 | BL91: 0 | BM91: 0 | BN91: 0 | BO91: 0 | BP91: 0 | BQ91: 0 | BR91: 0 | BS91: 0 | BT91: 0 | BU91: 0 | BV91: 0 | BW91: 0 | BX91: 0 | BY91: =BY97 -> 0 | BZ91: 0 | CA91: 0 | CB91: 0 | CC91: 0 | CD91: 0 | CE91: 0 | CF91: 0 | CG91: 0 | CH91: 0 | CI91: 0 | CJ91: 0 | CK91: 0 | CL91: 0 | CM91: 0 | CN91: 0 | CO91: 0 | CP91: 0 | CQ91: 0 | CR91: 0 | CS91: 0 | CT91: 0 | CU91: 0 | CV91: 0 | CW91: 0 | CX91: 0 | CY91: 0 | CZ91: 0 | DA91: 0 | DB91: 0 | DC91: 0 | DD91: 0 | DE91: 0 | DF91: 0 | DG91: 0 | DH91: 0 | DI91: 0 | DJ91: 0 | DK91: 0 | DL91: 0 | DM91: 0 | DN91: 0 | DO91: 0 | DP91: 0 | DQ91: 0
C92: Less: Debt Re-financed prior to COD | L92: =SUM(L89:L91)*L5 -> 0 | M92: 0 | N92: 0 | O92: 0 | P92: 0 | Q92: 0 | R92: 0 | S92: 0 | T92: 0 | U92: 0 | V92: 0 | W92: 0 | X92: 0 | Y92: 0 | Z92: 0 | AA92: 0 | AB92: 0 | AC92: 0 | AD92: 0 | AE92: 0 | AF92: 0 | AG92: 0 | AH92: 0 | AI92: 0 | AJ92: 0 | AK92: 0 | AL92: 0 | AM92: 0 | AN92: 0 | AO92: 0 | AP92: 0 | AQ92: 0 | AR92: 0 | AS92: 0 | AT92: 0 | AU92: 0 | AV92: 0 | AW92: 0 | AX92: 0 | AY92: 0 | AZ92: 0 | BA92: 0 | BB92: 0 | BC92: 445238.9835 | BD92: 0 | BE92: 0 | BF92: 0 | BG92: 0 | BH92: 0 | BI92: 0 | BJ92: 0 | BK92: 0 | BL92: 0 | BM92: 0 | BN92: 0 | BO92: 0 | BP92: 0 | BQ92: 0 | BR92: 0 | BS92: 0 | BT92: 0 | BU92: 0 | BV92: 0 | BW92: 0 | BX92: =SUM(BX89:BX91)*BX5 -> 0 | BY92: 0 | BZ92: 0 | CA92: 0 | CB92: 0 | CC92: 0 | CD92: 0 | CE92: 0 | CF92: 0 | CG92: 0 | CH92: 0 | CI92: 0 | CJ92: 0 | CK92: 0 | CL92: 0 | CM92: 0 | CN92: 0 | CO92: 0 | CP92: 0 | CQ92: 0 | CR92: 0 | CS92: 0 | CT92: 0 | CU92: 0 | CV92: 0 | CW92: 0 | CX92: 0 | CY92: 0 | CZ92: 0 | DA92: 0 | DB92: 0 | DC92: 0 | DD92: 0 | DE92: 0 | DF92: 0 | DG92: 0 | DH92: 0 | DI92: 0 | DJ92: 0 | DK92: 0 | DL92: 0 | DM92: 0 | DN92: 0 | DO92: 0 | DP92: 0 | DQ92: 0
C93: Closing Balance | L93: =SUM(L89:L91)-L92 -> 7420.649725 | M93: =SUM(M89:M91)-M92 -> 14841.29945 | N93: 22261.94918 | O93: 29682.5989 | P93: 37103.24863 | Q93: 44523.89835 | R93: 51944.54808 | S93: 59365.1978 | T93: 66785.84753 | U93: 74206.49725 | V93: 81627.14698 | W93: 89047.79671 | X93: 113164.9083 | Y93: 137282.0199 | Z93: 161399.1315 | AA93: 185516.2431 | AB93: 209633.3547 | AC93: 233750.4664 | AD93: 257867.578 | AE93: 281984.6896 | AF93: 306101.8012 | AG93: 330218.9128 | AH93: 354336.0244 | AI93: 378453.136 | AJ93: 384018.6233 | AK93: 389584.1106 | AL93: 395149.5979 | AM93: 400715.0852 | AN93: 406280.5725 | AO93: 411846.0598 | AP93: 417411.5471 | AQ93: 422977.0344 | AR93: 428542.5216 | AS93: 434108.0089 | AT93: 439673.4962 | AU93: 445238.9835 | AV93: 445238.9835 | AW93: 445238.9835 | AX93: 445238.9835 | AY93: 445238.9835 | AZ93: 445238.9835 | BA93: 445238.9835 | BB93: 445238.9835 | BC93: 0 | BD93: 0 | BE93: 0 | BF93: 0 | BG93: 0 | BH93: 0 | BI93: 0 | BJ93: 0 | BK93: 0 | BL93: 0 | BM93: 0 | BN93: 0 | BO93: 0 | BP93: 0 | BQ93: 0 | BR93: 0 | BS93: 0 | BT93: 0 | BU93: 0 | BV93: 0 | BW93: 0 | BX93: 0 | BY93: =SUM(BY89:BY91)-BY92 -> 0 | BZ93: 0 | CA93: 0 | CB93: 0 | CC93: 0 | CD93: 0 | CE93: 0 | CF93: 0 | CG93: 0 | CH93: 0 | CI93: 0 | CJ93: 0 | CK93: 0 | CL93: 0 | CM93: 0 | CN93: 0 | CO93: 0 | CP93: 0 | CQ93: 0 | CR93: 0 | CS93: 0 | CT93: 0 | CU93: 0 | CV93: 0 | CW93: 0 | CX93: 0 | CY93: 0 | CZ93: 0 | DA93: 0 | DB93: 0 | DC93: 0 | DD93: 0 | DE93: 0 | DF93: 0 | DG93: 0 | DH93: 0 | DI93: 0 | DJ93: 0 | DK93: 0 | DL93: 0 | DM93: 0 | DN93: 0 | DO93: 0 | DP93: 0 | DQ93: 0
C95: Interest Rate | E95: Euribor | F95: =F32 -> 0.012 | G95: Spread | H95: =F33 -> 0.013 | L95: =($F$95+$H$95)/L8 -> 0.002083333333 | M95: 0.002083333333 | N95: 0.002083333333 | O95: 0.002083333333 | P95: 0.002083333333 | Q95: 0.002083333333 | R95: 0.002083333333 | S95: 0.002083333333 | T95: 0.002083333333 | U95: 0.002083333333 | V95: 0.002083333333 | W95: 0.002083333333 | X95: 0.002083333333 | Y95: 0.002083333333 | Z95: 0.002083333333 | AA95: 0.002083333333 | AB95: 0.002083333333 | AC95: 0.002083333333 | AD95: 0.002083333333 | AE95: 0.002083333333 | AF95: 0.002083333333 | AG95: 0.002083333333 | AH95: 0.002083333333 | AI95: 0.002083333333 | AJ95: 0.002083333333 | AK95: 0.002083333333 | AL95: 0.002083333333 | AM95: 0.002083333333 | AN95: 0.002083333333 | AO95: 0.002083333333 | AP95: 0.002083333333 | AQ95: 0.002083333333 | AR95: 0.002083333333 | AS95: 0.002083333333 | AT95: 0.002083333333 | AU95: 0.002083333333 | AV95: 0.002083333333 | AW95: 0.002083333333 | AX95: 0.002083333333 | AY95: 0.002083333333 | AZ95: 0.002083333333 | BA95: 0.002083333333 | BB95: 0.002083333333 | BC95: 0.002083333333 | BD95: 0.0125 | BE95: 0.0125 | BF95: 0.0125 | BG95: 0.0125 | BH95: 0.0125 | BI95: 0.0125 | BJ95: 0.0125 | BK95: 0.0125 | BL95: 0.0125 | BM95: 0.0125 | BN95: 0.0125 | BO95: 0.0125 | BP95: 0.0125 | BQ95: 0.0125 | BR95: 0.0125 | BS95: 0.0125 | BT95: 0.0125 | BU95: 0.0125 | BV95: 0.0125 | BW95: 0.0125 | BX95: =($F$95+$H$95)/BX8 -> 0.0125 | BY95: 0.0125 | BZ95: 0.0125 | CA95: 0.0125 | CB95: 0.0125 | CC95: 0.0125 | CD95: 0.0125 | CE95: 0.0125 | CF95: 0.0125 | CG95: 0.0125 | CH95: 0.0125 | CI95: 0.0125 | CJ95: 0.0125 | CK95: 0.0125 | CL95: 0.0125 | CM95: 0.0125 | CN95: 0.0125 | CO95: 0.0125 | CP95: 0.0125 | CQ95: 0.0125 | CR95: 0.0125 | CS95: 0.0125 | CT95: 0.0125 | CU95: 0.0125 | CV95: 0.0125 | CW95: 0.0125 | CX95: 0.0125 | CY95: 0.0125 | CZ95: 0.0125 | DA95: 0.0125 | DB95: 0.0125 | DC95: 0.0125 | DD95: 0.0125 | DE95: 0.0125 | DF95: 0.0125 | DG95: 0.0125 | DH95: 0.0125 | DI95: 0.0125 | DJ95: 0.0125 | DK95: 0.0125 | DL95: 0.0125 | DM95: 0.0125 | DN95: 0.0125 | DO95: 0.0125 | DP95: 0.0125 | DQ95: 0.0125
C96: Interest During Construction | L96: =L95*L89 -> 0 | M96: =M95*M89 -> 15.45968693 | N96: 30.91937386 | O96: 46.37906078 | P96: 61.83874771 | Q96: 77.29843464 | R96: 92.75812157 | S96: 108.2178085 | T96: 123.6774954 | U96: 139.1371824 | V96: 154.5968693 | W96: 170.0565562 | X96: 185.5162431 | Y96: 235.7602257 | Z96: 286.0042082 | AA96: 336.2481907 | AB96: 386.4921732 | AC96: 436.7361557 | AD96: 486.9801382 | AE96: 537.2241208 | AF96: 587.4681033 | AG96: 637.7120858 | AH96: 687.9560683 | AI96: 738.2000508 | AJ96: 788.4440333 | AK96: 800.0387985 | AL96: 811.6335637 | AM96: 823.2283289 | AN96: 834.8230941 | AO96: 846.4178593 | AP96: 858.0126245 | AQ96: 869.6073897 | AR96: 881.2021549 | AS96: 892.7969201 | AT96: 904.3916853 | AU96: 915.9864505 | AV96: 927.5812157 | AW96: 927.5812157 | AX96: 927.5812157 | AY96: 927.5812157 | AZ96: 927.5812157 | BA96: 927.5812157 | BB96: 927.5812157 | BC96: 927.5812157 | BD96: 0 | BE96: 0 | BF96: 0 | BG96: 0 | BH96: 0 | BI96: 0 | BJ96: 0 | BK96: 0 | BL96: 0 | BM96: 0 | BN96: 0 | BO96: 0 | BP96: 0 | BQ96: 0 | BR96: 0 | BS96: 0 | BT96: 0 | BU96: 0 | BV96: 0 | BW96: 0 | BX96: 0 | BY96: =BY95*BY89 -> 0 | BZ96: 0 | CA96: 0 | CB96: 0 | CC96: 0 | CD96: 0 | CE96: 0 | CF96: 0 | CG96: 0 | CH96: 0 | CI96: 0 | CJ96: 0 | CK96: 0 | CL96: 0 | CM96: 0 | CN96: 0 | CO96: 0 | CP96: 0 | CQ96: 0 | CR96: 0 | CS96: 0 | CT96: 0 | CU96: 0 | CV96: 0 | CW96: 0 | CX96: 0 | CY96: 0 | CZ96: 0 | DA96: 0 | DB96: 0 | DC96: 0 | DD96: 0 | DE96: 0 | DF96: 0 | DG96: 0 | DH96: 0 | DI96: 0 | DJ96: 0 | DK96: 0 | DL96: 0 | DM96: 0 | DN96: 0 | DO96: 0 | DP96: 0 | DQ96: 0
C97: Interest Capitalised | E97: Switch | F97: =F21 -> FALSE | L97: =L96*$F$97 -> 0 | M97: =M96*$F$97 -> 0 | N97: 0 | O97: 0 | P97: 0 | Q97: 0 | R97: 0 | S97: 0 | T97: 0 | U97: 0 | V97: 0 | W97: 0 | X97: 0 | Y97: 0 | Z97: 0 | AA97: 0 | AB97: 0 | AC97: 0 | AD97: 0 | AE97: 0 | AF97: 0 | AG97: 0 | AH97: 0 | AI97: 0 | AJ97: 0 | AK97: 0 | AL97: 0 | AM97: 0 | AN97: 0 | AO97: 0 | AP97: 0 | AQ97: 0 | AR97: 0 | AS97: 0 | AT97: 0 | AU97: 0 | AV97: 0 | AW97: 0 | AX97: 0 | AY97: 0 | AZ97: 0 | BA97: 0 | BB97: 0 | BC97: 0 | BD97: 0 | BE97: 0 | BF97: 0 | BG97: 0 | BH97: 0 | BI97: 0 | BJ97: 0 | BK97: 0 | BL97: 0 | BM97: 0 | BN97: 0 | BO97: 0 | BP97: 0 | BQ97: 0 | BR97: 0 | BS97: 0 | BT97: 0 | BU97: 0 | BV97: 0 | BW97: 0 | BX97: 0 | BY97: =BY96*$F$97 -> 0 | BZ97: 0 | CA97: 0 | CB97: 0 | CC97: 0 | CD97: 0 | CE97: 0 | CF97: 0 | CG97: 0 | CH97: 0 | CI97: 0 | CJ97: 0 | CK97: 0 | CL97: 0 | CM97: 0 | CN97: 0 | CO97: 0 | CP97: 0 | CQ97: 0 | CR97: 0 | CS97: 0 | CT97: 0 | CU97: 0 | CV97: 0 | CW97: 0 | CX97: 0 | CY97: 0 | CZ97: 0 | DA97: 0 | DB97: 0 | DC97: 0 | DD97: 0 | DE97: 0 | DF97: 0 | DG97: 0 | DH97: 0 | DI97: 0 | DJ97: 0 | DK97: 0 | DL97: 0 | DM97: 0 | DN97: 0 | DO97: 0 | DP97: 0 | DQ97: 0
C99: Fees
D100: Upfront Fee | E100: Debt | F100: =F84 -> 445238.9835 | G100: FC | H100: =L2 -> 2015-03-01 | I100: =F35 -> 0.0052
D102: Total Commitment | E102: Debt | F102: =F100 -> 445238.9835
D103: Already Committed - OPENING BALANCE
D104: Uncommitted Balance
D105: Commitment Fee | E105: Percent | F105: =F35/12 -> 0.0004333333333
D107: Total Construction Fees
B109: Permenant Debt and Repayment
C110: Level Repayment | E110: Total Debt | F110: =G16 -> 445238.9835 | G110: Tenor | H110: =F24 -> 17 | L110: =$F$110/$H$110*L4/L8 -> 0 | M110: 0 | N110: 0 | O110: 0 | P110: 0 | Q110: 0 | R110: 0 | S110: 0 | T110: 0 | U110: 0 | V110: 0 | W110: 0 | X110: 0 | Y110: 0 | Z110: 0 | AA110: 0 | AB110: 0 | AC110: 0 | AD110: 0 | AE110: 0 | AF110: 0 | AG110: 0 | AH110: 0 | AI110: 0 | AJ110: 0 | AK110: 0 | AL110: 0 | AM110: 0 | AN110: 0 | AO110: 0 | AP110: 0 | AQ110: 0 | AR110: 0 | AS110: 0 | AT110: 0 | AU110: 0 | AV110: 0 | AW110: 0 | AX110: 0 | AY110: 0 | AZ110: 0 | BA110: 0 | BB110: 0 | BC110: 0 | BD110: 13095.26422 | BE110: 13095.26422 | BF110: 13095.26422 | BG110: 13095.26422 | BH110: 13095.26422 | BI110: 13095.26422 | BJ110: 13095.26422 | BK110: 13095.26422 | BL110: 13095.26422 | BM110: 13095.26422 | BN110: 13095.26422 | BO110: 13095.26422 | BP110: 13095.26422 | BQ110: 13095.26422 | BR110: 13095.26422 | BS110: 13095.26422 | BT110: 13095.26422 | BU110: 13095.26422 | BV110: 13095.26422 | BW110: 13095.26422 | BX110: =$F$110/$H$110*BX4/BX8 -> 13095.26422 | BY110: 13095.26422 | BZ110: 13095.26422 | CA110: 13095.26422 | CB110: 13095.26422 | CC110: 13095.26422 | CD110: 13095.26422 | CE110: 13095.26422 | CF110: 13095.26422 | CG110: 13095.26422 | CH110: 13095.26422 | CI110: 13095.26422 | CJ110: 13095.26422 | CK110: 13095.26422 | CL110: 0 | CM110: 0 | CN110: 0 | CO110: 0 | CP110: 0 | CQ110: 0 | CR110: 0 | CS110: 0 | CT110: 0 | CU110: 0 | CV110: 0 | CW110: 0 | CX110: 0 | CY110: 0 | CZ110: 0 | DA110: 0 | DB110: 0 | DC110: 0 | DD110: 0 | DE110: 0 | DF110: 0 | DG110: 0 | DH110: 0 | DI110: 0 | DJ110: 0 | DK110: 0 | DL110: 0 | DM110: 0 | DN110: 0 | DO110: 0 | DP110: 0 | DQ110: 0
C111: Annuity Repayment
C112: Sculpting Repaymet
C114: Opening Balance | L114: =K117 -> 0 | M114: =L117 -> 0 | N114: 0 | O114: 0 | P114: 0 | Q114: 0 | R114: 0 | S114: 0 | T114: 0 | U114: 0 | V114: 0 | W114: 0 | X114: 0 | Y114: 0 | Z114: 0 | AA114: 0 | AB114: 0 | AC114: 0 | AD114: 0 | AE114: 0 | AF114: 0 | AG114: 0 | AH114: 0 | AI114: 0 | AJ114: 0 | AK114: 0 | AL114: 0 | AM114: 0 | AN114: 0 | AO114: 0 | AP114: 0 | AQ114: 0 | AR114: 0 | AS114: 0 | AT114: 0 | AU114: 0 | AV114: 0 | AW114: 0 | AX114: 0 | AY114: 0 | AZ114: 0 | BA114: 0 | BB114: 0 | BC114: 0 | BD114: 445238.9835 | BE114: 432143.7193 | BF114: 419048.4551 | BG114: 405953.1909 | BH114: 392857.9266 | BI114: 379762.6624 | BJ114: 366667.3982 | BK114: 353572.134 | BL114: 340476.8698 | BM114: 327381.6055 | BN114: 314286.3413 | BO114: 301191.0771 | BP114: 288095.8129 | BQ114: 275000.5487 | BR114: 261905.2844 | BS114: 248810.0202 | BT114: 235714.756 | BU114: 222619.4918 | BV114: 209524.2275 | BW114: 196428.9633 | BX114: 183333.6991 | BY114: =BX117 -> 170238.4349 | BZ114: 157143.1707 | CA114: 144047.9064 | CB114: 130952.6422 | CC114: 117857.378 | CD114: 104762.1138 | CE114: 91666.84955 | CF114: 78571.58533 | CG114: 65476.32111 | CH114: 52381.05689 | CI114: 39285.79266 | CJ114: 26190.52844 | CK114: 13095.26422 | CL114: -1.709850039e-10 | CM114: -1.709850039e-10 | CN114: -1.709850039e-10 | CO114: -1.709850039e-10 | CP114: -1.709850039e-10 | CQ114: -1.709850039e-10 | CR114: -1.709850039e-10 | CS114: -1.709850039e-10 | CT114: -1.709850039e-10 | CU114: -1.709850039e-10 | CV114: -1.709850039e-10 | CW114: -1.709850039e-10 | CX114: -1.709850039e-10 | CY114: -1.709850039e-10 | CZ114: -1.709850039e-10 | DA114: -1.709850039e-10 | DB114: -1.709850039e-10 | DC114: -1.709850039e-10 | DD114: -1.709850039e-10 | DE114: -1.709850039e-10 | DF114: -1.709850039e-10 | DG114: -1.709850039e-10 | DH114: -1.709850039e-10 | DI114: -1.709850039e-10 | DJ114: -1.709850039e-10 | DK114: -1.709850039e-10 | DL114: -1.709850039e-10 | DM114: -1.709850039e-10 | DN114: -1.709850039e-10 | DO114: -1.709850039e-10 | DP114: -1.709850039e-10 | DQ114: -1.709850039e-10
C115: Add: Draws from Re-financing Construction | E115: Total Debt | F115: =F110 -> 445238.9835 | L115: =$F$115*L5 -> 0 | M115: 0 | N115: 0 | O115: 0 | P115: 0 | Q115: 0 | R115: 0 | S115: 0 | T115: 0 | U115: 0 | V115: 0 | W115: 0 | X115: 0 | Y115: 0 | Z115: 0 | AA115: 0 | AB115: 0 | AC115: 0 | AD115: 0 | AE115: 0 | AF115: 0 | AG115: 0 | AH115: 0 | AI115: 0 | AJ115: 0 | AK115: 0 | AL115: 0 | AM115: 0 | AN115: 0 | AO115: 0 | AP115: 0 | AQ115: 0 | AR115: 0 | AS115: 0 | AT115: 0 | AU115: 0 | AV115: 0 | AW115: 0 | AX115: 0 | AY115: 0 | AZ115: 0 | BA115: 0 | BB115: 0 | BC115: 445238.9835 | BD115: 0 | BE115: 0 | BF115: 0 | BG115: 0 | BH115: 0 | BI115: 0 | BJ115: 0 | BK115: 0 | BL115: 0 | BM115: 0 | BN115: 0 | BO115: 0 | BP115: 0 | BQ115: 0 | BR115: 0 | BS115: 0 | BT115: 0 | BU115: 0 | BV115: 0 | BW115: 0 | BX115: =$F$115*BX5 -> 0 | BY115: 0 | BZ115: 0 | CA115: 0 | CB115: 0 | CC115: 0 | CD115: 0 | CE115: 0 | CF115: 0 | CG115: 0 | CH115: 0 | CI115: 0 | CJ115: 0 | CK115: 0 | CL115: 0 | CM115: 0 | CN115: 0 | CO115: 0 | CP115: 0 | CQ115: 0 | CR115: 0 | CS115: 0 | CT115: 0 | CU115: 0 | CV115: 0 | CW115: 0 | CX115: 0 | CY115: 0 | CZ115: 0 | DA115: 0 | DB115: 0 | DC115: 0 | DD115: 0 | DE115: 0 | DF115: 0 | DG115: 0 | DH115: 0 | DI115: 0 | DJ115: 0 | DK115: 0 | DL115: 0 | DM115: 0 | DN115: 0 | DO115: 0 | DP115: 0 | DQ115: 0
C116: Less: Repayments | L116: =L110 -> 0 | M116: =M110 -> 0 | N116: 0 | O116: 0 | P116: 0 | Q116: 0 | R116: 0 | S116: 0 | T116: 0 | U116: 0 | V116: 0 | W116: 0 | X116: 0 | Y116: 0 | Z116: 0 | AA116: 0 | AB116: 0 | AC116: 0 | AD116: 0 | AE116: 0 | AF116: 0 | AG116: 0 | AH116: 0 | AI116: 0 | AJ116: 0 | AK116: 0 | AL116: 0 | AM116: 0 | AN116: 0 | AO116: 0 | AP116: 0 | AQ116: 0 | AR116: 0 | AS116: 0 | AT116: 0 | AU116: 0 | AV116: 0 | AW116: 0 | AX116: 0 | AY116: 0 | AZ116: 0 | BA116: 0 | BB116: 0 | BC116: 0 | BD116: 13095.26422 | BE116: 13095.26422 | BF116: 13095.26422 | BG116: 13095.26422 | BH116: 13095.26422 | BI116: 13095.26422 | BJ116: 13095.26422 | BK116: 13095.26422 | BL116: 13095.26422 | BM116: 13095.26422 | BN116: 13095.26422 | BO116: 13095.26422 | BP116: 13095.26422 | BQ116: 13095.26422 | BR116: 13095.26422 | BS116: 13095.26422 | BT116: 13095.26422 | BU116: 13095.26422 | BV116: 13095.26422 | BW116: 13095.26422 | BX116: 13095.26422 | BY116: =BY110 -> 13095.26422 | BZ116: 13095.26422 | CA116: 13095.26422 | CB116: 13095.26422 | CC116: 13095.26422 | CD116: 13095.26422 | CE116: 13095.26422 | CF116: 13095.26422 | CG116: 13095.26422 | CH116: 13095.26422 | CI116: 13095.26422 | CJ116: 13095.26422 | CK116: 13095.26422 | CL116: 0 | CM116: 0 | CN116: 0 | CO116: 0 | CP116: 0 | CQ116: 0 | CR116: 0 | CS116: 0 | CT116: 0 | CU116: 0 | CV116: 0 | CW116: 0 | CX116: 0 | CY116: 0 | CZ116: 0 | DA116: 0 | DB116: 0 | DC116: 0 | DD116: 0 | DE116: 0 | DF116: 0 | DG116: 0 | DH116: 0 | DI116: 0 | DJ116: 0 | DK116: 0 | DL116: 0 | DM116: 0 | DN116: 0 | DO116: 0 | DP116: 0 | DQ116: 0
C117: Closing Balance | L117: =L114+L115-L116 -> 0 | M117: =M114+M115-M116 -> 0 | N117: 0 | O117: 0 | P117: 0 | Q117: 0 | R117: 0 | S117: 0 | T117: 0 | U117: 0 | V117: 0 | W117: 0 | X117: 0 | Y117: 0 | Z117: 0 | AA117: 0 | AB117: 0 | AC117: 0 | AD117: 0 | AE117: 0 | AF117: 0 | AG117: 0 | AH117: 0 | AI117: 0 | AJ117: 0 | AK117: 0 | AL117: 0 | AM117: 0 | AN117: 0 | AO117: 0 | AP117: 0 | AQ117: 0 | AR117: 0 | AS117: 0 | AT117: 0 | AU117: 0 | AV117: 0 | AW117: 0 | AX117: 0 | AY117: 0 | AZ117: 0 | BA117: 0 | BB117: 0 | BC117: 445238.9835 | BD117: 432143.7193 | BE117: 419048.4551 | BF117: 405953.1909 | BG117: 392857.9266 | BH117: 379762.6624 | BI117: 366667.3982 | BJ117: 353572.134 | BK117: 340476.8698 | BL117: 327381.6055 | BM117: 314286.3413 | BN117: 301191.0771 | BO117: 288095.8129 | BP117: 275000.5487 | BQ117: 261905.2844 | BR117: 248810.0202 | BS117: 235714.756 | BT117: 222619.4918 | BU117: 209524.2275 | BV117: 196428.9633 | BW117: 183333.6991 | BX117: 170238.4349 | BY117: =BY114+BY115-BY116 -> 157143.1707 | BZ117: 144047.9064 | CA117: 130952.6422 | CB117: 117857.378 | CC117: 104762.1138 | CD117: 91666.84955 | CE117: 78571.58533 | CF117: 65476.32111 | CG117: 52381.05689 | CH117: 39285.79266 | CI117: 26190.52844 | CJ117: 13095.26422 | CK117: -1.709850039e-10 | CL117: -1.709850039e-10 | CM117: -1.709850039e-10 | CN117: -1.709850039e-10 | CO117: -1.709850039e-10 | CP117: -1.709850039e-10 | CQ117: -1.709850039e-10 | CR117: -1.709850039e-10 | CS117: -1.709850039e-10 | CT117: -1.709850039e-10 | CU117: -1.709850039e-10 | CV117: -1.709850039e-10 | CW117: -1.709850039e-10 | CX117: -1.709850039e-10 | CY117: -1.709850039e-10 | CZ117: -1.709850039e-10 | DA117: -1.709850039e-10 | DB117: -1.709850039e-10 | DC117: -1.709850039e-10 | DD117: -1.709850039e-10 | DE117: -1.709850039e-10 | DF117: -1.709850039e-10 | DG117: -1.709850039e-10 | DH117: -1.709850039e-10 | DI117: -1.709850039e-10 | DJ117: -1.709850039e-10 | DK117: -1.709850039e-10 | DL117: -1.709850039e-10 | DM117: -1.709850039e-10 | DN117: -1.709850039e-10 | DO117: -1.709850039e-10 | DP117: -1.709850039e-10 | DQ117: -1.709850039e-10
C119: Interest Rate | L119: =L95 -> 0.002083333333 | M119: =M95 -> 0.002083333333 | N119: 0.002083333333 | O119: 0.002083333333 | P119: 0.002083333333 | Q119: 0.002083333333 | R119: 0.002083333333 | S119: 0.002083333333 | T119: 0.002083333333 | U119: 0.002083333333 | V119: 0.002083333333 | W119: 0.002083333333 | X119: 0.002083333333 | Y119: 0.002083333333 | Z119: 0.002083333333 | AA119: 0.002083333333 | AB119: 0.002083333333 | AC119: 0.002083333333 | AD119: 0.002083333333 | AE119: 0.002083333333 | AF119: 0.002083333333 | AG119: 0.002083333333 | AH119: 0.002083333333 | AI119: 0.002083333333 | AJ119: 0.002083333333 | AK119: 0.002083333333 | AL119: 0.002083333333 | AM119: 0.002083333333 | AN119: 0.002083333333 | AO119: 0.002083333333 | AP119: 0.002083333333 | AQ119: 0.002083333333 | AR119: 0.002083333333 | AS119: 0.002083333333 | AT119: 0.002083333333 | AU119: 0.002083333333 | AV119: 0.002083333333 | AW119: 0.002083333333 | AX119: 0.002083333333 | AY119: 0.002083333333 | AZ119: 0.002083333333 | BA119: 0.002083333333 | BB119: 0.002083333333 | BC119: 0.002083333333 | BD119: 0.0125 | BE119: 0.0125 | BF119: 0.0125 | BG119: 0.0125 | BH119: 0.0125 | BI119: 0.0125 | BJ119: 0.0125 | BK119: 0.0125 | BL119: 0.0125 | BM119: 0.0125 | BN119: 0.0125 | BO119: 0.0125 | BP119: 0.0125 | BQ119: 0.0125 | BR119: 0.0125 | BS119: 0.0125 | BT119: 0.0125 | BU119: 0.0125 | BV119: 0.0125 | BW119: 0.0125 | BX119: 0.0125 | BY119: =BY95 -> 0.0125 | BZ119: 0.0125 | CA119: 0.0125 | CB119: 0.0125 | CC119: 0.0125 | CD119: 0.0125 | CE119: 0.0125 | CF119: 0.0125 | CG119: 0.0125 | CH119: 0.0125 | CI119: 0.0125 | CJ119: 0.0125 | CK119: 0.0125 | CL119: 0.0125 | CM119: 0.0125 | CN119: 0.0125 | CO119: 0.0125 | CP119: 0.0125 | CQ119: 0.0125 | CR119: 0.0125 | CS119: 0.0125 | CT119: 0.0125 | CU119: 0.0125 | CV119: 0.0125 | CW119: 0.0125 | CX119: 0.0125 | CY119: 0.0125 | CZ119: 0.0125 | DA119: 0.0125 | DB119: 0.0125 | DC119: 0.0125 | DD119: 0.0125 | DE119: 0.0125 | DF119: 0.0125 | DG119: 0.0125 | DH119: 0.0125 | DI119: 0.0125 | DJ119: 0.0125 | DK119: 0.0125 | DL119: 0.0125 | DM119: 0.0125 | DN119: 0.0125 | DO119: 0.0125 | DP119: 0.0125 | DQ119: 0.0125
C120: Interest Expense | L120: =L119*L114 -> 0 | M120: =M119*M114 -> 0 | N120: 0 | O120: 0 | P120: 0 | Q120: 0 | R120: 0 | S120: 0 | T120: 0 | U120: 0 | V120: 0 | W120: 0 | X120: 0 | Y120: 0 | Z120: 0 | AA120: 0 | AB120: 0 | AC120: 0 | AD120: 0 | AE120: 0 | AF120: 0 | AG120: 0 | AH120: 0 | AI120: 0 | AJ120: 0 | AK120: 0 | AL120: 0 | AM120: 0 | AN120: 0 | AO120: 0 | AP120: 0 | AQ120: 0 | AR120: 0 | AS120: 0 | AT120: 0 | AU120: 0 | AV120: 0 | AW120: 0 | AX120: 0 | AY120: 0 | AZ120: 0 | BA120: 0 | BB120: 0 | BC120: 0 | BD120: 5565.487294 | BE120: 5401.796491 | BF120: 5238.105689 | BG120: 5074.414886 | BH120: 4910.724083 | BI120: 4747.03328 | BJ120: 4583.342478 | BK120: 4419.651675 | BL120: 4255.960872 | BM120: 4092.270069 | BN120: 3928.579266 | BO120: 3764.888464 | BP120: 3601.197661 | BQ120: 3437.506858 | BR120: 3273.816055 | BS120: 3110.125253 | BT120: 2946.43445 | BU120: 2782.743647 | BV120: 2619.052844 | BW120: 2455.362042 | BX120: 2291.671239 | BY120: =BY119*BY114 -> 2127.980436 | BZ120: 1964.289633 | CA120: 1800.59883 | CB120: 1636.908028 | CC120: 1473.217225 | CD120: 1309.526422 | CE120: 1145.835619 | CF120: 982.1448166 | CG120: 818.4540138 | CH120: 654.7632111 | CI120: 491.0724083 | CJ120: 327.3816055 | CK120: 163.6908028 | CL120: -2.137312549e-12 | CM120: -2.137312549e-12 | CN120: -2.137312549e-12 | CO120: -2.137312549e-12 | CP120: -2.137312549e-12 | CQ120: -2.137312549e-12 | CR120: -2.137312549e-12 | CS120: -2.137312549e-12 | CT120: -2.137312549e-12 | CU120: -2.137312549e-12 | CV120: -2.137312549e-12 | CW120: -2.137312549e-12 | CX120: -2.137312549e-12 | CY120: -2.137312549e-12 | CZ120: -2.137312549e-12 | DA120: -2.137312549e-12 | DB120: -2.137312549e-12 | DC120: -2.137312549e-12 | DD120: -2.137312549e-12 | DE120: -2.137312549e-12 | DF120: -2.137312549e-12 | DG120: -2.137312549e-12 | DH120: -2.137312549e-12 | DI120: -2.137312549e-12 | DJ120: -2.137312549e-12 | DK120: -2.137312549e-12 | DL120: -2.137312549e-12 | DM120: -2.137312549e-12 | DN120: -2.137312549e-12 | DO120: -2.137312549e-12 | DP120: -2.137312549e-12 | DQ120: -2.137312549e-12
B122: Depreciation on IDC and Fee Amortisation
C123: Opening Balance | L123: =K125 -> 0 | M123: =L125 -> 0 | N123: 15.45968693 | O123: 46.37906078 | P123: 92.75812157 | Q123: 154.5968693 | R123: 231.8953039 | S123: 324.6534255 | T123: 432.871234 | U123: 556.5487294 | V123: 695.6859118 | W123: 850.282781 | X123: 1020.339337 | Y123: 1205.85558 | Z123: 1441.615806 | AA123: 1727.620014 | AB123: 2063.868205 | AC123: 2450.360378 | AD123: 2887.096534 | AE123: 3374.076672 | AF123: 3911.300793 | AG123: 4498.768896 | AH123: 5136.480982 | AI123: 5824.43705 | AJ123: 6562.637101 | AK123: 7351.081134 | AL123: 8151.119933 | AM123: 8962.753497 | AN123: 9785.981825 | AO123: 10620.80492 | AP123: 11467.22278 | AQ123: 12325.2354 | AR123: 13194.84279 | AS123: 14076.04495 | AT123: 14968.84187 | AU123: 15873.23355 | AV123: 16789.22 | AW123: 17716.80122 | AX123: 18644.38244 | AY123: 19571.96365 | AZ123: 20499.54487 | BA123: 21427.12608 | BB123: 22354.7073 | BC123: 23282.28851 | BD123: 24209.86973 | BE123: 24209.86973 | BF123: 24209.86973 | BG123: 24209.86973 | BH123: 24209.86973 | BI123: 24209.86973 | BJ123: 24209.86973 | BK123: 24209.86973 | BL123: 24209.86973 | BM123: 24209.86973 | BN123: 24209.86973 | BO123: 24209.86973 | BP123: 24209.86973 | BQ123: 24209.86973 | BR123: 24209.86973 | BS123: 24209.86973 | BT123: 24209.86973 | BU123: 24209.86973 | BV123: 24209.86973 | BW123: 24209.86973 | BX123: 24209.86973 | BY123: =BX125 -> 24209.86973 | BZ123: 24209.86973 | CA123: 24209.86973 | CB123: 24209.86973 | CC123: 24209.86973 | CD123: 24209.86973 | CE123: 24209.86973 | CF123: 24209.86973 | CG123: 24209.86973 | CH123: 24209.86973 | CI123: 24209.86973 | CJ123: 24209.86973 | CK123: 24209.86973 | CL123: 24209.86973 | CM123: 24209.86973 | CN123: 24209.86973 | CO123: 24209.86973 | CP123: 24209.86973 | CQ123: 24209.86973 | CR123: 24209.86973 | CS123: 24209.86973 | CT123: 24209.86973 | CU123: 24209.86973 | CV123: 24209.86973 | CW123: 24209.86973 | CX123: 24209.86973 | CY123: 24209.86973 | CZ123: 24209.86973 | DA123: 24209.86973 | DB123: 24209.86973 | DC123: 24209.86973 | DD123: 24209.86973 | DE123: 24209.86973 | DF123: 24209.86973 | DG123: 24209.86973 | DH123: 24209.86973 | DI123: 24209.86973 | DJ123: 24209.86973 | DK123: 24209.86973 | DL123: 24209.86973 | DM123: 24209.86973 | DN123: 24209.86973 | DO123: 24209.86973 | DP123: 24209.86973 | DQ123: 24209.86973
C124: Add: IDC | L124: =L96 -> 0 | M124: =M96 -> 15.45968693 | N124: 30.91937386 | O124: 46.37906078 | P124: 61.83874771 | Q124: 77.29843464 | R124: 92.75812157 | S124: 108.2178085 | T124: 123.6774954 | U124: 139.1371824 | V124: 154.5968693 | W124: 170.0565562 | X124: 185.5162431 | Y124: 235.7602257 | Z124: 286.0042082 | AA124: 336.2481907 | AB124: 386.4921732 | AC124: 436.7361557 | AD124: 486.9801382 | AE124: 537.2241208 | AF124: 587.4681033 | AG124: 637.7120858 | AH124: 687.9560683 | AI124: 738.2000508 | AJ124: 788.4440333 | AK124: 800.0387985 | AL124: 811.6335637 | AM124: 823.2283289 | AN124: 834.8230941 | AO124: 846.4178593 | AP124: 858.0126245 | AQ124: 869.6073897 | AR124: 881.2021549 | AS124: 892.7969201 | AT124: 904.3916853 | AU124: 915.9864505 | AV124: 927.5812157 | AW124: 927.5812157 | AX124: 927.5812157 | AY124: 927.5812157 | AZ124: 927.5812157 | BA124: 927.5812157 | BB124: 927.5812157 | BC124: 927.5812157 | BD124: 0 | BE124: 0 | BF124: 0 | BG124: 0 | BH124: 0 | BI124: 0 | BJ124: 0 | BK124: 0 | BL124: 0 | BM124: 0 | BN124: 0 | BO124: 0 | BP124: 0 | BQ124: 0 | BR124: 0 | BS124: 0 | BT124: 0 | BU124: 0 | BV124: 0 | BW124: 0 | BX124: 0 | BY124: =BY96 -> 0 | BZ124: 0 | CA124: 0 | CB124: 0 | CC124: 0 | CD124: 0 | CE124: 0 | CF124: 0 | CG124: 0 | CH124: 0 | CI124: 0 | CJ124: 0 | CK124: 0 | CL124: 0 | CM124: 0 | CN124: 0 | CO124: 0 | CP124: 0 | CQ124: 0 | CR124: 0 | CS124: 0 | CT124: 0 | CU124: 0 | CV124: 0 | CW124: 0 | CX124: 0 | CY124: 0 | CZ124: 0 | DA124: 0 | DB124: 0 | DC124: 0 | DD124: 0 | DE124: 0 | DF124: 0 | DG124: 0 | DH124: 0 | DI124: 0 | DJ124: 0 | DK124: 0 | DL124: 0 | DM124: 0 | DN124: 0 | DO124: 0 | DP124: 0 | DQ124: 0
C125: Closing Balance | L125: =L123+L124 -> 0 | M125: =M123+M124 -> 15.45968693 | N125: 46.37906078 | O125: 92.75812157 | P125: 154.5968693 | Q125: 231.8953039 | R125: 324.6534255 | S125: 432.871234 | T125: 556.5487294 | U125: 695.6859118 | V125: 850.282781 | W125: 1020.339337 | X125: 1205.85558 | Y125: 1441.615806 | Z125: 1727.620014 | AA125: 2063.868205 | AB125: 2450.360378 | AC125: 2887.096534 | AD125: 3374.076672 | AE125: 3911.300793 | AF125: 4498.768896 | AG125: 5136.480982 | AH125: 5824.43705 | AI125: 6562.637101 | AJ125: 7351.081134 | AK125: 8151.119933 | AL125: 8962.753497 | AM125: 9785.981825 | AN125: 10620.80492 | AO125: 11467.22278 | AP125: 12325.2354 | AQ125: 13194.84279 | AR125: 14076.04495 | AS125: 14968.84187 | AT125: 15873.23355 | AU125: 16789.22 | AV125: 17716.80122 | AW125: 18644.38244 | AX125: 19571.96365 | AY125: 20499.54487 | AZ125: 21427.12608 | BA125: 22354.7073 | BB125: 23282.28851 | BC125: 24209.86973 | BD125: 24209.86973 | BE125: 24209.86973 | BF125: 24209.86973 | BG125: 24209.86973 | BH125: 24209.86973 | BI125: 24209.86973 | BJ125: 24209.86973 | BK125: 24209.86973 | BL125: 24209.86973 | BM125: 24209.86973 | BN125: 24209.86973 | BO125: 24209.86973 | BP125: 24209.86973 | BQ125: 24209.86973 | BR125: 24209.86973 | BS125: 24209.86973 | BT125: 24209.86973 | BU125: 24209.86973 | BV125: 24209.86973 | BW125: 24209.86973 | BX125: 24209.86973 | BY125: =BY123+BY124 -> 24209.86973 | BZ125: 24209.86973 | CA125: 24209.86973 | CB125: 24209.86973 | CC125: 24209.86973 | CD125: 24209.86973 | CE125: 24209.86973 | CF125: 24209.86973 | CG125: 24209.86973 | CH125: 24209.86973 | CI125: 24209.86973 | CJ125: 24209.86973 | CK125: 24209.86973 | CL125: 24209.86973 | CM125: 24209.86973 | CN125: 24209.86973 | CO125: 24209.86973 | CP125: 24209.86973 | CQ125: 24209.86973 | CR125: 24209.86973 | CS125: 24209.86973 | CT125: 24209.86973 | CU125: 24209.86973 | CV125: 24209.86973 | CW125: 24209.86973 | CX125: 24209.86973 | CY125: 24209.86973 | CZ125: 24209.86973 | DA125: 24209.86973 | DB125: 24209.86973 | DC125: 24209.86973 | DD125: 24209.86973 | DE125: 24209.86973 | DF125: 24209.86973 | DG125: 24209.86973 | DH125: 24209.86973 | DI125: 24209.86973 | DJ125: 24209.86973 | DK125: 24209.86973 | DL125: 24209.86973 | DM125: 24209.86973 | DN125: 24209.86973 | DO125: 24209.86973 | DP125: 24209.86973 | DQ125: 24209.86973
C126: Dep Rate | L126: =L48/SUM(48:48) -> 0 | M126: 0 | N126: 0 | O126: 0 | P126: 0 | Q126: 0 | R126: 0 | S126: 0 | T126: 0 | U126: 0 | V126: 0 | W126: 0 | X126: 0 | Y126: 0 | Z126: 0 | AA126: 0 | AB126: 0 | AC126: 0 | AD126: 0 | AE126: 0 | AF126: 0 | AG126: 0 | AH126: 0 | AI126: 0 | AJ126: 0 | AK126: 0 | AL126: 0 | AM126: 0 | AN126: 0 | AO126: 0 | AP126: 0 | AQ126: 0 | AR126: =AR48/SUM(48:48) -> 0 | AS126: 0 | AT126: 0 | AU126: 0 | AV126: 0 | AW126: 0 | AX126: 0 | AY126: 0 | AZ126: 0 | BA126: 0 | BB126: 0 | BC126: 0 | BD126: 0.1 | BE126: 0.1 | BF126: 0.08 | BG126: 0.08 | BH126: 0.064 | BI126: 0.064 | BJ126: 0.0512 | BK126: 0.0512 | BL126: 0.04096 | BM126: 0.04096 | BN126: 0.032768 | BO126: 0.032768 | BP126: 0.032768 | BQ126: 0.032768 | BR126: 0.032768 | BS126: 0.032768 | BT126: 0.032768 | BU126: 0.032768 | BV126: 0.032768 | BW126: 0.032768 | BX126: =BX48/SUM(48:48) -> 0 | BY126: 0 | BZ126: 0 | CA126: 0 | CB126: 0 | CC126: 0 | CD126: 0 | CE126: 0 | CF126: 0 | CG126: 0 | CH126: 0 | CI126: 0 | CJ126: 0 | CK126: 0 | CL126: 0 | CM126: 0 | CN126: 0 | CO126: 0 | CP126: 0 | CQ126: 0 | CR126: 0 | CS126: 0 | CT126: 0 | CU126: 0 | CV126: 0 | CW126: 0 | CX126: 0 | CY126: 0 | CZ126: 0 | DA126: 0 | DB126: 0 | DC126: 0 | DD126: 0 | DE126: 0 | DF126: 0 | DG126: 0 | DH126: 0 | DI126: 0 | DJ126: 0 | DK126: 0 | DL126: 0 | DM126: 0 | DN126: 0 | DO126: 0 | DP126: 0 | DQ126: 0
C127: Depreciation Expense | L127: =L126*L125 -> 0 | M127: =M126*M125 -> 0 | N127: 0 | O127: 0 | P127: 0 | Q127: 0 | R127: 0 | S127: 0 | T127: 0 | U127: 0 | V127: 0 | W127: 0 | X127: 0 | Y127: 0 | Z127: 0 | AA127: 0 | AB127: 0 | AC127: 0 | AD127: 0 | AE127: 0 | AF127: 0 | AG127: 0 | AH127: 0 | AI127: 0 | AJ127: 0 | AK127: 0 | AL127: 0 | AM127: 0 | AN127: 0 | AO127: 0 | AP127: 0 | AQ127: 0 | AR127: 0 | AS127: 0 | AT127: 0 | AU127: 0 | AV127: 0 | AW127: 0 | AX127: 0 | AY127: 0 | AZ127: 0 | BA127: 0 | BB127: 0 | BC127: 0 | BD127: 2420.986973 | BE127: 2420.986973 | BF127: 1936.789578 | BG127: 1936.789578 | BH127: 1549.431663 | BI127: 1549.431663 | BJ127: 1239.54533 | BK127: 1239.54533 | BL127: 991.6362641 | BM127: 991.6362641 | BN127: 793.3090113 | BO127: 793.3090113 | BP127: 793.3090113 | BQ127: 793.3090113 | BR127: 793.3090113 | BS127: 793.3090113 | BT127: 793.3090113 | BU127: 793.3090113 | BV127: 793.3090113 | BW127: 793.3090113 | BX127: 0 | BY127: =BY126*BY125 -> 0 | BZ127: 0 | CA127: 0 | CB127: 0 | CC127: 0 | CD127: 0 | CE127: 0 | CF127: 0 | CG127: 0 | CH127: 0 | CI127: 0 | CJ127: 0 | CK127: 0 | CL127: 0 | CM127: 0 | CN127: 0 | CO127: 0 | CP127: 0 | CQ127: 0 | CR127: 0 | CS127: 0 | CT127: 0 | CU127: 0 | CV127: 0 | CW127: 0 | CX127: 0 | CY127: 0 | CZ127: 0 | DA127: 0 | DB127: 0 | DC127: 0 | DD127: 0 | DE127: 0 | DF127: 0 | DG127: 0 | DH127: 0 | DI127: 0 | DJ127: 0 | DK127: 0 | DL127: 0 | DM127: 0 | DN127: 0 | DO127: 0 | DP127: 0 | DQ127: 0
B129: Profit and Loss
C130: EBITDA | L130: =L45 -> 0 | M130: 0 | N130: 0 | O130: 0 | P130: 0 | Q130: 0 | R130: 0 | S130: 0 | T130: 0 | U130: 0 | V130: 0 | W130: 0 | X130: 0 | Y130: 0 | Z130: 0 | AA130: 0 | AB130: 0 | AC130: 0 | AD130: 0 | AE130: 0 | AF130: 0 | AG130: 0 | AH130: 0 | AI130: 0 | AJ130: 0 | AK130: 0 | AL130: 0 | AM130: 0 | AN130: 0 | AO130: 0 | AP130: 0 | AQ130: 0 | AR130: 0 | AS130: 0 | AT130: 0 | AU130: 0 | AV130: 0 | AW130: 0 | AX130: 0 | AY130: 0 | AZ130: 0 | BA130: 0 | BB130: 0 | BC130: 0 | BD130: 21438.99605 | BE130: 21988.52798 | BF130: 23447.60419 | BG130: 23883.2696 | BH130: 23521.92612 | BI130: 24122.1023 | BJ130: 23777.14431 | BK130: 24455.78464 | BL130: 24441.18324 | BM130: 25285.17826 | BN130: 25149.67247 | BO130: 25692.41169 | BP130: 25383.31075 | BQ130: 26106.03318 | BR130: 25792.43655 | BS130: 26526.14135 | BT130: 26207.983 | BU130: 26952.83631 | BV130: 26308.40634 | BW130: 26882.53205 | BX130: =BX45 -> 25159.67408 | BY130: 25891.12738 | BZ130: 25569.12852 | CA130: 26311.71351 | CB130: 25985.04536 | CC130: 26738.93062 | CD130: 26590.03541 | CE130: 27172.88141 | CF130: 25607.57666 | CG130: 26378.44823 | CH130: 26031.19683 | CI130: 26813.82851 | CJ130: 26461.56636 | CK130: 27256.13654 | CL130: 27092.50061 | CM130: 27705.48019 | CN130: 27342.97592 | CO130: 28161.96901 | CP130: 27794.2312 | CQ130: 28625.71423 | CR130: 28252.66642 | CS130: 28730.01369 | CT130: 27824.12976 | CU130: 28455.16424 | CV130: 28081.30487 | CW130: 28924.5593 | CX130: 28545.30434 | CY130: 29401.42095 | CZ130: 29016.69161 | DA130: 29885.86547 | DB130: 0 | DC130: 0 | DD130: 0 | DE130: 0 | DF130: 0 | DG130: 0 | DH130: 0 | DI130: 0 | DJ130: 0 | DK130: 0 | DL130: 0 | DM130: 0 | DN130: 0 | DO130: 0 | DP130: 0 | DQ130: 0
C131: Less: Depreciation | L131: =L48 -> 0 | M131: 0 | N131: 0 | O131: 0 | P131: 0 | Q131: 0 | R131: 0 | S131: 0 | T131: 0 | U131: 0 | V131: 0 | W131: 0 | X131: 0 | Y131: 0 | Z131: 0 | AA131: 0 | AB131: 0 | AC131: 0 | AD131: 0 | AE131: 0 | AF131: 0 | AG131: 0 | AH131: 0 | AI131: 0 | AJ131: 0 | AK131: 0 | AL131: 0 | AM131: 0 | AN131: 0 | AO131: 0 | AP131: 0 | AQ131: 0 | AR131: 0 | AS131: 0 | AT131: 0 | AU131: 0 | AV131: 0 | AW131: 0 | AX131: 0 | AY131: 0 | AZ131: 0 | BA131: 0 | BB131: 0 | BC131: 0 | BD131: 60000 | BE131: 60000 | BF131: 48000 | BG131: 48000 | BH131: 38400 | BI131: 38400 | BJ131: 30720 | BK131: 30720 | BL131: 24576 | BM131: 24576 | BN131: 19660.8 | BO131: 19660.8 | BP131: 19660.8 | BQ131: 19660.8 | BR131: 19660.8 | BS131: 19660.8 | BT131: 19660.8 | BU131: 19660.8 | BV131: 19660.8 | BW131: 19660.8 | BX131: =BX48 -> 0 | BY131: 0 | BZ131: 0 | CA131: 0 | CB131: 0 | CC131: 0 | CD131: 0 | CE131: 0 | CF131: 0 | CG131: 0 | CH131: 0 | CI131: 0 | CJ131: 0 | CK131: 0 | CL131: 0 | CM131: 0 | CN131: 0 | CO131: 0 | CP131: 0 | CQ131: 0 | CR131: 0 | CS131: 0 | CT131: 0 | CU131: 0 | CV131: 0 | CW131: 0 | CX131: 0 | CY131: 0 | CZ131: 0 | DA131: 0 | DB131: 0 | DC131: 0 | DD131: 0 | DE131: 0 | DF131: 0 | DG131: 0 | DH131: 0 | DI131: 0 | DJ131: 0 | DK131: 0 | DL131: 0 | DM131: 0 | DN131: 0 | DO131: 0 | DP131: 0 | DQ131: 0
C132: Less: Depreciation on IDC | L132: =L127 -> 0 | M132: =M127 -> 0 | N132: 0 | O132: 0 | P132: 0 | Q132: 0 | R132: 0 | S132: 0 | T132: 0 | U132: 0 | V132: 0 | W132: 0 | X132: 0 | Y132: 0 | Z132: 0 | AA132: 0 | AB132: 0 | AC132: 0 | AD132: 0 | AE132: 0 | AF132: 0 | AG132: 0 | AH132: 0 | AI132: 0 | AJ132: 0 | AK132: 0 | AL132: 0 | AM132: 0 | AN132: 0 | AO132: 0 | AP132: 0 | AQ132: 0 | AR132: 0 | AS132: 0 | AT132: 0 | AU132: 0 | AV132: 0 | AW132: 0 | AX132: 0 | AY132: 0 | AZ132: 0 | BA132: 0 | BB132: 0 | BC132: 0 | BD132: 2420.986973 | BE132: 2420.986973 | BF132: 1936.789578 | BG132: 1936.789578 | BH132: 1549.431663 | BI132: 1549.431663 | BJ132: 1239.54533 | BK132: 1239.54533 | BL132: 991.6362641 | BM132: 991.6362641 | BN132: 793.3090113 | BO132: 793.3090113 | BP132: 793.3090113 | BQ132: 793.3090113 | BR132: 793.3090113 | BS132: 793.3090113 | BT132: 793.3090113 | BU132: 793.3090113 | BV132: 793.3090113 | BW132: 793.3090113 | BX132: 0 | BY132: =BY127 -> 0 | BZ132: 0 | CA132: 0 | CB132: 0 | CC132: 0 | CD132: 0 | CE132: 0 | CF132: 0 | CG132: 0 | CH132: 0 | CI132: 0 | CJ132: 0 | CK132: 0 | CL132: 0 | CM132: 0 | CN132: 0 | CO132: 0 | CP132: 0 | CQ132: 0 | CR132: 0 | CS132: 0 | CT132: 0 | CU132: 0 | CV132: 0 | CW132: 0 | CX132: 0 | CY132: 0 | CZ132: 0 | DA132: 0 | DB132: 0 | DC132: 0 | DD132: 0 | DE132: 0 | DF132: 0 | DG132: 0 | DH132: 0 | DI132: 0 | DJ132: 0 | DK132: 0 | DL132: 0 | DM132: 0 | DN132: 0 | DO132: 0 | DP132: 0 | DQ132: 0
D133: EBIT | L133: =L130-L131-L132 -> 0 | M133: =M130-M131-M132 -> 0 | N133: 0 | O133: 0 | P133: 0 | Q133: 0 | R133: 0 | S133: 0 | T133: 0 | U133: 0 | V133: 0 | W133: 0 | X133: 0 | Y133: 0 | Z133: 0 | AA133: 0 | AB133: 0 | AC133: 0 | AD133: 0 | AE133: 0 | AF133: 0 | AG133: 0 | AH133: 0 | AI133: 0 | AJ133: 0 | AK133: 0 | AL133: 0 | AM133: 0 | AN133: 0 | AO133: 0 | AP133: 0 | AQ133: 0 | AR133: 0 | AS133: 0 | AT133: 0 | AU133: 0 | AV133: 0 | AW133: 0 | AX133: 0 | AY133: 0 | AZ133: 0 | BA133: 0 | BB133: 0 | BC133: 0 | BD133: -40981.99092 | BE133: -40432.45899 | BF133: -26489.18539 | BG133: -26053.51997 | BH133: -16427.50555 | BI133: -15827.32936 | BJ133: -8182.401021 | BK133: -7503.760689 | BL133: -1126.453019 | BM133: -282.4580038 | BN133: 4695.56346 | BO133: 5238.30268 | BP133: 4929.201737 | BQ133: 5651.92417 | BR133: 5338.327538 | BS133: 6072.032335 | BT133: 5753.873987 | BU133: 6498.727299 | BV133: 5854.297324 | BW133: 6428.423036 | BX133: 25159.67408 | BY133: =BY130-BY131-BY132 -> 25891.12738 | BZ133: 25569.12852 | CA133: 26311.71351 | CB133: 25985.04536 | CC133: 26738.93062 | CD133: 26590.03541 | CE133: 27172.88141 | CF133: 25607.57666 | CG133: 26378.44823 | CH133: 26031.19683 | CI133: 26813.82851 | CJ133: 26461.56636 | CK133: 27256.13654 | CL133: 27092.50061 | CM133: 27705.48019 | CN133: 27342.97592 | CO133: 28161.96901 | CP133: 27794.2312 | CQ133: 28625.71423 | CR133: 28252.66642 | CS133: 28730.01369 | CT133: 27824.12976 | CU133: 28455.16424 | CV133: 28081.30487 | CW133: 28924.5593 | CX133: 28545.30434 | CY133: 29401.42095 | CZ133: 29016.69161 | DA133: 29885.86547 | DB133: 0 | DC133: 0 | DD133: 0 | DE133: 0 | DF133: 0 | DG133: 0 | DH133: 0 | DI133: 0 | DJ133: 0 | DK133: 0 | DL133: 0 | DM133: 0 | DN133: 0 | DO133: 0 | DP133: 0 | DQ133: 0
C134: Less: Interest Expense | L134: =L120 -> 0 | M134: =M120 -> 0 | N134: 0 | O134: 0 | P134: 0 | Q134: 0 | R134: 0 | S134: 0 | T134: 0 | U134: 0 | V134: 0 | W134: 0 | X134: 0 | Y134: 0 | Z134: 0 | AA134: 0 | AB134: 0 | AC134: 0 | AD134: 0 | AE134: 0 | AF134: 0 | AG134: 0 | AH134: 0 | AI134: 0 | AJ134: 0 | AK134: 0 | AL134: 0 | AM134: 0 | AN134: 0 | AO134: 0 | AP134: 0 | AQ134: 0 | AR134: 0 | AS134: 0 | AT134: 0 | AU134: 0 | AV134: 0 | AW134: 0 | AX134: 0 | AY134: 0 | AZ134: 0 | BA134: 0 | BB134: 0 | BC134: 0 | BD134: 5565.487294 | BE134: 5401.796491 | BF134: 5238.105689 | BG134: 5074.414886 | BH134: 4910.724083 | BI134: 4747.03328 | BJ134: 4583.342478 | BK134: 4419.651675 | BL134: 4255.960872 | BM134: 4092.270069 | BN134: 3928.579266 | BO134: 3764.888464 | BP134: 3601.197661 | BQ134: 3437.506858 | BR134: 3273.816055 | BS134: 3110.125253 | BT134: 2946.43445 | BU134: 2782.743647 | BV134: 2619.052844 | BW134: 2455.362042 | BX134: 2291.671239 | BY134: =BY120 -> 2127.980436 | BZ134: 1964.289633 | CA134: 1800.59883 | CB134: 1636.908028 | CC134: 1473.217225 | CD134: 1309.526422 | CE134: 1145.835619 | CF134: 982.1448166 | CG134: 818.4540138 | CH134: 654.7632111 | CI134: 491.0724083 | CJ134: 327.3816055 | CK134: 163.6908028 | CL134: -2.137312549e-12 | CM134: -2.137312549e-12 | CN134: -2.137312549e-12 | CO134: -2.137312549e-12 | CP134: -2.137312549e-12 | CQ134: -2.137312549e-12 | CR134: -2.137312549e-12 | CS134: -2.137312549e-12 | CT134: -2.137312549e-12 | CU134: -2.137312549e-12 | CV134: -2.137312549e-12 | CW134: -2.137312549e-12 | CX134: -2.137312549e-12 | CY134: -2.137312549e-12 | CZ134: -2.137312549e-12 | DA134: -2.137312549e-12 | DB134: -2.137312549e-12 | DC134: -2.137312549e-12 | DD134: -2.137312549e-12 | DE134: -2.137312549e-12 | DF134: -2.137312549e-12 | DG134: -2.137312549e-12 | DH134: -2.137312549e-12 | DI134: -2.137312549e-12 | DJ134: -2.137312549e-12 | DK134: -2.137312549e-12 | DL134: -2.137312549e-12 | DM134: -2.137312549e-12 | DN134: -2.137312549e-12 | DO134: -2.137312549e-12 | DP134: -2.137312549e-12 | DQ134: -2.137312549e-12
C135: Add: Interest Income
D136: EBT | L136: =L133-L134+L135 -> 0 | M136: =M133-M134+M135 -> 0 | N136: 0 | O136: 0 | P136: 0 | Q136: 0 | R136: 0 | S136: 0 | T136: 0 | U136: 0 | V136: 0 | W136: 0 | X136: 0 | Y136: 0 | Z136: 0 | AA136: 0 | AB136: 0 | AC136: 0 | AD136: 0 | AE136: 0 | AF136: 0 | AG136: 0 | AH136: 0 | AI136: 0 | AJ136: 0 | AK136: 0 | AL136: 0 | AM136: 0 | AN136: 0 | AO136: 0 | AP136: 0 | AQ136: 0 | AR136: 0 | AS136: 0 | AT136: 0 | AU136: 0 | AV136: 0 | AW136: 0 | AX136: 0 | AY136: 0 | AZ136: 0 | BA136: 0 | BB136: 0 | BC136: 0 | BD136: -46547.47822 | BE136: -45834.25548 | BF136: -31727.29108 | BG136: -31127.93486 | BH136: -21338.22963 | BI136: -20574.36264 | BJ136: -12765.7435 | BK136: -11923.41236 | BL136: -5382.413891 | BM136: -4374.728073 | BN136: 766.9841938 | BO136: 1473.414216 | BP136: 1328.004076 | BQ136: 2214.417311 | BR136: 2064.511482 | BS136: 2961.907082 | BT136: 2807.439537 | BU136: 3715.983652 | BV136: 3235.24448 | BW136: 3973.060994 | BX136: 22868.00284 | BY136: =BY133-BY134+BY135 -> 23763.14694 | BZ136: 23604.83888 | CA136: 24511.11468 | CB136: 24348.13734 | CC136: 25265.7134 | CD136: 25280.50899 | CE136: 26027.04579 | CF136: 24625.43184 | CG136: 25559.99422 | CH136: 25376.43361 | CI136: 26322.75611 | CJ136: 26134.18476 | CK136: 27092.44574 | CL136: 27092.50061 | CM136: 27705.48019 | CN136: 27342.97592 | CO136: 28161.96901 | CP136: 27794.2312 | CQ136: 28625.71423 | CR136: 28252.66642 | CS136: 28730.01369 | CT136: 27824.12976 | CU136: 28455.16424 | CV136: 28081.30487 | CW136: 28924.5593 | CX136: 28545.30434 | CY136: 29401.42095 | CZ136: 29016.69161 | DA136: 29885.86547 | DB136: 2.137312549e-12 | DC136: 2.137312549e-12 | DD136: 2.137312549e-12 | DE136: 2.137312549e-12 | DF136: 2.137312549e-12 | DG136: 2.137312549e-12 | DH136: 2.137312549e-12 | DI136: 2.137312549e-12 | DJ136: 2.137312549e-12 | DK136: 2.137312549e-12 | DL136: 2.137312549e-12 | DM136: 2.137312549e-12 | DN136: 2.137312549e-12 | DO136: 2.137312549e-12 | DP136: 2.137312549e-12 | DQ136: 2.137312549e-12
C137: NOL Balance
C138: Opening Balance | L138: =K141 -> 0 | M138: =L141 -> 0 | N138: 0 | O138: 0 | P138: 0 | Q138: 0 | R138: 0 | S138: 0 | T138: 0 | U138: 0 | V138: 0 | W138: 0 | X138: 0 | Y138: 0 | Z138: 0 | AA138: 0 | AB138: 0 | AC138: 0 | AD138: 0 | AE138: 0 | AF138: 0 | AG138: 0 | AH138: 0 | AI138: 0 | AJ138: 0 | AK138: 0 | AL138: 0 | AM138: 0 | AN138: 0 | AO138: 0 | AP138: 0 | AQ138: 0 | AR138: 0 | AS138: 0 | AT138: 0 | AU138: 0 | AV138: 0 | AW138: 0 | AX138: 0 | AY138: 0 | AZ138: 0 | BA138: 0 | BB138: 0 | BC138: 0 | BD138: 0 | BE138: 46547.47822 | BF138: 92381.7337 | BG138: 124109.0248 | BH138: 155236.9596 | BI138: 176575.1893 | BJ138: 197149.5519 | BK138: 209915.2954 | BL138: 221838.7078 | BM138: 227221.1217 | BN138: 231595.8497 | BO138: 230828.8655 | BP138: 229355.4513 | BQ138: 228027.4473 | BR138: 225813.0299 | BS138: 223748.5185 | BT138: 220786.6114 | BU138: 217979.1718 | BV138: 214263.1882 | BW138: 211027.9437 | BX138: 207054.8827 | BY138: =BX141 -> 184186.8799 | BZ138: 160423.7329 | CA138: 136818.894 | CB138: 112307.7794 | CC138: 87959.64203 | CD138: 62693.92863 | CE138: 37413.41965 | CF138: 11386.37385 | CG138: 0 | CH138: 0 | CI138: 0 | CJ138: 0 | CK138: 0 | CL138: 0 | CM138: 0 | CN138: 0 | CO138: 0 | CP138: 0 | CQ138: 0 | CR138: 0 | CS138: 0 | CT138: 0 | CU138: 0 | CV138: 0 | CW138: 0 | CX138: 0 | CY138: 0 | CZ138: 0 | DA138: 0 | DB138: 0 | DC138: 0 | DD138: 0 | DE138: 0 | DF138: 0 | DG138: 0 | DH138: 0 | DI138: 0 | DJ138: 0 | DK138: 0 | DL138: 0 | DM138: 0 | DN138: 0 | DO138: 0 | DP138: 0 | DQ138: 0
C139: Add: NOL Created from Negative Taxable Income | L139: =MAX(-L136,0) -> 0 | M139: =MAX(-M136,0) -> 0 | N139: 0 | O139: 0 | P139: 0 | Q139: 0 | R139: 0 | S139: 0 | T139: 0 | U139: 0 | V139: 0 | W139: 0 | X139: 0 | Y139: 0 | Z139: 0 | AA139: 0 | AB139: 0 | AC139: 0 | AD139: 0 | AE139: 0 | AF139: 0 | AG139: 0 | AH139: 0 | AI139: 0 | AJ139: 0 | AK139: 0 | AL139: 0 | AM139: 0 | AN139: 0 | AO139: 0 | AP139: 0 | AQ139: 0 | AR139: 0 | AS139: 0 | AT139: 0 | AU139: 0 | AV139: 0 | AW139: 0 | AX139: 0 | AY139: 0 | AZ139: 0 | BA139: 0 | BB139: 0 | BC139: 0 | BD139: 46547.47822 | BE139: 45834.25548 | BF139: 31727.29108 | BG139: 31127.93486 | BH139: 21338.22963 | BI139: 20574.36264 | BJ139: 12765.7435 | BK139: 11923.41236 | BL139: 5382.413891 | BM139: 4374.728073 | BN139: 0 | BO139: 0 | BP139: 0 | BQ139: 0 | BR139: 0 | BS139: 0 | BT139: 0 | BU139: 0 | BV139: 0 | BW139: 0 | BX139: 0 | BY139: =MAX(-BY136,0) -> 0 | BZ139: 0 | CA139: 0 | CB139: 0 | CC139: 0 | CD139: 0 | CE139: 0 | CF139: 0 | CG139: 0 | CH139: 0 | CI139: 0 | CJ139: 0 | CK139: 0 | CL139: 0 | CM139: 0 | CN139: 0 | CO139: 0 | CP139: 0 | CQ139: 0 | CR139: 0 | CS139: 0 | CT139: 0 | CU139: 0 | CV139: 0 | CW139: 0 | CX139: 0 | CY139: 0 | CZ139: 0 | DA139: 0 | DB139: 0 | DC139: 0 | DD139: 0 | DE139: 0 | DF139: 0 | DG139: 0 | DH139: 0 | DI139: 0 | DJ139: 0 | DK139: 0 | DL139: 0 | DM139: 0 | DN139: 0 | DO139: 0 | DP139: 0 | DQ139: 0
C140: Less: NOL Used when Postive Taxable Income | L140: =MIN(L138,MAX(L136,0)) -> 0 | M140: =MIN(M138,MAX(M136,0)) -> 0 | N140: 0 | O140: 0 | P140: 0 | Q140: 0 | R140: 0 | S140: 0 | T140: 0 | U140: 0 | V140: 0 | W140: 0 | X140: 0 | Y140: 0 | Z140: 0 | AA140: 0 | AB140: 0 | AC140: 0 | AD140: 0 | AE140: 0 | AF140: 0 | AG140: 0 | AH140: 0 | AI140: 0 | AJ140: 0 | AK140: 0 | AL140: 0 | AM140: 0 | AN140: 0 | AO140: 0 | AP140: 0 | AQ140: 0 | AR140: 0 | AS140: 0 | AT140: 0 | AU140: 0 | AV140: 0 | AW140: 0 | AX140: 0 | AY140: 0 | AZ140: 0 | BA140: 0 | BB140: 0 | BC140: 0 | BD140: 0 | BE140: 0 | BF140: 0 | BG140: 0 | BH140: 0 | BI140: 0 | BJ140: 0 | BK140: 0 | BL140: 0 | BM140: 0 | BN140: 766.9841938 | BO140: 1473.414216 | BP140: 1328.004076 | BQ140: 2214.417311 | BR140: 2064.511482 | BS140: 2961.907082 | BT140: 2807.439537 | BU140: 3715.983652 | BV140: 3235.24448 | BW140: 3973.060994 | BX140: 22868.00284 | BY140: =MIN(BY138,MAX(BY136,0)) -> 23763.14694 | BZ140: 23604.83888 | CA140: 24511.11468 | CB140: 24348.13734 | CC140: 25265.7134 | CD140: 25280.50899 | CE140: 26027.04579 | CF140: 11386.37385 | CG140: 0 | CH140: 0 | CI140: 0 | CJ140: 0 | CK140: 0 | CL140: 0 | CM140: 0 | CN140: 0 | CO140: 0 | CP140: 0 | CQ140: 0 | CR140: 0 | CS140: 0 | CT140: 0 | CU140: 0 | CV140: 0 | CW140: 0 | CX140: 0 | CY140: 0 | CZ140: 0 | DA140: 0 | DB140: 0 | DC140: 0 | DD140: 0 | DE140: 0 | DF140: 0 | DG140: 0 | DH140: 0 | DI140: 0 | DJ140: 0 | DK140: 0 | DL140: 0 | DM140: 0 | DN140: 0 | DO140: 0 | DP140: 0 | DQ140: 0
C141: Closing Balance | L141: =L138+L139-L140 -> 0 | M141: =M138+M139-M140 -> 0 | N141: 0 | O141: 0 | P141: 0 | Q141: 0 | R141: 0 | S141: 0 | T141: 0 | U141: 0 | V141: 0 | W141: 0 | X141: 0 | Y141: 0 | Z141: 0 | AA141: 0 | AB141: 0 | AC141: 0 | AD141: 0 | AE141: 0 | AF141: 0 | AG141: 0 | AH141: 0 | AI141: 0 | AJ141: 0 | AK141: 0 | AL141: 0 | AM141: 0 | AN141: 0 | AO141: 0 | AP141: 0 | AQ141: 0 | AR141: 0 | AS141: 0 | AT141: 0 | AU141: 0 | AV141: 0 | AW141: 0 | AX141: 0 | AY141: 0 | AZ141: 0 | BA141: 0 | BB141: 0 | BC141: 0 | BD141: 46547.47822 | BE141: 92381.7337 | BF141: 124109.0248 | BG141: 155236.9596 | BH141: 176575.1893 | BI141: 197149.5519 | BJ141: 209915.2954 | BK141: 221838.7078 | BL141: 227221.1217 | BM141: 231595.8497 | BN141: 230828.8655 | BO141: 229355.4513 | BP141: 228027.4473 | BQ141: 225813.0299 | BR141: 223748.5185 | BS141: 220786.6114 | BT141: 217979.1718 | BU141: 214263.1882 | BV141: 211027.9437 | BW141: 207054.8827 | BX141: 184186.8799 | BY141: =BY138+BY139-BY140 -> 160423.7329 | BZ141: 136818.894 | CA141: 112307.7794 | CB141: 87959.64203 | CC141: 62693.92863 | CD141: 37413.41965 | CE141: 11386.37385 | CF141: 0 | CG141: 0 | CH141: 0 | CI141: 0 | CJ141: 0 | CK141: 0 | CL141: 0 | CM141: 0 | CN141: 0 | CO141: 0 | CP141: 0 | CQ141: 0 | CR141: 0 | CS141: 0 | CT141: 0 | CU141: 0 | CV141: 0 | CW141: 0 | CX141: 0 | CY141: 0 | CZ141: 0 | DA141: 0 | DB141: 0 | DC141: 0 | DD141: 0 | DE141: 0 | DF141: 0 | DG141: 0 | DH141: 0 | DI141: 0 | DJ141: 0 | DK141: 0 | DL141: 0 | DM141: 0 | DN141: 0 | DO141: 0 | DP141: 0 | DQ141: 0
D142: Adjusted EBT | L142: =L136+L139-L140 -> 0 | M142: =M136+M139-M140 -> 0 | N142: 0 | O142: 0 | P142: 0 | Q142: 0 | R142: 0 | S142: 0 | T142: 0 | U142: 0 | V142: 0 | W142: 0 | X142: 0 | Y142: 0 | Z142: 0 | AA142: 0 | AB142: 0 | AC142: 0 | AD142: 0 | AE142: 0 | AF142: 0 | AG142: 0 | AH142: 0 | AI142: 0 | AJ142: 0 | AK142: 0 | AL142: 0 | AM142: 0 | AN142: 0 | AO142: 0 | AP142: 0 | AQ142: 0 | AR142: 0 | AS142: 0 | AT142: 0 | AU142: 0 | AV142: 0 | AW142: 0 | AX142: 0 | AY142: 0 | AZ142: 0 | BA142: 0 | BB142: 0 | BC142: 0 | BD142: 0 | BE142: 0 | BF142: 0 | BG142: 0 | BH142: 0 | BI142: 0 | BJ142: 0 | BK142: 0 | BL142: 0 | BM142: 0 | BN142: 0 | BO142: 0 | BP142: 0 | BQ142: 0 | BR142: 0 | BS142: 0 | BT142: 0 | BU142: 0 | BV142: 0 | BW142: 0 | BX142: 0 | BY142: =BY136+BY139-BY140 -> 0 | BZ142: 0 | CA142: 0 | CB142: 0 | CC142: 0 | CD142: 0 | CE142: 0 | CF142: 13239.05799 | CG142: 25559.99422 | CH142: 25376.43361 | CI142: 26322.75611 | CJ142: 26134.18476 | CK142: 27092.44574 | CL142: 27092.50061 | CM142: 27705.48019 | CN142: 27342.97592 | CO142: 28161.96901 | CP142: 27794.2312 | CQ142: 28625.71423 | CR142: 28252.66642 | CS142: 28730.01369 | CT142: 27824.12976 | CU142: 28455.16424 | CV142: 28081.30487 | CW142: 28924.5593 | CX142: 28545.30434 | CY142: 29401.42095 | CZ142: 29016.69161 | DA142: 29885.86547 | DB142: 2.137312549e-12 | DC142: 2.137312549e-12 | DD142: 2.137312549e-12 | DE142: 2.137312549e-12 | DF142: 2.137312549e-12 | DG142: 2.137312549e-12 | DH142: 2.137312549e-12 | DI142: 2.137312549e-12 | DJ142: 2.137312549e-12 | DK142: 2.137312549e-12 | DL142: 2.137312549e-12 | DM142: 2.137312549e-12 | DN142: 2.137312549e-12 | DO142: 2.137312549e-12 | DP142: 2.137312549e-12 | DQ142: 2.137312549e-12
C143: Tax Paid | E143: Tax Rate | F143: ='Operations Monthly'!F71 -> 0.25 | L143: =L142*$F$143 -> 0 | M143: =M142*$F$143 -> 0 | N143: 0 | O143: 0 | P143: 0 | Q143: 0 | R143: 0 | S143: 0 | T143: 0 | U143: 0 | V143: 0 | W143: 0 | X143: 0 | Y143: 0 | Z143: 0 | AA143: 0 | AB143: 0 | AC143: 0 | AD143: 0 | AE143: 0 | AF143: 0 | AG143: 0 | AH143: 0 | AI143: 0 | AJ143: 0 | AK143: 0 | AL143: 0 | AM143: 0 | AN143: 0 | AO143: 0 | AP143: 0 | AQ143: 0 | AR143: 0 | AS143: 0 | AT143: 0 | AU143: 0 | AV143: 0 | AW143: 0 | AX143: 0 | AY143: 0 | AZ143: 0 | BA143: 0 | BB143: 0 | BC143: 0 | BD143: 0 | BE143: 0 | BF143: 0 | BG143: 0 | BH143: 0 | BI143: 0 | BJ143: 0 | BK143: 0 | BL143: 0 | BM143: 0 | BN143: 0 | BO143: 0 | BP143: 0 | BQ143: 0 | BR143: 0 | BS143: 0 | BT143: 0 | BU143: 0 | BV143: 0 | BW143: 0 | BX143: 0 | BY143: =BY142*$F$143 -> 0 | BZ143: 0 | CA143: 0 | CB143: 0 | CC143: 0 | CD143: 0 | CE143: 0 | CF143: 3309.764497 | CG143: 6389.998554 | CH143: 6344.108404 | CI143: 6580.689026 | CJ143: 6533.546189 | CK143: 6773.111434 | CL143: 6773.125152 | CM143: 6926.370047 | CN143: 6835.743981 | CO143: 7040.492253 | CP143: 6948.557801 | CQ143: 7156.428558 | CR143: 7063.166606 | CS143: 7182.503423 | CT143: 6956.03244 | CU143: 7113.79106 | CV143: 7020.326217 | CW143: 7231.139824 | CX143: 7136.326086 | CY143: 7350.355238 | CZ143: 7254.172902 | DA143: 7471.466367 | DB143: 5.343281373e-13 | DC143: 5.343281373e-13 | DD143: 5.343281373e-13 | DE143: 5.343281373e-13 | DF143: 5.343281373e-13 | DG143: 5.343281373e-13 | DH143: 5.343281373e-13 | DI143: 5.343281373e-13 | DJ143: 5.343281373e-13 | DK143: 5.343281373e-13 | DL143: 5.343281373e-13 | DM143: 5.343281373e-13 | DN143: 5.343281373e-13 | DO143: 5.343281373e-13 | DP143: 5.343281373e-13 | DQ143: 5.343281373e-13
D145: Net Earnings | L145: =L136-L143 -> 0 | M145: =M136-M143 -> 0 | N145: 0 | O145: 0 | P145: 0 | Q145: 0 | R145: 0 | S145: 0 | T145: 0 | U145: 0 | V145: 0 | W145: 0 | X145: 0 | Y145: 0 | Z145: 0 | AA145: 0 | AB145: 0 | AC145: 0 | AD145: 0 | AE145: 0 | AF145: 0 | AG145: 0 | AH145: 0 | AI145: 0 | AJ145: 0 | AK145: 0 | AL145: 0 | AM145: 0 | AN145: 0 | AO145: 0 | AP145: 0 | AQ145: 0 | AR145: 0 | AS145: 0 | AT145: 0 | AU145: 0 | AV145: 0 | AW145: 0 | AX145: 0 | AY145: 0 | AZ145: 0 | BA145: 0 | BB145: 0 | BC145: 0 | BD145: -46547.47822 | BE145: -45834.25548 | BF145: -31727.29108 | BG145: -31127.93486 | BH145: -21338.22963 | BI145: -20574.36264 | BJ145: -12765.7435 | BK145: -11923.41236 | BL145: -5382.413891 | BM145: -4374.728073 | BN145: 766.9841938 | BO145: 1473.414216 | BP145: 1328.004076 | BQ145: 2214.417311 | BR145: 2064.511482 | BS145: 2961.907082 | BT145: 2807.439537 | BU145: 3715.983652 | BV145: 3235.24448 | BW145: 3973.060994 | BX145: 22868.00284 | BY145: =BY136-BY143 -> 23763.14694 | BZ145: 23604.83888 | CA145: 24511.11468 | CB145: 24348.13734 | CC145: 25265.7134 | CD145: 25280.50899 | CE145: 26027.04579 | CF145: 21315.66734 | CG145: 19169.99566 | CH145: 19032.32521 | CI145: 19742.06708 | CJ145: 19600.63857 | CK145: 20319.3343 | CL145: 20319.37546 | CM145: 20779.11014 | CN145: 20507.23194 | CO145: 21121.47676 | CP145: 20845.6734 | CQ145: 21469.28567 | CR145: 21189.49982 | CS145: 21547.51027 | CT145: 20868.09732 | CU145: 21341.37318 | CV145: 21060.97865 | CW145: 21693.41947 | CX145: 21408.97826 | CY145: 22051.06571 | CZ145: 21762.51871 | DA145: 22414.3991 | DB145: 1.602984412e-12 | DC145: 1.602984412e-12 | DD145: 1.602984412e-12 | DE145: 1.602984412e-12 | DF145: 1.602984412e-12 | DG145: 1.602984412e-12 | DH145: 1.602984412e-12 | DI145: 1.602984412e-12 | DJ145: 1.602984412e-12 | DK145: 1.602984412e-12 | DL145: 1.602984412e-12 | DM145: 1.602984412e-12 | DN145: 1.602984412e-12 | DO145: 1.602984412e-12 | DP145: 1.602984412e-12 | DQ145: 1.602984412e-12
B147: Cash Flow Statement
C148: EBITDA | L148: =L130 -> 0 | M148: =M130 -> 0 | N148: 0 | O148: 0 | P148: 0 | Q148: 0 | R148: 0 | S148: 0 | T148: 0 | U148: 0 | V148: 0 | W148: 0 | X148: 0 | Y148: 0 | Z148: 0 | AA148: 0 | AB148: 0 | AC148: 0 | AD148: 0 | AE148: 0 | AF148: 0 | AG148: 0 | AH148: 0 | AI148: 0 | AJ148: 0 | AK148: 0 | AL148: 0 | AM148: 0 | AN148: 0 | AO148: 0 | AP148: 0 | AQ148: 0 | AR148: 0 | AS148: 0 | AT148: 0 | AU148: 0 | AV148: 0 | AW148: 0 | AX148: 0 | AY148: 0 | AZ148: 0 | BA148: 0 | BB148: 0 | BC148: 0 | BD148: 21438.99605 | BE148: 21988.52798 | BF148: 23447.60419 | BG148: 23883.2696 | BH148: 23521.92612 | BI148: 24122.1023 | BJ148: 23777.14431 | BK148: 24455.78464 | BL148: 24441.18324 | BM148: 25285.17826 | BN148: 25149.67247 | BO148: 25692.41169 | BP148: 25383.31075 | BQ148: 26106.03318 | BR148: 25792.43655 | BS148: 26526.14135 | BT148: 26207.983 | BU148: 26952.83631 | BV148: 26308.40634 | BW148: 26882.53205 | BX148: 25159.67408 | BY148: =BY130 -> 25891.12738 | BZ148: 25569.12852 | CA148: 26311.71351 | CB148: 25985.04536 | CC148: 26738.93062 | CD148: 26590.03541 | CE148: 27172.88141 | CF148: 25607.57666 | CG148: 26378.44823 | CH148: 26031.19683 | CI148: 26813.82851 | CJ148: 26461.56636 | CK148: 27256.13654 | CL148: 27092.50061 | CM148: 27705.48019 | CN148: 27342.97592 | CO148: 28161.96901 | CP148: 27794.2312 | CQ148: 28625.71423 | CR148: 28252.66642 | CS148: 28730.01369 | CT148: 27824.12976 | CU148: 28455.16424 | CV148: 28081.30487 | CW148: 28924.5593 | CX148: 28545.30434 | CY148: 29401.42095 | CZ148: 29016.69161 | DA148: 29885.86547 | DB148: 0 | DC148: 0 | DD148: 0 | DE148: 0 | DF148: 0 | DG148: 0 | DH148: 0 | DI148: 0 | DJ148: 0 | DK148: 0 | DL148: 0 | DM148: 0 | DN148: 0 | DO148: 0 | DP148: 0 | DQ148: 0
C149: Less: Taxes Paid | L149: =L143 -> 0 | M149: =M143 -> 0 | N149: 0 | O149: 0 | P149: 0 | Q149: 0 | R149: 0 | S149: 0 | T149: 0 | U149: 0 | V149: 0 | W149: 0 | X149: 0 | Y149: 0 | Z149: 0 | AA149: 0 | AB149: 0 | AC149: 0 | AD149: 0 | AE149: 0 | AF149: 0 | AG149: 0 | AH149: 0 | AI149: 0 | AJ149: 0 | AK149: 0 | AL149: 0 | AM149: 0 | AN149: 0 | AO149: 0 | AP149: 0 | AQ149: 0 | AR149: 0 | AS149: 0 | AT149: 0 | AU149: 0 | AV149: 0 | AW149: 0 | AX149: 0 | AY149: 0 | AZ149: 0 | BA149: 0 | BB149: 0 | BC149: 0 | BD149: 0 | BE149: 0 | BF149: 0 | BG149: 0 | BH149: 0 | BI149: 0 | BJ149: 0 | BK149: 0 | BL149: 0 | BM149: 0 | BN149: 0 | BO149: 0 | BP149: 0 | BQ149: 0 | BR149: 0 | BS149: 0 | BT149: 0 | BU149: 0 | BV149: 0 | BW149: 0 | BX149: 0 | BY149: =BY143 -> 0 | BZ149: 0 | CA149: 0 | CB149: 0 | CC149: 0 | CD149: 0 | CE149: 0 | CF149: 3309.764497 | CG149: 6389.998554 | CH149: 6344.108404 | CI149: 6580.689026 | CJ149: 6533.546189 | CK149: 6773.111434 | CL149: 6773.125152 | CM149: 6926.370047 | CN149: 6835.743981 | CO149: 7040.492253 | CP149: 6948.557801 | CQ149: 7156.428558 | CR149: 7063.166606 | CS149: 7182.503423 | CT149: 6956.03244 | CU149: 7113.79106 | CV149: 7020.326217 | CW149: 7231.139824 | CX149: 7136.326086 | CY149: 7350.355238 | CZ149: 7254.172902 | DA149: 7471.466367 | DB149: 5.343281373e-13 | DC149: 5.343281373e-13 | DD149: 5.343281373e-13 | DE149: 5.343281373e-13 | DF149: 5.343281373e-13 | DG149: 5.343281373e-13 | DH149: 5.343281373e-13 | DI149: 5.343281373e-13 | DJ149: 5.343281373e-13 | DK149: 5.343281373e-13 | DL149: 5.343281373e-13 | DM149: 5.343281373e-13 | DN149: 5.343281373e-13 | DO149: 5.343281373e-13 | DP149: 5.343281373e-13 | DQ149: 5.343281373e-13
C150: Less: Working Capital | L150: =L47 -> 0 | M150: 0 | N150: 0 | O150: 0 | P150: 0 | Q150: 0 | R150: 0 | S150: 0 | T150: 0 | U150: 0 | V150: 0 | W150: 0 | X150: 0 | Y150: 0 | Z150: 0 | AA150: 0 | AB150: 0 | AC150: 0 | AD150: 0 | AE150: 0 | AF150: 0 | AG150: 0 | AH150: 0 | AI150: 0 | AJ150: 0 | AK150: 0 | AL150: 0 | AM150: 0 | AN150: 0 | AO150: 0 | AP150: 0 | AQ150: 0 | AR150: 0 | AS150: 0 | AT150: 0 | AU150: 0 | AV150: 0 | AW150: 0 | AX150: 0 | AY150: 0 | AZ150: 0 | BA150: 0 | BB150: 0 | BC150: 0 | BD150: 6077.007931 | BE150: 49.60741452 | BF150: 419.5868171 | BG150: 52.14052949 | BH150: 13.32149214 | BI150: 52.66193479 | BJ150: 25.46640235 | BK150: 71.3931688 | BL150: 137.9151588 | BM150: 73.17120297 | BN150: 33.41250019 | BO150: 74.18381077 | BP150: 34.02961984 | BQ150: 75.21075809 | BR150: 34.65715561 | BS150: 76.25225151 | BT150: 35.29527533 | BU150: 77.30850066 | BV150: -19.85890655 | BW150: 79.91047368 | BX150: =BX47 -> -312.8550779 | BY150: 78.41660331 | BZ150: 32.55020837 | CA150: 79.49493503 | CB150: 33.17207417 | CC150: 80.58846256 | CD150: 33.80460409 | CE150: 81.69740404 | CF150: -102.4010315 | CG150: 86.57593936 | CH150: 29.97990369 | CI150: 87.75391549 | CJ150: 30.59425238 | CK150: 88.94835464 | CL150: 31.2194628 | CM150: 90.15949168 | CN150: 31.85571435 | CO150: 91.38756489 | CP150: 32.50318926 | CQ150: 92.63281601 | CR150: 33.16207269 | CS150: -176.8709261 | CT150: 31.80936332 | CU150: 93.13752963 | CV150: 32.46128321 | CW150: 94.40522555 | CX150: 33.12472968 | CY150: 95.69064325 | CZ150: 33.79989313 | DA150: 96.9940356 | DB150: -8538.466128 | DC150: 0 | DD150: 0 | DE150: 0 | DF150: 0 | DG150: 0 | DH150: 0 | DI150: 0 | DJ150: 0 | DK150: 0 | DL150: 0 | DM150: 0 | DN150: 0 | DO150: 0 | DP150: 0 | DQ150: 0
C151: Add: Use of Working Capital Reserve | L151: =L69 -> 0 | M151: =M69 -> 0 | N151: 0 | O151: 0 | P151: 0 | Q151: 0 | R151: 0 | S151: 0 | T151: 0 | U151: 0 | V151: 0 | W151: 0 | X151: 0 | Y151: 0 | Z151: 0 | AA151: 0 | AB151: 0 | AC151: 0 | AD151: 0 | AE151: 0 | AF151: 0 | AG151: 0 | AH151: 0 | AI151: 0 | AJ151: 0 | AK151: 0 | AL151: 0 | AM151: 0 | AN151: 0 | AO151: 0 | AP151: 0 | AQ151: 0 | AR151: 0 | AS151: 0 | AT151: 0 | AU151: 0 | AV151: 0 | AW151: 0 | AX151: 0 | AY151: 0 | AZ151: 0 | BA151: 0 | BB151: 0 | BC151: 0 | BD151: 6077.007931 | BE151: 0 | BF151: 0 | BG151: 0 | BH151: 0 | BI151: 0 | BJ151: 0 | BK151: 0 | BL151: 0 | BM151: 0 | BN151: 0 | BO151: 0 | BP151: 0 | BQ151: 0 | BR151: 0 | BS151: 0 | BT151: 0 | BU151: 0 | BV151: 0 | BW151: 0 | BX151: 0 | BY151: =BY69 -> 0 | BZ151: 0 | CA151: 0 | CB151: 0 | CC151: 0 | CD151: 0 | CE151: 0 | CF151: 0 | CG151: 0 | CH151: 0 | CI151: 0 | CJ151: 0 | CK151: 0 | CL151: 0 | CM151: 0 | CN151: 0 | CO151: 0 | CP151: 0 | CQ151: 0 | CR151: 0 | CS151: 0 | CT151: 0 | CU151: 0 | CV151: 0 | CW151: 0 | CX151: 0 | CY151: 0 | CZ151: 0 | DA151: 0 | DB151: 0 | DC151: 0 | DD151: 0 | DE151: 0 | DF151: 0 | DG151: 0 | DH151: 0 | DI151: 0 | DJ151: 0 | DK151: 0 | DL151: 0 | DM151: 0 | DN151: 0 | DO151: 0 | DP151: 0 | DQ151: 0
C152: Add: Interest Income | L152: =L135 -> 0 | M152: =M135 -> 0 | N152: 0 | O152: 0 | P152: 0 | Q152: 0 | R152: 0 | S152: 0 | T152: 0 | U152: 0 | V152: 0 | W152: 0 | X152: 0 | Y152: 0 | Z152: 0 | AA152: 0 | AB152: 0 | AC152: 0 | AD152: 0 | AE152: 0 | AF152: 0 | AG152: 0 | AH152: 0 | AI152: 0 | AJ152: 0 | AK152: 0 | AL152: 0 | AM152: 0 | AN152: 0 | AO152: 0 | AP152: 0 | AQ152: 0 | AR152: 0 | AS152: 0 | AT152: 0 | AU152: 0 | AV152: 0 | AW152: 0 | AX152: 0 | AY152: 0 | AZ152: 0 | BA152: 0 | BB152: 0 | BC152: 0 | BD152: 0 | BE152: 0 | BF152: 0 | BG152: 0 | BH152: 0 | BI152: 0 | BJ152: 0 | BK152: 0 | BL152: 0 | BM152: 0 | BN152: 0 | BO152: 0 | BP152: 0 | BQ152: 0 | BR152: 0 | BS152: 0 | BT152: 0 | BU152: 0 | BV152: 0 | BW152: 0 | BX152: 0 | BY152: =BY135 -> 0 | BZ152: 0 | CA152: 0 | CB152: 0 | CC152: 0 | CD152: 0 | CE152: 0 | CF152: 0 | CG152: 0 | CH152: 0 | CI152: 0 | CJ152: 0 | CK152: 0 | CL152: 0 | CM152: 0 | CN152: 0 | CO152: 0 | CP152: 0 | CQ152: 0 | CR152: 0 | CS152: 0 | CT152: 0 | CU152: 0 | CV152: 0 | CW152: 0 | CX152: 0 | CY152: 0 | CZ152: 0 | DA152: 0 | DB152: 0 | DC152: 0 | DD152: 0 | DE152: 0 | DF152: 0 | DG152: 0 | DH152: 0 | DI152: 0 | DJ152: 0 | DK152: 0 | DL152: 0 | DM152: 0 | DN152: 0 | DO152: 0 | DP152: 0 | DQ152: 0
D153: Cash Flow Available for Debt Service | L153: =L148-L149-L150-L152+L151 -> 0 | M153: =M148-M149-M150-M152+M151 -> 0 | N153: 0 | O153: 0 | P153: 0 | Q153: 0 | R153: 0 | S153: 0 | T153: 0 | U153: 0 | V153: 0 | W153: 0 | X153: 0 | Y153: 0 | Z153: 0 | AA153: 0 | AB153: 0 | AC153: 0 | AD153: 0 | AE153: 0 | AF153: 0 | AG153: 0 | AH153: 0 | AI153: 0 | AJ153: 0 | AK153: 0 | AL153: 0 | AM153: 0 | AN153: 0 | AO153: 0 | AP153: 0 | AQ153: 0 | AR153: 0 | AS153: 0 | AT153: 0 | AU153: 0 | AV153: 0 | AW153: 0 | AX153: 0 | AY153: 0 | AZ153: 0 | BA153: 0 | BB153: 0 | BC153: 0 | BD153: 21438.99605 | BE153: 21938.92057 | BF153: 23028.01737 | BG153: 23831.12908 | BH153: 23508.60462 | BI153: 24069.44037 | BJ153: 23751.67791 | BK153: 24384.39147 | BL153: 24303.26809 | BM153: 25212.00706 | BN153: 25116.25997 | BO153: 25618.22788 | BP153: 25349.28113 | BQ153: 26030.82242 | BR153: 25757.77939 | BS153: 26449.88909 | BT153: 26172.68772 | BU153: 26875.52781 | BV153: 26328.26524 | BW153: 26802.62157 | BX153: 25472.52916 | BY153: =BY148-BY149-BY150-BY152+BY151 -> 25812.71077 | BZ153: 25536.57831 | CA153: 26232.21857 | CB153: 25951.87329 | CC153: 26658.34216 | CD153: 26556.23081 | CE153: 27091.18401 | CF153: 22400.21319 | CG153: 19901.87374 | CH153: 19657.10852 | CI153: 20145.38557 | CJ153: 19897.42592 | CK153: 20394.07675 | CL153: 20288.15599 | CM153: 20688.95065 | CN153: 20475.37623 | CO153: 21030.08919 | CP153: 20813.17021 | CQ153: 21376.65286 | CR153: 21156.33774 | CS153: 21724.38119 | CT153: 20836.28796 | CU153: 21248.23565 | CV153: 21028.51737 | CW153: 21599.01425 | CX153: 21375.85353 | CY153: 21955.37507 | CZ153: 21728.71881 | DA153: 22317.40506 | DB153: 8538.466128 | DC153: -5.343281373e-13 | DD153: -5.343281373e-13 | DE153: -5.343281373e-13 | DF153: -5.343281373e-13 | DG153: -5.343281373e-13 | DH153: -5.343281373e-13 | DI153: -5.343281373e-13 | DJ153: -5.343281373e-13 | DK153: -5.343281373e-13 | DL153: -5.343281373e-13 | DM153: -5.343281373e-13 | DN153: -5.343281373e-13 | DO153: -5.343281373e-13 | DP153: -5.343281373e-13 | DQ153: -5.343281373e-13
C154: Less: Interest Expense | L154: =L134 -> 0 | M154: =M134 -> 0 | N154: 0 | O154: 0 | P154: 0 | Q154: 0 | R154: 0 | S154: 0 | T154: 0 | U154: 0 | V154: 0 | W154: 0 | X154: 0 | Y154: 0 | Z154: 0 | AA154: 0 | AB154: 0 | AC154: 0 | AD154: 0 | AE154: 0 | AF154: 0 | AG154: 0 | AH154: 0 | AI154: 0 | AJ154: 0 | AK154: 0 | AL154: 0 | AM154: 0 | AN154: 0 | AO154: 0 | AP154: 0 | AQ154: 0 | AR154: 0 | AS154: 0 | AT154: 0 | AU154: 0 | AV154: 0 | AW154: 0 | AX154: 0 | AY154: 0 | AZ154: 0 | BA154: 0 | BB154: 0 | BC154: 0 | BD154: 5565.487294 | BE154: 5401.796491 | BF154: 5238.105689 | BG154: 5074.414886 | BH154: 4910.724083 | BI154: 4747.03328 | BJ154: 4583.342478 | BK154: 4419.651675 | BL154: 4255.960872 | BM154: 4092.270069 | BN154: 3928.579266 | BO154: 3764.888464 | BP154: 3601.197661 | BQ154: 3437.506858 | BR154: 3273.816055 | BS154: 3110.125253 | BT154: 2946.43445 | BU154: 2782.743647 | BV154: 2619.052844 | BW154: 2455.362042 | BX154: 2291.671239 | BY154: =BY134 -> 2127.980436 | BZ154: 1964.289633 | CA154: 1800.59883 | CB154: 1636.908028 | CC154: 1473.217225 | CD154: 1309.526422 | CE154: 1145.835619 | CF154: 982.1448166 | CG154: 818.4540138 | CH154: 654.7632111 | CI154: 491.0724083 | CJ154: 327.3816055 | CK154: 163.6908028 | CL154: -2.137312549e-12 | CM154: -2.137312549e-12 | CN154: -2.137312549e-12 | CO154: -2.137312549e-12 | CP154: -2.137312549e-12 | CQ154: -2.137312549e-12 | CR154: -2.137312549e-12 | CS154: -2.137312549e-12 | CT154: -2.137312549e-12 | CU154: -2.137312549e-12 | CV154: -2.137312549e-12 | CW154: -2.137312549e-12 | CX154: -2.137312549e-12 | CY154: -2.137312549e-12 | CZ154: -2.137312549e-12 | DA154: -2.137312549e-12 | DB154: -2.137312549e-12 | DC154: -2.137312549e-12 | DD154: -2.137312549e-12 | DE154: -2.137312549e-12 | DF154: -2.137312549e-12 | DG154: -2.137312549e-12 | DH154: -2.137312549e-12 | DI154: -2.137312549e-12 | DJ154: -2.137312549e-12 | DK154: -2.137312549e-12 | DL154: -2.137312549e-12 | DM154: -2.137312549e-12 | DN154: -2.137312549e-12 | DO154: -2.137312549e-12 | DP154: -2.137312549e-12 | DQ154: -2.137312549e-12
C155: Less: Debt Repayment | L155: =L116 -> 0 | M155: =M116 -> 0 | N155: 0 | O155: 0 | P155: 0 | Q155: 0 | R155: 0 | S155: 0 | T155: 0 | U155: 0 | V155: 0 | W155: 0 | X155: 0 | Y155: 0 | Z155: 0 | AA155: 0 | AB155: 0 | AC155: 0 | AD155: 0 | AE155: 0 | AF155: 0 | AG155: 0 | AH155: 0 | AI155: 0 | AJ155: 0 | AK155: 0 | AL155: 0 | AM155: 0 | AN155: 0 | AO155: 0 | AP155: 0 | AQ155: 0 | AR155: 0 | AS155: 0 | AT155: 0 | AU155: 0 | AV155: 0 | AW155: 0 | AX155: 0 | AY155: 0 | AZ155: 0 | BA155: 0 | BB155: 0 | BC155: 0 | BD155: 13095.26422 | BE155: 13095.26422 | BF155: 13095.26422 | BG155: 13095.26422 | BH155: 13095.26422 | BI155: 13095.26422 | BJ155: 13095.26422 | BK155: 13095.26422 | BL155: 13095.26422 | BM155: 13095.26422 | BN155: 13095.26422 | BO155: 13095.26422 | BP155: 13095.26422 | BQ155: 13095.26422 | BR155: 13095.26422 | BS155: 13095.26422 | BT155: 13095.26422 | BU155: 13095.26422 | BV155: 13095.26422 | BW155: 13095.26422 | BX155: 13095.26422 | BY155: =BY116 -> 13095.26422 | BZ155: 13095.26422 | CA155: 13095.26422 | CB155: 13095.26422 | CC155: 13095.26422 | CD155: 13095.26422 | CE155: 13095.26422 | CF155: 13095.26422 | CG155: 13095.26422 | CH155: 13095.26422 | CI155: 13095.26422 | CJ155: 13095.26422 | CK155: 13095.26422 | CL155: 0 | CM155: 0 | CN155: 0 | CO155: 0 | CP155: 0 | CQ155: 0 | CR155: 0 | CS155: 0 | CT155: 0 | CU155: 0 | CV155: 0 | CW155: 0 | CX155: 0 | CY155: 0 | CZ155: 0 | DA155: 0 | DB155: 0 | DC155: 0 | DD155: 0 | DE155: 0 | DF155: 0 | DG155: 0 | DH155: 0 | DI155: 0 | DJ155: 0 | DK155: 0 | DL155: 0 | DM155: 0 | DN155: 0 | DO155: 0 | DP155: 0 | DQ155: 0
D156: Net Cash Flow | L156: =L153-L154-L155 -> 0 | M156: =M153-M154-M155 -> 0 | N156: 0 | O156: 0 | P156: 0 | Q156: 0 | R156: 0 | S156: 0 | T156: 0 | U156: 0 | V156: 0 | W156: 0 | X156: 0 | Y156: 0 | Z156: 0 | AA156: 0 | AB156: 0 | AC156: 0 | AD156: 0 | AE156: 0 | AF156: 0 | AG156: 0 | AH156: 0 | AI156: 0 | AJ156: 0 | AK156: 0 | AL156: 0 | AM156: 0 | AN156: 0 | AO156: 0 | AP156: 0 | AQ156: 0 | AR156: 0 | AS156: 0 | AT156: 0 | AU156: 0 | AV156: 0 | AW156: 0 | AX156: 0 | AY156: 0 | AZ156: 0 | BA156: 0 | BB156: 0 | BC156: 0 | BD156: 2778.244534 | BE156: 3441.859853 | BF156: 4694.64746 | BG156: 5661.449968 | BH156: 5502.61632 | BI156: 6227.142864 | BJ156: 6073.071208 | BK156: 6869.475577 | BL156: 6952.042993 | BM156: 8024.472767 | BN156: 8092.416483 | BO156: 8758.075195 | BP156: 8652.819246 | BQ156: 9498.051343 | BR156: 9388.699117 | BS156: 10244.49962 | BT156: 10130.98905 | BU156: 10997.51994 | BV156: 10613.94818 | BW156: 11251.99531 | BX156: 10085.5937 | BY156: =BY153-BY154-BY155 -> 10589.46611 | BZ156: 10477.02445 | CA156: 11336.35552 | CB156: 11219.70104 | CC156: 12089.86072 | CD156: 12151.44016 | CE156: 12850.08417 | CF156: 8322.804152 | CG156: 5988.155501 | CH156: 5907.081086 | CI156: 6559.048942 | CJ156: 6474.780094 | CK156: 7135.121726 | CL156: 20288.15599 | CM156: 20688.95065 | CN156: 20475.37623 | CO156: 21030.08919 | CP156: 20813.17021 | CQ156: 21376.65286 | CR156: 21156.33774 | CS156: 21724.38119 | CT156: 20836.28796 | CU156: 21248.23565 | CV156: 21028.51737 | CW156: 21599.01425 | CX156: 21375.85353 | CY156: 21955.37507 | CZ156: 21728.71881 | DA156: 22317.40506 | DB156: 8538.466128 | DC156: 1.602984412e-12 | DD156: 1.602984412e-12 | DE156: 1.602984412e-12 | DF156: 1.602984412e-12 | DG156: 1.602984412e-12 | DH156: 1.602984412e-12 | DI156: 1.602984412e-12 | DJ156: 1.602984412e-12 | DK156: 1.602984412e-12 | DL156: 1.602984412e-12 | DM156: 1.602984412e-12 | DN156: 1.602984412e-12 | DO156: 1.602984412e-12 | DP156: 1.602984412e-12 | DQ156: 1.602984412e-12
C157: Less: Sweep etc.
D158: Dividends | L158: =L156-L157 -> 0 | M158: =M156-M157 -> 0 | N158: 0 | O158: 0 | P158: 0 | Q158: 0 | R158: 0 | S158: 0 | T158: 0 | U158: 0 | V158: 0 | W158: 0 | X158: 0 | Y158: 0 | Z158: 0 | AA158: 0 | AB158: 0 | AC158: 0 | AD158: 0 | AE158: 0 | AF158: 0 | AG158: 0 | AH158: 0 | AI158: 0 | AJ158: 0 | AK158: 0 | AL158: 0 | AM158: 0 | AN158: 0 | AO158: 0 | AP158: 0 | AQ158: 0 | AR158: 0 | AS158: 0 | AT158: 0 | AU158: 0 | AV158: 0 | AW158: 0 | AX158: 0 | AY158: 0 | AZ158: 0 | BA158: 0 | BB158: 0 | BC158: 0 | BD158: 2778.244534 | BE158: 3441.859853 | BF158: 4694.64746 | BG158: 5661.449968 | BH158: 5502.61632 | BI158: 6227.142864 | BJ158: 6073.071208 | BK158: 6869.475577 | BL158: 6952.042993 | BM158: 8024.472767 | BN158: 8092.416483 | BO158: 8758.075195 | BP158: 8652.819246 | BQ158: 9498.051343 | BR158: 9388.699117 | BS158: 10244.49962 | BT158: 10130.98905 | BU158: 10997.51994 | BV158: 10613.94818 | BW158: 11251.99531 | BX158: 10085.5937 | BY158: =BY156-BY157 -> 10589.46611 | BZ158: 10477.02445 | CA158: 11336.35552 | CB158: 11219.70104 | CC158: 12089.86072 | CD158: 12151.44016 | CE158: 12850.08417 | CF158: 8322.804152 | CG158: 5988.155501 | CH158: 5907.081086 | CI158: 6559.048942 | CJ158: 6474.780094 | CK158: 7135.121726 | CL158: 20288.15599 | CM158: 20688.95065 | CN158: 20475.37623 | CO158: 21030.08919 | CP158: 20813.17021 | CQ158: 21376.65286 | CR158: 21156.33774 | CS158: 21724.38119 | CT158: 20836.28796 | CU158: 21248.23565 | CV158: 21028.51737 | CW158: 21599.01425 | CX158: 21375.85353 | CY158: 21955.37507 | CZ158: 21728.71881 | DA158: 22317.40506 | DB158: 8538.466128 | DC158: 1.602984412e-12 | DD158: 1.602984412e-12 | DE158: 1.602984412e-12 | DF158: 1.602984412e-12 | DG158: 1.602984412e-12 | DH158: 1.602984412e-12 | DI158: 1.602984412e-12 | DJ158: 1.602984412e-12 | DK158: 1.602984412e-12 | DL158: 1.602984412e-12 | DM158: 1.602984412e-12 | DN158: 1.602984412e-12 | DO158: 1.602984412e-12 | DP158: 1.602984412e-12 | DQ158: 1.602984412e-12
A160: Outputs
C161: Equity Cash Flow | E161: =XIRR(L161:DQ161,L3:DQ3) -> 0.07913682759 | F161: =SUM(L161:DQ161) -> 448173.6482 | L161: =L158-L85 -> -2579.350275 | M161: =M158-M85 -> -2594.809961 | N161: -2610.269648 | O161: -2625.729335 | P161: -2641.189022 | Q161: -2656.648709 | R161: -2672.108396 | S161: -2687.568083 | T161: -2703.02777 | U161: -2718.487457 | V161: -2733.947144 | W161: -2749.406831 | X161: -8568.404635 | Y161: -8618.648618 | Z161: -8668.8926 | AA161: -8719.136583 | AB161: -8769.380565 | AC161: -8819.624548 | AD161: -8869.86853 | AE161: -8920.112513 | AF161: -8970.356495 | AG161: -9020.600478 | AH161: -9070.84446 | AI161: -9121.088443 | AJ161: -2722.956739 | AK161: -2734.551504 | AL161: -2746.14627 | AM161: -2757.741035 | AN161: -2769.3358 | AO161: -2780.930565 | AP161: -2792.52533 | AQ161: -2804.120096 | AR161: -2815.714861 | AS161: -2827.309626 | AT161: -2838.904391 | AU161: -2850.499156 | AV161: -927.5812157 | AW161: -927.5812157 | AX161: -927.5812157 | AY161: -927.5812157 | AZ161: -927.5812157 | BA161: -927.5812157 | BB161: -927.5812157 | BC161: -7004.589147 | BD161: 2778.244534 | BE161: 3441.859853 | BF161: 4694.64746 | BG161: 5661.449968 | BH161: 5502.61632 | BI161: 6227.142864 | BJ161: 6073.071208 | BK161: 6869.475577 | BL161: 6952.042993 | BM161: 8024.472767 | BN161: 8092.416483 | BO161: 8758.075195 | BP161: 8652.819246 | BQ161: 9498.051343 | BR161: 9388.699117 | BS161: 10244.49962 | BT161: 10130.98905 | BU161: 10997.51994 | BV161: 10613.94818 | BW161: 11251.99531 | BX161: 10085.5937 | BY161: =BY158-BY85 -> 10589.46611 | BZ161: 10477.02445 | CA161: 11336.35552 | CB161: 11219.70104 | CC161: 12089.86072 | CD161: 12151.44016 | CE161: 12850.08417 | CF161: 8322.804152 | CG161: 5988.155501 | CH161: 5907.081086 | CI161: 6559.048942 | CJ161: 6474.780094 | CK161: 7135.121726 | CL161: 20288.15599 | CM161: 20688.95065 | CN161: 20475.37623 | CO161: 21030.08919 | CP161: 20813.17021 | CQ161: 21376.65286 | CR161: 21156.33774 | CS161: 21724.38119 | CT161: 20836.28796 | CU161: 21248.23565 | CV161: 21028.51737 | CW161: 21599.01425 | CX161: 21375.85353 | CY161: 21955.37507 | CZ161: 21728.71881 | DA161: 22317.40506 | DB161: 8538.466128 | DC161: 1.602984412e-12 | DD161: 1.602984412e-12 | DE161: 1.602984412e-12 | DF161: 1.602984412e-12 | DG161: 1.602984412e-12 | DH161: 1.602984412e-12 | DI161: 1.602984412e-12 | DJ161: 1.602984412e-12 | DK161: 1.602984412e-12 | DL161: 1.602984412e-12 | DM161: 1.602984412e-12 | DN161: 1.602984412e-12 | DO161: 1.602984412e-12 | DP161: 1.602984412e-12 | DQ161: 1.602984412e-12
C162: Project Free Cash Flow | E162: =XIRR(L162:DQ162,L3:DQ3) -> 0.04876411855 | L162: =L49 -> -10000 | M162: =M49 -> -10000 | N162: -10000 | O162: -10000 | P162: -10000 | Q162: -10000 | R162: -10000 | S162: -10000 | T162: -10000 | U162: -10000 | V162: -10000 | W162: -10000 | X162: -32500 | Y162: -32500 | Z162: -32500 | AA162: -32500 | AB162: -32500 | AC162: -32500 | AD162: -32500 | AE162: -32500 | AF162: -32500 | AG162: -32500 | AH162: -32500 | AI162: -32500 | AJ162: -7500 | AK162: -7500 | AL162: -7500 | AM162: -7500 | AN162: -7500 | AO162: -7500 | AP162: -7500 | AQ162: -7500 | AR162: -7500 | AS162: -7500 | AT162: -7500 | AU162: -7500 | AV162: 0 | AW162: 0 | AX162: 0 | AY162: 0 | AZ162: 0 | BA162: 0 | BB162: 0 | BC162: -1.33226763e-10 | BD162: 15361.98812 | BE162: 21938.92057 | BF162: 23028.01737 | BG162: 23831.12908 | BH162: 23508.60462 | BI162: 24069.44037 | BJ162: 23751.67791 | BK162: 24384.39147 | BL162: 24303.26809 | BM162: 25212.00706 | BN162: 25116.25997 | BO162: 25618.22788 | BP162: 25349.28113 | BQ162: 26030.82242 | BR162: 25757.77939 | BS162: 26449.88909 | BT162: 26172.68772 | BU162: 26875.52781 | BV162: 26328.26524 | BW162: 26802.62157 | BX162: 25472.52916 | BY162: =BY49 -> 25812.71077 | BZ162: 25536.57831 | CA162: 26158.43761 | CB162: 19455.61195 | CC162: 19973.60951 | CD162: 19908.72195 | CE162: 20297.96366 | CF162: 19308.08352 | CG162: 19697.26023 | CH162: 19493.41772 | CI162: 20022.61747 | CJ162: 19815.58052 | CK162: 20353.15405 | CL162: 20288.15599 | CM162: 20688.95065 | CN162: 20475.37623 | CO162: 21030.08919 | CP162: 20813.17021 | CQ162: 21376.65286 | CR162: 21156.33774 | CS162: 21724.38119 | CT162: 20836.28796 | CU162: 21248.23565 | CV162: 21028.51737 | CW162: 21599.01425 | CX162: 21375.85353 | CY162: 21955.37507 | CZ162: 21728.71881 | DA162: 22317.40506 | DB162: 8538.466128 | DC162: 0 | DD162: 0 | DE162: 0 | DF162: 0 | DG162: 0 | DH162: 0 | DI162: 0 | DJ162: 0 | DK162: 0 | DL162: 0 | DM162: 0 | DN162: 0 | DO162: 0 | DP162: 0 | DQ162: 0
C164: Debt IRR
D165: Debt Cash Flow
D166: Outflow for Draws | L166: =-L90 -> -7420.649725 | M166: =-M90 -> -7420.649725 | N166: -7420.649725 | O166: -7420.649725 | P166: -7420.649725 | Q166: -7420.649725 | R166: -7420.649725 | S166: -7420.649725 | T166: -7420.649725 | U166: -7420.649725 | V166: -7420.649725 | W166: -7420.649725 | X166: -24117.11161 | Y166: -24117.11161 | Z166: -24117.11161 | AA166: -24117.11161 | AB166: -24117.11161 | AC166: -24117.11161 | AD166: -24117.11161 | AE166: -24117.11161 | AF166: -24117.11161 | AG166: -24117.11161 | AH166: -24117.11161 | AI166: -24117.11161 | AJ166: -5565.487294 | AK166: -5565.487294 | AL166: -5565.487294 | AM166: -5565.487294 | AN166: -5565.487294 | AO166: -5565.487294 | AP166: -5565.487294 | AQ166: -5565.487294 | AR166: -5565.487294 | AS166: -5565.487294 | AT166: -5565.487294 | AU166: -5565.487294 | AV166: 0 | AW166: 0 | AX166: 0 | AY166: 0 | AZ166: 0 | BA166: 0 | BB166: 0 | BC166: -9.88629142e-11 | BD166: 0 | BE166: 0 | BF166: 0 | BG166: 0 | BH166: 0 | BI166: 0 | BJ166: 0 | BK166: 0 | BL166: 0 | BM166: 0 | BN166: 0 | BO166: 0 | BP166: 0 | BQ166: 0 | BR166: 0 | BS166: 0 | BT166: 0 | BU166: 0 | BV166: 0 | BW166: 0 | BX166: 0 | BY166: =-BY90 -> 0 | BZ166: 0 | CA166: 0 | CB166: 0 | CC166: 0 | CD166: 0 | CE166: 0 | CF166: 0 | CG166: 0 | CH166: 0 | CI166: 0 | CJ166: 0 | CK166: 0 | CL166: 0 | CM166: 0 | CN166: 0 | CO166: 0 | CP166: 0 | CQ166: 0 | CR166: 0 | CS166: 0 | CT166: 0 | CU166: 0 | CV166: 0 | CW166: 0 | CX166: 0 | CY166: 0 | CZ166: 0 | DA166: 0 | DB166: 0 | DC166: 0 | DD166: 0 | DE166: 0 | DF166: 0 | DG166: 0 | DH166: 0 | DI166: 0 | DJ166: 0 | DK166: 0 | DL166: 0 | DM166: 0 | DN166: 0 | DO166: 0 | DP166: 0 | DQ166: 0
D167: Interest Paid | L167: =L96-L97+L120 -> 0 | M167: =M96-M97+M120 -> 15.45968693 | N167: 30.91937386 | O167: 46.37906078 | P167: 61.83874771 | Q167: 77.29843464 | R167: 92.75812157 | S167: 108.2178085 | T167: 123.6774954 | U167: 139.1371824 | V167: 154.5968693 | W167: 170.0565562 | X167: 185.5162431 | Y167: 235.7602257 | Z167: 286.0042082 | AA167: 336.2481907 | AB167: 386.4921732 | AC167: 436.7361557 | AD167: 486.9801382 | AE167: 537.2241208 | AF167: 587.4681033 | AG167: 637.7120858 | AH167: 687.9560683 | AI167: 738.2000508 | AJ167: 788.4440333 | AK167: 800.0387985 | AL167: 811.6335637 | AM167: 823.2283289 | AN167: 834.8230941 | AO167: 846.4178593 | AP167: 858.0126245 | AQ167: 869.6073897 | AR167: 881.2021549 | AS167: 892.7969201 | AT167: 904.3916853 | AU167: 915.9864505 | AV167: 927.5812157 | AW167: 927.5812157 | AX167: 927.5812157 | AY167: 927.5812157 | AZ167: 927.5812157 | BA167: 927.5812157 | BB167: 927.5812157 | BC167: 927.5812157 | BD167: 5565.487294 | BE167: 5401.796491 | BF167: 5238.105689 | BG167: 5074.414886 | BH167: 4910.724083 | BI167: 4747.03328 | BJ167: 4583.342478 | BK167: 4419.651675 | BL167: 4255.960872 | BM167: 4092.270069 | BN167: 3928.579266 | BO167: 3764.888464 | BP167: 3601.197661 | BQ167: 3437.506858 | BR167: 3273.816055 | BS167: 3110.125253 | BT167: 2946.43445 | BU167: 2782.743647 | BV167: 2619.052844 | BW167: 2455.362042 | BX167: 2291.671239 | BY167: =BY96-BY97+BY120 -> 2127.980436 | BZ167: 1964.289633 | CA167: 1800.59883 | CB167: 1636.908028 | CC167: 1473.217225 | CD167: 1309.526422 | CE167: 1145.835619 | CF167: 982.1448166 | CG167: 818.4540138 | CH167: 654.7632111 | CI167: 491.0724083 | CJ167: 327.3816055 | CK167: 163.6908028 | CL167: -2.137312549e-12 | CM167: -2.137312549e-12 | CN167: -2.137312549e-12 | CO167: -2.137312549e-12 | CP167: -2.137312549e-12 | CQ167: -2.137312549e-12 | CR167: -2.137312549e-12 | CS167: -2.137312549e-12 | CT167: -2.137312549e-12 | CU167: -2.137312549e-12 | CV167: -2.137312549e-12 | CW167: -2.137312549e-12 | CX167: -2.137312549e-12 | CY167: -2.137312549e-12 | CZ167: -2.137312549e-12 | DA167: -2.137312549e-12 | DB167: -2.137312549e-12 | DC167: -2.137312549e-12 | DD167: -2.137312549e-12 | DE167: -2.137312549e-12 | DF167: -2.137312549e-12 | DG167: -2.137312549e-12 | DH167: -2.137312549e-12 | DI167: -2.137312549e-12 | DJ167: -2.137312549e-12 | DK167: -2.137312549e-12 | DL167: -2.137312549e-12 | DM167: -2.137312549e-12 | DN167: -2.137312549e-12 | DO167: -2.137312549e-12 | DP167: -2.137312549e-12 | DQ167: -2.137312549e-12
D168: Repayments | L168: =L116 -> 0 | M168: =M116 -> 0 | N168: 0 | O168: 0 | P168: 0 | Q168: 0 | R168: 0 | S168: 0 | T168: 0 | U168: 0 | V168: 0 | W168: 0 | X168: 0 | Y168: 0 | Z168: 0 | AA168: 0 | AB168: 0 | AC168: 0 | AD168: 0 | AE168: 0 | AF168: 0 | AG168: 0 | AH168: 0 | AI168: 0 | AJ168: 0 | AK168: 0 | AL168: 0 | AM168: 0 | AN168: 0 | AO168: 0 | AP168: 0 | AQ168: 0 | AR168: 0 | AS168: 0 | AT168: 0 | AU168: 0 | AV168: 0 | AW168: 0 | AX168: 0 | AY168: 0 | AZ168: 0 | BA168: 0 | BB168: 0 | BC168: 0 | BD168: 13095.26422 | BE168: 13095.26422 | BF168: 13095.26422 | BG168: 13095.26422 | BH168: 13095.26422 | BI168: 13095.26422 | BJ168: 13095.26422 | BK168: 13095.26422 | BL168: 13095.26422 | BM168: 13095.26422 | BN168: 13095.26422 | BO168: 13095.26422 | BP168: 13095.26422 | BQ168: 13095.26422 | BR168: 13095.26422 | BS168: 13095.26422 | BT168: 13095.26422 | BU168: 13095.26422 | BV168: 13095.26422 | BW168: 13095.26422 | BX168: 13095.26422 | BY168: =BY116 -> 13095.26422 | BZ168: 13095.26422 | CA168: 13095.26422 | CB168: 13095.26422 | CC168: 13095.26422 | CD168: 13095.26422 | CE168: 13095.26422 | CF168: 13095.26422 | CG168: 13095.26422 | CH168: 13095.26422 | CI168: 13095.26422 | CJ168: 13095.26422 | CK168: 13095.26422 | CL168: 0 | CM168: 0 | CN168: 0 | CO168: 0 | CP168: 0 | CQ168: 0 | CR168: 0 | CS168: 0 | CT168: 0 | CU168: 0 | CV168: 0 | CW168: 0 | CX168: 0 | CY168: 0 | CZ168: 0 | DA168: 0 | DB168: 0 | DC168: 0 | DD168: 0 | DE168: 0 | DF168: 0 | DG168: 0 | DH168: 0 | DI168: 0 | DJ168: 0 | DK168: 0 | DL168: 0 | DM168: 0 | DN168: 0 | DO168: 0 | DP168: 0 | DQ168: 0
D169: Fees Paid
D170: Total Cash Flow | L170: =SUM(L166:L169) -> -7420.649725 | M170: =SUM(M166:M169) -> -7405.190039 | N170: -7389.730352 | O170: -7374.270665 | P170: -7358.810978 | Q170: -7343.351291 | R170: -7327.891604 | S170: -7312.431917 | T170: -7296.97223 | U170: -7281.512543 | V170: -7266.052856 | W170: -7250.593169 | X170: -23931.59536 | Y170: -23881.35138 | Z170: -23831.1074 | AA170: -23780.86342 | AB170: -23730.61943 | AC170: -23680.37545 | AD170: -23630.13147 | AE170: -23579.88749 | AF170: -23529.6435 | AG170: -23479.39952 | AH170: -23429.15554 | AI170: -23378.91156 | AJ170: -4777.043261 | AK170: -4765.448496 | AL170: -4753.85373 | AM170: -4742.258965 | AN170: -4730.6642 | AO170: -4719.069435 | AP170: -4707.47467 | AQ170: -4695.879904 | AR170: -4684.285139 | AS170: -4672.690374 | AT170: -4661.095609 | AU170: -4649.500844 | AV170: 927.5812157 | AW170: 927.5812157 | AX170: 927.5812157 | AY170: 927.5812157 | AZ170: 927.5812157 | BA170: 927.5812157 | BB170: 927.5812157 | BC170: 927.5812157 | BD170: 18660.75152 | BE170: 18497.06071 | BF170: 18333.36991 | BG170: 18169.67911 | BH170: 18005.9883 | BI170: 17842.2975 | BJ170: 17678.6067 | BK170: 17514.9159 | BL170: 17351.22509 | BM170: 17187.53429 | BN170: 17023.84349 | BO170: 16860.15269 | BP170: 16696.46188 | BQ170: 16532.77108 | BR170: 16369.08028 | BS170: 16205.38947 | BT170: 16041.69867 | BU170: 15878.00787 | BV170: 15714.31707 | BW170: 15550.62626 | BX170: 15386.93546 | BY170: =SUM(BY166:BY169) -> 15223.24466 | BZ170: 15059.55385 | CA170: 14895.86305 | CB170: 14732.17225 | CC170: 14568.48145 | CD170: 14404.79064 | CE170: 14241.09984 | CF170: 14077.40904 | CG170: 13913.71824 | CH170: 13750.02743 | CI170: 13586.33663 | CJ170: 13422.64583 | CK170: 13258.95502 | CL170: -2.137312549e-12 | CM170: -2.137312549e-12 | CN170: -2.137312549e-12 | CO170: -2.137312549e-12 | CP170: -2.137312549e-12 | CQ170: -2.137312549e-12 | CR170: -2.137312549e-12 | CS170: -2.137312549e-12 | CT170: -2.137312549e-12 | CU170: -2.137312549e-12 | CV170: -2.137312549e-12 | CW170: -2.137312549e-12 | CX170: -2.137312549e-12 | CY170: -2.137312549e-12 | CZ170: -2.137312549e-12 | DA170: -2.137312549e-12 | DB170: -2.137312549e-12 | DC170: -2.137312549e-12 | DD170: -2.137312549e-12 | DE170: -2.137312549e-12 | DF170: -2.137312549e-12 | DG170: -2.137312549e-12 | DH170: -2.137312549e-12 | DI170: -2.137312549e-12 | DJ170: -2.137312549e-12 | DK170: -2.137312549e-12 | DL170: -2.137312549e-12 | DM170: -2.137312549e-12 | DN170: -2.137312549e-12 | DO170: -2.137312549e-12 | DP170: -2.137312549e-12 | DQ170: -2.137312549e-12
C172: Debt IRR - Pre Tax | E172: =XIRR(L170:DQ170,L3:DQ3) -> 0.02517099679
C174: Tax Effet of Interest and IDC
D175: Tax Deductions from Debt | L175: =L127+L120 -> 0 | M175: =M127+M120 -> 0 | N175: 0 | O175: 0 | P175: 0 | Q175: 0 | R175: 0 | S175: 0 | T175: 0 | U175: 0 | V175: 0 | W175: 0 | X175: 0 | Y175: 0 | Z175: 0 | AA175: 0 | AB175: 0 | AC175: 0 | AD175: 0 | AE175: 0 | AF175: 0 | AG175: 0 | AH175: 0 | AI175: 0 | AJ175: 0 | AK175: 0 | AL175: 0 | AM175: 0 | AN175: 0 | AO175: 0 | AP175: 0 | AQ175: 0 | AR175: 0 | AS175: 0 | AT175: 0 | AU175: 0 | AV175: 0 | AW175: 0 | AX175: 0 | AY175: 0 | AZ175: 0 | BA175: 0 | BB175: 0 | BC175: 0 | BD175: 7986.474267 | BE175: 7822.783464 | BF175: 7174.895267 | BG175: 7011.204464 | BH175: 6460.155746 | BI175: 6296.464943 | BJ175: 5822.887808 | BK175: 5659.197005 | BL175: 5247.597136 | BM175: 5083.906333 | BN175: 4721.888278 | BO175: 4558.197475 | BP175: 4394.506672 | BQ175: 4230.815869 | BR175: 4067.125067 | BS175: 3903.434264 | BT175: 3739.743461 | BU175: 3576.052658 | BV175: 3412.361856 | BW175: 3248.671053 | BX175: 2291.671239 | BY175: =BY127+BY120 -> 2127.980436 | BZ175: 1964.289633 | CA175: 1800.59883 | CB175: 1636.908028 | CC175: 1473.217225 | CD175: 1309.526422 | CE175: 1145.835619 | CF175: 982.1448166 | CG175: 818.4540138 | CH175: 654.7632111 | CI175: 491.0724083 | CJ175: 327.3816055 | CK175: 163.6908028 | CL175: -2.137312549e-12 | CM175: -2.137312549e-12 | CN175: -2.137312549e-12 | CO175: -2.137312549e-12 | CP175: -2.137312549e-12 | CQ175: -2.137312549e-12 | CR175: -2.137312549e-12 | CS175: -2.137312549e-12 | CT175: -2.137312549e-12 | CU175: -2.137312549e-12 | CV175: -2.137312549e-12 | CW175: -2.137312549e-12 | CX175: -2.137312549e-12 | CY175: -2.137312549e-12 | CZ175: -2.137312549e-12 | DA175: -2.137312549e-12 | DB175: -2.137312549e-12 | DC175: -2.137312549e-12 | DD175: -2.137312549e-12 | DE175: -2.137312549e-12 | DF175: -2.137312549e-12 | DG175: -2.137312549e-12 | DH175: -2.137312549e-12 | DI175: -2.137312549e-12 | DJ175: -2.137312549e-12 | DK175: -2.137312549e-12 | DL175: -2.137312549e-12 | DM175: -2.137312549e-12 | DN175: -2.137312549e-12 | DO175: -2.137312549e-12 | DP175: -2.137312549e-12 | DQ175: -2.137312549e-12
D176: Tax Shield | E176: Tax Rate | F176: =F143 -> 0.25 | L176: =L175*$F$176 -> 0 | M176: =M175*$F$176 -> 0 | N176: 0 | O176: 0 | P176: 0 | Q176: 0 | R176: 0 | S176: 0 | T176: 0 | U176: 0 | V176: 0 | W176: 0 | X176: 0 | Y176: 0 | Z176: 0 | AA176: 0 | AB176: 0 | AC176: 0 | AD176: 0 | AE176: 0 | AF176: 0 | AG176: 0 | AH176: 0 | AI176: 0 | AJ176: 0 | AK176: 0 | AL176: 0 | AM176: 0 | AN176: 0 | AO176: 0 | AP176: 0 | AQ176: 0 | AR176: 0 | AS176: 0 | AT176: 0 | AU176: 0 | AV176: 0 | AW176: 0 | AX176: 0 | AY176: 0 | AZ176: 0 | BA176: 0 | BB176: 0 | BC176: 0 | BD176: 1996.618567 | BE176: 1955.695866 | BF176: 1793.723817 | BG176: 1752.801116 | BH176: 1615.038936 | BI176: 1574.116236 | BJ176: 1455.721952 | BK176: 1414.799251 | BL176: 1311.899284 | BM176: 1270.976583 | BN176: 1180.472069 | BO176: 1139.549369 | BP176: 1098.626668 | BQ176: 1057.703967 | BR176: 1016.781267 | BS176: 975.858566 | BT176: 934.9358653 | BU176: 894.0131646 | BV176: 853.0904639 | BW176: 812.1677632 | BX176: 572.9178097 | BY176: =BY175*$F$176 -> 531.995109 | BZ176: 491.0724083 | CA176: 450.1497076 | CB176: 409.2270069 | CC176: 368.3043062 | CD176: 327.3816055 | CE176: 286.4589048 | CF176: 245.5362042 | CG176: 204.6135035 | CH176: 163.6908028 | CI176: 122.7681021 | CJ176: 81.84540138 | CK176: 40.92270069 | CL176: -5.343281373e-13 | CM176: -5.343281373e-13 | CN176: -5.343281373e-13 | CO176: -5.343281373e-13 | CP176: -5.343281373e-13 | CQ176: -5.343281373e-13 | CR176: -5.343281373e-13 | CS176: -5.343281373e-13 | CT176: -5.343281373e-13 | CU176: -5.343281373e-13 | CV176: -5.343281373e-13 | CW176: -5.343281373e-13 | CX176: -5.343281373e-13 | CY176: -5.343281373e-13 | CZ176: -5.343281373e-13 | DA176: -5.343281373e-13 | DB176: -5.343281373e-13 | DC176: -5.343281373e-13 | DD176: -5.343281373e-13 | DE176: -5.343281373e-13 | DF176: -5.343281373e-13 | DG176: -5.343281373e-13 | DH176: -5.343281373e-13 | DI176: -5.343281373e-13 | DJ176: -5.343281373e-13 | DK176: -5.343281373e-13 | DL176: -5.343281373e-13 | DM176: -5.343281373e-13 | DN176: -5.343281373e-13 | DO176: -5.343281373e-13 | DP176: -5.343281373e-13 | DQ176: -5.343281373e-13
D177: After-tax Debt Cash Flow | L177: =L170-L176 -> -7420.649725 | M177: =M170-M176 -> -7405.190039 | N177: -7389.730352 | O177: -7374.270665 | P177: -7358.810978 | Q177: -7343.351291 | R177: -7327.891604 | S177: -7312.431917 | T177: -7296.97223 | U177: -7281.512543 | V177: -7266.052856 | W177: -7250.593169 | X177: -23931.59536 | Y177: -23881.35138 | Z177: -23831.1074 | AA177: -23780.86342 | AB177: -23730.61943 | AC177: -23680.37545 | AD177: -23630.13147 | AE177: -23579.88749 | AF177: -23529.6435 | AG177: -23479.39952 | AH177: -23429.15554 | AI177: -23378.91156 | AJ177: -4777.043261 | AK177: -4765.448496 | AL177: -4753.85373 | AM177: -4742.258965 | AN177: -4730.6642 | AO177: -4719.069435 | AP177: -4707.47467 | AQ177: -4695.879904 | AR177: -4684.285139 | AS177: -4672.690374 | AT177: -4661.095609 | AU177: -4649.500844 | AV177: 927.5812157 | AW177: 927.5812157 | AX177: 927.5812157 | AY177: 927.5812157 | AZ177: 927.5812157 | BA177: 927.5812157 | BB177: 927.5812157 | BC177: 927.5812157 | BD177: 16664.13295 | BE177: 16541.36485 | BF177: 16539.64609 | BG177: 16416.87799 | BH177: 16390.94937 | BI177: 16268.18127 | BJ177: 16222.88475 | BK177: 16100.11664 | BL177: 16039.32581 | BM177: 15916.55771 | BN177: 15843.37142 | BO177: 15720.60332 | BP177: 15597.83521 | BQ177: 15475.06711 | BR177: 15352.29901 | BS177: 15229.53091 | BT177: 15106.76281 | BU177: 14983.9947 | BV177: 14861.2266 | BW177: 14738.4585 | BX177: 14814.01765 | BY177: =BY170-BY176 -> 14691.24955 | BZ177: 14568.48145 | CA177: 14445.71334 | CB177: 14322.94524 | CC177: 14200.17714 | CD177: 14077.40904 | CE177: 13954.64094 | CF177: 13831.87283 | CG177: 13709.10473 | CH177: 13586.33663 | CI177: 13463.56853 | CJ177: 13340.80043 | CK177: 13218.03232 | CL177: -1.602984412e-12 | CM177: -1.602984412e-12 | CN177: -1.602984412e-12 | CO177: -1.602984412e-12 | CP177: -1.602984412e-12 | CQ177: -1.602984412e-12 | CR177: -1.602984412e-12 | CS177: -1.602984412e-12 | CT177: -1.602984412e-12 | CU177: -1.602984412e-12 | CV177: -1.602984412e-12 | CW177: -1.602984412e-12 | CX177: -1.602984412e-12 | CY177: -1.602984412e-12 | CZ177: -1.602984412e-12 | DA177: -1.602984412e-12 | DB177: -1.602984412e-12 | DC177: -1.602984412e-12 | DD177: -1.602984412e-12 | DE177: -1.602984412e-12 | DF177: -1.602984412e-12 | DG177: -1.602984412e-12 | DH177: -1.602984412e-12 | DI177: -1.602984412e-12 | DJ177: -1.602984412e-12 | DK177: -1.602984412e-12 | DL177: -1.602984412e-12 | DM177: -1.602984412e-12 | DN177: -1.602984412e-12 | DO177: -1.602984412e-12 | DP177: -1.602984412e-12 | DQ177: -1.602984412e-12
C179: After Tax Debt IRR | E179: =XIRR(L177:DQ177,L3:DQ3) -> 0.0189719528
C182: Equity, Debt and Tax Shield | L182: =L161+L170-L176 -> -10000 | M182: =M161+M170-M176 -> -10000 | N182: -10000 | O182: -10000 | P182: -10000 | Q182: -10000 | R182: -10000 | S182: -10000 | T182: -10000 | U182: -10000 | V182: -10000 | W182: -10000 | X182: -32500 | Y182: -32500 | Z182: -32500 | AA182: -32500 | AB182: -32500 | AC182: -32500 | AD182: -32500 | AE182: -32500 | AF182: -32500 | AG182: -32500 | AH182: -32500 | AI182: -32500 | AJ182: -7500 | AK182: -7500 | AL182: -7500 | AM182: -7500 | AN182: -7500 | AO182: -7500 | AP182: -7500 | AQ182: -7500 | AR182: -7500 | AS182: -7500 | AT182: -7500 | AU182: -7500 | AV182: 0 | AW182: 0 | AX182: 0 | AY182: 0 | AZ182: 0 | BA182: 0 | BB182: 0 | BC182: -6077.007931 | BD182: 19442.37748 | BE182: 19983.2247 | BF182: 21234.29355 | BG182: 22078.32796 | BH182: 21893.56569 | BI182: 22495.32413 | BJ182: 22295.95595 | BK182: 22969.59222 | BL182: 22991.3688 | BM182: 23941.03047 | BN182: 23935.7879 | BO182: 24478.67851 | BP182: 24250.65446 | BQ182: 24973.11846 | BR182: 24740.99813 | BS182: 25474.03053 | BT182: 25237.75186 | BU182: 25981.51465 | BV182: 25475.17478 | BW182: 25990.45381 | BX182: 24899.61135 | BY182: =BY161+BY170-BY176 -> 25280.71566 | BZ182: 25045.5059 | CA182: 25782.06887 | CB182: 25542.64628 | CC182: 26290.03786 | CD182: 26228.8492 | CE182: 26804.7251 | CF182: 22154.67699 | CG182: 19697.26023 | CH182: 19493.41772 | CI182: 20022.61747 | CJ182: 19815.58052 | CK182: 20353.15405 | CL182: 20288.15599 | CM182: 20688.95065 | CN182: 20475.37623 | CO182: 21030.08919 | CP182: 20813.17021 | CQ182: 21376.65286 | CR182: 21156.33774 | CS182: 21724.38119 | CT182: 20836.28796 | CU182: 21248.23565 | CV182: 21028.51737 | CW182: 21599.01425 | CX182: 21375.85353 | CY182: 21955.37507 | CZ182: 21728.71881 | DA182: 22317.40506 | DB182: 8538.466128 | DC182: 0 | DD182: 0 | DE182: 0 | DF182: 0 | DG182: 0 | DH182: 0 | DI182: 0 | DJ182: 0 | DK182: 0 | DL182: 0 | DM182: 0 | DN182: 0 | DO182: 0 | DP182: 0 | DQ182: 0
L183: =L182-L162 -> 0 | M183: =M182-M162 -> 0 | N183: 0 | O183: 0 | P183: 0 | Q183: 0 | R183: 0 | S183: 0 | T183: 0 | U183: 0 | V183: 0 | W183: 0 | X183: 0 | Y183: 0 | Z183: 0 | AA183: 0 | AB183: 0 | AC183: 0 | AD183: 0 | AE183: 0 | AF183: 0 | AG183: 0 | AH183: 0 | AI183: 0 | AJ183: 0 | AK183: 0 | AL183: 0 | AM183: 0 | AN183: 0 | AO183: 0 | AP183: 0 | AQ183: 0 | AR183: 0 | AS183: 0 | AT183: 0 | AU183: 0 | AV183: 0 | AW183: 0 | AX183: 0 | AY183: 0 | AZ183: 0 | BA183: 0 | BB183: 0 | BC183: -6077.007931 | BD183: 4080.389364 | BE183: -1955.695866 | BF183: -1793.723817 | BG183: -1752.801116 | BH183: -1615.038936 | BI183: -1574.116236 | BJ183: -1455.721952 | BK183: -1414.799251 | BL183: -1311.899284 | BM183: -1270.976583 | BN183: -1180.472069 | BO183: -1139.549369 | BP183: -1098.626668 | BQ183: -1057.703967 | BR183: -1016.781267 | BS183: -975.858566 | BT183: -934.9358653 | BU183: -894.0131646 | BV183: -853.0904639 | BW183: -812.1677632 | BX183: -572.9178097 | BY183: =BY182-BY162 -> -531.995109 | BZ183: -491.0724083 | CA183: -376.3687434 | CB183: 6087.034334 | CC183: 6316.42835 | CD183: 6320.127247 | CE183: 6506.761448 | CF183: 2846.593463 | CG183: 0 | CH183: 0 | CI183: 0 | CJ183: 0 | CK183: 0 | CL183: 0 | CM183: 0 | CN183: 0 | CO183: 0 | CP183: 0 | CQ183: 0 | CR183: 0 | CS183: 0 | CT183: 0 | CU183: 0 | CV183: 0 | CW183: 0 | CX183: 0 | CY183: 0 | CZ183: 0 | DA183: 0 | DB183: 0 | DC183: 0 | DD183: 0 | DE183: 0 | DF183: 0 | DG183: 0 | DH183: 0 | DI183: 0 | DJ183: 0 | DK183: 0 | DL183: 0 | DM183: 0 | DN183: 0 | DO183: 0 | DP183: 0 | DQ183: 0
C185: DSCR
D186: CFADS | L186: =L153 -> 0 | M186: =M153 -> 0 | N186: 0 | O186: 0 | P186: 0 | Q186: 0 | R186: 0 | S186: 0 | T186: 0 | U186: 0 | V186: 0 | W186: 0 | X186: 0 | Y186: 0 | Z186: 0 | AA186: 0 | AB186: 0 | AC186: 0 | AD186: 0 | AE186: 0 | AF186: 0 | AG186: 0 | AH186: 0 | AI186: 0 | AJ186: 0 | AK186: 0 | AL186: 0 | AM186: 0 | AN186: 0 | AO186: 0 | AP186: 0 | AQ186: 0 | AR186: 0 | AS186: 0 | AT186: 0 | AU186: 0 | AV186: 0 | AW186: 0 | AX186: 0 | AY186: 0 | AZ186: 0 | BA186: 0 | BB186: 0 | BC186: 0 | BD186: 21438.99605 | BE186: 21938.92057 | BF186: 23028.01737 | BG186: 23831.12908 | BH186: 23508.60462 | BI186: 24069.44037 | BJ186: 23751.67791 | BK186: 24384.39147 | BL186: 24303.26809 | BM186: 25212.00706 | BN186: 25116.25997 | BO186: 25618.22788 | BP186: 25349.28113 | BQ186: 26030.82242 | BR186: 25757.77939 | BS186: 26449.88909 | BT186: 26172.68772 | BU186: 26875.52781 | BV186: 26328.26524 | BW186: 26802.62157 | BX186: 25472.52916 | BY186: =BY153 -> 25812.71077 | BZ186: 25536.57831 | CA186: 26232.21857 | CB186: 25951.87329 | CC186: 26658.34216 | CD186: 26556.23081 | CE186: 27091.18401 | CF186: 22400.21319 | CG186: 19901.87374 | CH186: 19657.10852 | CI186: 20145.38557 | CJ186: 19897.42592 | CK186: 20394.07675 | CL186: 20288.15599 | CM186: 20688.95065 | CN186: 20475.37623 | CO186: 21030.08919 | CP186: 20813.17021 | CQ186: 21376.65286 | CR186: 21156.33774 | CS186: 21724.38119 | CT186: 20836.28796 | CU186: 21248.23565 | CV186: 21028.51737 | CW186: 21599.01425 | CX186: 21375.85353 | CY186: 21955.37507 | CZ186: 21728.71881 | DA186: 22317.40506 | DB186: 8538.466128 | DC186: -5.343281373e-13 | DD186: -5.343281373e-13 | DE186: -5.343281373e-13 | DF186: -5.343281373e-13 | DG186: -5.343281373e-13 | DH186: -5.343281373e-13 | DI186: -5.343281373e-13 | DJ186: -5.343281373e-13 | DK186: -5.343281373e-13 | DL186: -5.343281373e-13 | DM186: -5.343281373e-13 | DN186: -5.343281373e-13 | DO186: -5.343281373e-13 | DP186: -5.343281373e-13 | DQ186: -5.343281373e-13
D187: Debt Service | L187: =L154+L155 -> 0 | M187: =M154+M155 -> 0 | N187: 0 | O187: 0 | P187: 0 | Q187: 0 | R187: 0 | S187: 0 | T187: 0 | U187: 0 | V187: 0 | W187: 0 | X187: 0 | Y187: 0 | Z187: 0 | AA187: 0 | AB187: 0 | AC187: 0 | AD187: 0 | AE187: 0 | AF187: 0 | AG187: 0 | AH187: 0 | AI187: 0 | AJ187: 0 | AK187: 0 | AL187: 0 | AM187: 0 | AN187: 0 | AO187: 0 | AP187: 0 | AQ187: 0 | AR187: 0 | AS187: 0 | AT187: 0 | AU187: 0 | AV187: 0 | AW187: 0 | AX187: 0 | AY187: 0 | AZ187: 0 | BA187: 0 | BB187: 0 | BC187: 0 | BD187: 18660.75152 | BE187: 18497.06071 | BF187: 18333.36991 | BG187: 18169.67911 | BH187: 18005.9883 | BI187: 17842.2975 | BJ187: 17678.6067 | BK187: 17514.9159 | BL187: 17351.22509 | BM187: 17187.53429 | BN187: 17023.84349 | BO187: 16860.15269 | BP187: 16696.46188 | BQ187: 16532.77108 | BR187: 16369.08028 | BS187: 16205.38947 | BT187: 16041.69867 | BU187: 15878.00787 | BV187: 15714.31707 | BW187: 15550.62626 | BX187: 15386.93546 | BY187: =BY154+BY155 -> 15223.24466 | BZ187: 15059.55385 | CA187: 14895.86305 | CB187: 14732.17225 | CC187: 14568.48145 | CD187: 14404.79064 | CE187: 14241.09984 | CF187: 14077.40904 | CG187: 13913.71824 | CH187: 13750.02743 | CI187: 13586.33663 | CJ187: 13422.64583 | CK187: 13258.95502 | CL187: -2.137312549e-12 | CM187: -2.137312549e-12 | CN187: -2.137312549e-12 | CO187: -2.137312549e-12 | CP187: -2.137312549e-12 | CQ187: -2.137312549e-12 | CR187: -2.137312549e-12 | CS187: -2.137312549e-12 | CT187: -2.137312549e-12 | CU187: -2.137312549e-12 | CV187: -2.137312549e-12 | CW187: -2.137312549e-12 | CX187: -2.137312549e-12 | CY187: -2.137312549e-12 | CZ187: -2.137312549e-12 | DA187: -2.137312549e-12 | DB187: -2.137312549e-12 | DC187: -2.137312549e-12 | DD187: -2.137312549e-12 | DE187: -2.137312549e-12 | DF187: -2.137312549e-12 | DG187: -2.137312549e-12 | DH187: -2.137312549e-12 | DI187: -2.137312549e-12 | DJ187: -2.137312549e-12 | DK187: -2.137312549e-12 | DL187: -2.137312549e-12 | DM187: -2.137312549e-12 | DN187: -2.137312549e-12 | DO187: -2.137312549e-12 | DP187: -2.137312549e-12 | DQ187: -2.137312549e-12
D188: DSCR Ratio per period | E188: Min | F188: =MIN(L188:DQ188) -> 1.148881707 | L188: =IF(L187>0.1,L186/L187) -> FALSE | M188: =IF(M187>0.1,M186/M187) -> FALSE | N188: FALSE | O188: FALSE | P188: FALSE | Q188: FALSE | R188: FALSE | S188: FALSE | T188: FALSE | U188: FALSE | V188: FALSE | W188: FALSE | X188: FALSE | Y188: FALSE | Z188: FALSE | AA188: FALSE | AB188: FALSE | AC188: FALSE | AD188: FALSE | AE188: FALSE | AF188: FALSE | AG188: FALSE | AH188: FALSE | AI188: FALSE | AJ188: FALSE | AK188: FALSE | AL188: FALSE | AM188: FALSE | AN188: FALSE | AO188: FALSE | AP188: FALSE | AQ188: FALSE | AR188: FALSE | AS188: FALSE | AT188: FALSE | AU188: FALSE | AV188: FALSE | AW188: FALSE | AX188: FALSE | AY188: FALSE | AZ188: FALSE | BA188: FALSE | BB188: FALSE | BC188: FALSE | BD188: 1.148881707 | BE188: 1.186076042 | BF188: 1.256071169 | BG188: 1.31158778 | BH188: 1.305599239 | BI188: 1.349010146 | BJ188: 1.343526575 | BK188: 1.392207169 | BL188: 1.400665829 | BM188: 1.466877484 | BN188: 1.475357782 | BO188: 1.519454086 | BP188: 1.518242686 | BQ188: 1.574498449 | BR188: 1.57356302 | BS188: 1.632166208 | BT188: 1.631540915 | BU188: 1.692625928 | BV188: 1.675431718 | BW188: 1.723571843 | BX188: 1.655464743 | BY188: =IF(BY187>0.1,BY186/BY187) -> 1.695611636 | BZ188: 1.695706165 | CA188: 1.761040531 | CB188: 1.761578188 | CC188: 1.829864167 | CD188: 1.84356937 | CE188: 1.902323859 | CF188: 1.591217044 | CG188: 1.430377804 | CH188: 1.42960504 | CI188: 1.482768028 | CJ188: 1.482377333 | CK188: 1.538136053 | CL188: FALSE | CM188: FALSE | CN188: FALSE | CO188: FALSE | CP188: FALSE | CQ188: FALSE | CR188: FALSE | CS188: FALSE | CT188: FALSE | CU188: FALSE | CV188: FALSE | CW188: FALSE | CX188: FALSE | CY188: FALSE | CZ188: FALSE | DA188: FALSE | DB188: FALSE | DC188: FALSE | DD188: FALSE | DE188: FALSE | DF188: FALSE | DG188: FALSE | DH188: FALSE | DI188: FALSE | DJ188: FALSE | DK188: FALSE | DL188: FALSE | DM188: FALSE | DN188: FALSE | DO188: FALSE | DP188: FALSE | DQ188: FALSE
C190: PLCR
D191: PV Factor | K191: 1 | L191: =K191*(1+L95*NOT(L6)) -> 1 | M191: 1 | N191: 1 | O191: 1 | P191: 1 | Q191: 1 | R191: 1 | S191: 1 | T191: 1 | U191: 1 | V191: 1 | W191: 1 | X191: 1 | Y191: 1 | Z191: 1 | AA191: 1 | AB191: 1 | AC191: 1 | AD191: 1 | AE191: 1 | AF191: 1 | AG191: 1 | AH191: 1 | AI191: 1 | AJ191: 1 | AK191: 1 | AL191: 1 | AM191: 1 | AN191: 1 | AO191: 1 | AP191: 1 | AQ191: 1 | AR191: 1 | AS191: 1 | AT191: 1 | AU191: 1 | AV191: 1 | AW191: 1 | AX191: 1 | AY191: 1 | AZ191: 1 | BA191: 1 | BB191: 1 | BC191: 1 | BD191: 1.0125 | BE191: 1.02515625 | BF191: 1.037970703 | BG191: 1.050945337 | BH191: 1.064082154 | BI191: 1.077383181 | BJ191: 1.09085047 | BK191: 1.104486101 | BL191: 1.118292177 | BM191: 1.13227083 | BN191: 1.146424215 | BO191: 1.160754518 | BP191: 1.175263949 | BQ191: 1.189954749 | BR191: 1.204829183 | BS191: 1.219889548 | BT191: 1.235138167 | BU191: 1.250577394 | BV191: 1.266209612 | BW191: 1.282037232 | BX191: =BW191*(1+BX95*NOT(BX6)) -> 1.298062697 | BY191: 1.314288481 | BZ191: 1.330717087 | CA191: 1.34735105 | CB191: 1.364192939 | CC191: 1.38124535 | CD191: 1.398510917 | CE191: 1.415992304 | CF191: 1.433692207 | CG191: 1.45161336 | CH191: 1.469758527 | CI191: 1.488130509 | CJ191: 1.50673214 | CK191: 1.525566292 | CL191: 1.54463587 | CM191: 1.563943819 | CN191: 1.583493116 | CO191: 1.60328678 | CP191: 1.623327865 | CQ191: 1.643619463 | CR191: 1.664164707 | CS191: 1.684966766 | CT191: 1.70602885 | CU191: 1.727354211 | CV191: 1.748946138 | CW191: 1.770807965 | CX191: 1.792943065 | CY191: 1.815354853 | CZ191: 1.838046789 | DA191: 1.861022374 | DB191: 1.884285153 | DC191: 1.907838718 | DD191: 1.931686702 | DE191: 1.955832785 | DF191: 1.980280695 | DG191: 2.005034204 | DH191: 2.030097131 | DI191: 2.055473346 | DJ191: 2.081166762 | DK191: 2.107181347 | DL191: 2.133521114 | DM191: 2.160190128 | DN191: 2.187192504 | DO191: 2.214532411 | DP191: 2.242214066 | DQ191: 2.270241742
D192: PV of CFADS | E192: Sumproduct | F192: =SUMPRODUCT(L186:DQ186/L191:DQ191) -> 876712.8296
D193: PV of Debt Service = Loan Size | F193: =G62 -> 445238.9835
D194: PLCR Ratio | F194: =F192/F193 -> 1.96908371
C196: LLCR
D197: CFADS over the Debt Repayment | L197: =L153*L4 -> 0 | M197: 0 | N197: 0 | O197: 0 | P197: 0 | Q197: 0 | R197: 0 | S197: 0 | T197: 0 | U197: 0 | V197: 0 | W197: 0 | X197: 0 | Y197: 0 | Z197: 0 | AA197: 0 | AB197: 0 | AC197: 0 | AD197: 0 | AE197: 0 | AF197: 0 | AG197: 0 | AH197: 0 | AI197: 0 | AJ197: 0 | AK197: 0 | AL197: 0 | AM197: 0 | AN197: 0 | AO197: 0 | AP197: 0 | AQ197: 0 | AR197: 0 | AS197: 0 | AT197: 0 | AU197: 0 | AV197: 0 | AW197: 0 | AX197: 0 | AY197: 0 | AZ197: 0 | BA197: 0 | BB197: 0 | BC197: 0 | BD197: 21438.99605 | BE197: 21938.92057 | BF197: 23028.01737 | BG197: 23831.12908 | BH197: 23508.60462 | BI197: 24069.44037 | BJ197: 23751.67791 | BK197: 24384.39147 | BL197: 24303.26809 | BM197: 25212.00706 | BN197: 25116.25997 | BO197: 25618.22788 | BP197: 25349.28113 | BQ197: 26030.82242 | BR197: 25757.77939 | BS197: 26449.88909 | BT197: 26172.68772 | BU197: 26875.52781 | BV197: 26328.26524 | BW197: 26802.62157 | BX197: =BX153*BX4 -> 25472.52916 | BY197: 25812.71077 | BZ197: 25536.57831 | CA197: 26232.21857 | CB197: 25951.87329 | CC197: 26658.34216 | CD197: 26556.23081 | CE197: 27091.18401 | CF197: 22400.21319 | CG197: 19901.87374 | CH197: 19657.10852 | CI197: 20145.38557 | CJ197: 19897.42592 | CK197: 20394.07675 | CL197: 0 | CM197: 0 | CN197: 0 | CO197: 0 | CP197: 0 | CQ197: 0 | CR197: 0 | CS197: 0 | CT197: 0 | CU197: 0 | CV197: 0 | CW197: 0 | CX197: 0 | CY197: 0 | CZ197: 0 | DA197: 0 | DB197: 0 | DC197: 0 | DD197: 0 | DE197: 0 | DF197: 0 | DG197: 0 | DH197: 0 | DI197: 0 | DJ197: 0 | DK197: 0 | DL197: 0 | DM197: 0 | DN197: 0 | DO197: 0 | DP197: 0 | DQ197: 0
D198: PV of CFADS of Debt Repayment Period | E198: Sumproduct | F198: =SUMPRODUCT(L197:DQ197/L191:DQ191) -> 671772.3854
D199: Loan Size at COD | F199: =F193 -> 445238.9835
D200: LLCR Ratio | F200: =F198/F199 -> 1.508790583
C202: Average Debt Life
D203: Average Balance of Permanent Debt | L203: =AVERAGE(L117,L114) -> 0 | M203: =AVERAGE(M117,M114) -> 0 | N203: 0 | O203: 0 | P203: 0 | Q203: 0 | R203: 0 | S203: 0 | T203: 0 | U203: 0 | V203: 0 | W203: 0 | X203: 0 | Y203: 0 | Z203: 0 | AA203: 0 | AB203: 0 | AC203: 0 | AD203: 0 | AE203: 0 | AF203: 0 | AG203: 0 | AH203: 0 | AI203: 0 | AJ203: 0 | AK203: 0 | AL203: 0 | AM203: 0 | AN203: 0 | AO203: 0 | AP203: 0 | AQ203: 0 | AR203: 0 | AS203: 0 | AT203: 0 | AU203: 0 | AV203: 0 | AW203: 0 | AX203: 0 | AY203: 0 | AZ203: 0 | BA203: 0 | BB203: 0 | BC203: 222619.4918 | BD203: 438691.3514 | BE203: 425596.0872 | BF203: 412500.823 | BG203: 399405.5588 | BH203: 386310.2945 | BI203: 373215.0303 | BJ203: 360119.7661 | BK203: 347024.5019 | BL203: 333929.2376 | BM203: 320833.9734 | BN203: 307738.7092 | BO203: 294643.445 | BP203: 281548.1808 | BQ203: 268452.9165 | BR203: 255357.6523 | BS203: 242262.3881 | BT203: 229167.1239 | BU203: 216071.8597 | BV203: 202976.5954 | BW203: 189881.3312 | BX203: 176786.067 | BY203: =AVERAGE(BY117,BY114) -> 163690.8028 | BZ203: 150595.5385 | CA203: 137500.2743 | CB203: 124405.0101 | CC203: 111309.7459 | CD203: 98214.48166 | CE203: 85119.21744 | CF203: 72023.95322 | CG203: 58928.689 | CH203: 45833.42478 | CI203: 32738.16055 | CJ203: 19642.89633 | CK203: 6547.632111 | CL203: -1.709850039e-10 | CM203: -1.709850039e-10 | CN203: -1.709850039e-10 | CO203: -1.709850039e-10 | CP203: -1.709850039e-10 | CQ203: -1.709850039e-10 | CR203: -1.709850039e-10 | CS203: -1.709850039e-10 | CT203: -1.709850039e-10 | CU203: -1.709850039e-10 | CV203: -1.709850039e-10 | CW203: -1.709850039e-10 | CX203: -1.709850039e-10 | CY203: -1.709850039e-10 | CZ203: -1.709850039e-10 | DA203: -1.709850039e-10 | DB203: -1.709850039e-10 | DC203: -1.709850039e-10 | DD203: -1.709850039e-10 | DE203: -1.709850039e-10 | DF203: -1.709850039e-10 | DG203: -1.709850039e-10 | DH203: -1.709850039e-10 | DI203: -1.709850039e-10 | DJ203: -1.709850039e-10 | DK203: -1.709850039e-10 | DL203: -1.709850039e-10 | DM203: -1.709850039e-10 | DN203: -1.709850039e-10 | DO203: -1.709850039e-10 | DP203: -1.709850039e-10 | DQ203: -1.709850039e-10
D204: Debt Life - Sum of Balance/Initial | E204: Sumif | F204: =SUMIF(4:4,TRUE,203:203) -> 7569062.72 | G204: Initial | H204: =F199 -> 445238.9835
D205: Average Life | F205: =F204/H204/2 -> 8.5

Sheet Project Finance Analysis
E1: Project IRR | G1: ='Operations Monthly'!I158 -> 0.04965505805
L2: =K3+1 -> 2015-03-01 | M2: =L3+1 -> 2015-04-01 | N2: 2015-05-01 | O2: 2015-06-01 | P2: 2015-07-01 | Q2: 2015-08-01 | R2: 2015-09-01 | S2: 2015-10-01 | T2: 2015-11-01 | U2: 2015-12-01 | V2: 2016-01-01 | W2: 2016-02-01 | X2: 2016-03-01 | Y2: 2016-04-01 | Z2: 2016-05-01 | AA2: 2016-06-01 | AB2: 2016-07-01 | AC2: 2016-08-01 | AD2: 2016-09-01 | AE2: 2016-10-01 | AF2: 2016-11-01 | AG2: 2016-12-01 | AH2: 2017-01-01 | AI2: 2017-02-01 | AJ2: 2017-03-01 | AK2: 2017-04-01 | AL2: 2017-05-01 | AM2: 2017-06-01 | AN2: 2017-07-01 | AO2: 2017-08-01 | AP2: 2017-09-01 | AQ2: 2017-10-01 | AR2: 2017-11-01 | AS2: 2017-12-01 | AT2: 2018-01-01 | AU2: 2018-02-01 | AV2: 2018-03-01 | AW2: 2018-04-01 | AX2: 2018-05-01 | AY2: 2018-06-01 | AZ2: 2018-07-01 | BA2: 2018-08-01 | BB2: 2018-09-01 | BC2: 2018-10-01 | BD2: 2018-11-01 | BE2: 2019-05-01 | BF2: 2019-11-01 | BG2: 2020-05-01 | BH2: 2020-11-01 | BI2: 2021-05-01 | BJ2: 2021-11-01 | BK2: 2022-05-01 | BL2: 2022-11-01 | BM2: 2023-05-01 | BN2: 2023-11-01 | BO2: 2024-05-01 | BP2: 2024-11-01 | BQ2: 2025-05-01 | BR2: 2025-11-01 | BS2: 2026-05-01 | BT2: 2026-11-01 | BU2: 2027-05-01 | BV2: 2027-11-01 | BW2: 2028-05-01 | BX2: 2028-11-01 | BY2: =BX3+1 -> 2029-05-01 | BZ2: 2029-11-01 | CA2: 2030-05-01 | CB2: 2030-11-01 | CC2: 2031-05-01 | CD2: 2031-11-01 | CE2: 2032-05-01 | CF2: 2032-11-01 | CG2: 2033-05-01 | CH2: 2033-11-01 | CI2: 2034-05-01 | CJ2: 2034-11-01 | CK2: 2035-05-01 | CL2: 2035-11-01 | CM2: 2036-05-01 | CN2: 2036-11-01 | CO2: 2037-05-01 | CP2: 2037-11-01 | CQ2: 2038-05-01 | CR2: 2038-11-01 | CS2: 2039-05-01 | CT2: 2039-11-01 | CU2: 2040-05-01 | CV2: 2040-11-01 | CW2: 2041-05-01 | CX2: 2041-11-01 | CY2: 2042-05-01 | CZ2: 2042-11-01 | DA2: 2043-05-01 | DB2: 2043-11-01 | DC2: 2044-05-01 | DD2: 2044-11-01 | DE2: 2045-05-01 | DF2: 2045-11-01 | DG2: 2046-05-01 | DH2: 2046-11-01 | DI2: 2047-05-01 | DJ2: 2047-11-01 | DK2: 2048-05-01 | DL2: 2048-11-01 | DM2: 2049-05-01 | DN2: 2049-11-01 | DO2: 2050-05-01 | DP2: 2050-11-01 | DQ2: 2051-05-01
A3: Date | E3: COD | F3: ='Operations Monthly'!F20 -> 2018-11-01 | K3: ='Operations Monthly'!J3 -> 2015-02-28 | L3: =IF(K3+1<$F$3,EOMONTH(K3,1),EOMONTH(K3,6)) -> 2015-03-31 | M3: =IF(L3+1<$F$3,EOMONTH(L3,1),EOMONTH(L3,6)) -> 2015-04-30 | N3: 2015-05-31 | O3: 2015-06-30 | P3: 2015-07-31 | Q3: 2015-08-31 | R3: 2015-09-30 | S3: 2015-10-31 | T3: 2015-11-30 | U3: 2015-12-31 | V3: 2016-01-31 | W3: 2016-02-29 | X3: 2016-03-31 | Y3: 2016-04-30 | Z3: 2016-05-31 | AA3: 2016-06-30 | AB3: 2016-07-31 | AC3: 2016-08-31 | AD3: 2016-09-30 | AE3: 2016-10-31 | AF3: 2016-11-30 | AG3: 2016-12-31 | AH3: 2017-01-31 | AI3: 2017-02-28 | AJ3: 2017-03-31 | AK3: 2017-04-30 | AL3: 2017-05-31 | AM3: 2017-06-30 | AN3: 2017-07-31 | AO3: 2017-08-31 | AP3: 2017-09-30 | AQ3: 2017-10-31 | AR3: 2017-11-30 | AS3: 2017-12-31 | AT3: 2018-01-31 | AU3: 2018-02-28 | AV3: 2018-03-31 | AW3: 2018-04-30 | AX3: 2018-05-31 | AY3: 2018-06-30 | AZ3: 2018-07-31 | BA3: 2018-08-31 | BB3: 2018-09-30 | BC3: 2018-10-31 | BD3: 2019-04-30 | BE3: 2019-10-31 | BF3: 2020-04-30 | BG3: 2020-10-31 | BH3: 2021-04-30 | BI3: 2021-10-31 | BJ3: 2022-04-30 | BK3: 2022-10-31 | BL3: 2023-04-30 | BM3: 2023-10-31 | BN3: 2024-04-30 | BO3: 2024-10-31 | BP3: 2025-04-30 | BQ3: 2025-10-31 | BR3: 2026-04-30 | BS3: 2026-10-31 | BT3: 2027-04-30 | BU3: 2027-10-31 | BV3: 2028-04-30 | BW3: 2028-10-31 | BX3: 2029-04-30 | BY3: =IF(BX3+1<$F$3,EOMONTH(BX3,1),EOMONTH(BX3,6)) -> 2029-10-31 | BZ3: 2030-04-30 | CA3: 2030-10-31 | CB3: 2031-04-30 | CC3: 2031-10-31 | CD3: 2032-04-30 | CE3: 2032-10-31 | CF3: 2033-04-30 | CG3: 2033-10-31 | CH3: 2034-04-30 | CI3: 2034-10-31 | CJ3: 2035-04-30 | CK3: 2035-10-31 | CL3: 2036-04-30 | CM3: 2036-10-31 | CN3: 2037-04-30 | CO3: 2037-10-31 | CP3: 2038-04-30 | CQ3: 2038-10-31 | CR3: 2039-04-30 | CS3: 2039-10-31 | CT3: 2040-04-30 | CU3: 2040-10-31 | CV3: 2041-04-30 | CW3: 2041-10-31 | CX3: 2042-04-30 | CY3: 2042-10-31 | CZ3: 2043-04-30 | DA3: 2043-10-31 | DB3: 2044-04-30 | DC3: 2044-10-31 | DD3: 2045-04-30 | DE3: 2045-10-31 | DF3: 2046-04-30 | DG3: 2046-10-31 | DH3: 2047-04-30 | DI3: 2047-10-31 | DJ3: 2048-04-30 | DK3: 2048-10-31 | DL3: 2049-04-30 | DM3: 2049-10-31 | DN3: 2050-04-30 | DO3: 2050-10-31 | DP3: 2051-04-30 | DQ3: 2051-10-31
C4: Debt Repayment Switch | H4: =F3 -> 2018-11-01 | I4: =F25 -> 2035-11-01 | J4: =COUNTIF(L4:DQ4,TRUE)/2=F24 -> TRUE | L4: =AND(L2>=$H$4,L2<$I$4) -> FALSE | M4: =AND(M2>=$H$4,M2<$I$4) -> FALSE | N4: FALSE | O4: FALSE | P4: FALSE | Q4: FALSE | R4: FALSE | S4: FALSE | T4: FALSE | U4: FALSE | V4: FALSE | W4: FALSE | X4: FALSE | Y4: FALSE | Z4: FALSE | AA4: FALSE | AB4: FALSE | AC4: FALSE | AD4: FALSE | AE4: FALSE | AF4: FALSE | AG4: FALSE | AH4: FALSE | AI4: FALSE | AJ4: FALSE | AK4: FALSE | AL4: FALSE | AM4: FALSE | AN4: FALSE | AO4: FALSE | AP4: FALSE | AQ4: FALSE | AR4: FALSE | AS4: FALSE | AT4: FALSE | AU4: FALSE | AV4: FALSE | AW4: FALSE | AX4: FALSE | AY4: FALSE | AZ4: FALSE | BA4: FALSE | BB4: FALSE | BC4: FALSE | BD4: TRUE | BE4: TRUE | BF4: TRUE | BG4: TRUE | BH4: TRUE | BI4: TRUE | BJ4: TRUE | BK4: TRUE | BL4: TRUE | BM4: TRUE | BN4: TRUE | BO4: TRUE | BP4: TRUE | BQ4: TRUE | BR4: TRUE | BS4: TRUE | BT4: TRUE | BU4: TRUE | BV4: TRUE | BW4: TRUE | BX4: TRUE | BY4: =AND(BY2>=$H$4,BY2<$I$4) -> TRUE | BZ4: TRUE | CA4: TRUE | CB4: TRUE | CC4: TRUE | CD4: TRUE | CE4: TRUE | CF4: TRUE | CG4: TRUE | CH4: TRUE | CI4: TRUE | CJ4: TRUE | CK4: TRUE | CL4: FALSE | CM4: FALSE | CN4: FALSE | CO4: FALSE | CP4: FALSE | CQ4: FALSE | CR4: FALSE | CS4: FALSE | CT4: FALSE | CU4: FALSE | CV4: FALSE | CW4: FALSE | CX4: FALSE | CY4: FALSE | CZ4: FALSE | DA4: FALSE | DB4: FALSE | DC4: FALSE | DD4: FALSE | DE4: FALSE | DF4: FALSE | DG4: FALSE | DH4: FALSE | DI4: FALSE | DJ4: FALSE | DK4: FALSE | DL4: FALSE | DM4: FALSE | DN4: FALSE | DO4: FALSE | DP4: FALSE | DQ4: FALSE
C5: Re-financing at end of Construction | H5: =EOMONTH(F3,-1) -> 2018-10-31 | L5: =L3=$H$5 -> FALSE | M5: FALSE | N5: FALSE | O5: FALSE | P5: FALSE | Q5: FALSE | R5: FALSE | S5: FALSE | T5: FALSE | U5: FALSE | V5: FALSE | W5: FALSE | X5: FALSE | Y5: FALSE | Z5: FALSE | AA5: FALSE | AB5: FALSE | AC5: FALSE | AD5: FALSE | AE5: FALSE | AF5: FALSE | AG5: FALSE | AH5: FALSE | AI5: FALSE | AJ5: FALSE | AK5: FALSE | AL5: FALSE | AM5: FALSE | AN5: FALSE | AO5: FALSE | AP5: FALSE | AQ5: FALSE | AR5: =AR3=$H$5 -> FALSE | AS5: FALSE | AT5: FALSE | AU5: FALSE | AV5: FALSE | AW5: FALSE | AX5: FALSE | AY5: FALSE | AZ5: FALSE | BA5: FALSE | BB5: FALSE | BC5: TRUE | BD5: FALSE | BE5: FALSE | BF5: FALSE | BG5: FALSE | BH5: FALSE | BI5: FALSE | BJ5: FALSE | BK5: FALSE | BL5: FALSE | BM5: FALSE | BN5: FALSE | BO5: FALSE | BP5: FALSE | BQ5: FALSE | BR5: FALSE | BS5: FALSE | BT5: FALSE | BU5: FALSE | BV5: FALSE | BW5: FALSE | BX5: =BX3=$H$5 -> FALSE | BY5: FALSE | BZ5: FALSE | CA5: FALSE | CB5: FALSE | CC5: FALSE | CD5: FALSE | CE5: FALSE | CF5: FALSE | CG5: FALSE | CH5: FALSE | CI5: FALSE | CJ5: FALSE | CK5: FALSE | CL5: FALSE | CM5: FALSE | CN5: FALSE | CO5: FALSE | CP5: FALSE | CQ5: FALSE | CR5: FALSE | CS5: FALSE | CT5: FALSE | CU5: FALSE | CV5: FALSE | CW5: FALSE | CX5: FALSE | CY5: FALSE | CZ5: FALSE | DA5: FALSE | DB5: FALSE | DC5: FALSE | DD5: =DD3=$H$5 -> FALSE | DE5: FALSE | DF5: FALSE | DG5: FALSE | DH5: FALSE | DI5: FALSE | DJ5: FALSE | DK5: FALSE | DL5: FALSE | DM5: FALSE | DN5: FALSE | DO5: FALSE | DP5: FALSE | DQ5: FALSE
C6: Construction Switch | H6: =F3 -> 2018-11-01 | L6: =L2<$H$6 -> TRUE | M6: =M2<$H$6 -> TRUE | N6: TRUE | O6: TRUE | P6: TRUE | Q6: TRUE | R6: TRUE | S6: TRUE | T6: TRUE | U6: TRUE | V6: TRUE | W6: TRUE | X6: TRUE | Y6: TRUE | Z6: TRUE | AA6: TRUE | AB6: TRUE | AC6: TRUE | AD6: TRUE | AE6: TRUE | AF6: TRUE | AG6: TRUE | AH6: TRUE | AI6: TRUE | AJ6: TRUE | AK6: TRUE | AL6: TRUE | AM6: TRUE | AN6: TRUE | AO6: TRUE | AP6: TRUE | AQ6: TRUE | AR6: TRUE | AS6: TRUE | AT6: TRUE | AU6: TRUE | AV6: TRUE | AW6: TRUE | AX6: TRUE | AY6: TRUE | AZ6: TRUE | BA6: TRUE | BB6: TRUE | BC6: TRUE | BD6: FALSE | BE6: FALSE | BF6: FALSE | BG6: FALSE | BH6: FALSE | BI6: FALSE | BJ6: FALSE | BK6: FALSE | BL6: FALSE | BM6: FALSE | BN6: FALSE | BO6: FALSE | BP6: FALSE | BQ6: FALSE | BR6: FALSE | BS6: FALSE | BT6: FALSE | BU6: FALSE | BV6: FALSE | BW6: FALSE | BX6: FALSE | BY6: =BY2<$H$6 -> FALSE | BZ6: FALSE | CA6: FALSE | CB6: FALSE | CC6: FALSE | CD6: FALSE | CE6: FALSE | CF6: FALSE | CG6: FALSE | CH6: FALSE | CI6: FALSE | CJ6: FALSE | CK6: FALSE | CL6: FALSE | CM6: FALSE | CN6: FALSE | CO6: FALSE | CP6: FALSE | CQ6: FALSE | CR6: FALSE | CS6: FALSE | CT6: FALSE | CU6: FALSE | CV6: FALSE | CW6: FALSE | CX6: FALSE | CY6: FALSE | CZ6: FALSE | DA6: FALSE | DB6: FALSE | DC6: FALSE | DD6: FALSE | DE6: FALSE | DF6: FALSE | DG6: FALSE | DH6: FALSE | DI6: FALSE | DJ6: FALSE | DK6: FALSE | DL6: FALSE | DM6: FALSE | DN6: FALSE | DO6: FALSE | DP6: FALSE | DQ6: FALSE
C7: Months in Period | L7: =IF(L6,1,6) -> 1 | M7: =IF(M6,1,6) -> 1 | N7: 1 | O7: 1 | P7: 1 | Q7: 1 | R7: 1 | S7: 1 | T7: 1 | U7: 1 | V7: 1 | W7: 1 | X7: 1 | Y7: 1 | Z7: 1 | AA7: 1 | AB7: 1 | AC7: 1 | AD7: 1 | AE7: 1 | AF7: 1 | AG7: 1 | AH7: 1 | AI7: 1 | AJ7: 1 | AK7: 1 | AL7: 1 | AM7: 1 | AN7: 1 | AO7: 1 | AP7: 1 | AQ7: 1 | AR7: 1 | AS7: 1 | AT7: 1 | AU7: 1 | AV7: 1 | AW7: 1 | AX7: 1 | AY7: 1 | AZ7: 1 | BA7: 1 | BB7: 1 | BC7: 1 | BD7: 6 | BE7: 6 | BF7: 6 | BG7: 6 | BH7: 6 | BI7: 6 | BJ7: 6 | BK7: 6 | BL7: 6 | BM7: 6 | BN7: 6 | BO7: 6 | BP7: 6 | BQ7: 6 | BR7: 6 | BS7: 6 | BT7: 6 | BU7: 6 | BV7: 6 | BW7: 6 | BX7: 6 | BY7: =IF(BY6,1,6) -> 6 | BZ7: 6 | CA7: 6 | CB7: 6 | CC7: 6 | CD7: 6 | CE7: 6 | CF7: 6 | CG7: 6 | CH7: 6 | CI7: 6 | CJ7: 6 | CK7: 6 | CL7: 6 | CM7: 6 | CN7: 6 | CO7: 6 | CP7: 6 | CQ7: 6 | CR7: 6 | CS7: 6 | CT7: 6 | CU7: 6 | CV7: 6 | CW7: 6 | CX7: 6 | CY7: 6 | CZ7: 6 | DA7: 6 | DB7: 6 | DC7: 6 | DD7: 6 | DE7: 6 | DF7: 6 | DG7: 6 | DH7: 6 | DI7: 6 | DJ7: 6 | DK7: 6 | DL7: 6 | DM7: 6 | DN7: 6 | DO7: 6 | DP7: 6 | DQ7: 6
C8: Periods to Accumuate to a Year | L8: =12/L7 -> 12 | M8: =12/M7 -> 12 | N8: 12 | O8: 12 | P8: 12 | Q8: 12 | R8: 12 | S8: 12 | T8: 12 | U8: 12 | V8: 12 | W8: 12 | X8: 12 | Y8: 12 | Z8: 12 | AA8: 12 | AB8: 12 | AC8: 12 | AD8: 12 | AE8: 12 | AF8: 12 | AG8: 12 | AH8: 12 | AI8: 12 | AJ8: 12 | AK8: 12 | AL8: 12 | AM8: 12 | AN8: 12 | AO8: 12 | AP8: 12 | AQ8: 12 | AR8: 12 | AS8: 12 | AT8: 12 | AU8: 12 | AV8: 12 | AW8: 12 | AX8: 12 | AY8: 12 | AZ8: 12 | BA8: 12 | BB8: 12 | BC8: 12 | BD8: 2 | BE8: 2 | BF8: 2 | BG8: 2 | BH8: 2 | BI8: 2 | BJ8: 2 | BK8: 2 | BL8: 2 | BM8: 2 | BN8: 2 | BO8: 2 | BP8: 2 | BQ8: 2 | BR8: 2 | BS8: 2 | BT8: 2 | BU8: 2 | BV8: 2 | BW8: 2 | BX8: 2 | BY8: =12/BY7 -> 2 | BZ8: 2 | CA8: 2 | CB8: 2 | CC8: 2 | CD8: 2 | CE8: 2 | CF8: 2 | CG8: 2 | CH8: 2 | CI8: 2 | CJ8: 2 | CK8: 2 | CL8: 2 | CM8: 2 | CN8: 2 | CO8: 2 | CP8: 2 | CQ8: 2 | CR8: 2 | CS8: 2 | CT8: 2 | CU8: 2 | CV8: 2 | CW8: 2 | CX8: 2 | CY8: 2 | CZ8: 2 | DA8: 2 | DB8: 2 | DC8: 2 | DD8: 2 | DE8: 2 | DF8: 2 | DG8: 2 | DH8: 2 | DI8: 2 | DJ8: 2 | DK8: 2 | DL8: 2 | DM8: 2 | DN8: 2 | DO8: 2 | DP8: 2 | DQ8: 2
C9: COD Switch | H9: =F3 -> 2018-11-01 | L9: =L2=$H$9 -> FALSE | M9: =M2=$H$9 -> FALSE | N9: FALSE | O9: FALSE | P9: FALSE | Q9: FALSE | R9: FALSE | S9: FALSE | T9: FALSE | U9: FALSE | V9: FALSE | W9: FALSE | X9: FALSE | Y9: FALSE | Z9: FALSE | AA9: FALSE | AB9: FALSE | AC9: FALSE | AD9: FALSE | AE9: FALSE | AF9: FALSE | AG9: FALSE | AH9: FALSE | AI9: FALSE | AJ9: FALSE | AK9: FALSE | AL9: FALSE | AM9: FALSE | AN9: FALSE | AO9: FALSE | AP9: FALSE | AQ9: FALSE | AR9: FALSE | AS9: FALSE | AT9: FALSE | AU9: FALSE | AV9: FALSE | AW9: FALSE | AX9: FALSE | AY9: FALSE | AZ9: FALSE | BA9: FALSE | BB9: FALSE | BC9: FALSE | BD9: TRUE | BE9: FALSE | BF9: FALSE | BG9: FALSE | BH9: FALSE | BI9: FALSE | BJ9: FALSE | BK9: FALSE | BL9: FALSE | BM9: FALSE | BN9: FALSE | BO9: FALSE | BP9: FALSE | BQ9: FALSE | BR9: FALSE | BS9: FALSE | BT9: FALSE | BU9: FALSE | BV9: FALSE | BW9: FALSE | BX9: FALSE | BY9: =BY2=$H$9 -> FALSE | BZ9: FALSE | CA9: FALSE | CB9: FALSE | CC9: FALSE | CD9: FALSE | CE9: FALSE | CF9: FALSE | CG9: FALSE | CH9: FALSE | CI9: FALSE | CJ9: FALSE | CK9: FALSE | CL9: FALSE | CM9: FALSE | CN9: FALSE | CO9: FALSE | CP9: FALSE | CQ9: FALSE | CR9: FALSE | CS9: FALSE | CT9: FALSE | CU9: FALSE | CV9: FALSE | CW9: FALSE | CX9: FALSE | CY9: FALSE | CZ9: FALSE | DA9: FALSE | DB9: FALSE | DC9: FALSE | DD9: FALSE | DE9: FALSE | DF9: FALSE | DG9: FALSE | DH9: FALSE | DI9: FALSE | DJ9: FALSE | DK9: FALSE | DL9: FALSE | DM9: FALSE | DN9: FALSE | DO9: FALSE | DP9: FALSE | DQ9: FALSE
C10: Year | L10: =YEAR(L2) -> 2015 | M10: =YEAR(M2) -> 2015 | N10: 2015 | O10: 2015 | P10: 2015 | Q10: 2015 | R10: 2015 | S10: 2015 | T10: 2015 | U10: 2015 | V10: 2016 | W10: 2016 | X10: 2016 | Y10: 2016 | Z10: 2016 | AA10: 2016 | AB10: 2016 | AC10: 2016 | AD10: 2016 | AE10: 2016 | AF10: 2016 | AG10: 2016 | AH10: 2017 | AI10: 2017 | AJ10: 2017 | AK10: 2017 | AL10: 2017 | AM10: 2017 | AN10: 2017 | AO10: 2017 | AP10: 2017 | AQ10: 2017 | AR10: 2017 | AS10: 2017 | AT10: 2018 | AU10: 2018 | AV10: 2018 | AW10: 2018 | AX10: 2018 | AY10: 2018 | AZ10: 2018 | BA10: 2018 | BB10: 2018 | BC10: 2018 | BD10: 2018 | BE10: 2019 | BF10: 2019 | BG10: 2020 | BH10: 2020 | BI10: 2021 | BJ10: 2021 | BK10: 2022 | BL10: 2022 | BM10: 2023 | BN10: 2023 | BO10: 2024 | BP10: 2024 | BQ10: 2025 | BR10: 2025 | BS10: 2026 | BT10: 2026 | BU10: 2027 | BV10: 2027 | BW10: 2028 | BX10: 2028 | BY10: =YEAR(BY2) -> 2029 | BZ10: 2029 | CA10: 2030 | CB10: 2030 | CC10: 2031 | CD10: 2031 | CE10: 2032 | CF10: 2032 | CG10: 2033 | CH10: 2033 | CI10: 2034 | CJ10: 2034 | CK10: 2035 | CL10: 2035 | CM10: 2036 | CN10: 2036 | CO10: 2037 | CP10: 2037 | CQ10: 2038 | CR10: 2038 | CS10: 2039 | CT10: 2039 | CU10: 2040 | CV10: 2040 | CW10: 2041 | CX10: 2041 | CY10: 2042 | CZ10: 2042 | DA10: 2043 | DB10: 2043 | DC10: 2044 | DD10: 2044 | DE10: 2045 | DF10: 2045 | DG10: 2046 | DH10: 2046 | DI10: 2047 | DJ10: 2047 | DK10: 2048 | DL10: 2048 | DM10: 2049 | DN10: 2049 | DO10: 2050 | DP10: 2050 | DQ10: 2051
A12: Financing Inputs | E12: Units
B13: Debt Sizing | G13: Fixed Amt | H13: Computed | I13: Difference | K13: Applied
C14: Maximum Debt to Capital | E14: Pct | F14: 0.7 | G14: 445238.9835 | H14: =F14*G59 -> 445238.9835 | I14: =G14-H14 -> 0 | K14: TRUE
C15: Target Minimum DSCR | E15: Times | F15: 1.2 | G15: 426565.5422 | H15: =F188 -> 1.148881707 | I15: =H15-F15 -> -0.05111829331 | K15: =NOT(K14) -> FALSE
C16: Applied Debt | G16: =IF(K14,fixed1,fixed2) -> 445238.9835
B18: Debt Funding
C19: Pro-Rata | E19: Switch | F19: TRUE
C20: Equity First | F20: =NOT(F19) -> FALSE
C21: Capitalise Interest | F21: FALSE
B23: Debt Repayment
C24: Debt Tenor | E24: Years | F24: 17
C25: End of Debt Term | E25: Date | F25: =EDATE(F3,F24*12) -> 2035-11-01
C27: Level Repayment | F27: TRUE
C28: Annuity Repayment | F28: FALSE
C29: Sculpted Repayment | F29: FALSE
B31: Interest and Fees
C32: EURIBOR | F32: 0.012
C33: Credit Spread | F33: 0.013
C35: Commitment Fee | F35: =F33*0.4 -> 0.0052
C36: Up-Front Fee | F36: 0.01
B38: Credit Support and Enhancements
C39: Dividend Lock-up | F39: 1.15
C40: Cash Flow Sweep | F40: 0
C41: DSRA Months | F41: 0
C42: Interest Income Rate | F42: 0.005
A44: Transferred Variables
C45: EBITDA | L45: =SUMIF('Operations Monthly'!$15:$15,'Project Finance Analysis'!L$3,'Operations Monthly'!127:127) -> 0 | M45: =SUMIF('Operations Monthly'!$15:$15,'Project Finance Analysis'!M$3,'Operations Monthly'!127:127) -> 0 | N45: =SUMIF('Operations Monthly'!$15:$15,'Project Finance Analysis'!N$3,'Operations Monthly'!127:127) -> 0 | O45: =SUMIF('Operations Monthly'!$15:$15,'Project Finance Analysis'!O$3,'Operations Monthly'!127:127) -> 0 | P45: =SUMIF('Operations Monthly'!$15:$15,'Project Finance Analysis'!P$3,'Operations Monthly'!127:127) -> 0 | Q45: =SUMIF('Operations Monthly'!$15:$15,'Project Finance Analysis'!Q$3,'Operations Monthly'!127:127) -> 0 | R45: =SUMIF('Operations Monthly'!$15:$15,'Project Finance Analysis'!R$3,'Operations Monthly'!127:127) -> 0 | S45: =SUMIF('Operations Monthly'!$15:$15,'Project Finance Analysis'!S$3,'Operations Monthly'!127:127) -> 0 | T45: =SUMIF('Operations Monthly'!$15:$15,'Project Finance Analysis'!T$3,'Operations Monthly'!127:127) -> 0 | U45: =SUMIF('Operations Monthly'!$15:$15,'Project Finance Analysis'!U$3,'Operations Monthly'!127:127) -> 0 | V45: =SUMIF('Operations Monthly'!$15:$15,'Project Finance Analysis'!V$3,'Operations Monthly'!127:127) -> 0 | W45: =SUMIF('Operations Monthly'!$15:$15,'Project Finance Analysis'!W$3,'Operations Monthly'!127:127) -> 0 | X45: =SUMIF('Operations Monthly'!$15:$15,'Project Finance Analysis'!X$3,'Operations Monthly'!127:127) -> 0 | Y45: =SUMIF('Operations Monthly'!$15:$15,'Project Finance Analysis'!Y$3,'Operations Monthly'!127:127) -> 0 | Z45: =SUMIF('Operations Monthly'!$15:$15,'Project Finance Analysis'!Z$3,'Operations Monthly'!127:127) -> 0 | AA45: =SUMIF('Operations Monthly'!$15:$15,'Project Finance Analysis'!AA$3,'Operations Monthly'!127:127) -> 0 | AB45: =SUMIF('Operations Monthly'!$15:$15,'Project Finance Analysis'!AB$3,'Operations Monthly'!127:127) -> 0 | AC45: =SUMIF('Operations Monthly'!$15:$15,'Project Finance Analysis'!AC$3,'Operations Monthly'!127:127) -> 0 | AD45: =SUMIF('Operations Monthly'!$15:$15,'Project Finance Analysis'!AD$3,'Operations Monthly'!127:127) -> 0 | AE45: =SUMIF('Operations Monthly'!$15:$15,'Project Finance Analysis'!AE$3,'Operations Monthly'!127:127) -> 0 | AF45: =SUMIF('Operations Monthly'!$15:$15,'Project Finance Analysis'!AF$3,'Operations Monthly'!127:127) -> 0 | AG45: =SUMIF('Operations Monthly'!$15:$15,'Project Finance Analysis'!AG$3,'Operations Monthly'!127:127) -> 0 | AH45: =SUMIF('Operations Monthly'!$15:$15,'Project Finance Analysis'!AH$3,'Operations Monthly'!127:127) -> 0 | AI45: =SUMIF('Operations Monthly'!$15:$15,'Project Finance Analysis'!AI$3,'Operations Monthly'!127:127) -> 0 | AJ45: =SUMIF('Operations Monthly'!$15:$15,'Project Finance Analysis'!AJ$3,'Operations Monthly'!127:127) -> 0 | AK45: =SUMIF('Operations Monthly'!$15:$15,'Project Finance Analysis'!AK$3,'Operations Monthly'!127:127) -> 0 | AL45: =SUMIF('Operations Monthly'!$15:$15,'Project Finance Analysis'!AL$3,'Operations Monthly'!127:127) -> 0 | AM45: =SUMIF('Operations Monthly'!$15:$15,'Project Finance Analysis'!AM$3,'Operations Monthly'!127:127) -> 0 | AN45: =SUMIF('Operations Monthly'!$15:$15,'Project Finance Analysis'!AN$3,'Operations Monthly'!127:127) -> 0 | AO45: =SUMIF('Operations Monthly'!$15:$15,'Project Finance Analysis'!AO$3,'Operations Monthly'!127:127) -> 0 | AP45: =SUMIF('Operations Monthly'!$15:$15,'Project Finance Analysis'!AP$3,'Operations Monthly'!127:127) -> 0 | AQ45: =SUMIF('Operations Monthly'!$15:$15,'Project Finance Analysis'!AQ$3,'Operations Monthly'!127:127) -> 0 | AR45: =SUMIF('Operations Monthly'!$15:$15,'Project Finance Analysis'!AR$3,'Operations Monthly'!127:127) -> 0 | AS45: =SUMIF('Operations Monthly'!$15:$15,'Project Finance Analysis'!AS$3,'Operations Monthly'!127:127) -> 0 | AT45: =SUMIF('Operations Monthly'!$15:$15,'Project Finance Analysis'!AT$3,'Operations Monthly'!127:127) -> 0 | AU45: =SUMIF('Operations Monthly'!$15:$15,'Project Finance Analysis'!AU$3,'Operations Monthly'!127:127) -> 0 | AV45: =SUMIF('Operations Monthly'!$15:$15,'Project Finance Analysis'!AV$3,'Operations Monthly'!127:127) -> 0 | AW45: =SUMIF('Operations Monthly'!$15:$15,'Project Finance Analysis'!AW$3,'Operations Monthly'!127:127) -> 0 | AX45: =SUMIF('Operations Monthly'!$15:$15,'Project Finance Analysis'!AX$3,'Operations Monthly'!127:127) -> 0 | AY45: =SUMIF('Operations Monthly'!$15:$15,'Project Finance Analysis'!AY$3,'Operations Monthly'!127:127) -> 0 | AZ45: =SUMIF('Operations Monthly'!$15:$15,'Project Finance Analysis'!AZ$3,'Operations Monthly'!127:127) -> 0 | BA45: =SUMIF('Operations Monthly'!$15:$15,'Project Finance Analysis'!BA$3,'Operations Monthly'!127:127) -> 0 | BB45: =SUMIF('Operations Monthly'!$15:$15,'Project Finance Analysis'!BB$3,'Operations Monthly'!127:127) -> 0 | BC45: =SUMIF('Operations Monthly'!$15:$15,'Project Finance Analysis'!BC$3,'Operations Monthly'!127:127) -> 0 | BD45: =SUMIF('Operations Monthly'!$15:$15,'Project Finance Analysis'!BD$3,'Operations Monthly'!127:127) -> 21438.99605 | BE45: =SUMIF('Operations Monthly'!$15:$15,'Project Finance Analysis'!BE$3,'Operations Monthly'!127:127) -> 21988.52798 | BF45: =SUMIF('Operations Monthly'!$15:$15,'Project Finance Analysis'!BF$3,'Operations Monthly'!127:127) -> 23447.60419 | BG45: =SUMIF('Operations Monthly'!$15:$15,'Project Finance Analysis'!BG$3,'Operations Monthly'!127:127) -> 23883.2696 | BH45: =SUMIF('Operations Monthly'!$15:$15,'Project Finance Analysis'!BH$3,'Operations Monthly'!127:127) -> 23521.92612 | BI45: =SUMIF('Operations Monthly'!$15:$15,'Project Finance Analysis'!BI$3,'Operations Monthly'!127:127) -> 24122.1023 | BJ45: =SUMIF('Operations Monthly'!$15:$15,'Project Finance Analysis'!BJ$3,'Operations Monthly'!127:127) -> 23777.14431 | BK45: =SUMIF('Operations Monthly'!$15:$15,'Project Finance Analysis'!BK$3,'Operations Monthly'!127:127) -> 24455.78464 | BL45: =SUMIF('Operations Monthly'!$15:$15,'Project Finance Analysis'!BL$3,'Operations Monthly'!127:127) -> 24441.18324 | BM45: =SUMIF('Operations Monthly'!$15:$15,'Project Finance Analysis'!BM$3,'Operations Monthly'!127:127) -> 25285.17826 | BN45: =SUMIF('Operations Monthly'!$15:$15,'Project Finance Analysis'!BN$3,'Operations Monthly'!127:127) -> 25149.67247 | BO45: =SUMIF('Operations Monthly'!$15:$15,'Project Finance Analysis'!BO$3,'Operations Monthly'!127:127) -> 25692.41169 | BP45: =SUMIF('Operations Monthly'!$15:$15,'Project Finance Analysis'!BP$3,'Operations Monthly'!127:127) -> 25383.31075 | BQ45: =SUMIF('Operations Monthly'!$15:$15,'Project Finance Analysis'!BQ$3,'Operations Monthly'!127:127) -> 26106.03318 | BR45: =SUMIF('Operations Monthly'!$15:$15,'Project Finance Analysis'!BR$3,'Operations Monthly'!127:127) -> 25792.43655 | BS45: =SUMIF('Operations Monthly'!$15:$15,'Project Finance Analysis'!BS$3,'Operations Monthly'!127:127) -> 26526.14135 | BT45: =SUMIF('Operations Monthly'!$15:$15,'Project Finance Analysis'!BT$3,'Operations Monthly'!127:127) -> 26207.983 | BU45: =SUMIF('Operations Monthly'!$15:$15,'Project Finance Analysis'!BU$3,'Operations Monthly'!127:127) -> 26952.83631 | BV45: =SUMIF('Operations Monthly'!$15:$15,'Project Finance Analysis'!BV$3,'Operations Monthly'!127:127) -> 26308.40634 | BW45: =SUMIF('Operations Monthly'!$15:$15,'Project Finance Analysis'!BW$3,'Operations Monthly'!127:127) -> 26882.53205 | BX45: =SUMIF('Operations Monthly'!$15:$15,'Project Finance Analysis'!BX$3,'Operations Monthly'!127:127) -> 25159.67408 | BY45: =SUMIF('Operations Monthly'!$15:$15,'Project Finance Analysis'!BY$3,'Operations Monthly'!127:127) -> 25891.12738 | BZ45: =SUMIF('Operations Monthly'!$15:$15,'Project Finance Analysis'!BZ$3,'Operations Monthly'!127:127) -> 25569.12852 | CA45: =SUMIF('Operations Monthly'!$15:$15,'Project Finance Analysis'!CA$3,'Operations Monthly'!127:127) -> 26311.71351 | CB45: =SUMIF('Operations Monthly'!$15:$15,'Project Finance Analysis'!CB$3,'Operations Monthly'!127:127) -> 25985.04536 | CC45: =SUMIF('Operations Monthly'!$15:$15,'Project Finance Analysis'!CC$3,'Operations Monthly'!127:127) -> 26738.93062 | CD45: =SUMIF('Operations Monthly'!$15:$15,'Project Finance Analysis'!CD$3,'Operations Monthly'!127:127) -> 26590.03541 | CE45: =SUMIF('Operations Monthly'!$15:$15,'Project Finance Analysis'!CE$3,'Operations Monthly'!127:127) -> 27172.88141 | CF45: =SUMIF('Operations Monthly'!$15:$15,'Project Finance Analysis'!CF$3,'Operations Monthly'!127:127) -> 25607.57666 | CG45: =SUMIF('Operations Monthly'!$15:$15,'Project Finance Analysis'!CG$3,'Operations Monthly'!127:127) -> 26378.44823 | CH45: =SUMIF('Operations Monthly'!$15:$15,'Project Finance Analysis'!CH$3,'Operations Monthly'!127:127) -> 26031.19683 | CI45: =SUMIF('Operations Monthly'!$15:$15,'Project Finance Analysis'!CI$3,'Operations Monthly'!127:127) -> 26813.82851 | CJ45: =SUMIF('Operations Monthly'!$15:$15,'Project Finance Analysis'!CJ$3,'Operations Monthly'!127:127) -> 26461.56636 | CK45: =SUMIF('Operations Monthly'!$15:$15,'Project Finance Analysis'!CK$3,'Operations Monthly'!127:127) -> 27256.13654 | CL45: =SUMIF('Operations Monthly'!$15:$15,'Project Finance Analysis'!CL$3,'Operations Monthly'!127:127) -> 27092.50061 | CM45: =SUMIF('Operations Monthly'!$15:$15,'Project Finance Analysis'!CM$3,'Operations Monthly'!127:127) -> 27705.48019 | CN45: =SUMIF('Operations Monthly'!$15:$15,'Project Finance Analysis'!CN$3,'Operations Monthly'!127:127) -> 27342.97592 | CO45: =SUMIF('Operations Monthly'!$15:$15,'Project Finance Analysis'!CO$3,'Operations Monthly'!127:127) -> 28161.96901 | CP45: =SUMIF('Operations Monthly'!$15:$15,'Project Finance Analysis'!CP$3,'Operations Monthly'!127:127) -> 27794.2312 | CQ45: =SUMIF('Operations Monthly'!$15:$15,'Project Finance Analysis'!CQ$3,'Operations Monthly'!127:127) -> 28625.71423 | CR45: =SUMIF('Operations Monthly'!$15:$15,'Project Finance Analysis'!CR$3,'Operations Monthly'!127:127) -> 28252.66642 | CS45: =SUMIF('Operations Monthly'!$15:$15,'Project Finance Analysis'!CS$3,'Operations Monthly'!127:127) -> 28730.01369 | CT45: =SUMIF('Operations Monthly'!$15:$15,'Project Finance Analysis'!CT$3,'Operations Monthly'!127:127) -> 27824.12976 | CU45: =SUMIF('Operations Monthly'!$15:$15,'Project Finance Analysis'!CU$3,'Operations Monthly'!127:127) -> 28455.16424 | CV45: =SUMIF('Operations Monthly'!$15:$15,'Project Finance Analysis'!CV$3,'Operations Monthly'!127:127) -> 28081.30487 | CW45: =SUMIF('Operations Monthly'!$15:$15,'Project Finance Analysis'!CW$3,'Operations Monthly'!127:127) -> 28924.5593 | CX45: =SUMIF('Operations Monthly'!$15:$15,'Project Finance Analysis'!CX$3,'Operations Monthly'!127:127) -> 28545.30434 | CY45: =SUMIF('Operations Monthly'!$15:$15,'Project Finance Analysis'!CY$3,'Operations Monthly'!127:127) -> 29401.42095 | CZ45: =SUMIF('Operations Monthly'!$15:$15,'Project Finance Analysis'!CZ$3,'Operations Monthly'!127:127) -> 29016.69161 | DA45: =SUMIF('Operations Monthly'!$15:$15,'Project Finance Analysis'!DA$3,'Operations Monthly'!127:127) -> 29885.86547 | DB45: =SUMIF('Operations Monthly'!$15:$15,'Project Finance Analysis'!DB$3,'Operations Monthly'!127:127) -> 0 | DC45: =SUMIF('Operations Monthly'!$15:$15,'Project Finance Analysis'!DC$3,'Operations Monthly'!127:127) -> 0 | DD45: =SUMIF('Operations Monthly'!$15:$15,'Project Finance Analysis'!DD$3,'Operations Monthly'!127:127) -> 0 | DE45: =SUMIF('Operations Monthly'!$15:$15,'Project Finance Analysis'!DE$3,'Operations Monthly'!127:127) -> 0 | DF45: =SUMIF('Operations Monthly'!$15:$15,'Project Finance Analysis'!DF$3,'Operations Monthly'!127:127) -> 0 | DG45: =SUMIF('Operations Monthly'!$15:$15,'Project Finance Analysis'!DG$3,'Operations Monthly'!127:127) -> 0 | DH45: =SUMIF('Operations Monthly'!$15:$15,'Project Finance Analysis'!DH$3,'Operations Monthly'!127:127) -> 0 | DI45: =SUMIF('Operations Monthly'!$15:$15,'Project Finance Analysis'!DI$3,'Operations Monthly'!127:127) -> 0 | DJ45: =SUMIF('Operations Monthly'!$15:$15,'Project Finance Analysis'!DJ$3,'Operations Monthly'!127:127) -> 0 | DK45: =SUMIF('Operations Monthly'!$15:$15,'Project Finance Analysis'!DK$3,'Operations Monthly'!127:127) -> 0 | DL45: =SUMIF('Operations Monthly'!$15:$15,'Project Finance Analysis'!DL$3,'Operations Monthly'!127:127) -> 0 | DM45: =SUMIF('Operations Monthly'!$15:$15,'Project Finance Analysis'!DM$3,'Operations Monthly'!127:127) -> 0 | DN45: =SUMIF('Operations Monthly'!$15:$15,'Project Finance Analysis'!DN$3,'Operations Monthly'!127:127) -> 0 | DO45: =SUMIF('Operations Monthly'!$15:$15,'Project Finance Analysis'!DO$3,'Operations Monthly'!127:127) -> 0 | DP45: =SUMIF('Operations Monthly'!$15:$15,'Project Finance Analysis'!DP$3,'Operations Monthly'!127:127) -> 0 | DQ45: =SUMIF('Operations Monthly'!$15:$15,'Project Finance Analysis'!DQ$3,'Operations Monthly'!127:127) -> 0
C46: Capital Expenditures | L46: =-SUMIF('Operations Monthly'!$15:$15,'Project Finance Analysis'!L$3,'Operations Monthly'!128:128) -> 10000 | M46: =-SUMIF('Operations Monthly'!$15:$15,'Project Finance Analysis'!M$3,'Operations Monthly'!128:128) -> 10000 | N46: =-SUMIF('Operations Monthly'!$15:$15,'Project Finance Analysis'!N$3,'Operations Monthly'!128:128) -> 10000 | O46: =-SUMIF('Operations Monthly'!$15:$15,'Project Finance Analysis'!O$3,'Operations Monthly'!128:128) -> 10000 | P46: =-SUMIF('Operations Monthly'!$15:$15,'Project Finance Analysis'!P$3,'Operations Monthly'!128:128) -> 10000 | Q46: =-SUMIF('Operations Monthly'!$15:$15,'Project Finance Analysis'!Q$3,'Operations Monthly'!128:128) -> 10000 | R46: =-SUMIF('Operations Monthly'!$15:$15,'Project Finance Analysis'!R$3,'Operations Monthly'!128:128) -> 10000 | S46: =-SUMIF('Operations Monthly'!$15:$15,'Project Finance Analysis'!S$3,'Operations Monthly'!128:128) -> 10000 | T46: =-SUMIF('Operations Monthly'!$15:$15,'Project Finance Analysis'!T$3,'Operations Monthly'!128:128) -> 10000 | U46: =-SUMIF('Operations Monthly'!$15:$15,'Project Finance Analysis'!U$3,'Operations Monthly'!128:128) -> 10000 | V46: =-SUMIF('Operations Monthly'!$15:$15,'Project Finance Analysis'!V$3,'Operations Monthly'!128:128) -> 10000 | W46: =-SUMIF('Operations Monthly'!$15:$15,'Project Finance Analysis'!W$3,'Operations Monthly'!128:128) -> 10000 | X46: =-SUMIF('Operations Monthly'!$15:$15,'Project Finance Analysis'!X$3,'Operations Monthly'!128:128) -> 32500 | Y46: =-SUMIF('Operations Monthly'!$15:$15,'Project Finance Analysis'!Y$3,'Operations Monthly'!128:128) -> 32500 | Z46: =-SUMIF('Operations Monthly'!$15:$15,'Project Finance Analysis'!Z$3,'Operations Monthly'!128:128) -> 32500 | AA46: =-SUMIF('Operations Monthly'!$15:$15,'Project Finance Analysis'!AA$3,'Operations Monthly'!128:128) -> 32500 | AB46: =-SUMIF('Operations Monthly'!$15:$15,'Project Finance Analysis'!AB$3,'Operations Monthly'!128:128) -> 32500 | AC46: =-SUMIF('Operations Monthly'!$15:$15,'Project Finance Analysis'!AC$3,'Operations Monthly'!128:128) -> 32500 | AD46: =-SUMIF('Operations Monthly'!$15:$15,'Project Finance Analysis'!AD$3,'Operations Monthly'!128:128) -> 32500 | AE46: =-SUMIF('Operations Monthly'!$15:$15,'Project Finance Analysis'!AE$3,'Operations Monthly'!128:128) -> 32500 | AF46: =-SUMIF('Operations Monthly'!$15:$15,'Project Finance Analysis'!AF$3,'Operations Monthly'!128:128) -> 32500 | AG46: =-SUMIF('Operations Monthly'!$15:$15,'Project Finance Analysis'!AG$3,'Operations Monthly'!128:128) -> 32500 | AH46: =-SUMIF('Operations Monthly'!$15:$15,'Project Finance Analysis'!AH$3,'Operations Monthly'!128:128) -> 32500 | AI46: =-SUMIF('Operations Monthly'!$15:$15,'Project Finance Analysis'!AI$3,'Operations Monthly'!128:128) -> 32500 | AJ46: =-SUMIF('Operations Monthly'!$15:$15,'Project Finance Analysis'!AJ$3,'Operations Monthly'!128:128) -> 7500 | AK46: =-SUMIF('Operations Monthly'!$15:$15,'Project Finance Analysis'!AK$3,'Operations Monthly'!128:128) -> 7500 | AL46: =-SUMIF('Operations Monthly'!$15:$15,'Project Finance Analysis'!AL$3,'Operations Monthly'!128:128) -> 7500 | AM46: =-SUMIF('Operations Monthly'!$15:$15,'Project Finance Analysis'!AM$3,'Operations Monthly'!128:128) -> 7500 | AN46: =-SUMIF('Operations Monthly'!$15:$15,'Project Finance Analysis'!AN$3,'Operations Monthly'!128:128) -> 7500 | AO46: =-SUMIF('Operations Monthly'!$15:$15,'Project Finance Analysis'!AO$3,'Operations Monthly'!128:128) -> 7500 | AP46: =-SUMIF('Operations Monthly'!$15:$15,'Project Finance Analysis'!AP$3,'Operations Monthly'!128:128) -> 7500 | AQ46: =-SUMIF('Operations Monthly'!$15:$15,'Project Finance Analysis'!AQ$3,'Operations Monthly'!128:128) -> 7500 | AR46: =-SUMIF('Operations Monthly'!$15:$15,'Project Finance Analysis'!AR$3,'Operations Monthly'!128:128) -> 7500 | AS46: =-SUMIF('Operations Monthly'!$15:$15,'Project Finance Analysis'!AS$3,'Operations Monthly'!128:128) -> 7500 | AT46: =-SUMIF('Operations Monthly'!$15:$15,'Project Finance Analysis'!AT$3,'Operations Monthly'!128:128) -> 7500 | AU46: =-SUMIF('Operations Monthly'!$15:$15,'Project Finance Analysis'!AU$3,'Operations Monthly'!128:128) -> 7500 | AV46: =-SUMIF('Operations Monthly'!$15:$15,'Project Finance Analysis'!AV$3,'Operations Monthly'!128:128) -> 0 | AW46: =-SUMIF('Operations Monthly'!$15:$15,'Project Finance Analysis'!AW$3,'Operations Monthly'!128:128) -> 0 | AX46: =-SUMIF('Operations Monthly'!$15:$15,'Project Finance Analysis'!AX$3,'Operations Monthly'!128:128) -> 0 | AY46: =-SUMIF('Operations Monthly'!$15:$15,'Project Finance Analysis'!AY$3,'Operations Monthly'!128:128) -> 0 | AZ46: =-SUMIF('Operations Monthly'!$15:$15,'Project Finance Analysis'!AZ$3,'Operations Monthly'!128:128) -> 0 | BA46: =-SUMIF('Operations Monthly'!$15:$15,'Project Finance Analysis'!BA$3,'Operations Monthly'!128:128) -> 0 | BB46: =-SUMIF('Operations Monthly'!$15:$15,'Project Finance Analysis'!BB$3,'Operations Monthly'!128:128) -> 0 | BC46: =-SUMIF('Operations Monthly'!$15:$15,'Project Finance Analysis'!BC$3,'Operations Monthly'!128:128) -> 1.33226763e-10 | BD46: =-SUMIF('Operations Monthly'!$15:$15,'Project Finance Analysis'!BD$3,'Operations Monthly'!128:128) -> 0 | BE46: =-SUMIF('Operations Monthly'!$15:$15,'Project Finance Analysis'!BE$3,'Operations Monthly'!128:128) -> 0 | BF46: =-SUMIF('Operations Monthly'!$15:$15,'Project Finance Analysis'!BF$3,'Operations Monthly'!128:128) -> 0 | BG46: =-SUMIF('Operations Monthly'!$15:$15,'Project Finance Analysis'!BG$3,'Operations Monthly'!128:128) -> 0 | BH46: =-SUMIF('Operations Monthly'!$15:$15,'Project Finance Analysis'!BH$3,'Operations Monthly'!128:128) -> 0 | BI46: =-SUMIF('Operations Monthly'!$15:$15,'Project Finance Analysis'!BI$3,'Operations Monthly'!128:128) -> 0 | BJ46: =-SUMIF('Operations Monthly'!$15:$15,'Project Finance Analysis'!BJ$3,'Operations Monthly'!128:128) -> 0 | BK46: =-SUMIF('Operations Monthly'!$15:$15,'Project Finance Analysis'!BK$3,'Operations Monthly'!128:128) -> 0 | BL46: =-SUMIF('Operations Monthly'!$15:$15,'Project Finance Analysis'!BL$3,'Operations Monthly'!128:128) -> 0 | BM46: =-SUMIF('Operations Monthly'!$15:$15,'Project Finance Analysis'!BM$3,'Operations Monthly'!128:128) -> 0 | BN46: =-SUMIF('Operations Monthly'!$15:$15,'Project Finance Analysis'!BN$3,'Operations Monthly'!128:128) -> 0 | BO46: =-SUMIF('Operations Monthly'!$15:$15,'Project Finance Analysis'!BO$3,'Operations Monthly'!128:128) -> 0 | BP46: =-SUMIF('Operations Monthly'!$15:$15,'Project Finance Analysis'!BP$3,'Operations Monthly'!128:128) -> 0 | BQ46: =-SUMIF('Operations Monthly'!$15:$15,'Project Finance Analysis'!BQ$3,'Operations Monthly'!128:128) -> 0 | BR46: =-SUMIF('Operations Monthly'!$15:$15,'Project Finance Analysis'!BR$3,'Operations Monthly'!128:128) -> 0 | BS46: =-SUMIF('Operations Monthly'!$15:$15,'Project Finance Analysis'!BS$3,'Operations Monthly'!128:128) -> 0 | BT46: =-SUMIF('Operations Monthly'!$15:$15,'Project Finance Analysis'!BT$3,'Operations Monthly'!128:128) -> 0 | BU46: =-SUMIF('Operations Monthly'!$15:$15,'Project Finance Analysis'!BU$3,'Operations Monthly'!128:128) -> 0 | BV46: =-SUMIF('Operations Monthly'!$15:$15,'Project Finance Analysis'!BV$3,'Operations Monthly'!128:128) -> 0 | BW46: =-SUMIF('Operations Monthly'!$15:$15,'Project Finance Analysis'!BW$3,'Operations Monthly'!128:128) -> 0 | BX46: =-SUMIF('Operations Monthly'!$15:$15,'Project Finance Analysis'!BX$3,'Operations Monthly'!128:128) -> 0 | BY46: =-SUMIF('Operations Monthly'!$15:$15,'Project Finance Analysis'!BY$3,'Operations Monthly'!128:128) -> 0 | BZ46: =-SUMIF('Operations Monthly'!$15:$15,'Project Finance Analysis'!BZ$3,'Operations Monthly'!128:128) -> 0 | CA46: =-SUMIF('Operations Monthly'!$15:$15,'Project Finance Analysis'!CA$3,'Operations Monthly'!128:128) -> 0 | CB46: =-SUMIF('Operations Monthly'!$15:$15,'Project Finance Analysis'!CB$3,'Operations Monthly'!128:128) -> 0 | CC46: =-SUMIF('Operations Monthly'!$15:$15,'Project Finance Analysis'!CC$3,'Operations Monthly'!128:128) -> 0 | CD46: =-SUMIF('Operations Monthly'!$15:$15,'Project Finance Analysis'!CD$3,'Operations Monthly'!128:128) -> 0 | CE46: =-SUMIF('Operations Monthly'!$15:$15,'Project Finance Analysis'!CE$3,'Operations Monthly'!128:128) -> 0 | CF46: =-SUMIF('Operations Monthly'!$15:$15,'Project Finance Analysis'!CF$3,'Operations Monthly'!128:128) -> 0 | CG46: =-SUMIF('Operations Monthly'!$15:$15,'Project Finance Analysis'!CG$3,'Operations Monthly'!128:128) -> 0 | CH46: =-SUMIF('Operations Monthly'!$15:$15,'Project Finance Analysis'!CH$3,'Operations Monthly'!128:128) -> 0 | CI46: =-SUMIF('Operations Monthly'!$15:$15,'Project Finance Analysis'!CI$3,'Operations Monthly'!128:128) -> 0 | CJ46: =-SUMIF('Operations Monthly'!$15:$15,'Project Finance Analysis'!CJ$3,'Operations Monthly'!128:128) -> 0 | CK46: =-SUMIF('Operations Monthly'!$15:$15,'Project Finance Analysis'!CK$3,'Operations Monthly'!128:128) -> 0 | CL46: =-SUMIF('Operations Monthly'!$15:$15,'Project Finance Analysis'!CL$3,'Operations Monthly'!128:128) -> 0 | CM46: =-SUMIF('Operations Monthly'!$15:$15,'Project Finance Analysis'!CM$3,'Operations Monthly'!128:128) -> 0 | CN46: =-SUMIF('Operations Monthly'!$15:$15,'Project Finance Analysis'!CN$3,'Operations Monthly'!128:128) -> 0 | CO46: =-SUMIF('Operations Monthly'!$15:$15,'Project Finance Analysis'!CO$3,'Operations Monthly'!128:128) -> 0 | CP46: =-SUMIF('Operations Monthly'!$15:$15,'Project Finance Analysis'!CP$3,'Operations Monthly'!128:128) -> 0 | CQ46: =-SUMIF('Operations Monthly'!$15:$15,'Project Finance Analysis'!CQ$3,'Operations Monthly'!128:128) -> 0 | CR46: =-SUMIF('Operations Monthly'!$15:$15,'Project Finance Analysis'!CR$3,'Operations Monthly'!128:128) -> 0 | CS46: =-SUMIF('Operations Monthly'!$15:$15,'Project Finance Analysis'!CS$3,'Operations Monthly'!128:128) -> 0 | CT46: =-SUMIF('Operations Monthly'!$15:$15,'Project Finance Analysis'!CT$3,'Operations Monthly'!128:128) -> 0 | CU46: =-SUMIF('Operations Monthly'!$15:$15,'Project Finance Analysis'!CU$3,'Operations Monthly'!128:128) -> 0 | CV46: =-SUMIF('Operations Monthly'!$15:$15,'Project Finance Analysis'!CV$3,'Operations Monthly'!128:128) -> 0 | CW46: =-SUMIF('Operations Monthly'!$15:$15,'Project Finance Analysis'!CW$3,'Operations Monthly'!128:128) -> 0 | CX46: =-SUMIF('Operations Monthly'!$15:$15,'Project Finance Analysis'!CX$3,'Operations Monthly'!128:128) -> 0 | CY46: =-SUMIF('Operations Monthly'!$15:$15,'Project Finance Analysis'!CY$3,'Operations Monthly'!128:128) -> 0 | CZ46: =-SUMIF('Operations Monthly'!$15:$15,'Project Finance Analysis'!CZ$3,'Operations Monthly'!128:128) -> 0 | DA46: =-SUMIF('Operations Monthly'!$15:$15,'Project Finance Analysis'!DA$3,'Operations Monthly'!128:128) -> 0 | DB46: =-SUMIF('Operations Monthly'!$15:$15,'Project Finance Analysis'!DB$3,'Operations Monthly'!128:128) -> 0 | DC46: =-SUMIF('Operations Monthly'!$15:$15,'Project Finance Analysis'!DC$3,'Operations Monthly'!128:128) -> 0 | DD46: =-SUMIF('Operations Monthly'!$15:$15,'Project Finance Analysis'!DD$3,'Operations Monthly'!128:128) -> 0 | DE46: =-SUMIF('Operations Monthly'!$15:$15,'Project Finance Analysis'!DE$3,'Operations Monthly'!128:128) -> 0 | DF46: =-SUMIF('Operations Monthly'!$15:$15,'Project Finance Analysis'!DF$3,'Operations Monthly'!128:128) -> 0 | DG46: =-SUMIF('Operations Monthly'!$15:$15,'Project Finance Analysis'!DG$3,'Operations Monthly'!128:128) -> 0 | DH46: =-SUMIF('Operations Monthly'!$15:$15,'Project Finance Analysis'!DH$3,'Operations Monthly'!128:128) -> 0 | DI46: =-SUMIF('Operations Monthly'!$15:$15,'Project Finance Analysis'!DI$3,'Operations Monthly'!128:128) -> 0 | DJ46: =-SUMIF('Operations Monthly'!$15:$15,'Project Finance Analysis'!DJ$3,'Operations Monthly'!128:128) -> 0 | DK46: =-SUMIF('Operations Monthly'!$15:$15,'Project Finance Analysis'!DK$3,'Operations Monthly'!128:128) -> 0 | DL46: =-SUMIF('Operations Monthly'!$15:$15,'Project Finance Analysis'!DL$3,'Operations Monthly'!128:128) -> 0 | DM46: =-SUMIF('Operations Monthly'!$15:$15,'Project Finance Analysis'!DM$3,'Operations Monthly'!128:128) -> 0 | DN46: =-SUMIF('Operations Monthly'!$15:$15,'Project Finance Analysis'!DN$3,'Operations Monthly'!128:128) -> 0 | DO46: =-SUMIF('Operations Monthly'!$15:$15,'Project Finance Analysis'!DO$3,'Operations Monthly'!128:128) -> 0 | DP46: =-SUMIF('Operations Monthly'!$15:$15,'Project Finance Analysis'!DP$3,'Operations Monthly'!128:128) -> 0 | DQ46: =-SUMIF('Operations Monthly'!$15:$15,'Project Finance Analysis'!DQ$3,'Operations Monthly'!128:128) -> 0
C47: Working Capital Changes | L47: =-SUMIF('Operations Monthly'!$15:$15,'Project Finance Analysis'!L$3,'Operations Monthly'!129:129) -> 0 | M47: =-SUMIF('Operations Monthly'!$15:$15,'Project Finance Analysis'!M$3,'Operations Monthly'!129:129) -> 0 | N47: =-SUMIF('Operations Monthly'!$15:$15,'Project Finance Analysis'!N$3,'Operations Monthly'!129:129) -> 0 | O47: =-SUMIF('Operations Monthly'!$15:$15,'Project Finance Analysis'!O$3,'Operations Monthly'!129:129) -> 0 | P47: =-SUMIF('Operations Monthly'!$15:$15,'Project Finance Analysis'!P$3,'Operations Monthly'!129:129) -> 0 | Q47: =-SUMIF('Operations Monthly'!$15:$15,'Project Finance Analysis'!Q$3,'Operations Monthly'!129:129) -> 0 | R47: =-SUMIF('Operations Monthly'!$15:$15,'Project Finance Analysis'!R$3,'Operations Monthly'!129:129) -> 0 | S47: =-SUMIF('Operations Monthly'!$15:$15,'Project Finance Analysis'!S$3,'Operations Monthly'!129:129) -> 0 | T47: =-SUMIF('Operations Monthly'!$15:$15,'Project Finance Analysis'!T$3,'Operations Monthly'!129:129) -> 0 | U47: =-SUMIF('Operations Monthly'!$15:$15,'Project Finance Analysis'!U$3,'Operations Monthly'!129:129) -> 0 | V47: =-SUMIF('Operations Monthly'!$15:$15,'Project Finance Analysis'!V$3,'Operations Monthly'!129:129) -> 0 | W47: =-SUMIF('Operations Monthly'!$15:$15,'Project Finance Analysis'!W$3,'Operations Monthly'!129:129) -> 0 | X47: =-SUMIF('Operations Monthly'!$15:$15,'Project Finance Analysis'!X$3,'Operations Monthly'!129:129) -> 0 | Y47: =-SUMIF('Operations Monthly'!$15:$15,'Project Finance Analysis'!Y$3,'Operations Monthly'!129:129) -> 0 | Z47: =-SUMIF('Operations Monthly'!$15:$15,'Project Finance Analysis'!Z$3,'Operations Monthly'!129:129) -> 0 | AA47: =-SUMIF('Operations Monthly'!$15:$15,'Project Finance Analysis'!AA$3,'Operations Monthly'!129:129) -> 0 | AB47: =-SUMIF('Operations Monthly'!$15:$15,'Project Finance Analysis'!AB$3,'Operations Monthly'!129:129) -> 0 | AC47: =-SUMIF('Operations Monthly'!$15:$15,'Project Finance Analysis'!AC$3,'Operations Monthly'!129:129) -> 0 | AD47: =-SUMIF('Operations Monthly'!$15:$15,'Project Finance Analysis'!AD$3,'Operations Monthly'!129:129) -> 0 | AE47: =-SUMIF('Operations Monthly'!$15:$15,'Project Finance Analysis'!AE$3,'Operations Monthly'!129:129) -> 0 | AF47: =-SUMIF('Operations Monthly'!$15:$15,'Project Finance Analysis'!AF$3,'Operations Monthly'!129:129) -> 0 | AG47: =-SUMIF('Operations Monthly'!$15:$15,'Project Finance Analysis'!AG$3,'Operations Monthly'!129:129) -> 0 | AH47: =-SUMIF('Operations Monthly'!$15:$15,'Project Finance Analysis'!AH$3,'Operations Monthly'!129:129) -> 0 | AI47: =-SUMIF('Operations Monthly'!$15:$15,'Project Finance Analysis'!AI$3,'Operations Monthly'!129:129) -> 0 | AJ47: =-SUMIF('Operations Monthly'!$15:$15,'Project Finance Analysis'!AJ$3,'Operations Monthly'!129:129) -> 0 | AK47: =-SUMIF('Operations Monthly'!$15:$15,'Project Finance Analysis'!AK$3,'Operations Monthly'!129:129) -> 0 | AL47: =-SUMIF('Operations Monthly'!$15:$15,'Project Finance Analysis'!AL$3,'Operations Monthly'!129:129) -> 0 | AM47: =-SUMIF('Operations Monthly'!$15:$15,'Project Finance Analysis'!AM$3,'Operations Monthly'!129:129) -> 0 | AN47: =-SUMIF('Operations Monthly'!$15:$15,'Project Finance Analysis'!AN$3,'Operations Monthly'!129:129) -> 0 | AO47: =-SUMIF('Operations Monthly'!$15:$15,'Project Finance Analysis'!AO$3,'Operations Monthly'!129:129) -> 0 | AP47: =-SUMIF('Operations Monthly'!$15:$15,'Project Finance Analysis'!AP$3,'Operations Monthly'!129:129) -> 0 | AQ47: =-SUMIF('Operations Monthly'!$15:$15,'Project Finance Analysis'!AQ$3,'Operations Monthly'!129:129) -> 0 | AR47: =-SUMIF('Operations Monthly'!$15:$15,'Project Finance Analysis'!AR$3,'Operations Monthly'!129:129) -> 0 | AS47: =-SUMIF('Operations Monthly'!$15:$15,'Project Finance Analysis'!AS$3,'Operations Monthly'!129:129) -> 0 | AT47: =-SUMIF('Operations Monthly'!$15:$15,'Project Finance Analysis'!AT$3,'Operations Monthly'!129:129) -> 0 | AU47: =-SUMIF('Operations Monthly'!$15:$15,'Project Finance Analysis'!AU$3,'Operations Monthly'!129:129) -> 0 | AV47: =-SUMIF('Operations Monthly'!$15:$15,'Project Finance Analysis'!AV$3,'Operations Monthly'!129:129) -> 0 | AW47: =-SUMIF('Operations Monthly'!$15:$15,'Project Finance Analysis'!AW$3,'Operations Monthly'!129:129) -> 0 | AX47: =-SUMIF('Operations Monthly'!$15:$15,'Project Finance Analysis'!AX$3,'Operations Monthly'!129:129) -> 0 | AY47: =-SUMIF('Operations Monthly'!$15:$15,'Project Finance Analysis'!AY$3,'Operations Monthly'!129:129) -> 0 | AZ47: =-SUMIF('Operations Monthly'!$15:$15,'Project Finance Analysis'!AZ$3,'Operations Monthly'!129:129) -> 0 | BA47: =-SUMIF('Operations Monthly'!$15:$15,'Project Finance Analysis'!BA$3,'Operations Monthly'!129:129) -> 0 | BB47: =-SUMIF('Operations Monthly'!$15:$15,'Project Finance Analysis'!BB$3,'Operations Monthly'!129:129) -> 0 | BC47: =-SUMIF('Operations Monthly'!$15:$15,'Project Finance Analysis'!BC$3,'Operations Monthly'!129:129) -> 0 | BD47: =-SUMIF('Operations Monthly'!$15:$15,'Project Finance Analysis'!BD$3,'Operations Monthly'!129:129) -> 6077.007931 | BE47: =-SUMIF('Operations Monthly'!$15:$15,'Project Finance Analysis'!BE$3,'Operations Monthly'!129:129) -> 49.60741452 | BF47: =-SUMIF('Operations Monthly'!$15:$15,'Project Finance Analysis'!BF$3,'Operations Monthly'!129:129) -> 419.5868171 | BG47: =-SUMIF('Operations Monthly'!$15:$15,'Project Finance Analysis'!BG$3,'Operations Monthly'!129:129) -> 52.14052949 | BH47: =-SUMIF('Operations Monthly'!$15:$15,'Project Finance Analysis'!BH$3,'Operations Monthly'!129:129) -> 13.32149214 | BI47: =-SUMIF('Operations Monthly'!$15:$15,'Project Finance Analysis'!BI$3,'Operations Monthly'!129:129) -> 52.66193479 | BJ47: =-SUMIF('Operations Monthly'!$15:$15,'Project Finance Analysis'!BJ$3,'Operations Monthly'!129:129) -> 25.46640235 | BK47: =-SUMIF('Operations Monthly'!$15:$15,'Project Finance Analysis'!BK$3,'Operations Monthly'!129:129) -> 71.3931688 | BL47: =-SUMIF('Operations Monthly'!$15:$15,'Project Finance Analysis'!BL$3,'Operations Monthly'!129:129) -> 137.9151588 | BM47: =-SUMIF('Operations Monthly'!$15:$15,'Project Finance Analysis'!BM$3,'Operations Monthly'!129:129) -> 73.17120297 | BN47: =-SUMIF('Operations Monthly'!$15:$15,'Project Finance Analysis'!BN$3,'Operations Monthly'!129:129) -> 33.41250019 | BO47: =-SUMIF('Operations Monthly'!$15:$15,'Project Finance Analysis'!BO$3,'Operations Monthly'!129:129) -> 74.18381077 | BP47: =-SUMIF('Operations Monthly'!$15:$15,'Project Finance Analysis'!BP$3,'Operations Monthly'!129:129) -> 34.02961984 | BQ47: =-SUMIF('Operations Monthly'!$15:$15,'Project Finance Analysis'!BQ$3,'Operations Monthly'!129:129) -> 75.21075809 | BR47: =-SUMIF('Operations Monthly'!$15:$15,'Project Finance Analysis'!BR$3,'Operations Monthly'!129:129) -> 34.65715561 | BS47: =-SUMIF('Operations Monthly'!$15:$15,'Project Finance Analysis'!BS$3,'Operations Monthly'!129:129) -> 76.25225151 | BT47: =-SUMIF('Operations Monthly'!$15:$15,'Project Finance Analysis'!BT$3,'Operations Monthly'!129:129) -> 35.29527533 | BU47: =-SUMIF('Operations Monthly'!$15:$15,'Project Finance Analysis'!BU$3,'Operations Monthly'!129:129) -> 77.30850066 | BV47: =-SUMIF('Operations Monthly'!$15:$15,'Project Finance Analysis'!BV$3,'Operations Monthly'!129:129) -> -19.85890655 | BW47: =-SUMIF('Operations Monthly'!$15:$15,'Project Finance Analysis'!BW$3,'Operations Monthly'!129:129) -> 79.91047368 | BX47: =-SUMIF('Operations Monthly'!$15:$15,'Project Finance Analysis'!BX$3,'Operations Monthly'!129:129) -> -312.8550779 | BY47: =-SUMIF('Operations Monthly'!$15:$15,'Project Finance Analysis'!BY$3,'Operations Monthly'!129:129) -> 78.41660331 | BZ47: =-SUMIF('Operations Monthly'!$15:$15,'Project Finance Analysis'!BZ$3,'Operations Monthly'!129:129) -> 32.55020837 | CA47: =-SUMIF('Operations Monthly'!$15:$15,'Project Finance Analysis'!CA$3,'Operations Monthly'!129:129) -> 79.49493503 | CB47: =-SUMIF('Operations Monthly'!$15:$15,'Project Finance Analysis'!CB$3,'Operations Monthly'!129:129) -> 33.17207417 | CC47: =-SUMIF('Operations Monthly'!$15:$15,'Project Finance Analysis'!CC$3,'Operations Monthly'!129:129) -> 80.58846256 | CD47: =-SUMIF('Operations Monthly'!$15:$15,'Project Finance Analysis'!CD$3,'Operations Monthly'!129:129) -> 33.80460409 | CE47: =-SUMIF('Operations Monthly'!$15:$15,'Project Finance Analysis'!CE$3,'Operations Monthly'!129:129) -> 81.69740404 | CF47: =-SUMIF('Operations Monthly'!$15:$15,'Project Finance Analysis'!CF$3,'Operations Monthly'!129:129) -> -102.4010315 | CG47: =-SUMIF('Operations Monthly'!$15:$15,'Project Finance Analysis'!CG$3,'Operations Monthly'!129:129) -> 86.57593936 | CH47: =-SUMIF('Operations Monthly'!$15:$15,'Project Finance Analysis'!CH$3,'Operations Monthly'!129:129) -> 29.97990369 | CI47: =-SUMIF('Operations Monthly'!$15:$15,'Project Finance Analysis'!CI$3,'Operations Monthly'!129:129) -> 87.75391549 | CJ47: =-SUMIF('Operations Monthly'!$15:$15,'Project Finance Analysis'!CJ$3,'Operations Monthly'!129:129) -> 30.59425238 | CK47: =-SUMIF('Operations Monthly'!$15:$15,'Project Finance Analysis'!CK$3,'Operations Monthly'!129:129) -> 88.94835464 | CL47: =-SUMIF('Operations Monthly'!$15:$15,'Project Finance Analysis'!CL$3,'Operations Monthly'!129:129) -> 31.2194628 | CM47: =-SUMIF('Operations Monthly'!$15:$15,'Project Finance Analysis'!CM$3,'Operations Monthly'!129:129) -> 90.15949168 | CN47: =-SUMIF('Operations Monthly'!$15:$15,'Project Finance Analysis'!CN$3,'Operations Monthly'!129:129) -> 31.85571435 | CO47: =-SUMIF('Operations Monthly'!$15:$15,'Project Finance Analysis'!CO$3,'Operations Monthly'!129:129) -> 91.38756489 | CP47: =-SUMIF('Operations Monthly'!$15:$15,'Project Finance Analysis'!CP$3,'Operations Monthly'!129:129) -> 32.50318926 | CQ47: =-SUMIF('Operations Monthly'!$15:$15,'Project Finance Analysis'!CQ$3,'Operations Monthly'!129:129) -> 92.63281601 | CR47: =-SUMIF('Operations Monthly'!$15:$15,'Project Finance Analysis'!CR$3,'Operations Monthly'!129:129) -> 33.16207269 | CS47: =-SUMIF('Operations Monthly'!$15:$15,'Project Finance Analysis'!CS$3,'Operations Monthly'!129:129) -> -176.8709261 | CT47: =-SUMIF('Operations Monthly'!$15:$15,'Project Finance Analysis'!CT$3,'Operations Monthly'!129:129) -> 31.80936332 | CU47: =-SUMIF('Operations Monthly'!$15:$15,'Project Finance Analysis'!CU$3,'Operations Monthly'!129:129) -> 93.13752963 | CV47: =-SUMIF('Operations Monthly'!$15:$15,'Project Finance Analysis'!CV$3,'Operations Monthly'!129:129) -> 32.46128321 | CW47: =-SUMIF('Operations Monthly'!$15:$15,'Project Finance Analysis'!CW$3,'Operations Monthly'!129:129) -> 94.40522555 | CX47: =-SUMIF('Operations Monthly'!$15:$15,'Project Finance Analysis'!CX$3,'Operations Monthly'!129:129) -> 33.12472968 | CY47: =-SUMIF('Operations Monthly'!$15:$15,'Project Finance Analysis'!CY$3,'Operations Monthly'!129:129) -> 95.69064325 | CZ47: =-SUMIF('Operations Monthly'!$15:$15,'Project Finance Analysis'!CZ$3,'Operations Monthly'!129:129) -> 33.79989313 | DA47: =-SUMIF('Operations Monthly'!$15:$15,'Project Finance Analysis'!DA$3,'Operations Monthly'!129:129) -> 96.9940356 | DB47: =-SUMIF('Operations Monthly'!$15:$15,'Project Finance Analysis'!DB$3,'Operations Monthly'!129:129) -> -8538.466128 | DC47: =-SUMIF('Operations Monthly'!$15:$15,'Project Finance Analysis'!DC$3,'Operations Monthly'!129:129) -> 0 | DD47: =-SUMIF('Operations Monthly'!$15:$15,'Project Finance Analysis'!DD$3,'Operations Monthly'!129:129) -> 0 | DE47: =-SUMIF('Operations Monthly'!$15:$15,'Project Finance Analysis'!DE$3,'Operations Monthly'!129:129) -> 0 | DF47: =-SUMIF('Operations Monthly'!$15:$15,'Project Finance Analysis'!DF$3,'Operations Monthly'!129:129) -> 0 | DG47: =-SUMIF('Operations Monthly'!$15:$15,'Project Finance Analysis'!DG$3,'Operations Monthly'!129:129) -> 0 | DH47: =-SUMIF('Operations Monthly'!$15:$15,'Project Finance Analysis'!DH$3,'Operations Monthly'!129:129) -> 0 | DI47: =-SUMIF('Operations Monthly'!$15:$15,'Project Finance Analysis'!DI$3,'Operations Monthly'!129:129) -> 0 | DJ47: =-SUMIF('Operations Monthly'!$15:$15,'Project Finance Analysis'!DJ$3,'Operations Monthly'!129:129) -> 0 | DK47: =-SUMIF('Operations Monthly'!$15:$15,'Project Finance Analysis'!DK$3,'Operations Monthly'!129:129) -> 0 | DL47: =-SUMIF('Operations Monthly'!$15:$15,'Project Finance Analysis'!DL$3,'Operations Monthly'!129:129) -> 0 | DM47: =-SUMIF('Operations Monthly'!$15:$15,'Project Finance Analysis'!DM$3,'Operations Monthly'!129:129) -> 0 | DN47: =-SUMIF('Operations Monthly'!$15:$15,'Project Finance Analysis'!DN$3,'Operations Monthly'!129:129) -> 0 | DO47: =-SUMIF('Operations Monthly'!$15:$15,'Project Finance Analysis'!DO$3,'Operations Monthly'!129:129) -> 0 | DP47: =-SUMIF('Operations Monthly'!$15:$15,'Project Finance Analysis'!DP$3,'Operations Monthly'!129:129) -> 0 | DQ47: =-SUMIF('Operations Monthly'!$15:$15,'Project Finance Analysis'!DQ$3,'Operations Monthly'!129:129) -> 0
C48: Depreciation Expense | L48: =SUMIF('Operations Monthly'!$15:$15,'Project Finance Analysis'!L$3,'Operations Monthly'!139:139) -> 0 | M48: =SUMIF('Operations Monthly'!$15:$15,'Project Finance Analysis'!M$3,'Operations Monthly'!139:139) -> 0 | N48: =SUMIF('Operations Monthly'!$15:$15,'Project Finance Analysis'!N$3,'Operations Monthly'!139:139) -> 0 | O48: =SUMIF('Operations Monthly'!$15:$15,'Project Finance Analysis'!O$3,'Operations Monthly'!139:139) -> 0 | P48: =SUMIF('Operations Monthly'!$15:$15,'Project Finance Analysis'!P$3,'Operations Monthly'!139:139) -> 0 | Q48: =SUMIF('Operations Monthly'!$15:$15,'Project Finance Analysis'!Q$3,'Operations Monthly'!139:139) -> 0 | R48: =SUMIF('Operations Monthly'!$15:$15,'Project Finance Analysis'!R$3,'Operations Monthly'!139:139) -> 0 | S48: =SUMIF('Operations Monthly'!$15:$15,'Project Finance Analysis'!S$3,'Operations Monthly'!139:139) -> 0 | T48: =SUMIF('Operations Monthly'!$15:$15,'Project Finance Analysis'!T$3,'Operations Monthly'!139:139) -> 0 | U48: =SUMIF('Operations Monthly'!$15:$15,'Project Finance Analysis'!U$3,'Operations Monthly'!139:139) -> 0 | V48: =SUMIF('Operations Monthly'!$15:$15,'Project Finance Analysis'!V$3,'Operations Monthly'!139:139) -> 0 | W48: =SUMIF('Operations Monthly'!$15:$15,'Project Finance Analysis'!W$3,'Operations Monthly'!139:139) -> 0 | X48: =SUMIF('Operations Monthly'!$15:$15,'Project Finance Analysis'!X$3,'Operations Monthly'!139:139) -> 0 | Y48: =SUMIF('Operations Monthly'!$15:$15,'Project Finance Analysis'!Y$3,'Operations Monthly'!139:139) -> 0 | Z48: =SUMIF('Operations Monthly'!$15:$15,'Project Finance Analysis'!Z$3,'Operations Monthly'!139:139) -> 0 | AA48: =SUMIF('Operations Monthly'!$15:$15,'Project Finance Analysis'!AA$3,'Operations Monthly'!139:139) -> 0 | AB48: =SUMIF('Operations Monthly'!$15:$15,'Project Finance Analysis'!AB$3,'Operations Monthly'!139:139) -> 0 | AC48: =SUMIF('Operations Monthly'!$15:$15,'Project Finance Analysis'!AC$3,'Operations Monthly'!139:139) -> 0 | AD48: =SUMIF('Operations Monthly'!$15:$15,'Project Finance Analysis'!AD$3,'Operations Monthly'!139:139) -> 0 | AE48: =SUMIF('Operations Monthly'!$15:$15,'Project Finance Analysis'!AE$3,'Operations Monthly'!139:139) -> 0 | AF48: =SUMIF('Operations Monthly'!$15:$15,'Project Finance Analysis'!AF$3,'Operations Monthly'!139:139) -> 0 | AG48: =SUMIF('Operations Monthly'!$15:$15,'Project Finance Analysis'!AG$3,'Operations Monthly'!139:139) -> 0 | AH48: =SUMIF('Operations Monthly'!$15:$15,'Project Finance Analysis'!AH$3,'Operations Monthly'!139:139) -> 0 | AI48: =SUMIF('Operations Monthly'!$15:$15,'Project Finance Analysis'!AI$3,'Operations Monthly'!139:139) -> 0 | AJ48: =SUMIF('Operations Monthly'!$15:$15,'Project Finance Analysis'!AJ$3,'Operations Monthly'!139:139) -> 0 | AK48: =SUMIF('Operations Monthly'!$15:$15,'Project Finance Analysis'!AK$3,'Operations Monthly'!139:139) -> 0 | AL48: =SUMIF('Operations Monthly'!$15:$15,'Project Finance Analysis'!AL$3,'Operations Monthly'!139:139) -> 0 | AM48: =SUMIF('Operations Monthly'!$15:$15,'Project Finance Analysis'!AM$3,'Operations Monthly'!139:139) -> 0 | AN48: =SUMIF('Operations Monthly'!$15:$15,'Project Finance Analysis'!AN$3,'Operations Monthly'!139:139) -> 0 | AO48: =SUMIF('Operations Monthly'!$15:$15,'Project Finance Analysis'!AO$3,'Operations Monthly'!139:139) -> 0 | AP48: =SUMIF('Operations Monthly'!$15:$15,'Project Finance Analysis'!AP$3,'Operations Monthly'!139:139) -> 0 | AQ48: =SUMIF('Operations Monthly'!$15:$15,'Project Finance Analysis'!AQ$3,'Operations Monthly'!139:139) -> 0 | AR48: =SUMIF('Operations Monthly'!$15:$15,'Project Finance Analysis'!AR$3,'Operations Monthly'!139:139) -> 0 | AS48: =SUMIF('Operations Monthly'!$15:$15,'Project Finance Analysis'!AS$3,'Operations Monthly'!139:139) -> 0 | AT48: =SUMIF('Operations Monthly'!$15:$15,'Project Finance Analysis'!AT$3,'Operations Monthly'!139:139) -> 0 | AU48: =SUMIF('Operations Monthly'!$15:$15,'Project Finance Analysis'!AU$3,'Operations Monthly'!139:139) -> 0 | AV48: =SUMIF('Operations Monthly'!$15:$15,'Project Finance Analysis'!AV$3,'Operations Monthly'!139:139) -> 0 | AW48: =SUMIF('Operations Monthly'!$15:$15,'Project Finance Analysis'!AW$3,'Operations Monthly'!139:139) -> 0 | AX48: =SUMIF('Operations Monthly'!$15:$15,'Project Finance Analysis'!AX$3,'Operations Monthly'!139:139) -> 0 | AY48: =SUMIF('Operations Monthly'!$15:$15,'Project Finance Analysis'!AY$3,'Operations Monthly'!139:139) -> 0 | AZ48: =SUMIF('Operations Monthly'!$15:$15,'Project Finance Analysis'!AZ$3,'Operations Monthly'!139:139) -> 0 | BA48: =SUMIF('Operations Monthly'!$15:$15,'Project Finance Analysis'!BA$3,'Operations Monthly'!139:139) -> 0 | BB48: =SUMIF('Operations Monthly'!$15:$15,'Project Finance Analysis'!BB$3,'Operations Monthly'!139:139) -> 0 | BC48: =SUMIF('Operations Monthly'!$15:$15,'Project Finance Analysis'!BC$3,'Operations Monthly'!139:139) -> 0 | BD48: =SUMIF('Operations Monthly'!$15:$15,'Project Finance Analysis'!BD$3,'Operations Monthly'!139:139) -> 60000 | BE48: =SUMIF('Operations Monthly'!$15:$15,'Project Finance Analysis'!BE$3,'Operations Monthly'!139:139) -> 60000 | BF48: =SUMIF('Operations Monthly'!$15:$15,'Project Finance Analysis'!BF$3,'Operations Monthly'!139:139) -> 48000 | BG48: =SUMIF('Operations Monthly'!$15:$15,'Project Finance Analysis'!BG$3,'Operations Monthly'!139:139) -> 48000 | BH48: =SUMIF('Operations Monthly'!$15:$15,'Project Finance Analysis'!BH$3,'Operations Monthly'!139:139) -> 38400 | BI48: =SUMIF('Operations Monthly'!$15:$15,'Project Finance Analysis'!BI$3,'Operations Monthly'!139:139) -> 38400 | BJ48: =SUMIF('Operations Monthly'!$15:$15,'Project Finance Analysis'!BJ$3,'Operations Monthly'!139:139) -> 30720 | BK48: =SUMIF('Operations Monthly'!$15:$15,'Project Finance Analysis'!BK$3,'Operations Monthly'!139:139) -> 30720 | BL48: =SUMIF('Operations Monthly'!$15:$15,'Project Finance Analysis'!BL$3,'Operations Monthly'!139:139) -> 24576 | BM48: =SUMIF('Operations Monthly'!$15:$15,'Project Finance Analysis'!BM$3,'Operations Monthly'!139:139) -> 24576 | BN48: =SUMIF('Operations Monthly'!$15:$15,'Project Finance Analysis'!BN$3,'Operations Monthly'!139:139) -> 19660.8 | BO48: =SUMIF('Operations Monthly'!$15:$15,'Project Finance Analysis'!BO$3,'Operations Monthly'!139:139) -> 19660.8 | BP48: =SUMIF('Operations Monthly'!$15:$15,'Project Finance Analysis'!BP$3,'Operations Monthly'!139:139) -> 19660.8 | BQ48: =SUMIF('Operations Monthly'!$15:$15,'Project Finance Analysis'!BQ$3,'Operations Monthly'!139:139) -> 19660.8 | BR48: =SUMIF('Operations Monthly'!$15:$15,'Project Finance Analysis'!BR$3,'Operations Monthly'!139:139) -> 19660.8 | BS48: =SUMIF('Operations Monthly'!$15:$15,'Project Finance Analysis'!BS$3,'Operations Monthly'!139:139) -> 19660.8 | BT48: =SUMIF('Operations Monthly'!$15:$15,'Project Finance Analysis'!BT$3,'Operations Monthly'!139:139) -> 19660.8 | BU48: =SUMIF('Operations Monthly'!$15:$15,'Project Finance Analysis'!BU$3,'Operations Monthly'!139:139) -> 19660.8 | BV48: =SUMIF('Operations Monthly'!$15:$15,'Project Finance Analysis'!BV$3,'Operations Monthly'!139:139) -> 19660.8 | BW48: =SUMIF('Operations Monthly'!$15:$15,'Project Finance Analysis'!BW$3,'Operations Monthly'!139:139) -> 19660.8 | BX48: =SUMIF('Operations Monthly'!$15:$15,'Project Finance Analysis'!BX$3,'Operations Monthly'!139:139) -> 0 | BY48: =SUMIF('Operations Monthly'!$15:$15,'Project Finance Analysis'!BY$3,'Operations Monthly'!139:139) -> 0 | BZ48: =SUMIF('Operations Monthly'!$15:$15,'Project Finance Analysis'!BZ$3,'Operations Monthly'!139:139) -> 0 | CA48: =SUMIF('Operations Monthly'!$15:$15,'Project Finance Analysis'!CA$3,'Operations Monthly'!139:139) -> 0 | CB48: =SUMIF('Operations Monthly'!$15:$15,'Project Finance Analysis'!CB$3,'Operations Monthly'!139:139) -> 0 | CC48: =SUMIF('Operations Monthly'!$15:$15,'Project Finance Analysis'!CC$3,'Operations Monthly'!139:139) -> 0 | CD48: =SUMIF('Operations Monthly'!$15:$15,'Project Finance Analysis'!CD$3,'Operations Monthly'!139:139) -> 0 | CE48: =SUMIF('Operations Monthly'!$15:$15,'Project Finance Analysis'!CE$3,'Operations Monthly'!139:139) -> 0 | CF48: =SUMIF('Operations Monthly'!$15:$15,'Project Finance Analysis'!CF$3,'Operations Monthly'!139:139) -> 0 | CG48: =SUMIF('Operations Monthly'!$15:$15,'Project Finance Analysis'!CG$3,'Operations Monthly'!139:139) -> 0 | CH48: =SUMIF('Operations Monthly'!$15:$15,'Project Finance Analysis'!CH$3,'Operations Monthly'!139:139) -> 0 | CI48: =SUMIF('Operations Monthly'!$15:$15,'Project Finance Analysis'!CI$3,'Operations Monthly'!139:139) -> 0 | CJ48: =SUMIF('Operations Monthly'!$15:$15,'Project Finance Analysis'!CJ$3,'Operations Monthly'!139:139) -> 0 | CK48: =SUMIF('Operations Monthly'!$15:$15,'Project Finance Analysis'!CK$3,'Operations Monthly'!139:139) -> 0 | CL48: =SUMIF('Operations Monthly'!$15:$15,'Project Finance Analysis'!CL$3,'Operations Monthly'!139:139) -> 0 | CM48: =SUMIF('Operations Monthly'!$15:$15,'Project Finance Analysis'!CM$3,'Operations Monthly'!139:139) -> 0 | CN48: =SUMIF('Operations Monthly'!$15:$15,'Project Finance Analysis'!CN$3,'Operations Monthly'!139:139) -> 0 | CO48: =SUMIF('Operations Monthly'!$15:$15,'Project Finance Analysis'!CO$3,'Operations Monthly'!139:139) -> 0 | CP48: =SUMIF('Operations Monthly'!$15:$15,'Project Finance Analysis'!CP$3,'Operations Monthly'!139:139) -> 0 | CQ48: =SUMIF('Operations Monthly'!$15:$15,'Project Finance Analysis'!CQ$3,'Operations Monthly'!139:139) -> 0 | CR48: =SUMIF('Operations Monthly'!$15:$15,'Project Finance Analysis'!CR$3,'Operations Monthly'!139:139) -> 0 | CS48: =SUMIF('Operations Monthly'!$15:$15,'Project Finance Analysis'!CS$3,'Operations Monthly'!139:139) -> 0 | CT48: =SUMIF('Operations Monthly'!$15:$15,'Project Finance Analysis'!CT$3,'Operations Monthly'!139:139) -> 0 | CU48: =SUMIF('Operations Monthly'!$15:$15,'Project Finance Analysis'!CU$3,'Operations Monthly'!139:139) -> 0 | CV48: =SUMIF('Operations Monthly'!$15:$15,'Project Finance Analysis'!CV$3,'Operations Monthly'!139:139) -> 0 | CW48: =SUMIF('Operations Monthly'!$15:$15,'Project Finance Analysis'!CW$3,'Operations Monthly'!139:139) -> 0 | CX48: =SUMIF('Operations Monthly'!$15:$15,'Project Finance Analysis'!CX$3,'Operations Monthly'!139:139) -> 0 | CY48: =SUMIF('Operations Monthly'!$15:$15,'Project Finance Analysis'!CY$3,'Operations Monthly'!139:139) -> 0 | CZ48: =SUMIF('Operations Monthly'!$15:$15,'Project Finance Analysis'!CZ$3,'Operations Monthly'!139:139) -> 0 | DA48: =SUMIF('Operations Monthly'!$15:$15,'Project Finance Analysis'!DA$3,'Operations Monthly'!139:139) -> 0 | DB48: =SUMIF('Operations Monthly'!$15:$15,'Project Finance Analysis'!DB$3,'Operations Monthly'!139:139) -> 0 | DC48: =SUMIF('Operations Monthly'!$15:$15,'Project Finance Analysis'!DC$3,'Operations Monthly'!139:139) -> 0 | DD48: =SUMIF('Operations Monthly'!$15:$15,'Project Finance Analysis'!DD$3,'Operations Monthly'!139:139) -> 0 | DE48: =SUMIF('Operations Monthly'!$15:$15,'Project Finance Analysis'!DE$3,'Operations Monthly'!139:139) -> 0 | DF48: =SUMIF('Operations Monthly'!$15:$15,'Project Finance Analysis'!DF$3,'Operations Monthly'!139:139) -> 0 | DG48: =SUMIF('Operations Monthly'!$15:$15,'Project Finance Analysis'!DG$3,'Operations Monthly'!139:139) -> 0 | DH48: =SUMIF('Operations Monthly'!$15:$15,'Project Finance Analysis'!DH$3,'Operations Monthly'!139:139) -> 0 | DI48: =SUMIF('Operations Monthly'!$15:$15,'Project Finance Analysis'!DI$3,'Operations Monthly'!139:139) -> 0 | DJ48: =SUMIF('Operations Monthly'!$15:$15,'Project Finance Analysis'!DJ$3,'Operations Monthly'!139:139) -> 0 | DK48: =SUMIF('Operations Monthly'!$15:$15,'Project Finance Analysis'!DK$3,'Operations Monthly'!139:139) -> 0 | DL48: =SUMIF('Operations Monthly'!$15:$15,'Project Finance Analysis'!DL$3,'Operations Monthly'!139:139) -> 0 | DM48: =SUMIF('Operations Monthly'!$15:$15,'Project Finance Analysis'!DM$3,'Operations Monthly'!139:139) -> 0 | DN48: =SUMIF('Operations Monthly'!$15:$15,'Project Finance Analysis'!DN$3,'Operations Monthly'!139:139) -> 0 | DO48: =SUMIF('Operations Monthly'!$15:$15,'Project Finance Analysis'!DO$3,'Operations Monthly'!139:139) -> 0 | DP48: =SUMIF('Operations Monthly'!$15:$15,'Project Finance Analysis'!DP$3,'Operations Monthly'!139:139) -> 0 | DQ48: =SUMIF('Operations Monthly'!$15:$15,'Project Finance Analysis'!DQ$3,'Operations Monthly'!139:139) -> 0
C49: Free Cash Flow | L49: =SUMIF('Operations Monthly'!$15:$15,'Project Finance Analysis'!L$3,'Operations Monthly'!156:156) -> -10000 | M49: =SUMIF('Operations Monthly'!$15:$15,'Project Finance Analysis'!M$3,'Operations Monthly'!156:156) -> -10000 | N49: =SUMIF('Operations Monthly'!$15:$15,'Project Finance Analysis'!N$3,'Operations Monthly'!156:156) -> -10000 | O49: =SUMIF('Operations Monthly'!$15:$15,'Project Finance Analysis'!O$3,'Operations Monthly'!156:156) -> -10000 | P49: =SUMIF('Operations Monthly'!$15:$15,'Project Finance Analysis'!P$3,'Operations Monthly'!156:156) -> -10000 | Q49: =SUMIF('Operations Monthly'!$15:$15,'Project Finance Analysis'!Q$3,'Operations Monthly'!156:156) -> -10000 | R49: =SUMIF('Operations Monthly'!$15:$15,'Project Finance Analysis'!R$3,'Operations Monthly'!156:156) -> -10000 | S49: =SUMIF('Operations Monthly'!$15:$15,'Project Finance Analysis'!S$3,'Operations Monthly'!156:156) -> -10000 | T49: =SUMIF('Operations Monthly'!$15:$15,'Project Finance Analysis'!T$3,'Operations Monthly'!156:156) -> -10000 | U49: =SUMIF('Operations Monthly'!$15:$15,'Project Finance Analysis'!U$3,'Operations Monthly'!156:156) -> -10000 | V49: =SUMIF('Operations Monthly'!$15:$15,'Project Finance Analysis'!V$3,'Operations Monthly'!156:156) -> -10000 | W49: =SUMIF('Operations Monthly'!$15:$15,'Project Finance Analysis'!W$3,'Operations Monthly'!156:156) -> -10000 | X49: =SUMIF('Operations Monthly'!$15:$15,'Project Finance Analysis'!X$3,'Operations Monthly'!156:156) -> -32500 | Y49: =SUMIF('Operations Monthly'!$15:$15,'Project Finance Analysis'!Y$3,'Operations Monthly'!156:156) -> -32500 | Z49: =SUMIF('Operations Monthly'!$15:$15,'Project Finance Analysis'!Z$3,'Operations Monthly'!156:156) -> -32500 | AA49: =SUMIF('Operations Monthly'!$15:$15,'Project Finance Analysis'!AA$3,'Operations Monthly'!156:156) -> -32500 | AB49: =SUMIF('Operations Monthly'!$15:$15,'Project Finance Analysis'!AB$3,'Operations Monthly'!156:156) -> -32500 | AC49: =SUMIF('Operations Monthly'!$15:$15,'Project Finance Analysis'!AC$3,'Operations Monthly'!156:156) -> -32500 | AD49: =SUMIF('Operations Monthly'!$15:$15,'Project Finance Analysis'!AD$3,'Operations Monthly'!156:156) -> -32500 | AE49: =SUMIF('Operations Monthly'!$15:$15,'Project Finance Analysis'!AE$3,'Operations Monthly'!156:156) -> -32500 | AF49: =SUMIF('Operations Monthly'!$15:$15,'Project Finance Analysis'!AF$3,'Operations Monthly'!156:156) -> -32500 | AG49: =SUMIF('Operations Monthly'!$15:$15,'Project Finance Analysis'!AG$3,'Operations Monthly'!156:156) -> -32500 | AH49: =SUMIF('Operations Monthly'!$15:$15,'Project Finance Analysis'!AH$3,'Operations Monthly'!156:156) -> -32500 | AI49: =SUMIF('Operations Monthly'!$15:$15,'Project Finance Analysis'!AI$3,'Operations Monthly'!156:156) -> -32500 | AJ49: =SUMIF('Operations Monthly'!$15:$15,'Project Finance Analysis'!AJ$3,'Operations Monthly'!156:156) -> -7500 | AK49: =SUMIF('Operations Monthly'!$15:$15,'Project Finance Analysis'!AK$3,'Operations Monthly'!156:156) -> -7500 | AL49: =SUMIF('Operations Monthly'!$15:$15,'Project Finance Analysis'!AL$3,'Operations Monthly'!156:156) -> -7500 | AM49: =SUMIF('Operations Monthly'!$15:$15,'Project Finance Analysis'!AM$3,'Operations Monthly'!156:156) -> -7500 | AN49: =SUMIF('Operations Monthly'!$15:$15,'Project Finance Analysis'!AN$3,'Operations Monthly'!156:156) -> -7500 | AO49: =SUMIF('Operations Monthly'!$15:$15,'Project Finance Analysis'!AO$3,'Operations Monthly'!156:156) -> -7500 | AP49: =SUMIF('Operations Monthly'!$15:$15,'Project Finance Analysis'!AP$3,'Operations Monthly'!156:156) -> -7500 | AQ49: =SUMIF('Operations Monthly'!$15:$15,'Project Finance Analysis'!AQ$3,'Operations Monthly'!156:156) -> -7500 | AR49: =SUMIF('Operations Monthly'!$15:$15,'Project Finance Analysis'!AR$3,'Operations Monthly'!156:156) -> -7500 | AS49: =SUMIF('Operations Monthly'!$15:$15,'Project Finance Analysis'!AS$3,'Operations Monthly'!156:156) -> -7500 | AT49: =SUMIF('Operations Monthly'!$15:$15,'Project Finance Analysis'!AT$3,'Operations Monthly'!156:156) -> -7500 | AU49: =SUMIF('Operations Monthly'!$15:$15,'Project Finance Analysis'!AU$3,'Operations Monthly'!156:156) -> -7500 | AV49: =SUMIF('Operations Monthly'!$15:$15,'Project Finance Analysis'!AV$3,'Operations Monthly'!156:156) -> 0 | AW49: =SUMIF('Operations Monthly'!$15:$15,'Project Finance Analysis'!AW$3,'Operations Monthly'!156:156) -> 0 | AX49: =SUMIF('Operations Monthly'!$15:$15,'Project Finance Analysis'!AX$3,'Operations Monthly'!156:156) -> 0 | AY49: =SUMIF('Operations Monthly'!$15:$15,'Project Finance Analysis'!AY$3,'Operations Monthly'!156:156) -> 0 | AZ49: =SUMIF('Operations Monthly'!$15:$15,'Project Finance Analysis'!AZ$3,'Operations Monthly'!156:156) -> 0 | BA49: =SUMIF('Operations Monthly'!$15:$15,'Project Finance Analysis'!BA$3,'Operations Monthly'!156:156) -> 0 | BB49: =SUMIF('Operations Monthly'!$15:$15,'Project Finance Analysis'!BB$3,'Operations Monthly'!156:156) -> 0 | BC49: =SUMIF('Operations Monthly'!$15:$15,'Project Finance Analysis'!BC$3,'Operations Monthly'!156:156) -> -1.33226763e-10 | BD49: =SUMIF('Operations Monthly'!$15:$15,'Project Finance Analysis'!BD$3,'Operations Monthly'!156:156) -> 15361.98812 | BE49: =SUMIF('Operations Monthly'!$15:$15,'Project Finance Analysis'!BE$3,'Operations Monthly'!156:156) -> 21938.92057 | BF49: =SUMIF('Operations Monthly'!$15:$15,'Project Finance Analysis'!BF$3,'Operations Monthly'!156:156) -> 23028.01737 | BG49: =SUMIF('Operations Monthly'!$15:$15,'Project Finance Analysis'!BG$3,'Operations Monthly'!156:156) -> 23831.12908 | BH49: =SUMIF('Operations Monthly'!$15:$15,'Project Finance Analysis'!BH$3,'Operations Monthly'!156:156) -> 23508.60462 | BI49: =SUMIF('Operations Monthly'!$15:$15,'Project Finance Analysis'!BI$3,'Operations Monthly'!156:156) -> 24069.44037 | BJ49: =SUMIF('Operations Monthly'!$15:$15,'Project Finance Analysis'!BJ$3,'Operations Monthly'!156:156) -> 23751.67791 | BK49: =SUMIF('Operations Monthly'!$15:$15,'Project Finance Analysis'!BK$3,'Operations Monthly'!156:156) -> 24384.39147 | BL49: =SUMIF('Operations Monthly'!$15:$15,'Project Finance Analysis'!BL$3,'Operations Monthly'!156:156) -> 24303.26809 | BM49: =SUMIF('Operations Monthly'!$15:$15,'Project Finance Analysis'!BM$3,'Operations Monthly'!156:156) -> 25212.00706 | BN49: =SUMIF('Operations Monthly'!$15:$15,'Project Finance Analysis'!BN$3,'Operations Monthly'!156:156) -> 25116.25997 | BO49: =SUMIF('Operations Monthly'!$15:$15,'Project Finance Analysis'!BO$3,'Operations Monthly'!156:156) -> 25618.22788 | BP49: =SUMIF('Operations Monthly'!$15:$15,'Project Finance Analysis'!BP$3,'Operations Monthly'!156:156) -> 25349.28113 | BQ49: =SUMIF('Operations Monthly'!$15:$15,'Project Finance Analysis'!BQ$3,'Operations Monthly'!156:156) -> 26030.82242 | BR49: =SUMIF('Operations Monthly'!$15:$15,'Project Finance Analysis'!BR$3,'Operations Monthly'!156:156) -> 25757.77939 | BS49: =SUMIF('Operations Monthly'!$15:$15,'Project Finance Analysis'!BS$3,'Operations Monthly'!156:156) -> 26449.88909 | BT49: =SUMIF('Operations Monthly'!$15:$15,'Project Finance Analysis'!BT$3,'Operations Monthly'!156:156) -> 26172.68772 | BU49: =SUMIF('Operations Monthly'!$15:$15,'Project Finance Analysis'!BU$3,'Operations Monthly'!156:156) -> 26875.52781 | BV49: =SUMIF('Operations Monthly'!$15:$15,'Project Finance Analysis'!BV$3,'Operations Monthly'!156:156) -> 26328.26524 | BW49: =SUMIF('Operations Monthly'!$15:$15,'Project Finance Analysis'!BW$3,'Operations Monthly'!156:156) -> 26802.62157 | BX49: =SUMIF('Operations Monthly'!$15:$15,'Project Finance Analysis'!BX$3,'Operations Monthly'!156:156) -> 25472.52916 | BY49: =SUMIF('Operations Monthly'!$15:$15,'Project Finance Analysis'!BY$3,'Operations Monthly'!156:156) -> 25812.71077 | BZ49: =SUMIF('Operations Monthly'!$15:$15,'Project Finance Analysis'!BZ$3,'Operations Monthly'!156:156) -> 25536.57831 | CA49: =SUMIF('Operations Monthly'!$15:$15,'Project Finance Analysis'!CA$3,'Operations Monthly'!156:156) -> 26158.43761 | CB49: =SUMIF('Operations Monthly'!$15:$15,'Project Finance Analysis'!CB$3,'Operations Monthly'!156:156) -> 19455.61195 | CC49: =SUMIF('Operations Monthly'!$15:$15,'Project Finance Analysis'!CC$3,'Operations Monthly'!156:156) -> 19973.60951 | CD49: =SUMIF('Operations Monthly'!$15:$15,'Project Finance Analysis'!CD$3,'Operations Monthly'!156:156) -> 19908.72195 | CE49: =SUMIF('Operations Monthly'!$15:$15,'Project Finance Analysis'!CE$3,'Operations Monthly'!156:156) -> 20297.96366 | CF49: =SUMIF('Operations Monthly'!$15:$15,'Project Finance Analysis'!CF$3,'Operations Monthly'!156:156) -> 19308.08352 | CG49: =SUMIF('Operations Monthly'!$15:$15,'Project Finance Analysis'!CG$3,'Operations Monthly'!156:156) -> 19697.26023 | CH49: =SUMIF('Operations Monthly'!$15:$15,'Project Finance Analysis'!CH$3,'Operations Monthly'!156:156) -> 19493.41772 | CI49: =SUMIF('Operations Monthly'!$15:$15,'Project Finance Analysis'!CI$3,'Operations Monthly'!156:156) -> 20022.61747 | CJ49: =SUMIF('Operations Monthly'!$15:$15,'Project Finance Analysis'!CJ$3,'Operations Monthly'!156:156) -> 19815.58052 | CK49: =SUMIF('Operations Monthly'!$15:$15,'Project Finance Analysis'!CK$3,'Operations Monthly'!156:156) -> 20353.15405 | CL49: =SUMIF('Operations Monthly'!$15:$15,'Project Finance Analysis'!CL$3,'Operations Monthly'!156:156) -> 20288.15599 | CM49: =SUMIF('Operations Monthly'!$15:$15,'Project Finance Analysis'!CM$3,'Operations Monthly'!156:156) -> 20688.95065 | CN49: =SUMIF('Operations Monthly'!$15:$15,'Project Finance Analysis'!CN$3,'Operations Monthly'!156:156) -> 20475.37623 | CO49: =SUMIF('Operations Monthly'!$15:$15,'Project Finance Analysis'!CO$3,'Operations Monthly'!156:156) -> 21030.08919 | CP49: =SUMIF('Operations Monthly'!$15:$15,'Project Finance Analysis'!CP$3,'Operations Monthly'!156:156) -> 20813.17021 | CQ49: =SUMIF('Operations Monthly'!$15:$15,'Project Finance Analysis'!CQ$3,'Operations Monthly'!156:156) -> 21376.65286 | CR49: =SUMIF('Operations Monthly'!$15:$15,'Project Finance Analysis'!CR$3,'Operations Monthly'!156:156) -> 21156.33774 | CS49: =SUMIF('Operations Monthly'!$15:$15,'Project Finance Analysis'!CS$3,'Operations Monthly'!156:156) -> 21724.38119 | CT49: =SUMIF('Operations Monthly'!$15:$15,'Project Finance Analysis'!CT$3,'Operations Monthly'!156:156) -> 20836.28796 | CU49: =SUMIF('Operations Monthly'!$15:$15,'Project Finance Analysis'!CU$3,'Operations Monthly'!156:156) -> 21248.23565 | CV49: =SUMIF('Operations Monthly'!$15:$15,'Project Finance Analysis'!CV$3,'Operations Monthly'!156:156) -> 21028.51737 | CW49: =SUMIF('Operations Monthly'!$15:$15,'Project Finance Analysis'!CW$3,'Operations Monthly'!156:156) -> 21599.01425 | CX49: =SUMIF('Operations Monthly'!$15:$15,'Project Finance Analysis'!CX$3,'Operations Monthly'!156:156) -> 21375.85353 | CY49: =SUMIF('Operations Monthly'!$15:$15,'Project Finance Analysis'!CY$3,'Operations Monthly'!156:156) -> 21955.37507 | CZ49: =SUMIF('Operations Monthly'!$15:$15,'Project Finance Analysis'!CZ$3,'Operations Monthly'!156:156) -> 21728.71881 | DA49: =SUMIF('Operations Monthly'!$15:$15,'Project Finance Analysis'!DA$3,'Operations Monthly'!156:156) -> 22317.40506 | DB49: =SUMIF('Operations Monthly'!$15:$15,'Project Finance Analysis'!DB$3,'Operations Monthly'!156:156) -> 8538.466128 | DC49: =SUMIF('Operations Monthly'!$15:$15,'Project Finance Analysis'!DC$3,'Operations Monthly'!156:156) -> 0 | DD49: =SUMIF('Operations Monthly'!$15:$15,'Project Finance Analysis'!DD$3,'Operations Monthly'!156:156) -> 0 | DE49: =SUMIF('Operations Monthly'!$15:$15,'Project Finance Analysis'!DE$3,'Operations Monthly'!156:156) -> 0 | DF49: =SUMIF('Operations Monthly'!$15:$15,'Project Finance Analysis'!DF$3,'Operations Monthly'!156:156) -> 0 | DG49: =SUMIF('Operations Monthly'!$15:$15,'Project Finance Analysis'!DG$3,'Operations Monthly'!156:156) -> 0 | DH49: =SUMIF('Operations Monthly'!$15:$15,'Project Finance Analysis'!DH$3,'Operations Monthly'!156:156) -> 0 | DI49: =SUMIF('Operations Monthly'!$15:$15,'Project Finance Analysis'!DI$3,'Operations Monthly'!156:156) -> 0 | DJ49: =SUMIF('Operations Monthly'!$15:$15,'Project Finance Analysis'!DJ$3,'Operations Monthly'!156:156) -> 0 | DK49: =SUMIF('Operations Monthly'!$15:$15,'Project Finance Analysis'!DK$3,'Operations Monthly'!156:156) -> 0 | DL49: =SUMIF('Operations Monthly'!$15:$15,'Project Finance Analysis'!DL$3,'Operations Monthly'!156:156) -> 0 | DM49: =SUMIF('Operations Monthly'!$15:$15,'Project Finance Analysis'!DM$3,'Operations Monthly'!156:156) -> 0 | DN49: =SUMIF('Operations Monthly'!$15:$15,'Project Finance Analysis'!DN$3,'Operations Monthly'!156:156) -> 0 | DO49: =SUMIF('Operations Monthly'!$15:$15,'Project Finance Analysis'!DO$3,'Operations Monthly'!156:156) -> 0 | DP49: =SUMIF('Operations Monthly'!$15:$15,'Project Finance Analysis'!DP$3,'Operations Monthly'!156:156) -> 0 | DQ49: =SUMIF('Operations Monthly'!$15:$15,'Project Finance Analysis'!DQ$3,'Operations Monthly'!156:156) -> 0
A51: Debt Sizing
B52: Aggregate Sources and Uses
C53: Uses
D54: Capital Expenditures | G54: =SUM(46:46) -> 600000
D55: Add: Interest During Construction | G55: =SUM(96:96) -> 24209.86973
D56: Add: Fees During Construction | G56: =SUM(107:107) -> 5768.813097
D57: Add: DSRA
D58: Add: Pre-funded Working Cap | G58: =SUMIF(2:2,F3,47:47) -> 6077.007931
D59: Total | G59: =SUM(G54:G58) -> 636055.6908
C61: Sources
D62: Debt | E62: =G62/G64 -> 0.7 | G62: =G16 -> 445238.9835 | H62: =G59*E62 -> 445238.9835
D63: Equity | G63: =G59-G62 -> 190816.7072
D64: Total | G64: =SUM(G62:G63) -> 636055.6908
B66: Working Capital Facility
C67: Opening Balance | L67: =K70 -> 0 | M67: =L70 -> 0 | N67: 0 | O67: 0 | P67: 0 | Q67: 0 | R67: 0 | S67: 0 | T67: 0 | U67: 0 | V67: 0 | W67: 0 | X67: 0 | Y67: 0 | Z67: 0 | AA67: 0 | AB67: 0 | AC67: 0 | AD67: 0 | AE67: 0 | AF67: 0 | AG67: 0 | AH67: 0 | AI67: 0 | AJ67: 0 | AK67: 0 | AL67: 0 | AM67: 0 | AN67: 0 | AO67: 0 | AP67: 0 | AQ67: 0 | AR67: 0 | AS67: 0 | AT67: 0 | AU67: 0 | AV67: 0 | AW67: 0 | AX67: 0 | AY67: 0 | AZ67: 0 | BA67: 0 | BB67: 0 | BC67: 0 | BD67: 6077.007931 | BE67: 0 | BF67: 0 | BG67: 0 | BH67: 0 | BI67: 0 | BJ67: 0 | BK67: 0 | BL67: 0 | BM67: 0 | BN67: 0 | BO67: 0 | BP67: 0 | BQ67: 0 | BR67: 0 | BS67: 0 | BT67: 0 | BU67: 0 | BV67: 0 | BW67: 0 | BX67: 0 | BY67: =BX70 -> 0 | BZ67: 0 | CA67: 0 | CB67: 0 | CC67: 0 | CD67: 0 | CE67: 0 | CF67: 0 | CG67: 0 | CH67: 0 | CI67: 0 | CJ67: 0 | CK67: 0 | CL67: 0 | CM67: 0 | CN67: 0 | CO67: 0 | CP67: 0 | CQ67: 0 | CR67: 0 | CS67: 0 | CT67: 0 | CU67: 0 | CV67: 0 | CW67: 0 | CX67: 0 | CY67: 0 | CZ67: 0 | DA67: 0 | DB67: 0 | DC67: 0 | DD67: 0 | DE67: 0 | DF67: 0 | DG67: 0 | DH67: 0 | DI67: 0 | DJ67: 0 | DK67: 0 | DL67: 0 | DM67: 0 | DN67: 0 | DO67: 0 | DP67: 0 | DQ67: 0
C68: Add: Working Capital Deposit | L68: =$G$58*L5 -> 0 | M68: 0 | N68: 0 | O68: 0 | P68: 0 | Q68: 0 | R68: 0 | S68: 0 | T68: 0 | U68: 0 | V68: 0 | W68: 0 | X68: 0 | Y68: 0 | Z68: 0 | AA68: 0 | AB68: 0 | AC68: 0 | AD68: 0 | AE68: 0 | AF68: 0 | AG68: 0 | AH68: 0 | AI68: 0 | AJ68: 0 | AK68: 0 | AL68: 0 | AM68: 0 | AN68: 0 | AO68: 0 | AP68: 0 | AQ68: 0 | AR68: =$G$58*AR5 -> 0 | AS68: 0 | AT68: 0 | AU68: 0 | AV68: 0 | AW68: 0 | AX68: 0 | AY68: 0 | AZ68: 0 | BA68: 0 | BB68: 0 | BC68: 6077.007931 | BD68: 0 | BE68: 0 | BF68: 0 | BG68: 0 | BH68: 0 | BI68: 0 | BJ68: 0 | BK68: 0 | BL68: 0 | BM68: 0 | BN68: 0 | BO68: 0 | BP68: 0 | BQ68: 0 | BR68: 0 | BS68: 0 | BT68: 0 | BU68: 0 | BV68: 0 | BW68: 0 | BX68: =$G$58*BX5 -> 0 | BY68: 0 | BZ68: 0 | CA68: 0 | CB68: 0 | CC68: 0 | CD68: 0 | CE68: 0 | CF68: 0 | CG68: 0 | CH68: 0 | CI68: 0 | CJ68: 0 | CK68: 0 | CL68: 0 | CM68: 0 | CN68: 0 | CO68: 0 | CP68: 0 | CQ68: 0 | CR68: 0 | CS68: 0 | CT68: 0 | CU68: 0 | CV68: 0 | CW68: 0 | CX68: 0 | CY68: 0 | CZ68: 0 | DA68: 0 | DB68: 0 | DC68: 0 | DD68: =$G$58*DD5 -> 0 | DE68: 0 | DF68: 0 | DG68: 0 | DH68: 0 | DI68: 0 | DJ68: 0 | DK68: 0 | DL68: 0 | DM68: 0 | DN68: 0 | DO68: 0 | DP68: 0 | DQ68: 0
C69: Less: Use of Working Capital | L69: =L9*L47 -> 0 | M69: 0 | N69: 0 | O69: 0 | P69: 0 | Q69: 0 | R69: 0 | S69: 0 | T69: 0 | U69: 0 | V69: 0 | W69: 0 | X69: 0 | Y69: 0 | Z69: 0 | AA69: 0 | AB69: 0 | AC69: 0 | AD69: 0 | AE69: 0 | AF69: 0 | AG69: 0 | AH69: 0 | AI69: 0 | AJ69: 0 | AK69: 0 | AL69: 0 | AM69: 0 | AN69: 0 | AO69: 0 | AP69: 0 | AQ69: 0 | AR69: =AR9*AR47 -> 0 | AS69: 0 | AT69: 0 | AU69: 0 | AV69: 0 | AW69: 0 | AX69: 0 | AY69: 0 | AZ69: 0 | BA69: 0 | BB69: 0 | BC69: 0 | BD69: 6077.007931 | BE69: 0 | BF69: 0 | BG69: 0 | BH69: 0 | BI69: 0 | BJ69: 0 | BK69: 0 | BL69: 0 | BM69: 0 | BN69: 0 | BO69: 0 | BP69: 0 | BQ69: 0 | BR69: 0 | BS69: 0 | BT69: 0 | BU69: 0 | BV69: 0 | BW69: 0 | BX69: =BX9*BX47 -> 0 | BY69: 0 | BZ69: 0 | CA69: 0 | CB69: 0 | CC69: 0 | CD69: 0 | CE69: 0 | CF69: 0 | CG69: 0 | CH69: 0 | CI69: 0 | CJ69: 0 | CK69: 0 | CL69: 0 | CM69: 0 | CN69: 0 | CO69: 0 | CP69: 0 | CQ69: 0 | CR69: 0 | CS69: 0 | CT69: 0 | CU69: 0 | CV69: 0 | CW69: 0 | CX69: 0 | CY69: 0 | CZ69: 0 | DA69: 0 | DB69: 0 | DC69: 0 | DD69: =DD9*DD47 -> 0 | DE69: 0 | DF69: 0 | DG69: 0 | DH69: 0 | DI69: 0 | DJ69: 0 | DK69: 0 | DL69: 0 | DM69: 0 | DN69: 0 | DO69: 0 | DP69: 0 | DQ69: 0
C70: Closing Balance | L70: =L67+L68-L69 -> 0 | M70: =M67+M68-M69 -> 0 | N70: 0 | O70: 0 | P70: 0 | Q70: 0 | R70: 0 | S70: 0 | T70: 0 | U70: 0 | V70: 0 | W70: 0 | X70: 0 | Y70: 0 | Z70: 0 | AA70: 0 | AB70: 0 | AC70: 0 | AD70: 0 | AE70: 0 | AF70: 0 | AG70: 0 | AH70: 0 | AI70: 0 | AJ70: 0 | AK70: 0 | AL70: 0 | AM70: 0 | AN70: 0 | AO70: 0 | AP70: 0 | AQ70: 0 | AR70: 0 | AS70: 0 | AT70: 0 | AU70: 0 | AV70: 0 | AW70: 0 | AX70: 0 | AY70: 0 | AZ70: 0 | BA70: 0 | BB70: 0 | BC70: 6077.007931 | BD70: 0 | BE70: 0 | BF70: 0 | BG70: 0 | BH70: 0 | BI70: 0 | BJ70: 0 | BK70: 0 | BL70: 0 | BM70: 0 | BN70: 0 | BO70: 0 | BP70: 0 | BQ70: 0 | BR70: 0 | BS70: 0 | BT70: 0 | BU70: 0 | BV70: 0 | BW70: 0 | BX70: 0 | BY70: =BY67+BY68-BY69 -> 0 | BZ70: 0 | CA70: 0 | CB70: 0 | CC70: 0 | CD70: 0 | CE70: 0 | CF70: 0 | CG70: 0 | CH70: 0 | CI70: 0 | CJ70: 0 | CK70: 0 | CL70: 0 | CM70: 0 | CN70: 0 | CO70: 0 | CP70: 0 | CQ70: 0 | CR70: 0 | CS70: 0 | CT70: 0 | CU70: 0 | CV70: 0 | CW70: 0 | CX70: 0 | CY70: 0 | CZ70: 0 | DA70: 0 | DB70: 0 | DC70: 0 | DD70: 0 | DE70: 0 | DF70: 0 | DG70: 0 | DH70: 0 | DI70: 0 | DJ70: 0 | DK70: 0 | DL70: 0 | DM70: 0 | DN70: 0 | DO70: 0 | DP70: 0 | DQ70: 0
A72: Debt Funding and Sources and Uses
B73: Pro-Rata
C74: Total Funding Needs
D75: Capital Expenditures | L75: =L46 -> 10000 | M75: 10000 | N75: 10000 | O75: 10000 | P75: 10000 | Q75: 10000 | R75: 10000 | S75: 10000 | T75: 10000 | U75: 10000 | V75: 10000 | W75: 10000 | X75: 32500 | Y75: 32500 | Z75: 32500 | AA75: 32500 | AB75: 32500 | AC75: 32500 | AD75: 32500 | AE75: 32500 | AF75: 32500 | AG75: 32500 | AH75: 32500 | AI75: 32500 | AJ75: 7500 | AK75: 7500 | AL75: 7500 | AM75: 7500 | AN75: 7500 | AO75: 7500 | AP75: 7500 | AQ75: 7500 | AR75: =AR46 -> 7500 | AS75: 7500 | AT75: 7500 | AU75: 7500 | AV75: 0 | AW75: 0 | AX75: 0 | AY75: 0 | AZ75: 0 | BA75: 0 | BB75: 0 | BC75: 1.33226763e-10 | BD75: 0 | BE75: 0 | BF75: 0 | BG75: 0 | BH75: 0 | BI75: 0 | BJ75: 0 | BK75: 0 | BL75: 0 | BM75: 0 | BN75: 0 | BO75: 0 | BP75: 0 | BQ75: 0 | BR75: 0 | BS75: 0 | BT75: 0 | BU75: 0 | BV75: 0 | BW75: 0 | BX75: =BX46 -> 0 | BY75: 0 | BZ75: 0 | CA75: 0 | CB75: 0 | CC75: 0 | CD75: 0 | CE75: 0 | CF75: 0 | CG75: 0 | CH75: 0 | CI75: 0 | CJ75: 0 | CK75: 0 | CL75: 0 | CM75: 0 | CN75: 0 | CO75: 0 | CP75: 0 | CQ75: 0 | CR75: 0 | CS75: 0 | CT75: 0 | CU75: 0 | CV75: 0 | CW75: 0 | CX75: 0 | CY75: 0 | CZ75: 0 | DA75: 0 | DB75: 0 | DC75: 0 | DD75: =DD46 -> 0 | DE75: 0 | DF75: 0 | DG75: 0 | DH75: 0 | DI75: 0 | DJ75: 0 | DK75: 0 | DL75: 0 | DM75: 0 | DN75: 0 | DO75: 0 | DP75: 0 | DQ75: 0
D76: Add: Interest During Construction | L76: =L96 -> 0 | M76: =M96 -> 15.45968693 | N76: 30.91937386 | O76: 46.37906078 | P76: 61.83874771 | Q76: 77.29843464 | R76: 92.75812157 | S76: 108.2178085 | T76: 123.6774954 | U76: 139.1371824 | V76: 154.5968693 | W76: 170.0565562 | X76: 185.5162431 | Y76: 235.7602257 | Z76: 286.0042082 | AA76: 336.2481907 | AB76: 386.4921732 | AC76: 436.7361557 | AD76: 486.9801382 | AE76: 537.2241208 | AF76: 587.4681033 | AG76: 637.7120858 | AH76: 687.9560683 | AI76: 738.2000508 | AJ76: 788.4440333 | AK76: 800.0387985 | AL76: 811.6335637 | AM76: 823.2283289 | AN76: 834.8230941 | AO76: 846.4178593 | AP76: 858.0126245 | AQ76: 869.6073897 | AR76: 881.2021549 | AS76: 892.7969201 | AT76: 904.3916853 | AU76: 915.9864505 | AV76: 927.5812157 | AW76: 927.5812157 | AX76: 927.5812157 | AY76: 927.5812157 | AZ76: 927.5812157 | BA76: 927.5812157 | BB76: 927.5812157 | BC76: 927.5812157 | BD76: 0 | BE76: 0 | BF76: 0 | BG76: 0 | BH76: 0 | BI76: 0 | BJ76: 0 | BK76: 0 | BL76: 0 | BM76: 0 | BN76: 0 | BO76: 0 | BP76: 0 | BQ76: 0 | BR76: 0 | BS76: 0 | BT76: 0 | BU76: 0 | BV76: 0 | BW76: 0 | BX76: 0 | BY76: =BY96 -> 0 | BZ76: 0 | CA76: 0 | CB76: 0 | CC76: 0 | CD76: 0 | CE76: 0 | CF76: 0 | CG76: 0 | CH76: 0 | CI76: 0 | CJ76: 0 | CK76: 0 | CL76: 0 | CM76: 0 | CN76: 0 | CO76: 0 | CP76: 0 | CQ76: 0 | CR76: 0 | CS76: 0 | CT76: 0 | CU76: 0 | CV76: 0 | CW76: 0 | CX76: 0 | CY76: 0 | CZ76: 0 | DA76: 0 | DB76: 0 | DC76: 0 | DD76: 0 | DE76: 0 | DF76: 0 | DG76: 0 | DH76: 0 | DI76: 0 | DJ76: 0 | DK76: 0 | DL76: 0 | DM76: 0 | DN76: 0 | DO76: 0 | DP76: 0 | DQ76: 0
D77: Add: Fees During Construction
D78: Add: DSRA
D79: Add: Funding of Working Captial | L79: =L68 -> 0 | M79: =M68 -> 0 | N79: 0 | O79: 0 | P79: 0 | Q79: 0 | R79: 0 | S79: 0 | T79: 0 | U79: 0 | V79: 0 | W79: 0 | X79: 0 | Y79: 0 | Z79: 0 | AA79: 0 | AB79: 0 | AC79: 0 | AD79: 0 | AE79: 0 | AF79: 0 | AG79: 0 | AH79: 0 | AI79: 0 | AJ79: 0 | AK79: 0 | AL79: 0 | AM79: 0 | AN79: 0 | AO79: 0 | AP79: 0 | AQ79: 0 | AR79: 0 | AS79: 0 | AT79: 0 | AU79: 0 | AV79: 0 | AW79: 0 | AX79: 0 | AY79: 0 | AZ79: 0 | BA79: 0 | BB79: 0 | BC79: 6077.007931 | BD79: 0 | BE79: 0 | BF79: 0 | BG79: 0 | BH79: 0 | BI79: 0 | BJ79: 0 | BK79: 0 | BL79: 0 | BM79: 0 | BN79: 0 | BO79: 0 | BP79: 0 | BQ79: 0 | BR79: 0 | BS79: 0 | BT79: 0 | BU79: 0 | BV79: 0 | BW79: 0 | BX79: 0 | BY79: =BY68 -> 0 | BZ79: 0 | CA79: 0 | CB79: 0 | CC79: 0 | CD79: 0 | CE79: 0 | CF79: 0 | CG79: 0 | CH79: 0 | CI79: 0 | CJ79: 0 | CK79: 0 | CL79: 0 | CM79: 0 | CN79: 0 | CO79: 0 | CP79: 0 | CQ79: 0 | CR79: 0 | CS79: 0 | CT79: 0 | CU79: 0 | CV79: 0 | CW79: 0 | CX79: 0 | CY79: 0 | CZ79: 0 | DA79: 0 | DB79: 0 | DC79: 0 | DD79: 0 | DE79: 0 | DF79: 0 | DG79: 0 | DH79: 0 | DI79: 0 | DJ79: 0 | DK79: 0 | DL79: 0 | DM79: 0 | DN79: 0 | DO79: 0 | DP79: 0 | DQ79: 0
